Workbook

Sheet Inicio
E3: Divorcios, Separaciones y Nulidades ingresados
E5: Desde 2007 hasta primer trimestre de 2018
E8: Resumen
E9: Separaciones no consensuadas clasificadas por Tribunal Superior de Justicia
E10: Separaciones consensuadas clasificadas por Tribunal Superior de Justicia
E11: Divorcios no consensuados clasificados por Tribunal Superior de Justicia
E12: Divorcios consensuados clasificados por Tribunal Superior de Justicia
E13: Nulidades matrimoniales clasificadas por Tribunal Superior de Justicia
E14: Gráficos
E15: Datos por provincias
E16: Datos por Partidos Judiciales
E17: Modificación de medidas consensuadas clasificadas por Tribunal Superior de Justicia
E18: Modificación de medidas no consensuadas clasificadas por Tribunal Superior de Justicia
E19: Guardia, custodia y alimentos de hijos no matrimoniales, consensuados clasificados por Tribunal Superior de Justicia
E20: Guardia, custodia y alimentos de hijos no matrimoniales, no consensuados clasificados por Tribunal Superior de Justicia

Sheet Resumen
K1: Inicio
B3: Resumen de nulidades, separaciones y divorcios ingresados
B4: En juzgados de Violencia contra la Mujer, de Primera Instancia y de Primera instancia e Instrucción
C6: Nulidades | D6: Evolución nulidades | E6: Divorcios consensuados | F6: Evolución divorcios consensuados | G6: Divorcios no consensuados | H6: Evolución divorcios no consensuados | I6: Separaciones consensuadas | J6: Evolución separaciones consensuadas | K6: Separaciones no consensuadas | L6: Evolución separaciones no consensuadas | M6: Modificación medidas consensuadas | N6: Evolución modificación medidas consensuadas | O6: Modificación medidas no consensuadas | P6: Evolución modificación medidas no consensuadas | Q6: Guarda, custodia, alimentos hijos no matrimoniales consensuada | R6: Evolución guarda, custodia, alimentos hijos no matr.cons | S6: Guarda, custodia, alimentos hijos no matrimoniales no consensuada | T6: Evolución guarda, custodia, alimentos hijos no matr. no consensuada
B7: 07-T1 | C7: 44 | D7: 0.07317073171 | E7: 23182 | F7: -0.04147198677 | G7: 14335 | H7: -0.1024918608 | I7: 1989 | J7: -0.288372093 | K7: 1090 | L7: -0.3397940642 | M7: 844 | N7: 0.1313672922 | O7: 3160 | P7: 0.1870773854 | Q7: 1460 | R7: 0.1578112609 | S7: 3306 | T7: 0.07687296417
B8: 07-T2 | C8: 55 | D8: 0.8333333333 | E8: 21346 | F8: -0.0561131992 | G8: 13060 | H8: -0.09843987298 | I8: 1687 | J8: -0.2884858709 | K8: 994 | L8: -0.3292847503 | M8: 908 | N8: 0.2438356164 | O8: 3125 | P8: 0.1253150882 | Q8: 1505 | R8: 0.1693861694 | S8: 3393 | T8: 0.1584158416
B9: 07-T3 | C9: 37 | D9: 0.48 | E9: 15348 | F9: -0.05794254849 | G9: 9521 | H9: -0.07849399923 | I9: 1238 | J9: -0.2089456869 | K9: 669 | L9: -0.3095975232 | M9: 646 | N9: 0.254368932 | O9: 2327 | P9: 0.1491358025 | Q9: 1111 | R9: 0.2843930636 | S9: 2537 | T9: 0.1938823529
B10: 07-T4 | C10: 53 | D10: 0.1276595745 | E10: 20757 | F10: -0.07951219512 | G10: 13331 | H10: -0.09931761367 | I10: 1627 | J10: -0.2121065375 | K10: 917 | L10: -0.260483871 | M10: 905 | N10: 0.2380300958 | O10: 3495 | P10: 0.1811422778 | Q10: 1458 | R10: 0.15256917 | S10: 3441 | T10: 0.03644578313
B11: 08-T1 | C11: 34 | D11: -0.2272727273 | E11: 18923 | F11: -0.1837201277 | G11: 11808 | H11: -0.1762818277 | I11: 1398 | J11: -0.2971342383 | K11: 802 | L11: -0.2642201835 | M11: 862 | N11: =+(M11-M7)/M7 -> 0.02132701422 | O11: 3347 | P11: =+(O11-O7)/O7 -> 0.05917721519 | Q11: 1473 | R11: =+(Q11-Q7)/Q7 -> 0.008904109589 | S11: 3407 | T11: =+(S11-S7)/S7 -> 0.03055051422
B12: 08-T2 | C12: 56 | D12: 0.01818181818 | E12: 21079 | F12: -0.01250819826 | G12: 13254 | H12: 0.01485451761 | I12: 1703 | J12: 0.009484291642 | K12: 849 | L12: -0.1458752515 | M12: 1060 | N12: =+(M12-M8)/M8 -> 0.1674008811 | O12: 3880 | P12: =+(O12-O8)/O8 -> 0.2416 | Q12: 1704 | R12: =+(Q12-Q8)/Q8 -> 0.1322259136 | S12: 3968 | T12: =+(S12-S8)/S8 -> 0.1694665488
B13: 08-T3 | C13: 42 | D13: 0.1351351351 | E13: 14945 | F13: -0.02625749283 | G13: 9615 | H13: 0.009872912509 | I13: 1229 | J13: -0.007269789984 | K13: 599 | L13: -0.1046337818 | M13: 765 | N13: 0.1842105263 | O13: 2727 | P13: 0.171895144 | Q13: 1270 | R13: 0.1431143114 | S13: 2843 | T13: 0.1206148995
B14: 08-T4 | C14: 59 | D14: 0.1132075472 | E14: 18879 | F14: -0.09047550224 | G14: 13300 | H14: -0.002325406946 | I14: 1580 | J14: -0.02888752305 | K14: 910 | L14: -0.007633587786 | M14: 1004 | N14: 0.1093922652 | O14: 4115 | P14: 0.1773962804 | Q14: 1657 | R14: 0.1364883402 | S14: 4275 | T14: 0.2423714037
B15: 09-T1 | C15: 41 | D15: 0.2058823529 | E15: 17357 | F15: -0.08275643397 | G15: 11992 | H15: 0.01558265583 | I15: 1428 | J15: 0.02145922747 | K15: 764 | L15: -0.04738154613 | M15: 1022 | N15: 0.1856148492 | O15: 4166 | P15: 0.2446967434 | Q15: 1659 | R15: 0.1262729124 | S15: 3883 | T15: 0.1397123569
B16: 09-T2 | C16: 52 | D16: -0.07142857143 | E16: 18240 | F16: -0.1346838085 | G16: 12180 | H16: -0.08103214124 | I16: 1473 | J16: -0.1350557839 | K16: 783 | L16: -0.0777385159 | M16: 1159 | N16: 0.09339622642 | O16: 4519 | P16: 0.1646907216 | Q16: 1869 | R16: 0.09683098592 | S16: 4263 | T16: 0.07434475806
B17: 09-T3 | C17: 29 | D17: -0.3095238095 | E17: 14206 | F17: -0.04944797591 | G17: 9652 | H17: 0.003848153926 | I17: 1133 | J17: -0.07811228641 | K17: 564 | L17: -0.05843071786 | M17: 891 | N17: 0.1647058824 | O17: 3393 | P17: 0.2442244224 | Q17: 1428 | R17: 0.1244094488 | S17: 3546 | T17: 0.2472740063
B18: 09-T4 | C18: 42 | D18: -0.2881355932 | E18: 18581 | F18: -0.01578473436 | G18: 13743 | H18: 0.03330827068 | I18: 1487 | J18: -0.05886075949 | K18: 836 | L18: -0.08131868132 | M18: 1111 | N18: 0.1065737052 | O18: 4965 | P18: 0.2065613609 | Q18: 2036 | R18: 0.2287266144 | S18: 4791 | T18: 0.1207017544
B19: 10-T1 | C19: 38 | D19: -0.07317073171 | E19: 18262 | F19: 0.05214034683 | G19: 12558 | H19: 0.04719813209 | I19: 1439 | J19: 0.007703081232 | K19: 806 | L19: 0.05497382199 | M19: 1134 | N19: 0.1095890411 | O19: 4875 | P19: 0.17018723 | Q19: 2203 | R19: 0.3279083785 | S19: 4802 | T19: 0.2366726758
B20: 10-T2 | C20: 53 | D20: =+(C20-C16)/C16 -> 0.01923076923 | E20: 19191 | F20: =+(E20-E16)/E16 -> 0.05213815789 | G20: 12883 | H20: =+(G20-G16)/G16 -> 0.05771756979 | I20: 1393 | J20: =+(I20-I16)/I16 -> -0.05431093007 | K20: 742 | L20: =+(K20-K16)/K16 -> -0.05236270754 | M20: 1373 | N20: 0.1846419327 | O20: 5180 | P20: 0.146271299 | Q20: 2450 | R20: 0.3108614232 | S20: 4897 | T20: 0.1487215576
B21: 10-T3 | C21: 23 | D21: -0.2068965517 | E21: 14308 | F21: 0.007180064761 | G21: 9632 | H21: -0.002072109407 | I21: 1006 | J21: -0.1120917917 | K21: 427 | L21: -0.2429078014 | M21: 1056 | N21: 0.1851851852 | O21: 3800 | P21: 0.1199528441 | Q21: 1756 | R21: 0.2296918768 | S21: 3772 | T21: 0.06373378455
B22: 10-T4 | C22: 46 | D22: 0.09523809524 | E22: 19132 | F22: 0.02965394758 | G22: 13547 | H22: -0.01426180601 | I22: 1394 | J22: -0.06254203093 | K22: 753 | L22: -0.09928229665 | M22: 1433 | N22: 0.2898289829 | O22: 5538 | P22: 0.115407855 | Q22: 2608 | R22: 0.2809430255 | S22: 5580 | T22: 0.1646837821
B23: 11-T1 | C23: 47 | D23: 0.2368421053 | E23: 18284 | F23: 0.001204687329 | G23: 13017 | H23: 0.03655040612 | I23: 1338 | J23: -0.0701876303 | K23: 658 | L23: -0.1836228288 | M23: 1499 | N23: 0.3218694885 | O23: 5674 | P23: 0.1638974359 | Q23: 2666 | R23: 0.2101679528 | S23: 5500 | T23: 0.1453561016
B24: 11-T2 | C24: 60 | D24: 0.1320754717 | E24: 18064 | F24: -0.05872544422 | G24: 12275 | H24: -0.04719397656 | I24: 1277 | J24: -0.08327351041 | K24: 645 | L24: -0.1307277628 | M24: 1593 | N24: 0.1602330663 | O24: 6251 | P24: 0.2067567568 | Q24: 2758 | R24: 0.1257142857 | S24: 5600 | T24: 0.14355728
B25: 11-T3 | C25: 29 | D25: 0.2608695652 | E25: 14216 | F25: -0.006429969248 | G25: 9493 | H25: -0.01443106312 | I25: 1021 | J25: 0.01491053678 | K25: 456 | L25: 0.06791569087 | M25: 1249 | N25: 0.1827651515 | O25: 4735 | P25: 0.2460526316 | Q25: 2021 | R25: 0.1509111617 | S25: 4097 | T25: 0.0861611877
B26: 11-T4 | C26: 40 | D26: -0.1304347826 | E26: 18287 | F26: -0.04416684089 | G26: 13543 | H26: -0.0002952683251 | I26: 1236 | J26: -0.1133428981 | K26: 716 | L26: -0.04913678619 | M26: 1672 | N26: 0.1667829728 | O26: 6272 | P26: 0.1325388227 | Q26: 2769 | R26: 0.06173312883 | S26: 5791 | T26: 0.03781362007
B27: 12-T1 | C27: 45 | D27: -0.04255319149 | E27: 18365 | F27: 0.004430102822 | G27: 12821 | H27: -0.01505723285 | I27: 1284 | J27: -0.04035874439 | K27: 655 | L27: -0.004559270517 | M27: 1736 | N27: 0.1581054036 | O27: 7008 | P27: 0.2351075079 | Q27: 3057 | R27: 0.1466616654 | S27: 6095 | T27: 0.1081818182
B28: 12-T2 | C28: 35 | D28: -0.4166666667 | E28: 18032 | F28: -0.001771479185 | G28: 12504 | H28: 0.01865580448 | I28: 1232 | J28: -0.03523884103 | K28: 609 | L28: -0.05581395349 | M28: 1847 | N28: 0.1594475832 | O28: 7465 | P28: 0.1942089266 | Q28: 3195 | R28: 0.1584481508 | S28: 6032 | T28: 0.07714285714
B29: 12-T3 | C29: 27 | D29: -0.06896551724 | E29: 13768 | F29: -0.03151378728 | G29: 9544 | H29: 0.005372379648 | I29: 884 | J29: -0.1341821743 | K29: 437 | L29: -0.04166666667 | M29: 1429 | N29: 0.1441152922 | O29: 5533 | P29: 0.168532207 | Q29: 2383 | R29: 0.1791192479 | S29: 4432 | T29: 0.08176714669
B30: 12-T4 | C30: 57 | D30: =+(C30-C26)/C26 -> 0.425 | E30: 20376 | F30: =+(E30-E26)/E26 -> 0.1142341554 | G30: 14461 | H30: =+(G30-G26)/G26 -> 0.0677840951 | I30: 1329 | J30: =+(I30-I26)/I26 -> 0.07524271845 | K30: 695 | L30: =+(K30-K26)/K26 -> -0.02932960894 | M30: 1903 | N30: 0.1381578947 | O30: 8361 | P30: 0.333067602 | Q30: 3383 | R30: 0.2217407006 | S30: 6724 | T30: 0.1611120705
B31: 13-T1 | C31: 49 | D31: 0.08888888889 | E31: 17020 | F31: -0.07323713586 | G31: 11948 | H31: -0.06809141253 | I31: 1048 | J31: -0.1838006231 | K31: 567 | L31: -0.134351145 | M31: 1925 | N31: 0.1088709677 | O31: 7407 | P31: 0.05693493151 | Q31: 3285 | R31: 0.07458292444 | S31: 6179 | T31: 0.01378178835
B32: 13-T2 | C32: 46 | D32: 0.3142857143 | E32: 18757 | F32: 0.04020629991 | G32: 12262 | H32: -0.01935380678 | I32: 1316 | J32: 0.06818181818 | K32: 562 | L32: -0.07717569787 | M32: 2118 | N32: 0.146724418 | O32: 8379 | P32: 0.1224380442 | Q32: 3701 | R32: 0.158372457 | S32: 6639 | T32: 0.1006299735
B33: 13-T3 | C33: 36 | D33: 0.3333333333 | E33: 14604 | F33: 0.06072051133 | G33: 9632 | H33: 0.00922045264 | I33: 955 | J33: 0.08031674208 | K33: 486 | L33: 0.1121281465 | M33: 1602 | N33: 0.1210636809 | O33: 6211 | P33: 0.1225375023 | Q33: 2859 | R33: 0.1997482165 | S33: 4998 | T33: 0.1277075812
B34: 13-T4 | C34: 47 | D34: -0.1754385965 | E34: 19948 | F34: -0.02100510404 | G34: 13769 | H34: -0.04785284558 | I34: 1313 | J34: -0.01203912716 | K34: 616 | L34: -0.1136690647 | M34: 2298 | N34: 0.2075669995 | O34: 8514 | P34: 0.0182992465 | Q34: 4004 | R34: 0.1835648832 | S34: 7378 | T34: 0.09726353361
B35: 14-T1 | C35: 55 | D35: 0.1224489796 | E35: 19376 | F35: 0.1384253819 | G35: 12887 | H35: 0.07859055909 | I35: 1187 | J35: 0.1326335878 | K35: 595 | L35: 0.04938271605 | M35: 2203 | N35: 0.1444155844 | O35: 8527 | P35: 0.1512083165 | Q35: 4173 | R35: 0.2703196347 | S35: 7150 | T35: 0.1571451691
B36: 14-T2 | C36: 53 | D36: 0.152173913 | E36: 19251 | F36: 0.02633683425 | G36: 12625 | H36: 0.02960365356 | I36: 1226 | J36: -0.06838905775 | K36: 567 | L36: 0.008896797153 | M36: 2411 | N36: 0.1383380548 | O36: 8733 | P36: 0.04224847834 | Q36: 4203 | R36: 0.1356390165 | S36: 7101 | T36: 0.06958879349
B37: 14-T3 | C37: 37 | D37: 0.02777777778 | E37: 16454 | F37: 0.1266776226 | G37: 10812 | H37: 0.1225083056 | I37: 1087 | J37: 0.1382198953 | K37: 454 | L37: -0.0658436214 | M37: 1929 | N37: 0.2041198502 | O37: 6834 | P37: 0.1003059089 | Q37: 3471 | R37: 0.2140608604 | S37: 5922 | T37: 0.1848739496
B38: 14-T4 | C38: 57 | D38: 0.2127659574 | E38: 20739 | F38: 0.03965309805 | G38: 14302 | H38: 0.03871014598 | I38: 1305 | J38: -0.006092916984 | K38: 624 | L38: 0.01298701299 | M38: 2567 | N38: 0.1170583116 | O38: 9094 | P38: 0.06812309138 | Q38: 4655 | R38: 0.1625874126 | S38: 7941 | T38: 0.07630794253
B39: 15-T1 | C39: 56 | D39: 0.01818181818 | E39: 19595 | F39: 0.01130264244 | G39: 13420 | H39: 0.04135950958 | I39: 1266 | J39: 0.06655433867 | K39: 552 | L39: -0.07226890756 | M39: 2483 | N39: 0.1270994099 | O39: 8879 | P39: 0.04128063797 | Q39: 4724 | R39: 0.1320393003 | S39: 7381 | T39: 0.03230769231
B40: 15-T2 | C40: 50 | D40: -0.05660377358 | E40: 19612 | F40: 0.01875227261 | G40: 13004 | H40: 0.03001980198 | I40: 1229 | J40: 0.002446982055 | K40: 512 | L40: -0.09700176367 | M40: 2644 | N40: 0.09664039818 | O40: 9382 | P40: 0.07431581358 | Q40: 4852 | R40: 0.1544135142 | S40: 7471 | T40: 0.05210533728
B41: 15-T3 | C41: 47 | D41: 0.2702702703 | E41: 15249 | F41: -0.07323447186 | G41: 10027 | H41: -0.0726045135 | I41: 987 | J41: -0.09199632015 | K41: 395 | L41: -0.1299559471 | M41: 2092 | N41: 0.0844997408 | O41: 6911 | P41: 0.01126719344 | Q41: 3684 | R41: 0.06136560069 | S41: 5640 | T41: -0.04761904762
B42: 15-T4 | C42: 63 | D42: 0.1052631579 | E42: 18958 | F42: -0.08587685038 | G42: 13512 | H42: -0.05523702979 | I42: 1137 | J42: -0.1287356322 | K42: 521 | L42: -0.1650641026 | M42: 2586 | N42: 0.007401636151 | O42: 9076 | P42: -0.001979327029 | Q42: 4672 | R42: 0.003651987111 | S42: 7612 | T42: -0.04143055031
B43: 16-T1 | C43: 35 | D43: -0.375 | E43: 17041 | F43: -0.1303393723 | G43: 11699 | H43: -0.1282414307 | I43: 1017 | J43: -0.1966824645 | K43: 478 | L43: -0.134057971 | M43: 2455 | N43: -0.01127668143 | O43: 8554 | P43: -0.03660322108 | Q43: 4468 | R43: -0.05419136325 | S43: 6844 | T43: -0.07275436933
B44: 16-T2 | C44: 46 | D44: -0.08 | E44: 18847 | F44: -0.03900673057 | G44: 13011 | H44: 0.000538295909 | I44: 1061 | J44: -0.1366965012 | K44: 515 | L44: 0.005859375 | M44: 3032 | N44: 0.1467473525 | O44: 9802 | P44: 0.04476657429 | Q44: 5382 | R44: 0.1092333059 | S44: 7942 | T44: 0.06304376924
B45: 16-T3 | C45: 34 | D45: -0.2765957447 | E45: 13660 | F45: -0.1042035543 | G45: 9325 | H45: -0.07001097038 | I45: 816 | J45: -0.1732522796 | K45: 400 | L45: 0.01265822785 | M45: 1983 | N45: -0.05210325048 | O45: 6644 | P45: -0.03863406164 | Q45: 3622 | R45: -0.01682953312 | S45: 5748 | T45: 0.01914893617
B46: 16-T4 | C46: 44 | D46: -0.3015873016 | E46: 17641 | F46: -0.06946935331 | G46: 12795 | H46: -0.05306394316 | I46: 1018 | J46: -0.1046613896 | K46: 535 | L46: 0.02687140115 | M46: 2744 | N46: 0.06109822119 | O46: 9017 | P46: -0.006500661084 | Q46: 4753 | R46: 0.01733732877 | S46: 7864 | T46: 0.0331056227
B47: 17-T1 | C47: 41 | D47: 0.1714285714 | E47: 17483 | F47: 0.02593744499 | G47: 12679 | H47: 0.08376784341 | I47: 1041 | J47: 0.02359882006 | K47: 491 | L47: 0.02719665272 | M47: 2859 | N47: 0.1645621181 | O47: 9186 | P47: 0.07388356325 | Q47: 5030 | R47: 0.1257833483 | S47: 7776 | T47: 0.1361776739
B48: 17-T2 | C48: =+'Nulidades TSJ '!AS22 -> 36 | D48: =+(C48-C44)/C44 -> -0.2173913043 | E48: =+'Divorcios consensuados TSJ'!AS22 -> 17095 | F48: =+(E48-E44)/E44 -> -0.09295909163 | G48: =+'Divorcios no consensuados TSJ'!AS22 -> 11520 | H48: =+(G48-G44)/G44 -> -0.1145953424 | I48: =+'Separaciones consensuadas TSJ'!AS22 -> 933 | J48: =+(I48-I44)/I44 -> -0.1206409048 | K48: =+'Separaciones no consensuada TSJ'!AS22 -> 440 | L48: =+(K48-K44)/K44 -> -0.145631068 | M48: =+'Modif. medidas consens. TSJ'!AR22 -> 2804 | N48: =+(M48-M44)/M44 -> -0.07519788918 | O48: =+'Modif. medidas no consens TSJ'!AR22 -> 9391 | P48: =+(O48-O44)/O44 -> -0.04193021832 | Q48: =+'Guarda custod hij no matr. cons'!AR22 -> 5094 | R48: =+(Q48-Q44)/Q44 -> -0.05351170569 | S48: =+'Guarda cust hij no matr. no con'!AR22 -> 7441 | T48: =+(S48-S44)/S44 -> -0.06308234702
B49: 17-T3 | C49: ='Nulidades TSJ '!AT22 -> 35 | D49: ='Nulidades TSJ '!AP43 -> 0.02941176471 | E49: ='Divorcios consensuados TSJ'!AT22 -> 12545 | F49: ='Divorcios consensuados TSJ'!AP43 -> -0.08162518302 | G49: ='Divorcios no consensuados TSJ'!AT22 -> 8727 | H49: ='Divorcios no consensuados TSJ'!AP43 -> -0.06412868633 | I49: ='Separaciones consensuadas TSJ'!AT22 -> 683 | J49: ='Separaciones consensuadas TSJ'!AP43 -> -0.1629901961 | K49: ='Separaciones no consensuada TSJ'!AT22 -> 351 | L49: ='Separaciones no consensuada TSJ'!AP43 -> -0.1225 | M49: ='Modif. medidas consens. TSJ'!AS22 -> 2082 | N49: ='Modif. medidas consens. TSJ'!AO43 -> 0.04992435703 | O49: ='Modif. medidas no consens TSJ'!AS22 -> 6385 | P49: ='Modif. medidas no consens TSJ'!AO43 -> -0.03898254064 | Q49: ='Guarda custod hij no matr. cons'!AS22 -> 3417 | R49: ='Guarda custod hij no matr. cons'!AO43 -> -0.05659856433 | S49: ='Guarda cust hij no matr. no con'!AS22 -> 5362 | T49: ='Guarda cust hij no matr. no con'!AO43 -> -0.06715379262
B50: 17-T4 | C50: =+'Nulidades TSJ '!AU22 -> 30 | D50: =+'Nulidades TSJ '!AQ43 -> -0.3181818182 | E50: =+'Divorcios consensuados TSJ'!AU22 -> 16901 | F50: =+'Divorcios consensuados TSJ'!AQ43 -> -0.04194773539 | G50: =+'Divorcios no consensuados TSJ'!AU22 -> 12093 | H50: =+'Divorcios no consensuados TSJ'!AQ43 -> -0.05486518171 | I50: =+'Separaciones consensuadas TSJ'!AU22 -> 1030 | J50: =+'Separaciones consensuadas TSJ'!AQ43 -> 0.01178781925 | K50: =+'Separaciones no consensuada TSJ'!AT22 -> 351 | L50: =+'Separaciones no consensuada TSJ'!AQ43 -> -0.1046728972 | M50: =+'Modif. medidas consens. TSJ'!AT22 -> 2872 | N50: =+'Modif. medidas consens. TSJ'!AP43 -> 0.04664723032 | O50: =+'Modif. medidas no consens TSJ'!AT22 -> 9137 | P50: =+'Modif. medidas no consens TSJ'!AP43 -> 0.01330819563 | Q50: =+'Guarda custod hij no matr. cons'!AT22 -> 4951 | R50: =+'Guarda custod hij no matr. cons'!AP43 -> 0.04165790027 | S50: =+'Guarda cust hij no matr. no con'!AT22 -> 7432 | T50: =+'Guarda cust hij no matr. no con'!AP43 -> -0.05493387589
B51: 18-T1 | C51: =+'Nulidades TSJ '!AV22 -> 41 | D51: =+'Nulidades TSJ '!AR43 -> 0 | E51: =+'Divorcios consensuados TSJ'!AV22 -> 16226 | F51: =+'Divorcios consensuados TSJ'!AR43 -> -0.0718984156 | G51: =+'Divorcios no consensuados TSJ'!AV22 -> 11594 | H51: =+'Divorcios no consensuados TSJ'!AR43 -> -0.08557457213 | I51: =+'Separaciones consensuadas TSJ'!AV22 -> 864 | J51: =+'Separaciones consensuadas TSJ'!AR43 -> -0.1700288184 | K51: =+'Separaciones no consensuada TSJ'!AV22 -> 424 | L51: =+'Separaciones no consensuada TSJ'!AR43 -> -0.1364562118 | M51: =+'Modif. medidas consens. TSJ'!AU22 -> 2846 | N51: =+'Modif. medidas consens. TSJ'!AQ43 -> -0.004547044421 | O51: =+'Modif. medidas no consens TSJ'!AU22 -> 8734 | P51: =+'Modif. medidas no consens TSJ'!AQ43 -> -0.04920531243 | Q51: =+'Guarda custod hij no matr. cons'!AU22 -> 4998 | R51: =+'Guarda custod hij no matr. cons'!AQ43 -> -0.006361829026 | S51: =+'Guarda cust hij no matr. no con'!AU22 -> 7050 | T51: =+'Guarda cust hij no matr. no con'!AQ43 -> -0.09336419753

Sheet Separaciones no consensuada TSJ
O1: Inicio
B2: Separaciones no consensuadas clasificadas por Tribunal Superior de Justicia
D4: 07-T1 | E4: 07-T2 | F4: 07-T3 | G4: 07-T4 | H4: 08-T1 | I4: 08-T2 | J4: 08-T3 | K4: 08-T4 | L4: 09-T1 | M4: 09-T2 | N4: 09-T3 | O4: 09-T4 | P4: 10-T1 | Q4: 10-T2 | R4: 10-T3 | S4: 10-T4 | T4: 11-T1 | U4: 11-T2 | V4: 11-T3 | W4: 11-T4 | X4: 12-T1 | Y4: 12-T2 | Z4: 12-T3 | AA4: 12-T4 | AB4: 13-T1 | AC4: 13-T2 | AD4: 13-T3 | AE4: 13-T4 | AF4: 14-T1 | AG4: 14-T2 | AH4: 14-T3 | AI4: 14-T4 | AJ4: 15-T1 | AK4: 15-T2 | AL4: 15-T3 | AM4: 15-T4 | AN4: 16-T1 | AO4: 16-T2 | AP4: 16-T3 | AQ4: 16-T4 | AR4: 17-T1 | AS4: 17-T2 | AT4: 17-T3 | AU4: 17-T4 | AV4: 18-T1 | AW4: Total 2007 | AX4: Total 2008 | AY4: Total 2009 | AZ4: Total 2010 | BA4: Total 2011 | BB4: Total 2012 | BC4: Total 2013 | BD4: Total 2014 | BE4: Total 2015 | BF4: Total 2016 | BG4: Total 2017
C5: ANDALUCIA | D5: 276 | E5: 242 | F5: 130 | G5: 237 | H5: 207 | I5: 223 | J5: 151 | K5: 212 | L5: 207 | M5: 194 | N5: 165 | O5: 261 | P5: 217 | Q5: 200 | R5: 117 | S5: 212 | T5: 189 | U5: 166 | V5: 120 | W5: 190 | X5: 167 | Y5: 163 | Z5: 103 | AA5: 184 | AB5: 142 | AC5: 143 | AD5: 123 | AE5: 167 | AF5: 165 | AG5: 170 | AH5: 134 | AI5: 170 | AJ5: 147 | AK5: 143 | AL5: 120 | AM5: 151 | AN5: 136 | AO5: 121 | AP5: 98 | AQ5: 141 | AR5: 136 | AS5: 104 | AT5: 100 | AU5: 134 | AV5: 117 | AW5: =+D5+E5+F5+G5 -> 885 | AX5: =+H5+I5+J5+K5 -> 793 | AY5: =+L5+M5+N5+O5 -> 827 | AZ5: =+P5+Q5+R5+S5 -> 746 | BA5: =+T5+U5+V5+W5 -> 665 | BB5: =+X5+Y5+Z5+AA5 -> 617 | BC5: =+AB5+AC5+AD5+AE5 -> 575 | BD5: =+AF5+AG5+AH5+AI5 -> 639 | BE5: =+AJ5+AK5+AL5+AM5 -> 561 | BF5: =+AN5+AO5+AP5+AQ5 -> 496 | BG5: =+AR5+AS5+AT5+AU5 -> 474
C6: ARAGON | D6: 19 | E6: 12 | F6: 15 | G6: 8 | H6: 14 | I6: 16 | J6: 12 | K6: 16 | L6: 12 | M6: 9 | N6: 11 | O6: 15 | P6: 16 | Q6: 11 | R6: 6 | S6: 10 | T6: 14 | U6: 11 | V6: 12 | W6: 16 | X6: 8 | Y6: 13 | Z6: 8 | AA6: 13 | AB6: 11 | AC6: 13 | AD6: 9 | AE6: 15 | AF6: 10 | AG6: 13 | AH6: 3 | AI6: 3 | AJ6: 7 | AK6: 4 | AL6: 7 | AM6: 9 | AN6: 12 | AO6: 9 | AP6: 14 | AQ6: 8 | AR6: 10 | AS6: 6 | AT6: 3 | AU6: 9 | AV6: 1 | AW6: 54 | AX6: 58 | AY6: 47 | AZ6: 43 | BA6: 53 | BB6: 42 | BC6: 48 | BD6: 29 | BE6: 27 | BF6: 43 | BG6: 28
C7: ASTURIAS | D7: 31 | E7: 21 | F7: 14 | G7: 34 | H7: 17 | I7: 31 | J7: 17 | K7: 18 | L7: 16 | M7: 20 | N7: 11 | O7: 16 | P7: 29 | Q7: 18 | R7: 8 | S7: 15 | T7: 12 | U7: 16 | V7: 13 | W7: 13 | X7: 21 | Y7: 14 | Z7: 9 | AA7: 18 | AB7: 12 | AC7: 15 | AD7: 13 | AE7: 12 | AF7: 13 | AG7: 19 | AH7: 10 | AI7: 16 | AJ7: 9 | AK7: 11 | AL7: 4 | AM7: 13 | AN7: 8 | AO7: 7 | AP7: 22 | AQ7: 5 | AR7: 8 | AS7: 9 | AT7: 11 | AU7: 10 | AV7: 5 | AW7: 100 | AX7: 83 | AY7: 63 | AZ7: 70 | BA7: 54 | BB7: 62 | BC7: 52 | BD7: 58 | BE7: 37 | BF7: 42 | BG7: 38
C8: ILLES BALEARS | D8: 18 | E8: 15 | F8: 13 | G8: 16 | H8: 6 | I8: 23 | J8: 12 | K8: 16 | L8: 12 | M8: 19 | N8: 7 | O8: 11 | P8: 19 | Q8: 19 | R8: 9 | S8: 21 | T8: 8 | U8: 9 | V8: 4 | W8: 11 | X8: 9 | Y8: 9 | Z8: 10 | AA8: 28 | AB8: 7 | AC8: 9 | AD8: 8 | AE8: 10 | AF8: 13 | AG8: 13 | AH8: 8 | AI8: 13 | AJ8: 15 | AK8: 8 | AL8: 6 | AM8: 11 | AN8: 4 | AO8: 9 | AP8: 6 | AQ8: 9 | AR8: 8 | AS8: 7 | AT8: 8 | AU8: 4 | AV8: 11 | AW8: 62 | AX8: 57 | AY8: 49 | AZ8: 68 | BA8: 32 | BB8: 56 | BC8: 34 | BD8: 47 | BE8: 40 | BF8: 28 | BG8: 27
C9: CANARIAS | D9: 54 | E9: 37 | F9: 29 | G9: 32 | H9: 31 | I9: 32 | J9: 20 | K9: 43 | L9: 24 | M9: 34 | N9: 29 | O9: 39 | P9: 33 | Q9: 42 | R9: 13 | S9: 36 | T9: 30 | U9: 42 | V9: 20 | W9: 31 | X9: 35 | Y9: 32 | Z9: 25 | AA9: 42 | AB9: 31 | AC9: 35 | AD9: 32 | AE9: 34 | AF9: 44 | AG9: 35 | AH9: 16 | AI9: 38 | AJ9: 41 | AK9: 33 | AL9: 23 | AM9: 24 | AN9: 31 | AO9: 25 | AP9: 26 | AQ9: 31 | AR9: 26 | AS9: 23 | AT9: 13 | AU9: 15 | AV9: 16 | AW9: 152 | AX9: 126 | AY9: 126 | AZ9: 124 | BA9: 123 | BB9: 134 | BC9: 132 | BD9: 133 | BE9: 121 | BF9: 113 | BG9: 77
C10: CANTABRIA | D10: 16 | E10: 6 | F10: 4 | G10: 5 | H10: 6 | I10: 6 | J10: 4 | K10: 4 | L10: 8 | M10: 7 | N10: 4 | O10: 10 | P10: 9 | Q10: 4 | R10: 6 | S10: 6 | T10: 5 | U10: 8 | V10: 7 | W10: 13 | X10: 8 | Y10: 6 | Z10: 7 | AA10: 9 | AB10: 5 | AC10: 5 | AD10: 5 | AE10: 9 | AF10: 9 | AG10: 6 | AH10: 5 | AI10: 8 | AJ10: 7 | AK10: 10 | AL10: 4 | AM10: 6 | AN10: 2 | AO10: 5 | AP10: 7 | AQ10: 9 | AR10: 7 | AS10: 6 | AT10: 7 | AU10: 9 | AV10: 4 | AW10: 31 | AX10: 20 | AY10: 29 | AZ10: 25 | BA10: 33 | BB10: 30 | BC10: 24 | BD10: 28 | BE10: 27 | BF10: 23 | BG10: 29
C11: CASTILLA Y LEON | D11: 62 | E11: 60 | F11: 33 | G11: 52 | H11: 44 | I11: 45 | J11: 30 | K11: 41 | L11: 45 | M11: 46 | N11: 32 | O11: 41 | P11: 43 | Q11: 35 | R11: 30 | S11: 31 | T11: 36 | U11: 30 | V11: 21 | W11: 45 | X11: 30 | Y11: 24 | Z11: 29 | AA11: 34 | AB11: 27 | AC11: 31 | AD11: 33 | AE11: 23 | AF11: 22 | AG11: 24 | AH11: 19 | AI11: 23 | AJ11: 25 | AK11: 17 | AL11: 16 | AM11: 19 | AN11: 14 | AO11: 21 | AP11: 17 | AQ11: 26 | AR11: 26 | AS11: 17 | AT11: 12 | AU11: 19 | AV11: 16 | AW11: 207 | AX11: 160 | AY11: 164 | AZ11: 139 | BA11: 132 | BB11: 117 | BC11: 114 | BD11: 88 | BE11: 77 | BF11: 78 | BG11: 74
C12: CASTILLA LA MANCHA | D12: 49 | E12: 45 | F12: 37 | G12: 59 | H12: 26 | I12: 38 | J12: 31 | K12: 46 | L12: 34 | M12: 33 | N12: 29 | O12: 47 | P12: 29 | Q12: 28 | R12: 19 | S12: 27 | T12: 17 | U12: 18 | V12: 21 | W12: 32 | X12: 31 | Y12: 25 | Z12: 26 | AA12: 18 | AB12: 25 | AC12: 22 | AD12: 21 | AE12: 27 | AF12: 25 | AG12: 26 | AH12: 25 | AI12: 34 | AJ12: 27 | AK12: 16 | AL12: 33 | AM12: 29 | AN12: 14 | AO12: 21 | AP12: 22 | AQ12: 23 | AR12: 18 | AS12: 10 | AT12: 15 | AU12: 27 | AV12: 18 | AW12: 190 | AX12: 141 | AY12: 143 | AZ12: 103 | BA12: 88 | BB12: 100 | BC12: 95 | BD12: 110 | BE12: 105 | BF12: 80 | BG12: 70
C13: CATALUÑA | D13: 120 | E13: 123 | F13: 93 | G13: 113 | H13: 104 | I13: 102 | J13: 74 | K13: 119 | L13: 101 | M13: 100 | N13: 63 | O13: 104 | P13: 114 | Q13: 85 | R13: 46 | S13: 101 | T13: 76 | U13: 86 | V13: 70 | W13: 90 | X13: 82 | Y13: 87 | Z13: 63 | AA13: 80 | AB13: 79 | AC13: 65 | AD13: 44 | AE13: 69 | AF13: 68 | AG13: 62 | AH13: 52 | AI13: 94 | AJ13: 63 | AK13: 61 | AL13: 51 | AM13: 70 | AN13: 59 | AO13: 78 | AP13: 43 | AQ13: 63 | AR13: 55 | AS13: 72 | AT13: 40 | AU13: 59 | AV13: 58 | AW13: 449 | AX13: 399 | AY13: 368 | AZ13: 346 | BA13: 322 | BB13: 312 | BC13: 257 | BD13: 276 | BE13: 245 | BF13: 243 | BG13: 226
C14: COMUNITAT VALENCIANA | D14: 126 | E14: 131 | F14: 83 | G14: 93 | H14: 104 | I14: 92 | J14: 61 | K14: 94 | L14: 73 | M14: 83 | N14: 60 | O14: 75 | P14: 78 | Q14: 85 | R14: 40 | S14: 89 | T14: 80 | U14: 83 | V14: 30 | W14: 69 | X14: 67 | Y14: 59 | Z14: 51 | AA14: 98 | AB14: 66 | AC14: 83 | AD14: 52 | AE14: 68 | AF14: 67 | AG14: 48 | AH14: 56 | AI14: 62 | AJ14: 66 | AK14: 54 | AL14: 35 | AM14: 54 | AN14: 43 | AO14: 59 | AP14: 53 | AQ14: 63 | AR14: 72 | AS14: 63 | AT14: 53 | AU14: 54 | AV14: 72 | AW14: 433 | AX14: 351 | AY14: 291 | AZ14: 292 | BA14: 262 | BB14: 275 | BC14: 269 | BD14: 233 | BE14: 209 | BF14: 218 | BG14: 242
C15: EXTREMADURA | D15: 25 | E15: 26 | F15: 28 | G15: 41 | H15: 19 | I15: 26 | J15: 21 | K15: 26 | L15: 20 | M15: 33 | N15: 12 | O15: 31 | P15: 28 | Q15: 25 | R15: 13 | S15: 23 | T15: 24 | U15: 19 | V15: 13 | W15: 17 | X15: 26 | Y15: 20 | Z15: 16 | AA15: 26 | AB15: 13 | AC15: 22 | AD15: 20 | AE15: 17 | AF15: 19 | AG15: 14 | AH15: 12 | AI15: 18 | AJ15: 16 | AK15: 23 | AL15: 9 | AM15: 19 | AN15: 20 | AO15: 14 | AP15: 7 | AQ15: 20 | AR15: 13 | AS15: 19 | AT15: 10 | AU15: 18 | AV15: 16 | AW15: 120 | AX15: 92 | AY15: 96 | AZ15: 89 | BA15: 73 | BB15: 88 | BC15: 72 | BD15: 63 | BE15: 67 | BF15: 61 | BG15: 60
C16: GALICIA | D16: 65 | E16: 79 | F16: 51 | G16: 62 | H16: 40 | I16: 63 | J16: 47 | K16: 73 | L16: 51 | M16: 50 | N16: 36 | O16: 44 | P16: 39 | Q16: 43 | R16: 22 | S16: 38 | T16: 38 | U16: 31 | V16: 32 | W16: 41 | X16: 44 | Y16: 44 | Z16: 18 | AA16: 34 | AB16: 47 | AC16: 26 | AD16: 32 | AE16: 37 | AF16: 27 | AG16: 25 | AH16: 21 | AI16: 30 | AJ16: 38 | AK16: 26 | AL16: 17 | AM16: 23 | AN16: 26 | AO16: 31 | AP16: 17 | AQ16: 40 | AR16: 18 | AS16: 14 | AT16: 22 | AU16: 27 | AV16: 9 | AW16: 257 | AX16: 223 | AY16: 181 | AZ16: 142 | BA16: 142 | BB16: 140 | BC16: 142 | BD16: 103 | BE16: 104 | BF16: 114 | BG16: 81
C17: MADRID | D17: 151 | E17: 130 | F17: 82 | G17: 99 | H17: 119 | I17: 97 | J17: 66 | K17: 111 | L17: 87 | M17: 97 | N17: 53 | O17: 68 | P17: 84 | Q17: 90 | R17: 57 | S17: 82 | T17: 78 | U17: 79 | V17: 55 | W17: 73 | X17: 79 | Y17: 63 | Z17: 42 | AA17: 66 | AB17: 62 | AC17: 51 | AD17: 64 | AE17: 72 | AF17: 56 | AG17: 66 | AH17: 53 | AI17: 75 | AJ17: 47 | AK17: 54 | AL17: 40 | AM17: 45 | AN17: 60 | AO17: 62 | AP17: 44 | AQ17: 48 | AR17: 53 | AS17: 45 | AT17: 37 | AU17: 56 | AV17: 50 | AW17: 462 | AX17: 393 | AY17: 305 | AZ17: 313 | BA17: 285 | BB17: 250 | BC17: 249 | BD17: 250 | BE17: 186 | BF17: 214 | BG17: 191
C18: MURCIA | D18: 25 | E18: 25 | F18: 27 | G18: 30 | H18: 22 | I18: 23 | J18: 18 | K18: 57 | L18: 31 | M18: 29 | N18: 25 | O18: 29 | P18: 38 | Q18: 28 | R18: 16 | S18: 31 | T18: 30 | U18: 20 | V18: 19 | W18: 33 | X18: 13 | Y18: 22 | Z18: 17 | AA18: 24 | AB18: 12 | AC18: 19 | AD18: 16 | AE18: 28 | AF18: 26 | AG18: 21 | AH18: 20 | AI18: 23 | AJ18: 20 | AK18: 22 | AL18: 16 | AM18: 28 | AN18: 19 | AO18: 25 | AP18: 13 | AQ18: 19 | AR18: 13 | AS18: 15 | AT18: 8 | AU18: 8 | AV18: 5 | AW18: 107 | AX18: 120 | AY18: 114 | AZ18: 113 | BA18: 102 | BB18: 76 | BC18: 75 | BD18: 90 | BE18: 86 | BF18: 76 | BG18: 44
C19: NAVARRA | D19: 7 | E19: 1 | F19: 1 | G19: 6 | H19: 7 | I19: 4 | J19: 6 | K19: 7 | L19: 8 | M19: 5 | N19: 3 | O19: 6 | P19: 7 | Q19: 5 | R19: 2 | S19: 6 | T19: 5 | U19: 6 | V19: 3 | W19: 10 | X19: 2 | Y19: 6 | Z19: 1 | AA19: 3 | AB19: 5 | AC19: 4 | AD19: 3 | AE19: 8 | AF19: 5 | AG19: 6 | AH19: 4 | AI19: 2 | AJ19: 4 | AK19: 11 | AL19: 2 | AM19: 5 | AN19: 5 | AO19: 6 | AP19: 1 | AQ19: 9 | AR19: 9 | AS19: 8 | AT19: 0 | AU19: 5 | AV19: 5 | AW19: 15 | AX19: 24 | AY19: 22 | AZ19: 20 | BA19: 24 | BB19: 12 | BC19: 20 | BD19: 17 | BE19: 22 | BF19: 21 | BG19: 22
C20: PAIS VASCO | D20: 42 | E20: 39 | F20: 25 | G20: 24 | H20: 32 | I20: 24 | J20: 22 | K20: 21 | L20: 30 | M20: 18 | N20: 22 | O20: 34 | P20: 24 | Q20: 21 | R20: 23 | S20: 23 | T20: 15 | U20: 21 | V20: 15 | W20: 30 | X20: 28 | Y20: 22 | Z20: 10 | AA20: 17 | AB20: 22 | AC20: 18 | AD20: 11 | AE20: 19 | AF20: 22 | AG20: 17 | AH20: 16 | AI20: 14 | AJ20: 17 | AK20: 17 | AL20: 12 | AM20: 12 | AN20: 22 | AO20: 22 | AP20: 10 | AQ20: 18 | AR20: 17 | AS20: 18 | AT20: 11 | AU20: 22 | AV20: 19 | AW20: 130 | AX20: 99 | AY20: 104 | AZ20: 91 | BA20: 81 | BB20: 77 | BC20: 70 | BD20: 69 | BE20: 58 | BF20: 72 | BG20: 68
C21: LA RIOJA | D21: 4 | E21: 2 | F21: 4 | G21: 6 | H21: 4 | I21: 4 | J21: 7 | K21: 6 | L21: 5 | M21: 6 | N21: 2 | O21: 5 | P21: 0 | Q21: 3 | R21: 0 | S21: 2 | T21: 1 | U21: 0 | V21: 1 | W21: 2 | X21: 5 | Y21: 0 | Z21: 2 | AA21: 1 | AB21: 1 | AC21: 1 | AD21: 0 | AE21: 1 | AF21: 4 | AG21: 2 | AH21: 0 | AI21: 1 | AJ21: 3 | AK21: 2 | AL21: 0 | AM21: 3 | AN21: 3 | AO21: 0 | AP21: 0 | AQ21: 3 | AR21: 2 | AS21: 4 | AT21: 1 | AU21: 3 | AV21: 2 | AW21: 16 | AX21: 21 | AY21: 18 | AZ21: 5 | BA21: 4 | BB21: 8 | BC21: 3 | BD21: 7 | BE21: 8 | BF21: 6 | BG21: 10
C22: TOTAL | D22: =SUM(D5:D21) -> 1090 | E22: 994 | F22: 669 | G22: 917 | H22: 802 | I22: 849 | J22: 599 | K22: 910 | L22: 764 | M22: 783 | N22: 564 | O22: 836 | P22: 807 | Q22: =SUM(Q5:Q21) -> 742 | R22: =SUM(R5:R21) -> 427 | S22: =SUM(S5:S21) -> 753 | T22: =SUM(T5:T21) -> 658 | U22: 645 | V22: 456 | W22: 716 | X22: =SUM(X5:X21) -> 655 | Y22: 609 | Z22: 437 | AA22: 695 | AB22: 567 | AC22: 562 | AD22: =SUM(AD5:AD21) -> 486 | AE22: 616 | AF22: 595 | AG22: 567 | AH22: 454 | AI22: 624 | AJ22: =SUM(AJ5:AJ21) -> 552 | AK22: 512 | AL22: 395 | AM22: =SUM(AM5:AM21) -> 521 | AN22: 478 | AO22: 515 | AP22: 400 | AQ22: 535 | AR22: 491 | AS22: =SUM(AS5:AS21) -> 440 | AT22: =SUM(AT5:AT21) -> 351 | AU22: =SUM(AU5:AU21) -> 479 | AV22: =SUM(AV5:AV21) -> 424 | AW22: 3670 | AX22: 3160 | AY22: 2947 | AZ22: 2729 | BA22: 2475 | BB22: 2396 | BC22: 2231 | BD22: 2240 | BE22: 1980 | BF22: 1928 | BG22: 1761
D25: Evolución 08-T1 | E25: Evolución 08-T2 | F25: Evolución 08-T3 | G25: Evolución 08-T4 | H25: Evolución 09-T1 | I25: Evolución 09-T2 | J25: Evolución 09-T3 | K25: Evolución 09-T4 | L25: Evolución 10-T1 | M25: Evolución 10- T2 | N25: Evolución 10- T3 | O25: Evolución 10-T4 | P25: Evolución 11-T1 | Q25: Evolución 11-T2 | R25: Evolución 11-T3 | S25: Evolución 11-T4 | T25: Evolución 12-T1 | U25: Evolución 12-T2 | V25: Evolución 12-T3 | W25: Evolución 12-T4 | X25: Evolución 13-T1 | Y25: Evolución 13-T2 | Z25: Evolución 13-T3 | AA25: Evolución 13-T4 | AB25: Evolución 14-T1 | AC25: Evolución 14-T2 | AD25: Evolución 14-T3 | AE25: Evolución 14-T4 | AF25: Evolución 15-T1 | AG25: Evolución 15-T2 | AH25: Evolución 15-T3 | AI25: Evolución 15-T4 | AJ25: Evolución 16-T1 | AK25: Evolución 16-T2 | AL25: Evolución 16-T3 | AM25: Evolución 16-T4 | AN25: Evolución 17-T1 | AO25: Evolución 17-T2 | AP25: Evolución 17-T3 | AQ25: Evolución 17-T4 | AR25: Evolución 18-T1 | AS25: Evolución 2007-2008 | AT25: Evolución 2008-2009 | AU25: Evolución 2009-2010 | AV25: Evolución 2010-2011 | AW25: Evolución 2011-2012 | AX25: Evolución 2012-2013 | AY25: Evolución 2013-2014 | AZ25: Evolución 2014-2015 | BA25: Evolución 2015-2016 | BB25: Evolución 2016-2017
C26: ANDALUCIA | D26: =+(H5-D5)/D5 -> -0.25 | E26: =+(I5-E5)/E5 -> -0.07851239669 | F26: =+(J5-F5)/F5 -> 0.1615384615 | G26: =+(K5-G5)/G5 -> -0.1054852321 | H26: =+(L5-H5)/H5 -> 0 | I26: =+(M5-I5)/I5 -> -0.130044843 | J26: =+(N5-J5)/J5 -> 0.09271523179 | K26: =+(O5-K5)/K5 -> 0.2311320755 | L26: =+(P5-L5)/L5 -> 0.04830917874 | M26: =+(Q5-M5)/M5 -> 0.03092783505 | N26: -0.2909090909 | O26: -0.1877394636 | P26: -0.1290322581 | Q26: -0.17 | R26: 0.02564102564 | S26: -0.1037735849 | T26: -0.1164021164 | U26: -0.01807228916 | V26: -0.1416666667 | W26: -0.03157894737 | X26: -0.1497005988 | Y26: -0.1226993865 | Z26: 0.1941747573 | AA26: -0.09239130435 | AB26: =+(AF5-AB5)/AB5 -> 0.161971831 | AC26: 0.1888111888 | AD26: 0.08943089431 | AE26: 0.01796407186 | AF26: -0.1090909091 | AG26: -0.1588235294 | AH26: -0.1044776119 | AI26: -0.1117647059 | AJ26: -0.07482993197 | AK26: -0.1538461538 | AL26: -0.1833333333 | AM26: -0.06622516556 | AN26: 0 | AO26: -0.1404958678 | AP26: 0.02040816327 | AQ26: -0.04964539007 | AR26: =+(AV5-AR5)/AR5 -> -0.1397058824 | AS26: =+(AX5-AW5)/AW5 -> -0.1039548023 | AT26: =+(AY5-AX5)/AX5 -> 0.04287515763 | AU26: =+(AZ5-AY5)/AY5 -> -0.09794437727 | AV26: =+(BA5-AZ5)/AZ5 -> -0.1085790885 | AW26: =+(BB5-BA5)/BA5 -> -0.07218045113 | AX26: =+(BC5-BB5)/BB5 -> -0.0680713128 | AY26: 0.1113043478 | AZ26: -0.1220657277 | BA26: -0.1158645276 | BB26: -0.04435483871
C27: ARAGON | D27: -0.2631578947 | E27: 0.3333333333 | F27: -0.2 | G27: 1 | H27: -0.1428571429 | I27: -0.4375 | J27: -0.08333333333 | K27: -0.0625 | L27: 0.3333333333 | M27: 0.2222222222 | N27: -0.4545454545 | O27: -0.3333333333 | P27: -0.125 | Q27: 0 | R27: 1 | S27: 0.6 | T27: -0.4285714286 | U27: 0.1818181818 | V27: -0.3333333333 | W27: -0.1875 | X27: 0.375 | Y27: 0 | Z27: 0.125 | AA27: 0.1538461538 | AB27: -0.09090909091 | AC27: 0 | AD27: -0.6666666667 | AE27: -0.8 | AF27: -0.3 | AG27: -0.6923076923 | AH27: 1.333333333 | AI27: 2 | AJ27: 0.7142857143 | AK27: 1.25 | AL27: 1 | AM27: -0.1111111111 | AN27: -0.1666666667 | AO27: -0.3333333333 | AP27: =+(AT6-AP6)/AP6 -> -0.7857142857 | AQ27: 0.125 | AR27: -0.9 | AS27: 0.07407407407 | AT27: -0.1896551724 | AU27: -0.08510638298 | AV27: 0.2325581395 | AW27: -0.2075471698 | AX27: 0.1428571429 | AY27: -0.3958333333 | AZ27: -0.06896551724 | BA27: 0.5925925926 | BB27: -0.3488372093
C28: ASTURIAS | D28: -0.4516129032 | E28: 0.4761904762 | F28: 0.2142857143 | G28: -0.4705882353 | H28: -0.05882352941 | I28: -0.3548387097 | J28: -0.3529411765 | K28: -0.1111111111 | L28: 0.8125 | M28: -0.1 | N28: -0.2727272727 | O28: -0.0625 | P28: -0.5862068966 | Q28: -0.1111111111 | R28: 0.625 | S28: -0.1333333333 | T28: 0.75 | U28: -0.125 | V28: -0.3076923077 | W28: 0.3846153846 | X28: -0.4285714286 | Y28: 0.07142857143 | Z28: 0.4444444444 | AA28: -0.3333333333 | AB28: 0.08333333333 | AC28: 0.2666666667 | AD28: -0.2307692308 | AE28: 0.3333333333 | AF28: -0.3076923077 | AG28: -0.4210526316 | AH28: -0.6 | AI28: -0.1875 | AJ28: -0.1111111111 | AK28: -0.3636363636 | AL28: 4.5 | AM28: -0.6153846154 | AN28: 0 | AO28: 0.2857142857 | AP28: -0.5 | AQ28: 1 | AR28: -0.375 | AS28: -0.17 | AT28: -0.2409638554 | AU28: 0.1111111111 | AV28: -0.2285714286 | AW28: 0.1481481481 | AX28: -0.1612903226 | AY28: 0.1153846154 | AZ28: -0.3620689655 | BA28: 0.1351351351 | BB28: -0.09523809524
C29: ILLES BALEARS | D29: -0.6666666667 | E29: 0.5333333333 | F29: -0.07692307692 | G29: 0 | H29: 1 | I29: -0.1739130435 | J29: -0.4166666667 | K29: -0.3125 | L29: 0.5833333333 | M29: 0 | N29: 0.2857142857 | O29: 0.9090909091 | P29: -0.5789473684 | Q29: -0.5263157895 | R29: -0.5555555556 | S29: -0.4761904762 | T29: 0.125 | U29: 0 | V29: 1.5 | W29: 1.545454545 | X29: -0.2222222222 | Y29: 0 | Z29: -0.2 | AA29: -0.6428571429 | AB29: 0.8571428571 | AC29: 0.4444444444 | AD29: 0 | AE29: 0.3 | AF29: 0.1538461538 | AG29: -0.3846153846 | AH29: -0.25 | AI29: -0.1538461538 | AJ29: -0.7333333333 | AK29: 0.125 | AL29: 0 | AM29: -0.1818181818 | AN29: 1 | AO29: -0.2222222222 | AP29: 0.3333333333 | AQ29: -0.5555555556 | AR29: 0.375 | AS29: -0.08064516129 | AT29: -0.1403508772 | AU29: 0.387755102 | AV29: -0.5294117647 | AW29: 0.75 | AX29: -0.3928571429 | AY29: 0.3823529412 | AZ29: -0.1489361702 | BA29: -0.3 | BB29: -0.03571428571
C30: CANARIAS | D30: -0.4259259259 | E30: -0.1351351351 | F30: -0.3103448276 | G30: 0.34375 | H30: -0.2258064516 | I30: 0.0625 | J30: 0.45 | K30: -0.09302325581 | L30: 0.375 | M30: 0.2352941176 | N30: -0.5517241379 | O30: -0.07692307692 | P30: -0.09090909091 | Q30: 0 | R30: 0.5384615385 | S30: -0.1388888889 | T30: 0.1666666667 | U30: -0.2380952381 | V30: 0.25 | W30: 0.3548387097 | X30: -0.1142857143 | Y30: 0.09375 | Z30: 0.28 | AA30: -0.1904761905 | AB30: 0.4193548387 | AC30: 0 | AD30: -0.5 | AE30: 0.1176470588 | AF30: -0.06818181818 | AG30: -0.05714285714 | AH30: 0.4375 | AI30: -0.3684210526 | AJ30: -0.243902439 | AK30: -0.2424242424 | AL30: 0.1304347826 | AM30: 0.2916666667 | AN30: -0.1612903226 | AO30: -0.08 | AP30: -0.5 | AQ30: -0.5161290323 | AR30: -0.3846153846 | AS30: -0.1710526316 | AT30: 0 | AU30: -0.01587301587 | AV30: -0.008064516129 | AW30: 0.08943089431 | AX30: -0.01492537313 | AY30: 0.007575757576 | AZ30: -0.09022556391 | BA30: -0.06611570248 | BB30: -0.3185840708
C31: CANTABRIA | D31: -0.625 | E31: 0 | F31: 0 | G31: -0.2 | H31: 0.3333333333 | I31: 0.1666666667 | J31: 0 | K31: 1.5 | L31: 0.125 | M31: -0.4285714286 | N31: 0.5 | O31: -0.4 | P31: -0.4444444444 | Q31: 1 | R31: 0.1666666667 | S31: 1.166666667 | T31: 0.6 | U31: -0.25 | V31: 0 | W31: -0.3076923077 | X31: -0.375 | Y31: -0.1666666667 | Z31: -0.2857142857 | AA31: 0 | AB31: 0.8 | AC31: 0.2 | AD31: 0 | AE31: -0.1111111111 | AF31: -0.2222222222 | AG31: 0.6666666667 | AH31: -0.2 | AI31: -0.25 | AJ31: -0.7142857143 | AK31: -0.5 | AL31: 0.75 | AM31: 0.5 | AN31: 2.5 | AO31: 0.2 | AP31: 0 | AQ31: 0 | AR31: -0.4285714286 | AS31: -0.3548387097 | AT31: 0.45 | AU31: -0.1379310345 | AV31: 0.32 | AW31: -0.09090909091 | AX31: -0.2 | AY31: 0.1666666667 | AZ31: -0.03571428571 | BA31: -0.1481481481 | BB31: 0.2608695652
C32: CASTILLA Y LEON | D32: -0.2903225806 | E32: -0.25 | F32: -0.09090909091 | G32: -0.2115384615 | H32: 0.02272727273 | I32: 0.02222222222 | J32: 0.06666666667 | K32: 0 | L32: -0.04444444444 | M32: -0.2391304348 | N32: -0.0625 | O32: -0.243902439 | P32: -0.1627906977 | Q32: -0.1428571429 | R32: -0.3 | S32: 0.4516129032 | T32: -0.1666666667 | U32: -0.2 | V32: 0.380952381 | W32: -0.2444444444 | X32: -0.1 | Y32: 0.2916666667 | Z32: 0.1379310345 | AA32: -0.3235294118 | AB32: -0.1851851852 | AC32: -0.2258064516 | AD32: -0.4242424242 | AE32: 0 | AF32: 0.1363636364 | AG32: -0.2916666667 | AH32: -0.1578947368 | AI32: -0.1739130435 | AJ32: -0.44 | AK32: 0.2352941176 | AL32: 0.0625 | AM32: 0.3684210526 | AN32: 0.8571428571 | AO32: -0.1904761905 | AP32: -0.2941176471 | AQ32: -0.2692307692 | AR32: -0.3846153846 | AS32: -0.2270531401 | AT32: 0.025 | AU32: -0.1524390244 | AV32: -0.05035971223 | AW32: -0.1136363636 | AX32: -0.02564102564 | AY32: -0.2280701754 | AZ32: -0.125 | BA32: 0.01298701299 | BB32: -0.05128205128
C33: CASTILLA LA MANCHA | D33: -0.4693877551 | E33: -0.1555555556 | F33: -0.1621621622 | G33: -0.2203389831 | H33: 0.3076923077 | I33: -0.1315789474 | J33: -0.06451612903 | K33: 0.02173913043 | L33: -0.1470588235 | M33: -0.1515151515 | N33: -0.3448275862 | O33: -0.4255319149 | P33: -0.4137931034 | Q33: -0.3571428571 | R33: 0.1052631579 | S33: 0.1851851852 | T33: 0.8235294118 | U33: 0.3888888889 | V33: 0.2380952381 | W33: -0.4375 | X33: -0.1935483871 | Y33: -0.12 | Z33: -0.1923076923 | AA33: =+(AE12-AA12)/AA12 -> 0.5 | AB33: 0 | AC33: 0.1818181818 | AD33: 0.1904761905 | AE33: 0.2592592593 | AF33: 0.08 | AG33: -0.3846153846 | AH33: 0.32 | AI33: -0.1470588235 | AJ33: -0.4814814815 | AK33: 0.3125 | AL33: -0.3333333333 | AM33: -0.2068965517 | AN33: 0.2857142857 | AO33: -0.5238095238 | AP33: -0.3181818182 | AQ33: 0.1739130435 | AR33: 0 | AS33: -0.2578947368 | AT33: 0.01418439716 | AU33: -0.2797202797 | AV33: -0.145631068 | AW33: 0.1363636364 | AX33: -0.05 | AY33: 0.1578947368 | AZ33: -0.04545454545 | BA33: -0.2380952381 | BB33: -0.125
C34: CATALUÑA | D34: -0.1333333333 | E34: -0.1707317073 | F34: -0.2043010753 | G34: 0.05309734513 | H34: -0.02884615385 | I34: -0.01960784314 | J34: -0.1486486486 | K34: -0.1260504202 | L34: 0.1287128713 | M34: -0.15 | N34: -0.2698412698 | O34: -0.02884615385 | P34: -0.3333333333 | Q34: 0.01176470588 | R34: 0.5217391304 | S34: -0.1089108911 | T34: 0.07894736842 | U34: 0.01162790698 | V34: -0.1 | W34: -0.1111111111 | X34: -0.03658536585 | Y34: -0.2528735632 | Z34: -0.3015873016 | AA34: -0.1375 | AB34: -0.1392405063 | AC34: -0.04615384615 | AD34: 0.1818181818 | AE34: 0.3623188406 | AF34: -0.07352941176 | AG34: -0.01612903226 | AH34: -0.01923076923 | AI34: -0.2553191489 | AJ34: -0.06349206349 | AK34: 0.2786885246 | AL34: -0.1568627451 | AM34: -0.1 | AN34: -0.06779661017 | AO34: =+(AS13-AO13)/AO13 -> -0.07692307692 | AP34: -0.06976744186 | AQ34: =+(AU13-AQ13)/AQ13 -> -0.06349206349 | AR34: 0.05454545455 | AS34: -0.1113585746 | AT34: -0.07769423559 | AU34: -0.0597826087 | AV34: -0.06936416185 | AW34: -0.03105590062 | AX34: -0.1762820513 | AY34: 0.07392996109 | AZ34: -0.1123188406 | BA34: -0.008163265306 | BB34: -0.06995884774
C35: COMUNITAT VALENCIANA | D35: -0.1746031746 | E35: -0.2977099237 | F35: -0.265060241 | G35: 0.01075268817 | H35: -0.2980769231 | I35: -0.09782608696 | J35: -0.01639344262 | K35: -0.2021276596 | L35: 0.06849315068 | M35: 0.02409638554 | N35: -0.3333333333 | O35: 0.1866666667 | P35: 0.02564102564 | Q35: -0.02352941176 | R35: -0.25 | S35: -0.2247191011 | T35: -0.1625 | U35: -0.2891566265 | V35: 0.7 | W35: 0.4202898551 | X35: -0.01492537313 | Y35: 0.406779661 | Z35: 0.01960784314 | AA35: -0.306122449 | AB35: 0.01515151515 | AC35: -0.421686747 | AD35: 0.07692307692 | AE35: -0.08823529412 | AF35: -0.01492537313 | AG35: 0.125 | AH35: -0.375 | AI35: -0.1290322581 | AJ35: -0.3484848485 | AK35: 0.09259259259 | AL35: 0.5142857143 | AM35: 0.1666666667 | AN35: 0.6744186047 | AO35: 0.06779661017 | AP35: 0 | AQ35: -0.1428571429 | AR35: 0 | AS35: -0.1893764434 | AT35: -0.1709401709 | AU35: 0.003436426117 | AV35: -0.102739726 | AW35: 0.04961832061 | AX35: -0.02181818182 | AY35: -0.1338289963 | AZ35: -0.1030042918 | BA35: 0.04306220096 | BB35: 0.1100917431
C36: EXTREMADURA | D36: -0.24 | E36: 0 | F36: -0.25 | G36: -0.3658536585 | H36: 0.05263157895 | I36: 0.2692307692 | J36: -0.4285714286 | K36: 0.1923076923 | L36: 0.4 | M36: -0.2424242424 | N36: 0.08333333333 | O36: -0.2580645161 | P36: -0.1428571429 | Q36: -0.24 | R36: 0 | S36: -0.2608695652 | T36: 0.08333333333 | U36: 0.05263157895 | V36: 0.2307692308 | W36: 0.5294117647 | X36: -0.5 | Y36: 0.1 | Z36: 0.25 | AA36: -0.3461538462 | AB36: 0.4615384615 | AC36: -0.3636363636 | AD36: -0.4 | AE36: 0.05882352941 | AF36: -0.1578947368 | AG36: 0.6428571429 | AH36: -0.25 | AI36: 0.05555555556 | AJ36: 0.25 | AK36: -0.3913043478 | AL36: -0.2222222222 | AM36: 0.05263157895 | AN36: -0.35 | AO36: 0.3571428571 | AP36: 0.4285714286 | AQ36: -0.1 | AR36: 0.2307692308 | AS36: -0.2333333333 | AT36: 0.04347826087 | AU36: -0.07291666667 | AV36: -0.1797752809 | AW36: 0.2054794521 | AX36: -0.1818181818 | AY36: -0.125 | AZ36: 0.06349206349 | BA36: -0.08955223881 | BB36: -0.01639344262
C37: GALICIA | D37: -0.3846153846 | E37: -0.2025316456 | F37: -0.07843137255 | G37: 0.1774193548 | H37: 0.275 | I37: -0.2063492063 | J37: -0.2340425532 | K37: -0.397260274 | L37: -0.2352941176 | M37: -0.14 | N37: -0.3888888889 | O37: -0.1363636364 | P37: -0.02564102564 | Q37: -0.2790697674 | R37: 0.4545454545 | S37: 0.07894736842 | T37: 0.1578947368 | U37: 0.4193548387 | V37: -0.4375 | W37: -0.1707317073 | X37: 0.06818181818 | Y37: -0.4090909091 | Z37: 0.7777777778 | AA37: 0.08823529412 | AB37: -0.4255319149 | AC37: -0.03846153846 | AD37: -0.34375 | AE37: -0.1891891892 | AF37: 0.4074074074 | AG37: 0.04 | AH37: -0.1904761905 | AI37: -0.2333333333 | AJ37: -0.3157894737 | AK37: 0.1923076923 | AL37: 0 | AM37: 0.7391304348 | AN37: -0.3076923077 | AO37: -0.5483870968 | AP37: 0.2941176471 | AQ37: -0.325 | AR37: -0.5 | AS37: -0.1322957198 | AT37: -0.1883408072 | AU37: -0.2154696133 | AV37: 0 | AW37: -0.01408450704 | AX37: 0.01428571429 | AY37: -0.2746478873 | AZ37: 0.009708737864 | BA37: 0.09615384615 | BB37: -0.2894736842
C38: MADRID | D38: -0.2119205298 | E38: -0.2538461538 | F38: -0.1951219512 | G38: 0.1212121212 | H38: -0.268907563 | I38: 0 | J38: -0.196969697 | K38: -0.3873873874 | L38: -0.03448275862 | M38: -0.07216494845 | N38: 0.07547169811 | O38: 0.2058823529 | P38: -0.07142857143 | Q38: -0.1222222222 | R38: -0.0350877193 | S38: -0.1097560976 | T38: 0.01282051282 | U38: -0.2025316456 | V38: -0.2363636364 | W38: -0.09589041096 | X38: -0.2151898734 | Y38: -0.1904761905 | Z38: 0.5238095238 | AA38: 0.09090909091 | AB38: -0.09677419355 | AC38: 0.2941176471 | AD38: -0.171875 | AE38: 0.04166666667 | AF38: -0.1607142857 | AG38: -0.1818181818 | AH38: -0.2452830189 | AI38: -0.4 | AJ38: 0.2765957447 | AK38: 0.1481481481 | AL38: 0.1 | AM38: 0.06666666667 | AN38: -0.1166666667 | AO38: -0.2741935484 | AP38: -0.1590909091 | AQ38: 0.1666666667 | AR38: -0.05660377358 | AS38: -0.1493506494 | AT38: -0.2239185751 | AU38: 0.0262295082 | AV38: -0.08945686901 | AW38: -0.1228070175 | AX38: -0.004 | AY38: 0.004016064257 | AZ38: -0.256 | BA38: 0.1505376344 | BB38: -0.1074766355
C39: MURCIA | D39: -0.12 | E39: -0.08 | F39: -0.3333333333 | G39: 0.9 | H39: 0.4090909091 | I39: 0.2608695652 | J39: 0.3888888889 | K39: -0.4912280702 | L39: 0.2258064516 | M39: -0.03448275862 | N39: -0.36 | O39: 0.06896551724 | P39: -0.2105263158 | Q39: -0.2857142857 | R39: 0.1875 | S39: 0.06451612903 | T39: -0.5666666667 | U39: 0.1 | V39: -0.1052631579 | W39: -0.2727272727 | X39: -0.07692307692 | Y39: -0.1363636364 | Z39: -0.05882352941 | AA39: 0.1666666667 | AB39: 1.166666667 | AC39: 0.1052631579 | AD39: 0.25 | AE39: -0.1785714286 | AF39: -0.2307692308 | AG39: 0.04761904762 | AH39: -0.2 | AI39: 0.2173913043 | AJ39: -0.05 | AK39: 0.1363636364 | AL39: -0.1875 | AM39: -0.3214285714 | AN39: -0.3157894737 | AO39: -0.4 | AP39: -0.3846153846 | AQ39: -0.5789473684 | AR39: -0.6153846154 | AS39: 0.1214953271 | AT39: -0.05 | AU39: -0.008771929825 | AV39: -0.09734513274 | AW39: -0.2549019608 | AX39: -0.01315789474 | AY39: 0.2 | AZ39: -0.04444444444 | BA39: -0.1162790698 | BB39: -0.4210526316
C40: NAVARRA | D40: 0 | E40: 3 | F40: 5 | G40: 0.1666666667 | H40: 0.1428571429 | I40: 0.25 | J40: -0.5 | K40: -0.1428571429 | L40: -0.125 | M40: 0 | N40: -0.3333333333 | O40: 0 | P40: -0.2857142857 | Q40: 0.2 | R40: 0.5 | S40: 0.6666666667 | T40: -0.6 | U40: 0 | V40: -0.6666666667 | W40: -0.7 | X40: 1.5 | Y40: -0.3333333333 | Z40: 2 | AA40: 1.666666667 | AB40: 0 | AC40: 0.5 | AD40: 0.3333333333 | AE40: -0.75 | AF40: -0.2 | AG40: 0.8333333333 | AH40: -0.5 | AI40: 1.5 | AJ40: 0.25 | AK40: -0.4545454545 | AL40: -0.5 | AM40: 0.8 | AN40: 0.8 | AO40: 0.3333333333 | AP40: -1 | AQ40: -0.4444444444 | AR40: -0.4444444444 | AS40: 0.6 | AT40: -0.08333333333 | AU40: -0.09090909091 | AV40: 0.2 | AW40: -0.5 | AX40: 0.6666666667 | AY40: -0.15 | AZ40: 0.2941176471 | BA40: -0.04545454545 | BB40: 0.04761904762
C41: PAIS VASCO | D41: -0.2380952381 | E41: -0.3846153846 | F41: -0.12 | G41: -0.125 | H41: -0.0625 | I41: -0.25 | J41: 0 | K41: 0.619047619 | L41: -0.2 | M41: 0.1666666667 | N41: 0.04545454545 | O41: -0.3235294118 | P41: -0.375 | Q41: 0 | R41: -0.347826087 | S41: 0.3043478261 | T41: 0.8666666667 | U41: 0.04761904762 | V41: -0.3333333333 | W41: -0.4333333333 | X41: -0.2142857143 | Y41: -0.1818181818 | Z41: 0.1 | AA41: 0.1176470588 | AB41: 0 | AC41: -0.05555555556 | AD41: 0.4545454545 | AE41: -0.2631578947 | AF41: -0.2272727273 | AG41: 0 | AH41: -0.25 | AI41: -0.1428571429 | AJ41: 0.2941176471 | AK41: 0.2941176471 | AL41: -0.1666666667 | AM41: 0.5 | AN41: -0.2272727273 | AO41: -0.1818181818 | AP41: 0.1 | AQ41: 0.2222222222 | AR41: 0.1176470588 | AS41: -0.2384615385 | AT41: 0.05050505051 | AU41: -0.125 | AV41: -0.1098901099 | AW41: -0.04938271605 | AX41: -0.09090909091 | AY41: -0.01428571429 | AZ41: -0.1594202899 | BA41: 0.2413793103 | BB41: -0.05555555556
C42: LA RIOJA | D42: 0 | E42: 1 | F42: 0.75 | G42: 0 | H42: 0.25 | I42: 0.5 | J42: -0.7142857143 | K42: -0.1666666667 | L42: -1 | M42: -0.5 | N42: -1 | O42: -0.6 | P42: - | Q42: -1 | R42: - | S42: 0 | T42: 4 | V42: 1 | W42: -0.5 | X42: -0.8 | Z42: -1 | AA42: 0 | AB42: 3 | AC42: 1 | AE42: 0 | AF42: -0.25 | AG42: 0 | AI42: 2 | AJ42: 0 | AK42: -1 | AM42: 0 | AN42: -0.3333333333 | AQ42: 0 | AR42: 0 | AS42: 0.3125 | AT42: -0.1428571429 | AU42: -0.7222222222 | AV42: -0.2 | AW42: 1 | AX42: -0.625 | AY42: 1.333333333 | AZ42: 0.1428571429 | BA42: -0.25 | BB42: 0.6666666667
C43: TOTAL | D43: -0.2642201835 | E43: -0.1458752515 | F43: -0.1046337818 | G43: -0.007633587786 | H43: -0.04738154613 | I43: -0.0777385159 | J43: -0.05843071786 | K43: -0.08131868132 | L43: 0.05628272251 | M43: -0.05236270754 | N43: -0.2429078014 | O43: -0.09928229665 | P43: -0.1846344486 | Q43: -0.1307277628 | R43: 0.06791569087 | S43: -0.04913678619 | T43: -0.004559270517 | U43: -0.05581395349 | V43: -0.04166666667 | W43: -0.02932960894 | X43: -0.134351145 | Y43: -0.07717569787 | Z43: 0.1121281465 | AA43: -0.1136690647 | AB43: 0.04938271605 | AC43: 0.008896797153 | AD43: -0.0658436214 | AE43: 0.01298701299 | AF43: =+(AJ22-AF22)/AF22 -> -0.07226890756 | AG43: -0.09700176367 | AH43: -0.1299559471 | AI43: -0.1650641026 | AJ43: -0.134057971 | AK43: 0.005859375 | AL43: 0.01265822785 | AM43: 0.02687140115 | AN43: 0.02719665272 | AO43: -0.145631068 | AP43: -0.1225 | AQ43: -0.1046728972 | AR43: -0.1364562118 | AS43: -0.1389645777 | AT43: -0.06740506329 | AU43: -0.07397353241 | AV43: -0.09307438622 | AW43: -0.03191919192 | AX43: -0.06886477462 | AY43: 0.004034065442 | AZ43: -0.1160714286 | BA43: -0.02626262626 | BB43: -0.08661825726

Sheet Separaciones consensuadas TSJ
O1: Inicio
B2: Separaciones consensuadas clasificadas por Tribunal Superior de Justicia
D4: 07-T1 | E4: 07-T2 | F4: 07-T3 | G4: 07-T4 | H4: 08-T1 | I4: 08-T2 | J4: 08-T3 | K4: 08-T4 | L4: 09-T1 | M4: 09-T2 | N4: 09-T3 | O4: 09-T4 | P4: 10-T1 | Q4: 10-T2 | R4: 10-T3 | S4: 10-T4 | T4: 11-T1 | U4: 11-T2 | V4: 11-T3 | W4: 11-T4 | X4: 12-T1 | Y4: 12-T2 | Z4: 12-T3 | AA4: 12-T4 | AB4: 13-T1 | AC4: 13-T2 | AD4: 13-T3 | AE4: 13-T4 | AF4: 14-T1 | AG4: 14-T2 | AH4: 14-T3 | AI4: 14-T4 | AJ4: 15-T1 | AK4: 15-T2 | AL4: 15-T3 | AM4: 15-T4 | AN4: 16-T1 | AO4: 16-T2 | AP4: 16-T3 | AQ4: 16-T4 | AR4: 17-T1 | AS4: 17-T2 | AT4: 17-T3 | AU4: 17-T4 | AV4: 18-T1 | AW4: Total 2007 | AX4: Total 2008 | AY4: Total 2009 | AZ4: Total 2010 | BA4: Total 2011 | BB4: Total 2012 | BC4: Total 2013 | BD4: Total 2014 | BE4: Total 2015 | BF4: Total 2016 | BG4: Total 2017
C5: ANDALUCIA | D5: 343 | E5: 328 | F5: 228 | G5: 286 | H5: 277 | I5: 326 | J5: 195 | K5: 307 | L5: 283 | M5: 255 | N5: 239 | O5: 264 | P5: 270 | Q5: 284 | R5: 184 | S5: 259 | T5: 278 | U5: 223 | V5: 202 | W5: 228 | X5: 216 | Y5: 237 | Z5: 165 | AA5: 245 | AB5: 182 | AC5: 253 | AD5: 180 | AE5: 255 | AF5: 211 | AG5: 279 | AH5: 214 | AI5: 228 | AJ5: 265 | AK5: 219 | AL5: 209 | AM5: 264 | AN5: 210 | AO5: 194 | AP5: 175 | AQ5: 189 | AR5: 227 | AS5: 187 | AT5: 141 | AU5: 192 | AV5: 168 | AW5: =+D5+E5+F5+G5 -> 1185 | AX5: =+H5+I5+J5+K5 -> 1105 | AY5: =+L5+M5+N5+O5 -> 1041 | AZ5: =+P5+Q5+R5+S5 -> 997 | BA5: =+T5+U5+V5+W5 -> 931 | BB5: =+X5+Y5+Z5+AA5 -> 863 | BC5: =+AB5+AC5+AD5+AE5 -> 870 | BD5: =+AF5+AG5+AH5+AI5 -> 932 | BE5: =+AJ5+AK5+AL5+AM5 -> 957 | BF5: =+AN5+AO5+AP5+AQ5 -> 768 | BG5: =+AR5+AS5+AT5+AU5 -> 747
C6: ARAGON | D6: 52 | E6: 38 | F6: 31 | G6: 44 | H6: 46 | I6: 41 | J6: 27 | K6: 39 | L6: 33 | M6: 31 | N6: 34 | O6: 44 | P6: 38 | Q6: 27 | R6: 36 | S6: 22 | T6: 39 | U6: 31 | V6: 19 | W6: 34 | X6: 37 | Y6: 42 | Z6: 25 | AA6: 40 | AB6: 29 | AC6: 33 | AD6: 24 | AE6: 31 | AF6: 33 | AG6: 24 | AH6: 23 | AI6: 33 | AJ6: 33 | AK6: 35 | AL6: 15 | AM6: 27 | AN6: 23 | AO6: 27 | AP6: 13 | AQ6: 25 | AR6: 34 | AS6: 27 | AT6: 15 | AU6: 27 | AV6: 23 | AW6: 165 | AX6: 153 | AY6: 142 | AZ6: 123 | BA6: 123 | BB6: 144 | BC6: 117 | BD6: 113 | BE6: 110 | BF6: 88 | BG6: 103
C7: ASTURIAS | D7: 54 | E7: 55 | F7: 47 | G7: 50 | H7: 37 | I7: 56 | J7: 33 | K7: 46 | L7: 36 | M7: 35 | N7: 30 | O7: 41 | P7: 51 | Q7: 45 | R7: 30 | S7: 32 | T7: 36 | U7: 37 | V7: 23 | W7: 37 | X7: 40 | Y7: 29 | Z7: 19 | AA7: 35 | AB7: 24 | AC7: 27 | AD7: 27 | AE7: 39 | AF7: 38 | AG7: 36 | AH7: 24 | AI7: 26 | AJ7: 30 | AK7: 35 | AL7: 24 | AM7: 33 | AN7: 33 | AO7: 28 | AP7: 19 | AQ7: 29 | AR7: 28 | AS7: 28 | AT7: 9 | AU7: 29 | AV7: 25 | AW7: 206 | AX7: 172 | AY7: 142 | AZ7: 158 | BA7: 133 | BB7: 123 | BC7: 117 | BD7: 124 | BE7: 122 | BF7: 109 | BG7: 94
C8: ILLES BALEARS | D8: 51 | E8: 32 | F8: 34 | G8: 50 | H8: 30 | I8: 52 | J8: 35 | K8: 40 | L8: 43 | M8: 37 | N8: 33 | O8: 44 | P8: 40 | Q8: 24 | R8: 19 | S8: 31 | T8: 26 | U8: 27 | V8: 33 | W8: 31 | X8: 34 | Y8: 29 | Z8: 18 | AA8: 40 | AB8: 22 | AC8: 21 | AD8: 26 | AE8: 26 | AF8: 30 | AG8: 26 | AH8: 24 | AI8: 27 | AJ8: 27 | AK8: 21 | AL8: 25 | AM8: 14 | AN8: 26 | AO8: 23 | AP8: 27 | AQ8: 28 | AR8: 13 | AS8: 23 | AT8: 20 | AU8: 29 | AV8: 29 | AW8: 167 | AX8: 157 | AY8: 157 | AZ8: 114 | BA8: 117 | BB8: 121 | BC8: 95 | BD8: 107 | BE8: 87 | BF8: 104 | BG8: 85
C9: CANARIAS | D9: 55 | E9: 74 | F9: 40 | G9: 50 | H9: 51 | I9: 64 | J9: 43 | K9: 39 | L9: 45 | M9: 44 | N9: 30 | O9: 55 | P9: 41 | Q9: 48 | R9: 32 | S9: 51 | T9: 42 | U9: 44 | V9: 35 | W9: 40 | X9: 51 | Y9: 50 | Z9: 30 | AA9: 50 | AB9: 41 | AC9: 53 | AD9: 36 | AE9: 64 | AF9: 46 | AG9: 43 | AH9: 42 | AI9: 44 | AJ9: 48 | AK9: 43 | AL9: 21 | AM9: 35 | AN9: 30 | AO9: 36 | AP9: 30 | AQ9: 37 | AR9: 40 | AS9: 30 | AT9: 22 | AU9: 28 | AV9: 26 | AW9: 219 | AX9: 197 | AY9: 174 | AZ9: 172 | BA9: 161 | BB9: 181 | BC9: 194 | BD9: 175 | BE9: 147 | BF9: 133 | BG9: 120
C10: CANTABRIA | D10: 23 | E10: 17 | F10: 9 | G10: 19 | H10: 14 | I10: 18 | J10: 16 | K10: 21 | L10: 19 | M10: 16 | N10: 12 | O10: 12 | P10: 16 | Q10: 9 | R10: 10 | S10: 15 | T10: 12 | U10: 13 | V10: 10 | W10: 14 | X10: 17 | Y10: 14 | Z10: 11 | AA10: 16 | AB10: 9 | AC10: 17 | AD10: 9 | AE10: 13 | AF10: 22 | AG10: 17 | AH10: 12 | AI10: 20 | AJ10: 11 | AK10: 25 | AL10: 22 | AM10: 19 | AN10: 12 | AO10: 17 | AP10: 6 | AQ10: 18 | AR10: 16 | AS10: 12 | AT10: 10 | AU10: 20 | AV10: 17 | AW10: 68 | AX10: 69 | AY10: 59 | AZ10: 50 | BA10: 49 | BB10: 58 | BC10: 48 | BD10: 71 | BE10: 77 | BF10: 53 | BG10: 58
C11: CASTILLA Y LEON | D11: 94 | E11: 71 | F11: 64 | G11: 85 | H11: 64 | I11: 83 | J11: 52 | K11: 75 | L11: 67 | M11: 72 | N11: 66 | O11: 57 | P11: 71 | Q11: 47 | R11: 43 | S11: 71 | T11: 59 | U11: 52 | V11: 36 | W11: 61 | X11: 64 | Y11: 46 | Z11: 43 | AA11: 83 | AB11: 64 | AC11: 60 | AD11: 44 | AE11: 69 | AF11: 58 | AG11: 63 | AH11: 65 | AI11: 74 | AJ11: 57 | AK11: 64 | AL11: 36 | AM11: 45 | AN11: 49 | AO11: 42 | AP11: 42 | AQ11: 46 | AR11: 43 | AS11: 59 | AT11: 34 | AU11: 50 | AV11: 42 | AW11: 314 | AX11: 274 | AY11: 262 | AZ11: 232 | BA11: 208 | BB11: 236 | BC11: 237 | BD11: 260 | BE11: 202 | BF11: 179 | BG11: 186
C12: CASTILLA LA MANCHA | D12: 72 | E12: 62 | F12: 58 | G12: 103 | H12: 44 | I12: 82 | J12: 54 | K12: 82 | L12: 50 | M12: 49 | N12: 42 | O12: 46 | P12: 54 | Q12: 60 | R12: 41 | S12: 53 | T12: 48 | U12: 53 | V12: 42 | W12: 50 | X12: 55 | Y12: 51 | Z12: 38 | AA12: 52 | AB12: 50 | AC12: 55 | AD12: 29 | AE12: 50 | AF12: 63 | AG12: 47 | AH12: 45 | AI12: 57 | AJ12: 46 | AK12: 52 | AL12: 46 | AM12: 48 | AN12: 43 | AO12: 49 | AP12: 38 | AQ12: 45 | AR12: 48 | AS12: 36 | AT12: 26 | AU12: 39 | AV12: 40 | AW12: 295 | AX12: 262 | AY12: 187 | AZ12: 208 | BA12: 193 | BB12: 196 | BC12: 184 | BD12: 212 | BE12: 192 | BF12: 175 | BG12: 149
C13: CATALUÑA | D13: 393 | E13: 294 | F13: 238 | G13: 299 | H13: 285 | I13: 308 | J13: 253 | K13: 318 | L13: 280 | M13: 322 | N13: 234 | O13: 298 | P13: 280 | Q13: 267 | R13: 204 | S13: 275 | T13: 247 | U13: 240 | V13: 216 | W13: 232 | X13: 245 | Y13: 228 | Z13: 176 | AA13: 234 | AB13: 203 | AC13: 246 | AD13: 180 | AE13: 232 | AF13: 225 | AG13: 222 | AH13: 182 | AI13: 220 | AJ13: 227 | AK13: 244 | AL13: 184 | AM13: 217 | AN13: 172 | AO13: 208 | AP13: 144 | AQ13: 214 | AR13: 203 | AS13: 171 | AT13: 105 | AU13: 176 | AV13: 127 | AW13: 1224 | AX13: 1164 | AY13: 1134 | AZ13: 1026 | BA13: 935 | BB13: 883 | BC13: 861 | BD13: 849 | BE13: 872 | BF13: 738 | BG13: 655
C14: COMUNITAT VALENCIANA | D14: 221 | E14: 223 | F14: 144 | G14: 191 | H14: 163 | I14: 204 | J14: 161 | K14: 169 | L14: 156 | M14: 182 | N14: 119 | O14: 195 | P14: 197 | Q14: 164 | R14: 116 | S14: 163 | T14: 170 | U14: 162 | V14: 118 | W14: 154 | X14: 153 | Y14: 131 | Z14: 105 | AA14: 168 | AB14: 126 | AC14: 156 | AD14: 114 | AE14: 126 | AF14: 137 | AG14: 125 | AH14: 130 | AI14: 150 | AJ14: 145 | AK14: 159 | AL14: 114 | AM14: 133 | AN14: 144 | AO14: 120 | AP14: 102 | AQ14: 110 | AR14: 95 | AS14: 100 | AT14: 78 | AU14: 128 | AV14: 115 | AW14: 779 | AX14: 697 | AY14: 652 | AZ14: 640 | BA14: 604 | BB14: 557 | BC14: 522 | BD14: 542 | BE14: 551 | BF14: 476 | BG14: 401
C15: EXTREMADURA | D15: 49 | E15: 48 | F15: 20 | G15: 53 | H15: 22 | I15: 42 | J15: 25 | K15: 27 | L15: 35 | M15: 43 | N15: 26 | O15: 40 | P15: 40 | Q15: 28 | R15: 28 | S15: 41 | T15: 34 | U15: 32 | V15: 31 | W15: 26 | X15: 32 | Y15: 32 | Z15: 17 | AA15: 43 | AB15: 33 | AC15: 31 | AD15: 26 | AE15: 43 | AF15: 27 | AG15: 23 | AH15: 32 | AI15: 37 | AJ15: 27 | AK15: 38 | AL15: 32 | AM15: 32 | AN15: 30 | AO15: 29 | AP15: 26 | AQ15: 31 | AR15: 26 | AS15: 26 | AT15: 19 | AU15: 39 | AV15: 32 | AW15: 170 | AX15: 116 | AY15: 144 | AZ15: 137 | BA15: 123 | BB15: 124 | BC15: 133 | BD15: 119 | BE15: 129 | BF15: 116 | BG15: 110
C16: GALICIA | D16: 89 | E16: 85 | F16: 66 | G16: 98 | H16: 61 | I16: 86 | J16: 63 | K16: 64 | L16: 66 | M16: 72 | N16: 49 | O16: 68 | P16: 63 | Q16: 56 | R16: 53 | S16: 74 | T16: 78 | U16: 72 | V16: 48 | W16: 72 | X16: 64 | Y16: 75 | Z16: 43 | AA16: 62 | AB16: 46 | AC16: 76 | AD16: 57 | AE16: 60 | AF16: 60 | AG16: 64 | AH16: 56 | AI16: 97 | AJ16: 86 | AK16: 60 | AL16: 42 | AM16: 58 | AN16: 47 | AO16: 51 | AP16: 35 | AQ16: 45 | AR16: 36 | AS16: 45 | AT16: 43 | AU16: 42 | AV16: 28 | AW16: 338 | AX16: 274 | AY16: 255 | AZ16: 246 | BA16: 270 | BB16: 244 | BC16: 239 | BD16: 277 | BE16: 246 | BF16: 178 | BG16: 166
C17: MADRID | D17: 331 | E17: 242 | F17: 161 | G17: 188 | H17: 199 | I17: 201 | J17: 162 | K17: 201 | L17: 181 | M17: 201 | N17: 145 | O17: 171 | P17: 156 | Q17: 210 | R17: 133 | S17: 212 | T17: 169 | U17: 189 | V17: 144 | W17: 159 | X17: 184 | Y17: 146 | Z17: 118 | AA17: 155 | AB17: 122 | AC17: 170 | AD17: 120 | AE17: 181 | AF17: 142 | AG17: 163 | AH17: 152 | AI17: 186 | AJ17: 157 | AK17: 137 | AL17: 129 | AM17: 126 | AN17: 107 | AO17: 139 | AP17: 94 | AQ17: 124 | AR17: 149 | AS17: 107 | AT17: 97 | AU17: 138 | AV17: 121 | AW17: 922 | AX17: 763 | AY17: 698 | AZ17: 711 | BA17: 661 | BB17: 603 | BC17: 593 | BD17: 643 | BE17: 549 | BF17: 464 | BG17: 491
C18: MURCIA | D18: 48 | E18: 36 | F18: 32 | G18: 41 | H18: 25 | I18: 71 | J18: 42 | K18: 55 | L18: 42 | M18: 43 | N18: 19 | O18: 63 | P18: 47 | Q18: 48 | R18: 29 | S18: 32 | T18: 35 | U18: 37 | V18: 26 | W18: 27 | X18: 30 | Y18: 31 | Z18: 26 | AA18: 48 | AB18: 41 | AC18: 42 | AD18: 23 | AE18: 45 | AF18: 33 | AG18: 38 | AH18: 37 | AI18: 42 | AJ18: 39 | AK18: 38 | AL18: 37 | AM18: 34 | AN18: 35 | AO18: 30 | AP18: 24 | AQ18: 23 | AR18: 22 | AS18: 31 | AT18: 20 | AU18: 31 | AV18: 29 | AW18: 157 | AX18: 193 | AY18: 167 | AZ18: 156 | BA18: 125 | BB18: 135 | BC18: 151 | BD18: 150 | BE18: 148 | BF18: 112 | BG18: 104
C19: NAVARRA | D19: 15 | E19: 16 | F19: 19 | G19: 27 | H19: 16 | I19: 20 | J19: 17 | K19: 14 | L19: 33 | M19: 18 | N19: 15 | O19: 18 | P19: 17 | Q19: 15 | R19: 9 | S19: 18 | T19: 14 | U19: 18 | V19: 10 | W19: 11 | X19: 11 | Y19: 23 | Z19: 13 | AA19: 12 | AB19: 15 | AC19: 18 | AD19: 10 | AE19: 22 | AF19: 9 | AG19: 16 | AH19: 11 | AI19: 19 | AJ19: 19 | AK19: 12 | AL19: 11 | AM19: 14 | AN19: 20 | AO19: 24 | AP19: 13 | AQ19: 11 | AR19: 22 | AS19: 13 | AT19: 13 | AU19: 18 | AV19: 17 | AW19: 77 | AX19: 67 | AY19: 84 | AZ19: 59 | BA19: 53 | BB19: 59 | BC19: 65 | BD19: 55 | BE19: 56 | BF19: 68 | BG19: 66
C20: PAIS VASCO | D20: 91 | E20: 58 | F20: 39 | G20: 37 | H20: 61 | I20: 40 | J20: 42 | K20: 75 | L20: 47 | M20: 49 | N20: 33 | O20: 61 | P20: 53 | Q20: 55 | R20: 31 | S20: 39 | T20: 43 | U20: 39 | V20: 25 | W20: 50 | X20: 45 | Y20: 57 | Z20: 34 | AA20: 39 | AB20: 35 | AC20: 50 | AD20: 39 | AE20: 50 | AF20: 41 | AG20: 36 | AH20: 38 | AI20: 39 | AJ20: 43 | AK20: 40 | AL20: 30 | AM20: 35 | AN20: 27 | AO20: 35 | AP20: 24 | AQ20: 38 | AR20: 28 | AS20: 31 | AT20: 23 | AU20: 35 | AV20: 20 | AW20: 225 | AX20: 218 | AY20: 190 | AZ20: 178 | BA20: 157 | BB20: 175 | BC20: 174 | BD20: 154 | BE20: 148 | BF20: 124 | BG20: 117
C21: LA RIOJA | D21: 8 | E21: 8 | F21: 8 | G21: 6 | H21: 3 | I21: 9 | J21: 9 | K21: 8 | L21: 12 | M21: 4 | N21: 7 | O21: 10 | P21: 7 | Q21: 5 | R21: 8 | S21: 6 | T21: 8 | U21: 8 | V21: 3 | W21: 10 | X21: 6 | Y21: 11 | Z21: 3 | AA21: 7 | AB21: 6 | AC21: 8 | AD21: 11 | AE21: 7 | AF21: 12 | AG21: 4 | AH21: 0 | AI21: 6 | AJ21: 6 | AK21: 7 | AL21: 10 | AM21: 3 | AN21: 9 | AO21: 9 | AP21: 4 | AQ21: 5 | AR21: 11 | AS21: 7 | AT21: 8 | AU21: 9 | AV21: 5 | AW21: 30 | AX21: 29 | AY21: 33 | AZ21: 26 | BA21: 29 | BB21: 27 | BC21: 32 | BD21: 22 | BE21: 26 | BF21: 27 | BG21: 35
C22: TOTAL | D22: =SUM(D5:D21) -> 1989 | E22: 1687 | F22: 1238 | G22: 1627 | H22: 1398 | I22: 1703 | J22: 1229 | K22: 1580 | L22: 1428 | M22: 1473 | N22: 1133 | O22: 1487 | P22: 1441 | Q22: 1392 | R22: =SUM(R5:R21) -> 1006 | S22: =SUM(S5:S21) -> 1394 | T22: 1338 | U22: 1277 | V22: 1021 | W22: 1236 | X22: =SUM(X5:X21) -> 1284 | Y22: 1232 | Z22: 884 | AA22: 1329 | AB22: 1048 | AC22: 1316 | AD22: =SUM(AD5:AD21) -> 955 | AE22: 1313 | AF22: 1187 | AG22: 1226 | AH22: 1087 | AI22: 1305 | AJ22: =SUM(AJ5:AJ21) -> 1266 | AK22: 1229 | AL22: =SUM(AL5:AL21) -> 987 | AM22: 1137 | AN22: 1017 | AO22: 1061 | AP22: 816 | AQ22: 1018 | AR22: =SUM(AR5:AR21) -> 1041 | AS22: =SUM(AS5:AS21) -> 933 | AT22: =SUM(AT5:AT21) -> 683 | AU22: =SUM(AU5:AU21) -> 1030 | AV22: =SUM(AV5:AV21) -> 864 | AW22: 6541 | AX22: 5910 | AY22: 5521 | AZ22: 5233 | BA22: 4872 | BB22: 4729 | BC22: 4632 | BD22: 4805 | BE22: 4619 | BF22: 3912 | BG22: 3687
D25: Evolución 08-T1 | E25: Evolución 08-T2 | F25: Evolución 08-T3 | G25: Evolución 08-T4 | H25: Evolución 09-T1 | I25: Evolución 09-T2 | J25: Evolución 09-T3 | K25: Evolución 09-T4 | L25: Evolución 10-T1 | M25: Evolución 10-T2 | N25: Evolución 10-T3 | O25: Evolución 10-T4 | P25: Evolución 11-T1 | Q25: Evolución 11-T2 | R25: Evolución 11-T3 | S25: Evolución 11-T4 | T25: Evolución 12-T1 | U25: Evolución 12-T2 | V25: Evolución 12-T3 | W25: Evolución 12-T4 | X25: Evolución 13-T1 | Y25: Evolución 13-T2 | Z25: Evolución 13-T3 | AA25: Evolución 13-T4 | AB25: Evolución 14-T1 | AC25: Evolución 14-T2 | AD25: Evolución 14-T3 | AE25: Evolución 14-T4 | AF25: Evolución 15-T1 | AG25: Evolución 15-T2 | AH25: Evolución 15-T3 | AI25: Evolución 15-T4 | AJ25: Evolución 16-T1 | AK25: Evolución 16-T2 | AL25: Evolución 16-T3 | AM25: Evolución 16-T4 | AN25: Evolución 17-T1 | AO25: Evolución 17-T2 | AP25: Evolución 17-T3 | AQ25: Evolución 17-T4 | AR25: Evolución 18-T1 | AS25: Evolución 2007-2008 | AT25: Evolución 2008-2009 | AU25: Evolución 2009-2010 | AV25: Evolución 2010-2011 | AW25: Evolución 2011-2012 | AX25: Evolución 2012-2013 | AY25: Evolución 2013-2014 | AZ25: Evolución 2014-2015 | BA25: Evolución 2015-2016 | BB25: Evolución 2016-2017
C26: ANDALUCIA | D26: =+(H5-D5)/D5 -> -0.1924198251 | E26: =+(I5-E5)/E5 -> -0.006097560976 | F26: =+(J5-F5)/F5 -> -0.1447368421 | G26: =+(K5-G5)/G5 -> 0.07342657343 | H26: =+(L5-H5)/H5 -> 0.02166064982 | I26: =+(M5-I5)/I5 -> -0.217791411 | J26: =+(N5-J5)/J5 -> 0.2256410256 | K26: =+(O5-K5)/K5 -> -0.1400651466 | L26: =+(P5-L5)/L5 -> -0.04593639576 | M26: =+(Q5-M5)/M5 -> 0.1137254902 | N26: -0.230125523 | O26: -0.01893939394 | P26: 0.02962962963 | Q26: -0.2147887324 | R26: 0.09782608696 | S26: -0.1196911197 | T26: -0.2230215827 | U26: 0.06278026906 | V26: =+(Z5-V5)/V5 -> -0.1831683168 | W26: =+(AA5-W5)/W5 -> 0.07456140351 | X26: -0.1574074074 | Y26: 0.06751054852 | Z26: 0.09090909091 | AA26: 0.04081632653 | AB26: 0.1593406593 | AC26: 0.1027667984 | AD26: 0.1888888889 | AE26: -0.1058823529 | AF26: 0.2559241706 | AG26: -0.2150537634 | AH26: -0.02336448598 | AI26: 0.1578947368 | AJ26: -0.2075471698 | AK26: -0.1141552511 | AL26: -0.1626794258 | AM26: -0.2840909091 | AN26: 0.08095238095 | AO26: -0.03608247423 | AP26: -0.1942857143 | AQ26: 0.01587301587 | AR26: -0.2599118943 | AS26: =+(AX5-AW5)/AW5 -> -0.06751054852 | AT26: =+(AY5-AX5)/AX5 -> -0.05791855204 | AU26: -0.04226705091 | AV26: -0.06619859579 | AW26: -0.07303974221 | AX26: 0.008111239861 | AY26: 0.07126436782 | AZ26: 0.02682403433 | BA26: -0.197492163 | BB26: -0.02734375
C27: ARAGON | D27: -0.1153846154 | E27: 0.07894736842 | F27: -0.1290322581 | G27: -0.1136363636 | H27: -0.2826086957 | I27: -0.243902439 | J27: 0.2592592593 | K27: 0.1282051282 | L27: 0.1515151515 | M27: -0.1290322581 | N27: 0.05882352941 | O27: -0.5 | P27: 0.02631578947 | Q27: 0.1481481481 | R27: -0.4722222222 | S27: 0.5454545455 | T27: -0.05128205128 | U27: 0.3548387097 | V27: 0.3157894737 | W27: =+(AA6-W6)/W6 -> 0.1764705882 | X27: =+(AB6-X6)/X6 -> -0.2162162162 | Y27: =+(AC6-Y6)/Y6 -> -0.2142857143 | Z27: =+(AD6-Z6)/Z6 -> -0.04 | AA27: =+(AE6-AA6)/AA6 -> -0.225 | AB27: =+(AF6-AB6)/AB6 -> 0.1379310345 | AC27: =+(AG6-AC6)/AC6 -> -0.2727272727 | AD27: =+(AH6-AD6)/AD6 -> -0.04166666667 | AE27: =+(AI6-AE6)/AE6 -> 0.06451612903 | AF27: =+(AJ6-AF6)/AF6 -> 0 | AG27: =+(AK6-AG6)/AG6 -> 0.4583333333 | AH27: =+(AL6-AH6)/AH6 -> -0.347826087 | AI27: =+(AM6-AI6)/AI6 -> -0.1818181818 | AJ27: =+(AN6-AJ6)/AJ6 -> -0.303030303 | AK27: =+(AO6-AK6)/AK6 -> -0.2285714286 | AL27: -0.1333333333 | AM27: -0.07407407407 | AN27: 0.4782608696 | AO27: 0 | AP27: 0.1538461538 | AQ27: 0.08 | AR27: -0.3235294118 | AS27: -0.07272727273 | AT27: -0.07189542484 | AU27: -0.1338028169 | AV27: 0 | AW27: 0.1707317073 | AX27: -0.1875 | AY27: -0.03418803419 | AZ27: -0.02654867257 | BA27: -0.2 | BB27: 0.1704545455
C28: ASTURIAS | D28: -0.3148148148 | E28: 0.01818181818 | F28: -0.2978723404 | G28: -0.08 | H28: -0.02702702703 | I28: -0.375 | J28: -0.09090909091 | K28: -0.1086956522 | L28: 0.4166666667 | M28: 0.2857142857 | N28: 0 | O28: -0.2195121951 | P28: -0.2941176471 | Q28: -0.1777777778 | R28: -0.2333333333 | S28: 0.15625 | T28: 0.1111111111 | U28: -0.2162162162 | V28: -0.1739130435 | W28: -0.05405405405 | X28: -0.4 | Y28: -0.06896551724 | Z28: 0.4210526316 | AA28: 0.1142857143 | AB28: 0.5833333333 | AC28: 0.3333333333 | AD28: -0.1111111111 | AE28: -0.3333333333 | AF28: -0.2105263158 | AG28: -0.02777777778 | AH28: 0 | AI28: 0.2692307692 | AJ28: 0.1 | AK28: -0.2 | AL28: -0.2083333333 | AM28: -0.1212121212 | AN28: -0.1515151515 | AO28: 0 | AP28: -0.5263157895 | AQ28: 0 | AR28: -0.1071428571 | AS28: -0.1650485437 | AT28: -0.1744186047 | AU28: 0.1126760563 | AV28: -0.1582278481 | AW28: -0.07518796992 | AX28: -0.0487804878 | AY28: 0.05982905983 | AZ28: -0.01612903226 | BA28: -0.106557377 | BB28: -0.1376146789
C29: ILLES BALEARS | D29: -0.4117647059 | E29: 0.625 | F29: 0.02941176471 | G29: -0.2 | H29: 0.4333333333 | I29: -0.2884615385 | J29: -0.05714285714 | K29: 0.1 | L29: -0.06976744186 | M29: -0.3513513514 | N29: -0.4242424242 | O29: -0.2954545455 | P29: -0.35 | Q29: 0.125 | R29: 0.7368421053 | S29: 0 | T29: 0.3076923077 | U29: 0.07407407407 | V29: -0.4545454545 | W29: 0.2903225806 | X29: -0.3529411765 | Y29: -0.275862069 | Z29: 0.4444444444 | AA29: -0.35 | AB29: 0.3636363636 | AC29: 0.2380952381 | AD29: -0.07692307692 | AE29: 0.03846153846 | AF29: -0.1 | AG29: -0.1923076923 | AH29: 0.04166666667 | AI29: -0.4814814815 | AJ29: -0.03703703704 | AK29: 0.09523809524 | AL29: 0.08 | AM29: 1 | AN29: -0.5 | AO29: 0 | AP29: -0.2592592593 | AQ29: 0.03571428571 | AR29: 1.230769231 | AS29: -0.05988023952 | AT29: 0 | AU29: -0.2738853503 | AV29: 0.02631578947 | AW29: 0.03418803419 | AX29: -0.2148760331 | AY29: 0.1263157895 | AZ29: -0.1869158879 | BA29: 0.1954022989 | BB29: -0.1826923077
C30: CANARIAS | D30: -0.07272727273 | E30: -0.1351351351 | F30: 0.075 | G30: -0.22 | H30: -0.1176470588 | I30: -0.3125 | J30: -0.3023255814 | K30: 0.4102564103 | L30: -0.08888888889 | M30: 0.09090909091 | N30: 0.06666666667 | O30: -0.07272727273 | P30: 0.0243902439 | Q30: -0.08333333333 | R30: 0.09375 | S30: -0.2156862745 | T30: 0.2142857143 | U30: 0.1363636364 | V30: -0.1428571429 | W30: 0.25 | X30: -0.1960784314 | Y30: 0.06 | Z30: 0.2 | AA30: 0.28 | AB30: 0.1219512195 | AC30: -0.1886792453 | AD30: 0.1666666667 | AE30: -0.3125 | AF30: 0.04347826087 | AG30: 0 | AH30: -0.5 | AI30: -0.2045454545 | AJ30: -0.375 | AK30: -0.1627906977 | AL30: 0.4285714286 | AM30: 0.05714285714 | AN30: 0.3333333333 | AO30: -0.1666666667 | AP30: -0.2666666667 | AQ30: -0.2432432432 | AR30: -0.35 | AS30: -0.100456621 | AT30: -0.116751269 | AU30: -0.01149425287 | AV30: -0.06395348837 | AW30: 0.1242236025 | AX30: 0.07182320442 | AY30: -0.09793814433 | AZ30: -0.16 | BA30: -0.09523809524 | BB30: -0.0977443609
C31: CANTABRIA | D31: -0.3913043478 | E31: 0.05882352941 | F31: 0.7777777778 | G31: 0.1052631579 | H31: 0.3571428571 | I31: -0.1111111111 | J31: -0.25 | K31: -0.4285714286 | L31: -0.1578947368 | M31: -0.4375 | N31: -0.1666666667 | O31: 0.25 | P31: -0.25 | Q31: 0.4444444444 | R31: 0 | S31: -0.06666666667 | T31: 0.4166666667 | U31: 0.07692307692 | V31: 0.1 | W31: 0.1428571429 | X31: -0.4705882353 | Y31: 0.2142857143 | Z31: -0.1818181818 | AA31: -0.1875 | AB31: 1.444444444 | AC31: 0 | AD31: 0.3333333333 | AE31: 0.5384615385 | AF31: -0.5 | AG31: 0.4705882353 | AH31: 0.8333333333 | AI31: -0.05 | AJ31: 0.09090909091 | AK31: -0.32 | AL31: -0.7272727273 | AM31: -0.05263157895 | AN31: 0.3333333333 | AO31: -0.2941176471 | AP31: 0.6666666667 | AQ31: 0.1111111111 | AR31: 0.0625 | AS31: 0.01470588235 | AT31: -0.1449275362 | AU31: -0.1525423729 | AV31: -0.02 | AW31: 0.1836734694 | AX31: -0.1724137931 | AY31: 0.4791666667 | AZ31: 0.08450704225 | BA31: -0.3116883117 | BB31: 0.09433962264
C32: CASTILLA Y LEON | D32: -0.3191489362 | E32: 0.1690140845 | F32: -0.1875 | G32: -0.1176470588 | H32: 0.046875 | I32: -0.1325301205 | J32: 0.2692307692 | K32: -0.24 | L32: 0.05970149254 | M32: -0.3472222222 | N32: -0.3484848485 | O32: 0.2456140351 | P32: -0.1690140845 | Q32: 0.1063829787 | R32: -0.1627906977 | S32: -0.1408450704 | T32: 0.08474576271 | U32: -0.1153846154 | V32: 0.1944444444 | W32: 0.3606557377 | X32: 0 | Y32: 0.3043478261 | Z32: 0.02325581395 | AA32: -0.1686746988 | AB32: -0.09375 | AC32: 0.05 | AD32: 0.4772727273 | AE32: 0.07246376812 | AF32: -0.01724137931 | AG32: 0.01587301587 | AH32: -0.4461538462 | AI32: -0.3918918919 | AJ32: -0.1403508772 | AK32: -0.34375 | AL32: 0.1666666667 | AM32: 0.02222222222 | AN32: -0.1224489796 | AO32: 0.4047619048 | AP32: -0.1904761905 | AQ32: 0.08695652174 | AR32: -0.02325581395 | AS32: -0.127388535 | AT32: -0.04379562044 | AU32: -0.1145038168 | AV32: -0.1034482759 | AW32: 0.1346153846 | AX32: 0.004237288136 | AY32: 0.0970464135 | AZ32: -0.2230769231 | BA32: -0.1138613861 | BB32: 0.03910614525
C33: CASTILLA LA MANCHA | D33: -0.3888888889 | E33: 0.3225806452 | F33: -0.06896551724 | G33: -0.2038834951 | H33: 0.1363636364 | I33: -0.4024390244 | J33: -0.2222222222 | K33: -0.4390243902 | L33: 0.08 | M33: 0.2244897959 | N33: -0.02380952381 | O33: 0.152173913 | P33: -0.1111111111 | Q33: -0.1166666667 | R33: 0.0243902439 | S33: -0.05660377358 | T33: 0.1458333333 | U33: -0.03773584906 | V33: -0.09523809524 | W33: 0.04 | X33: -0.09090909091 | Y33: 0.07843137255 | Z33: -0.2368421053 | AA33: -0.03846153846 | AB33: 0.26 | AC33: -0.1454545455 | AD33: 0.5517241379 | AE33: 0.14 | AF33: -0.2698412698 | AG33: 0.1063829787 | AH33: 0.02222222222 | AI33: -0.1578947368 | AJ33: -0.0652173913 | AK33: -0.05769230769 | AL33: -0.1739130435 | AM33: -0.0625 | AN33: 0.1162790698 | AO33: -0.2653061224 | AP33: -0.3157894737 | AQ33: -0.1333333333 | AR33: -0.1666666667 | AS33: -0.1118644068 | AT33: -0.286259542 | AU33: 0.1122994652 | AV33: -0.07211538462 | AW33: 0.01554404145 | AX33: -0.0612244898 | AY33: 0.152173913 | AZ33: -0.09433962264 | BA33: -0.08854166667 | BB33: -0.1485714286
C34: CATALUÑA | D34: -0.2748091603 | E34: 0.04761904762 | F34: 0.06302521008 | G34: 0.0635451505 | H34: -0.01754385965 | I34: 0.04545454545 | J34: -0.07509881423 | K34: -0.06289308176 | L34: 0 | M34: -0.1708074534 | N34: -0.1282051282 | O34: -0.07718120805 | P34: -0.1178571429 | Q34: -0.1011235955 | R34: 0.05882352941 | S34: -0.1563636364 | T34: -0.008097165992 | U34: -0.05 | V34: -0.1851851852 | W34: 0.008620689655 | X34: -0.1714285714 | Y34: 0.07894736842 | Z34: 0.02272727273 | AA34: -0.008547008547 | AB34: 0.1083743842 | AC34: -0.09756097561 | AD34: 0.01111111111 | AE34: -0.05172413793 | AF34: 0.008888888889 | AG34: 0.0990990991 | AH34: 0.01098901099 | AI34: -0.01363636364 | AJ34: -0.2422907489 | AK34: -0.1475409836 | AL34: -0.2173913043 | AM34: -0.01382488479 | AN34: 0.1802325581 | AO34: -0.1778846154 | AP34: -0.2708333333 | AQ34: -0.1775700935 | AR34: -0.3743842365 | AS34: -0.04901960784 | AT34: -0.02577319588 | AU34: -0.09523809524 | AV34: -0.08869395712 | AW34: -0.05561497326 | AX34: -0.02491506229 | AY34: -0.01393728223 | AZ34: 0.02709069494 | BA34: -0.1536697248 | BB34: -0.1124661247
C35: COMUNITAT VALENCIANA | D35: -0.2624434389 | E35: -0.08520179372 | F35: 0.1180555556 | G35: -0.1151832461 | H35: -0.04294478528 | I35: -0.1078431373 | J35: -0.2608695652 | K35: 0.1538461538 | L35: 0.2628205128 | M35: -0.0989010989 | N35: -0.02521008403 | O35: -0.1641025641 | P35: -0.1370558376 | Q35: -0.01219512195 | R35: 0.01724137931 | S35: -0.05521472393 | T35: -0.1 | U35: -0.1913580247 | V35: -0.1101694915 | W35: 0.09090909091 | X35: -0.1764705882 | Y35: 0.1908396947 | Z35: 0.08571428571 | AA35: -0.25 | AB35: 0.0873015873 | AC35: -0.1987179487 | AD35: 0.1403508772 | AE35: 0.1904761905 | AF35: 0.05839416058 | AG35: 0.272 | AH35: -0.1230769231 | AI35: -0.1133333333 | AJ35: -0.006896551724 | AK35: -0.2452830189 | AL35: -0.1052631579 | AM35: -0.1729323308 | AN35: -0.3402777778 | AO35: -0.1666666667 | AP35: -0.2352941176 | AQ35: 0.1636363636 | AR35: 0.2105263158 | AS35: -0.1052631579 | AT35: -0.06456241033 | AU35: -0.01840490798 | AV35: -0.05625 | AW35: -0.07781456954 | AX35: -0.06283662478 | AY35: 0.03831417625 | AZ35: 0.01660516605 | BA35: -0.1361161525 | BB35: -0.1575630252
C36: EXTREMADURA | D36: -0.5510204082 | E36: -0.125 | F36: 0.25 | G36: -0.4905660377 | H36: 0.5909090909 | I36: 0.02380952381 | J36: 0.04 | K36: 0.4814814815 | L36: 0.1428571429 | M36: -0.3488372093 | N36: 0.07692307692 | O36: 0.025 | P36: -0.15 | Q36: 0.1428571429 | R36: 0.1071428571 | S36: -0.3658536585 | T36: -0.05882352941 | U36: 0 | V36: -0.4516129032 | W36: 0.6538461538 | X36: 0.03125 | Y36: -0.03125 | Z36: 0.5294117647 | AA36: 0 | AB36: -0.1818181818 | AC36: -0.2580645161 | AD36: 0.2307692308 | AE36: -0.1395348837 | AF36: 0 | AG36: 0.652173913 | AH36: 0 | AI36: -0.1351351351 | AJ36: 0.1111111111 | AK36: -0.2368421053 | AL36: -0.1875 | AM36: -0.03125 | AN36: -0.1333333333 | AO36: -0.1034482759 | AP36: -0.2692307692 | AQ36: 0.2580645161 | AR36: 0.2307692308 | AS36: -0.3176470588 | AT36: 0.2413793103 | AU36: -0.04861111111 | AV36: -0.102189781 | AW36: 0.008130081301 | AX36: 0.07258064516 | AY36: -0.1052631579 | AZ36: 0.08403361345 | BA36: -0.1007751938 | BB36: -0.05172413793
C37: GALICIA | D37: -0.3146067416 | E37: 0.01176470588 | F37: -0.04545454545 | G37: -0.3469387755 | H37: 0.08196721311 | I37: -0.1627906977 | J37: -0.2222222222 | K37: 0.0625 | L37: -0.04545454545 | M37: -0.2222222222 | N37: 0.08163265306 | O37: 0.08823529412 | P37: 0.2380952381 | Q37: 0.2857142857 | R37: -0.09433962264 | S37: -0.02702702703 | T37: -0.1794871795 | U37: 0.04166666667 | V37: -0.1041666667 | W37: -0.1388888889 | X37: -0.28125 | Y37: 0.01333333333 | Z37: 0.3255813953 | AA37: -0.03225806452 | AB37: 0.3043478261 | AC37: -0.1578947368 | AD37: -0.01754385965 | AE37: 0.6166666667 | AF37: 0.4333333333 | AG37: -0.0625 | AH37: -0.25 | AI37: -0.4020618557 | AJ37: -0.4534883721 | AK37: -0.15 | AL37: -0.1666666667 | AM37: -0.224137931 | AN37: -0.2340425532 | AO37: -0.1176470588 | AP37: 0.2285714286 | AQ37: -0.06666666667 | AR37: -0.2222222222 | AS37: -0.1893491124 | AT37: -0.06934306569 | AU37: -0.03529411765 | AV37: 0.09756097561 | AW37: -0.0962962963 | AX37: -0.02049180328 | AY37: 0.1589958159 | AZ37: -0.1119133574 | BA37: -0.2764227642 | BB37: -0.06741573034
C38: MADRID | D38: -0.3987915408 | E38: -0.1694214876 | F38: 0.006211180124 | G38: 0.06914893617 | H38: -0.09045226131 | I38: 0 | J38: -0.1049382716 | K38: -0.1492537313 | L38: -0.138121547 | M38: 0.0447761194 | N38: -0.08275862069 | O38: 0.2397660819 | P38: 0.08333333333 | Q38: -0.1 | R38: 0.08270676692 | S38: -0.25 | T38: 0.08875739645 | U38: -0.2275132275 | V38: -0.1805555556 | W38: -0.0251572327 | X38: -0.3369565217 | Y38: 0.1643835616 | Z38: 0.01694915254 | AA38: 0.1677419355 | AB38: 0.1639344262 | AC38: -0.04117647059 | AD38: 0.2666666667 | AE38: 0.02762430939 | AF38: 0.1056338028 | AG38: -0.1595092025 | AH38: -0.1513157895 | AI38: -0.3225806452 | AJ38: -0.3184713376 | AK38: 0.01459854015 | AL38: -0.2713178295 | AM38: -0.01587301587 | AN38: 0.3925233645 | AO38: -0.2302158273 | AP38: 0.03191489362 | AQ38: 0.1129032258 | AR38: -0.1879194631 | AS38: -0.1724511931 | AT38: -0.08519003932 | AU38: 0.01862464183 | AV38: -0.07032348805 | AW38: -0.08774583964 | AX38: -0.01658374793 | AY38: 0.08431703204 | AZ38: -0.1461897356 | BA38: -0.1548269581 | BB38: 0.05818965517
C39: MURCIA | D39: -0.4791666667 | E39: 0.9722222222 | F39: 0.3125 | G39: 0.3414634146 | H39: 0.68 | I39: -0.3943661972 | J39: -0.5476190476 | K39: 0.1454545455 | L39: 0.119047619 | M39: 0.1162790698 | N39: 0.5263157895 | O39: -0.4920634921 | P39: -0.2553191489 | Q39: -0.2291666667 | R39: -0.1034482759 | S39: -0.15625 | T39: -0.1428571429 | U39: -0.1621621622 | V39: 0 | W39: 0.7777777778 | X39: 0.3666666667 | Y39: 0.3548387097 | Z39: -0.1153846154 | AA39: -0.0625 | AB39: -0.1951219512 | AC39: -0.09523809524 | AD39: 0.6086956522 | AE39: -0.06666666667 | AF39: 0.1818181818 | AG39: 0 | AH39: 0 | AI39: -0.1904761905 | AJ39: -0.1025641026 | AK39: -0.2105263158 | AL39: -0.3513513514 | AM39: -0.3235294118 | AN39: -0.3714285714 | AO39: 0.03333333333 | AP39: -0.1666666667 | AQ39: 0.347826087 | AR39: 0.3181818182 | AS39: 0.2292993631 | AT39: -0.1347150259 | AU39: -0.06586826347 | AV39: -0.1987179487 | AW39: 0.08 | AX39: 0.1185185185 | AY39: -0.006622516556 | AZ39: -0.01333333333 | BA39: -0.2432432432 | BB39: -0.07142857143
C40: NAVARRA | D40: 0.06666666667 | E40: 0.25 | F40: -0.1052631579 | G40: -0.4814814815 | H40: 1.0625 | I40: -0.1 | J40: -0.1176470588 | K40: 0.2857142857 | L40: -0.4848484848 | M40: -0.1666666667 | N40: -0.4 | O40: 0 | P40: -0.1764705882 | Q40: 0.2 | R40: 0.1111111111 | S40: -0.3888888889 | T40: -0.2142857143 | U40: 0.2777777778 | V40: 0.3 | W40: 0.09090909091 | X40: 0.3636363636 | Y40: -0.2173913043 | Z40: -0.2307692308 | AA40: 0.8333333333 | AB40: -0.4 | AC40: -0.1111111111 | AD40: 0.1 | AE40: -0.1363636364 | AF40: 1.111111111 | AG40: -0.25 | AH40: 0 | AI40: -0.2631578947 | AJ40: 0.05263157895 | AK40: 1 | AL40: 0.1818181818 | AM40: -0.2142857143 | AN40: 0.1 | AO40: -0.4583333333 | AP40: 0 | AQ40: 0.6363636364 | AR40: -0.2272727273 | AS40: -0.1298701299 | AT40: 0.2537313433 | AU40: -0.2976190476 | AV40: -0.1016949153 | AW40: 0.1132075472 | AX40: 0.1016949153 | AY40: -0.1538461538 | AZ40: 0.01818181818 | BA40: 0.2142857143 | BB40: -0.02941176471
C41: PAIS VASCO | D41: -0.3296703297 | E41: -0.3103448276 | F41: 0.07692307692 | G41: 1.027027027 | H41: -0.2295081967 | I41: 0.225 | J41: -0.2142857143 | K41: -0.1866666667 | L41: 0.1276595745 | M41: 0.1224489796 | N41: -0.06060606061 | O41: -0.3606557377 | P41: -0.1886792453 | Q41: -0.2909090909 | R41: -0.1935483871 | S41: 0.2820512821 | T41: 0.04651162791 | U41: 0.4615384615 | V41: 0.36 | W41: -0.22 | X41: -0.2222222222 | Y41: -0.1228070175 | Z41: 0.1470588235 | AA41: 0.2820512821 | AB41: 0.1714285714 | AC41: -0.28 | AD41: -0.02564102564 | AE41: -0.22 | AF41: 0.0487804878 | AG41: 0.1111111111 | AH41: -0.2105263158 | AI41: -0.1025641026 | AJ41: -0.3720930233 | AK41: -0.125 | AL41: -0.2 | AM41: 0.08571428571 | AN41: 0.03703703704 | AO41: -0.1142857143 | AP41: -0.04166666667 | AQ41: -0.07894736842 | AR41: -0.2857142857 | AS41: -0.03111111111 | AT41: -0.128440367 | AU41: -0.06315789474 | AV41: -0.1179775281 | AW41: 0.1146496815 | AX41: -0.005714285714 | AY41: -0.1149425287 | AZ41: -0.03896103896 | BA41: -0.1621621622 | BB41: -0.0564516129
C42: LA RIOJA | D42: -0.625 | E42: 0.125 | F42: 0.125 | G42: 0.3333333333 | H42: 3 | I42: -0.5555555556 | J42: -0.2222222222 | K42: 0.25 | L42: -0.4166666667 | M42: 0.25 | N42: 0.1428571429 | O42: -0.4 | P42: 0.1428571429 | Q42: 0.6 | R42: -0.625 | S42: 0.6666666667 | T42: -0.25 | U42: 0.375 | V42: 0 | W42: -0.3 | X42: 0 | Y42: -0.2727272727 | Z42: 2.666666667 | AA42: 0 | AB42: 1 | AC42: =+(AG21-AC21)/AC21 -> -0.5 | AD42: -1 | AE42: =+(AI21-AE21)/AE21 -> -0.1428571429 | AF42: -0.5 | AG42: =+(AK21-AG21)/AG21 -> 0.75 | AI42: -0.5 | AJ42: =+(AN21-AJ21)/AJ21 -> 0.5 | AK42: 0.2857142857 | AL42: -0.6 | AM42: 0.6666666667 | AN42: 0.2222222222 | AO42: -0.2222222222 | AP42: 1 | AQ42: 0.8 | AR42: -0.5454545455 | AS42: -0.03333333333 | AT42: 0.1379310345 | AU42: -0.2121212121 | AV42: 0.1153846154 | AW42: -0.06896551724 | AX42: 0.1851851852 | AY42: -0.3125 | AZ42: 0.1818181818 | BA42: 0.03846153846 | BB42: 0.2962962963
C43: TOTAL | D43: =+(H22-D22)/D22 -> -0.2971342383 | E43: 0.009484291642 | F43: -0.007269789984 | G43: -0.02888752305 | H43: 0.02145922747 | I43: -0.1350557839 | J43: -0.07811228641 | K43: -0.05886075949 | L43: 0.009103641457 | M43: -0.0549898167 | N43: -0.1120917917 | O43: -0.06254203093 | P43: -0.07147814018 | Q43: -0.08261494253 | R43: 0.01491053678 | S43: -0.1133428981 | T43: -0.04035874439 | U43: -0.03523884103 | V43: -0.1341821743 | W43: 0.07524271845 | X43: -0.1838006231 | Y43: 0.06818181818 | Z43: 0.08031674208 | AA43: -0.01203912716 | AB43: 0.1326335878 | AC43: =+(AG22-AC22)/AC22 -> -0.06838905775 | AD43: 0.1382198953 | AE43: =+(AI22-AE22)/AE22 -> -0.006092916984 | AF43: 0.06655433867 | AG43: =+(AK22-AG22)/AG22 -> 0.002446982055 | AH43: =+(AL22-AH22)/AH22 -> -0.09199632015 | AI43: -0.1287356322 | AJ43: =+(AN22-AJ22)/AJ22 -> -0.1966824645 | AK43: -0.1366965012 | AL43: -0.1732522796 | AM43: -0.1046613896 | AN43: 0.02359882006 | AO43: -0.1206409048 | AP43: -0.1629901961 | AQ43: 0.01178781925 | AR43: -0.1700288184 | AS43: -0.0964684299 | AT43: -0.06582064298 | AU43: -0.05216446296 | AV43: -0.06898528569 | AW43: -0.02935139573 | AX43: -0.0205117361 | AY43: 0.03734887737 | AZ43: -0.03870967742 | BA43: -0.1530634336 | BB43: -0.05751533742

Sheet Divorcios no consensuados TSJ
O1: Inicio
B2: Divorcios no consensuados clasificados por Tribunal Superior de Justicia
D4: 07-T1 | E4: 07-T2 | F4: 07-T3 | G4: 07-T4 | H4: 08-T1 | I4: 08-T2 | J4: 08-T3 | K4: 08-T4 | L4: 09-T1 | M4: 09-T2 | N4: 09-T3 | O4: 09-T4 | P4: 10-T1 | Q4: 10-T2 | R4: 10-T3 | S4: 10-T4 | T4: 11-T1 | U4: 11-T2 | V4: 11-T3 | W4: 11-T4 | X4: 12-T1 | Y4: 12-T2 | Z4: 12-T3 | AA4: 12-T4 | AB4: 13-T1 | AC4: 13-T2 | AD4: 13-T3 | AE4: 13-T4 | AF4: 14-T1 | AG4: 14-T2 | AH4: 14-T3 | AI4: 14-T4 | AJ4: 15-T1 | AK4: 15-T2 | AL4: 15-T3 | AM4: 15-T4 | AN4: 16-T1 | AO4: 16-T2 | AP4: 16-T3 | AQ4: 16-T4 | AR4: 17-T1 | AS4: 17-T2 | AT4: 17-T3 | AU4: 17-T4 | AV4: 18-T1 | AW4: Total 2007 | AX4: Total 2008 | AY4: Total 2009 | AZ4: Total 2010 | BA4: Total 2011 | BB4: Total 2012 | BC4: Total 2013 | BD4: Total 2014 | BE4: Total 2015 | BF4: Total 2016 | BG4: Total 2017
C5: ANDALUCIA | D5: 3130 | E5: 2875 | F5: 2128 | G5: 3038 | H5: 2682 | I5: 3063 | J5: 2174 | K5: 2928 | L5: 2832 | M5: 2738 | N5: 2201 | O5: 3148 | P5: 2721 | Q5: 2879 | R5: 2177 | S5: 3135 | T5: 2975 | U5: 2730 | V5: 2065 | W5: 3158 | X5: 2794 | Y5: 2957 | Z5: 2193 | AA5: 3344 | AB5: 2659 | AC5: 2611 | AD5: 2142 | AE5: 3166 | AF5: 2879 | AG5: 2761 | AH5: 2451 | AI5: 3214 | AJ5: 3080 | AK5: 2952 | AL5: 2164 | AM5: 3127 | AN5: 2568 | AO5: 2940 | AP5: 2126 | AQ5: 2970 | AR5: 2840 | AS5: 2676 | AT5: 2014 | AU5: 2774 | AV5: 2651 | AW5: =+D5+E5+F5+G5 -> 11171 | AX5: =+H5+I5+J5+K5 -> 10847 | AY5: =+L5+M5+N5+O5 -> 10919 | AZ5: =+P5+Q5+R5+S5 -> 10912 | BA5: =+T5+U5+V5+W5 -> 10928 | BB5: =+X5+Y5+Z5+AA5 -> 11288 | BC5: =+AB5+AC5+AD5+AE5 -> 10578 | BD5: =+AF5+AG5+AH5+AI5 -> 11305 | BE5: =+AJ5+AK5+AL5+AM5 -> 11323 | BF5: =+AN5+AO5+AP5+AQ5 -> 10604 | BG5: =+AR5+AS5+AT5+AU5 -> 10304
C6: ARAGON | D6: 274 | E6: 239 | F6: 195 | G6: 260 | H6: 236 | I6: 260 | J6: 181 | K6: 259 | L6: 255 | M6: 241 | N6: 190 | O6: 275 | P6: 294 | Q6: 245 | R6: 176 | S6: 255 | T6: 293 | U6: 232 | V6: 167 | W6: 249 | X6: 261 | Y6: 239 | Z6: 192 | AA6: 296 | AB6: 227 | AC6: 233 | AD6: 200 | AE6: 244 | AF6: 257 | AG6: 294 | AH6: 226 | AI6: 286 | AJ6: 266 | AK6: 309 | AL6: 222 | AM6: 277 | AN6: 255 | AO6: 253 | AP6: 172 | AQ6: 260 | AR6: 246 | AS6: 258 | AT6: 176 | AU6: 233 | AV6: 261 | AW6: 968 | AX6: 936 | AY6: 961 | AZ6: 970 | BA6: 941 | BB6: 988 | BC6: 904 | BD6: 1063 | BE6: 1074 | BF6: 940 | BG6: 913
C7: ASTURIAS | D7: 377 | E7: 362 | F7: 226 | G7: 379 | H7: 226 | I7: 330 | J7: 282 | K7: 367 | L7: 306 | M7: 294 | N7: 224 | O7: 345 | P7: 268 | Q7: 312 | R7: 228 | S7: 325 | T7: 281 | U7: 299 | V7: 232 | W7: 310 | X7: 278 | Y7: 270 | Z7: 212 | AA7: 368 | AB7: 280 | AC7: 290 | AD7: 231 | AE7: 327 | AF7: 316 | AG7: 293 | AH7: 224 | AI7: 308 | AJ7: 292 | AK7: 283 | AL7: 239 | AM7: 315 | AN7: 261 | AO7: 273 | AP7: 213 | AQ7: 278 | AR7: 265 | AS7: 265 | AT7: 175 | AU7: 243 | AV7: 229 | AW7: 1344 | AX7: 1205 | AY7: 1169 | AZ7: 1133 | BA7: 1122 | BB7: 1128 | BC7: 1128 | BD7: 1141 | BE7: 1129 | BF7: 1025 | BG7: 948
C8: ILLES BALEARS | D8: 316 | E8: 302 | F8: 216 | G8: 299 | H8: 191 | I8: 332 | J8: 197 | K8: 277 | L8: 296 | M8: 289 | N8: 209 | O8: 310 | P8: 293 | Q8: 295 | R8: 236 | S8: 254 | T8: 310 | U8: 292 | V8: 249 | W8: 314 | X8: 259 | Y8: 282 | Z8: 215 | AA8: 346 | AB8: 257 | AC8: 266 | AD8: 175 | AE8: 275 | AF8: 261 | AG8: 277 | AH8: 253 | AI8: 310 | AJ8: 254 | AK8: 278 | AL8: 250 | AM8: 278 | AN8: 272 | AO8: 256 | AP8: 179 | AQ8: 303 | AR8: 292 | AS8: 239 | AT8: 193 | AU8: 286 | AV8: 249 | AW8: 1133 | AX8: 997 | AY8: 1104 | AZ8: 1078 | BA8: 1165 | BB8: 1102 | BC8: 973 | BD8: 1101 | BE8: 1060 | BF8: 1010 | BG8: 1010
C9: CANARIAS | D9: 939 | E9: 935 | F9: 699 | G9: 979 | H9: 808 | I9: 887 | J9: 698 | K9: 905 | L9: 808 | M9: 813 | N9: 633 | O9: 897 | P9: 825 | Q9: 858 | R9: 633 | S9: 934 | T9: 871 | U9: 837 | V9: 654 | W9: 818 | X9: 783 | Y9: 899 | Z9: 675 | AA9: 971 | AB9: 770 | AC9: 856 | AD9: 677 | AE9: 909 | AF9: 752 | AG9: 786 | AH9: 700 | AI9: 822 | AJ9: 810 | AK9: 825 | AL9: 642 | AM9: 740 | AN9: 641 | AO9: 804 | AP9: 607 | AQ9: 678 | AR9: 708 | AS9: 677 | AT9: 521 | AU9: 732 | AV9: 617 | AW9: 3552 | AX9: 3298 | AY9: 3151 | AZ9: 3250 | BA9: 3180 | BB9: 3328 | BC9: 3212 | BD9: 3060 | BE9: 3017 | BF9: 2730 | BG9: 2638
C10: CANTABRIA | D10: 177 | E10: 181 | F10: 145 | G10: 141 | H10: 146 | I10: 176 | J10: 134 | K10: 161 | L10: 121 | M10: 137 | N10: 101 | O10: 167 | P10: 168 | Q10: 181 | R10: 111 | S10: 173 | T10: 164 | U10: 143 | V10: 83 | W10: 137 | X10: 132 | Y10: 152 | Z10: 134 | AA10: 200 | AB10: 143 | AC10: 152 | AD10: 121 | AE10: 172 | AF10: 153 | AG10: 152 | AH10: 99 | AI10: 181 | AJ10: 150 | AK10: 134 | AL10: 119 | AM10: 172 | AN10: 116 | AO10: 179 | AP10: 133 | AQ10: 154 | AR10: 169 | AS10: 145 | AT10: 107 | AU10: 130 | AV10: 117 | AW10: 644 | AX10: 617 | AY10: 526 | AZ10: 633 | BA10: 527 | BB10: 618 | BC10: 588 | BD10: 585 | BE10: 575 | BF10: 582 | BG10: 551
C11: CASTILLA Y LEON | D11: 556 | E11: 551 | F11: 383 | G11: 536 | H11: 378 | I11: 563 | J11: 395 | K11: 503 | L11: 505 | M11: 456 | N11: 383 | O11: 615 | P11: 491 | Q11: 539 | R11: 417 | S11: 517 | T11: 547 | U11: 427 | V11: 356 | W11: 520 | X11: 469 | Y11: 464 | Z11: 412 | AA11: 563 | AB11: 465 | AC11: 477 | AD11: 397 | AE11: 524 | AF11: 509 | AG11: 499 | AH11: 420 | AI11: 584 | AJ11: 531 | AK11: 451 | AL11: 447 | AM11: 551 | AN11: 465 | AO11: 462 | AP11: 360 | AQ11: 496 | AR11: 487 | AS11: 428 | AT11: 363 | AU11: 445 | AV11: 506 | AW11: 2026 | AX11: 1839 | AY11: 1959 | AZ11: 1964 | BA11: 1850 | BB11: 1908 | BC11: 1863 | BD11: 2012 | BE11: 1980 | BF11: 1783 | BG11: 1723
C12: CASTILLA LA MANCHA | D12: 480 | E12: 465 | F12: 327 | G12: 516 | H12: 363 | I12: 492 | J12: 360 | K12: 507 | L12: 474 | M12: 462 | N12: 320 | O12: 539 | P12: 446 | Q12: 479 | R12: 362 | S12: 513 | T12: 486 | U12: 464 | V12: 418 | W12: 589 | X12: 517 | Y12: 529 | Z12: 367 | AA12: 619 | AB12: 492 | AC12: 505 | AD12: 365 | AE12: 559 | AF12: 561 | AG12: 525 | AH12: 423 | AI12: 635 | AJ12: 659 | AK12: 537 | AL12: 448 | AM12: 614 | AN12: 602 | AO12: 569 | AP12: 391 | AQ12: 626 | AR12: 576 | AS12: 466 | AT12: 382 | AU12: 519 | AV12: 570 | AW12: 1788 | AX12: 1722 | AY12: 1795 | AZ12: 1800 | BA12: 1957 | BB12: 2032 | BC12: 1921 | BD12: 2144 | BE12: 2258 | BF12: 2188 | BG12: 1943
C13: CATALUÑA | D13: 2034 | E13: 1794 | F13: 1315 | G13: 1897 | H13: 1790 | I13: 1923 | J13: 1361 | K13: 1943 | L13: 1762 | M13: 1725 | N13: 1410 | O13: 1897 | P13: 1863 | Q13: 1797 | R13: 1413 | S13: 1945 | T13: 1810 | U13: 1808 | V13: 1431 | W13: 2028 | X13: 2006 | Y13: 1819 | Z13: 1392 | AA13: 1994 | AB13: 1898 | AC13: 1804 | AD13: 1339 | AE13: 2060 | AF13: 1988 | AG13: 1753 | AH13: 1476 | AI13: 2096 | AJ13: 2001 | AK13: 1818 | AL13: 1394 | AM13: 1963 | AN13: 1767 | AO13: 1848 | AP13: 1367 | AQ13: 1785 | AR13: 1924 | AS13: 1635 | AT13: 1207 | AU13: 1572 | AV13: 1747 | AW13: 7040 | AX13: 7017 | AY13: 6794 | AZ13: 7018 | BA13: 7077 | BB13: 7211 | BC13: 7101 | BD13: 7313 | BE13: 7176 | BF13: 6767 | BG13: 6338
C14: COMUNITAT VALENCIANA | D14: 1584 | E14: 1552 | F14: 1104 | G14: 1525 | H14: 1478 | I14: 1466 | J14: 1100 | K14: 1484 | L14: 1305 | M14: 1385 | N14: 1045 | O14: 1549 | P14: 1477 | Q14: 1471 | R14: 1081 | S14: 1580 | T14: 1529 | U14: 1412 | V14: 1158 | W14: 1534 | X14: 1497 | Y14: 1390 | Z14: 1126 | AA14: 1715 | AB14: 1388 | AC14: 1511 | AD14: 1184 | AE14: 1526 | AF14: 1519 | AG14: 1569 | AH14: 1238 | AI14: 1748 | AJ14: 1523 | AK14: 1532 | AL14: 1159 | AM14: 1522 | AN14: 1349 | AO14: 1562 | AP14: 1094 | AQ14: 1381 | AR14: 1435 | AS14: 1307 | AT14: 990 | AU14: 1427 | AV14: 1333 | AW14: 5765 | AX14: 5528 | AY14: 5284 | AZ14: 5609 | BA14: 5633 | BB14: 5728 | BC14: 5609 | BD14: 6074 | BE14: 5736 | BF14: 5386 | BG14: 5159
C15: EXTREMADURA | D15: 279 | E15: 253 | F15: 182 | G15: 297 | H15: 149 | I15: 262 | J15: 198 | K15: 265 | L15: 223 | M15: 207 | N15: 138 | O15: 288 | P15: 239 | Q15: 226 | R15: 171 | S15: 262 | T15: 219 | U15: 216 | V15: 195 | W15: 237 | X15: 251 | Y15: 220 | Z15: 174 | AA15: 277 | AB15: 229 | AC15: 244 | AD15: 188 | AE15: 336 | AF15: 277 | AG15: 229 | AH15: 211 | AI15: 279 | AJ15: 308 | AK15: 343 | AL15: 213 | AM15: 289 | AN15: 263 | AO15: 259 | AP15: 181 | AQ15: 280 | AR15: 256 | AS15: 234 | AT15: 192 | AU15: 276 | AV15: 216 | AW15: 1011 | AX15: 874 | AY15: 856 | AZ15: 898 | BA15: 867 | BB15: 922 | BC15: 997 | BD15: 996 | BE15: 1153 | BF15: 983 | BG15: 958
C16: GALICIA | D16: 903 | E16: 849 | F16: 619 | G16: 897 | H16: 828 | I16: 831 | J16: 592 | K16: 867 | L16: 763 | M16: 727 | N16: 601 | O16: 882 | P16: 789 | Q16: 851 | R16: 610 | S16: 859 | T16: 798 | U16: 837 | V16: 592 | W16: 839 | X16: 829 | Y16: 797 | Z16: 549 | AA16: 870 | AB16: 618 | AC16: 804 | AD16: 611 | AE16: 834 | AF16: 739 | AG16: 865 | AH16: 753 | AI16: 863 | AJ16: 787 | AK16: 857 | AL16: 632 | AM16: 753 | AN16: 659 | AO16: 761 | AP16: 548 | AQ16: 839 | AR16: 740 | AS16: 668 | AT16: 484 | AU16: 693 | AV16: 520 | AW16: 3268 | AX16: 3118 | AY16: 2973 | AZ16: 3109 | BA16: 3066 | BB16: 3045 | BC16: 2867 | BD16: 3220 | BE16: 3029 | BF16: 2807 | BG16: 2585
C17: MADRID | D17: 2106 | E17: 1675 | F17: 1258 | G17: 1632 | H17: 1678 | I17: 1676 | J17: 1208 | K17: 1724 | L17: 1464 | M17: 1781 | N17: 1455 | O17: 1703 | P17: 1662 | Q17: 1725 | R17: 1319 | S17: 1758 | T17: 1675 | U17: 1614 | V17: 1180 | W17: 1699 | X17: 1719 | Y17: 1482 | Z17: 1222 | AA17: 1765 | AB17: 1580 | AC17: 1499 | AD17: 1206 | AE17: 1705 | AF17: 1611 | AG17: 1553 | AH17: 1520 | AI17: 1837 | AJ17: 1668 | AK17: 1601 | AL17: 1273 | AM17: 1722 | AN17: 1432 | AO17: 1697 | AP17: 1228 | AQ17: 1641 | AR17: 1636 | AS17: 1530 | AT17: 1176 | AU17: 1657 | AV17: 1582 | AW17: 6671 | AX17: 6286 | AY17: 6403 | AZ17: 6464 | BA17: 6168 | BB17: 6188 | BC17: 5990 | BD17: 6521 | BE17: 6264 | BF17: 5998 | BG17: 5999
C18: MURCIA | D18: 411 | E18: 432 | F18: 290 | G18: 381 | H18: 277 | I18: 397 | J18: 321 | K18: 520 | L18: 350 | M18: 345 | N18: 324 | O18: 488 | P18: 416 | Q18: 430 | R18: 293 | S18: 450 | T18: 445 | U18: 357 | V18: 315 | W18: 466 | X18: 390 | Y18: 410 | Z18: 263 | AA18: 491 | AB18: 379 | AC18: 404 | AD18: 327 | AE18: 451 | AF18: 405 | AG18: 423 | AH18: 352 | AI18: 451 | AJ18: 433 | AK18: 504 | AL18: 333 | AM18: 533 | AN18: 448 | AO18: 490 | AP18: 324 | AQ18: 458 | AR18: 364 | AS18: 393 | AT18: 329 | AU18: 452 | AV18: 398 | AW18: 1514 | AX18: 1515 | AY18: 1507 | AZ18: 1589 | BA18: 1583 | BB18: 1554 | BC18: 1561 | BD18: 1631 | BE18: 1803 | BF18: 1720 | BG18: 1538
C19: NAVARRA | D19: 105 | E19: 95 | F19: 74 | G19: 85 | H19: 98 | I19: 95 | J19: 66 | K19: 99 | L19: 89 | M19: 102 | N19: 76 | O19: 132 | P19: 110 | Q19: 105 | R19: 74 | S19: 97 | T19: 144 | U19: 119 | V19: 73 | W19: 113 | X19: 130 | Y19: 105 | Z19: 88 | AA19: 118 | AB19: 91 | AC19: 112 | AD19: 86 | AE19: 114 | AF19: 115 | AG19: 130 | AH19: 96 | AI19: 111 | AJ19: 121 | AK19: 112 | AL19: 79 | AM19: 112 | AN19: 97 | AO19: 154 | AP19: 79 | AQ19: 133 | AR19: 132 | AS19: 135 | AT19: 103 | AU19: 152 | AV19: 175 | AW19: 359 | AX19: 358 | AY19: 399 | AZ19: 386 | BA19: 449 | BB19: 441 | BC19: 403 | BD19: 452 | BE19: 424 | BF19: 463 | BG19: 522
C20: PAIS VASCO | D20: 587 | E20: 435 | F20: 303 | G20: 390 | H20: 427 | I20: 429 | J20: 309 | K20: 433 | L20: 383 | M20: 425 | N20: 288 | O20: 460 | P20: 438 | Q20: 437 | R20: 299 | S20: 419 | T20: 400 | U20: 418 | V20: 276 | W20: 453 | X20: 429 | Y20: 422 | Z20: 297 | AA20: 455 | AB20: 425 | AC20: 439 | AD20: 332 | AE20: 490 | AF20: 475 | AG20: 460 | AH20: 317 | AI20: 509 | AJ20: 472 | AK20: 396 | AL20: 346 | AM20: 484 | AN20: 439 | AO20: 443 | AP20: 269 | AQ20: 447 | AR20: 553 | AS20: 394 | AT20: 260 | AU20: 408 | AV20: 366 | AW20: 1715 | AX20: 1598 | AY20: 1556 | AZ20: 1593 | BA20: 1547 | BB20: 1603 | BC20: 1686 | BD20: 1761 | BE20: 1698 | BF20: 1598 | BG20: 1615
C21: LA RIOJA | D21: 77 | E21: 65 | F21: 57 | G21: 79 | H21: 53 | I21: 72 | J21: 39 | K21: 58 | L21: 56 | M21: 53 | N21: 54 | O21: 48 | P21: 60 | Q21: 53 | R21: 32 | S21: 71 | T21: 70 | U21: 70 | V21: 49 | W21: 79 | X21: 77 | Y21: 67 | Z21: 33 | AA21: 69 | AB21: 47 | AC21: 55 | AD21: 51 | AE21: 77 | AF21: 70 | AG21: 56 | AH21: 53 | AI21: 68 | AJ21: 65 | AK21: 72 | AL21: 67 | AM21: 60 | AN21: 65 | AO21: 61 | AP21: 54 | AQ21: 66 | AR21: 56 | AS21: 70 | AT21: 55 | AU21: 94 | AV21: 57 | AW21: 278 | AX21: 222 | AY21: 211 | AZ21: 216 | BA21: 268 | BB21: 246 | BC21: 230 | BD21: 247 | BE21: 264 | BF21: 246 | BG21: 275
C22: TOTAL | D22: =SUM(D5:D21) -> 14335 | E22: 13060 | F22: 9521 | G22: 13331 | H22: 11808 | I22: 13254 | J22: 9615 | K22: 13300 | L22: 11992 | M22: 12180 | N22: 9652 | O22: 13743 | P22: 12560 | Q22: =SUM(Q5:Q21) -> 12883 | R22: =SUM(R5:R21) -> 9632 | S22: =SUM(S5:S21) -> 13547 | T22: =SUM(T5:T21) -> 13017 | U22: 12275 | V22: 9493 | W22: 13543 | X22: =SUM(X5:X21) -> 12821 | Y22: 12504 | Z22: 9544 | AA22: 14461 | AB22: 11948 | AC22: 12262 | AD22: =SUM(AD5:AD21) -> 9632 | AE22: 13769 | AF22: 12887 | AG22: 12625 | AH22: 10812 | AI22: 14302 | AJ22: =SUM(AJ5:AJ21) -> 13420 | AK22: 13004 | AL22: 10027 | AM22: =SUM(AM5:AM21) -> 13512 | AN22: 11699 | AO22: 13011 | AP22: 9325 | AQ22: 12795 | AR22: 12679 | AS22: =SUM(AS5:AS21) -> 11520 | AT22: =SUM(AT5:AT21) -> 8727 | AU22: =SUM(AU5:AU21) -> 12093 | AV22: =SUM(AV5:AV21) -> 11594 | AW22: 50247 | AX22: 47977 | AY22: 47567 | AZ22: 48622 | BA22: 48328 | BB22: 49330 | BC22: 47611 | BD22: 50626 | BE22: 49963 | BF22: 46830 | BG22: 45019
D25: Evolución 08-T1 | E25: Evolución 08-T2 | F25: Evolución 08-T3 | G25: Evolución 08-T4 | H25: Evolución 09-T1 | I25: Evolución 09-T2 | J25: Evolución 09-T3 | K25: Evolución 09-T4 | L25: Evolución 10-T1 | M25: Evolución 10-T2 | N25: Evolución 10-T3 | O25: Evolución 10-T4 | P25: Evolución 11-T1 | Q25: Evolución 11-T2 | R25: Evolución 11-T3 | S25: Evolución 11-T4 | T25: Evolución 12-T1 | U25: Evolución 12-T2 | V25: Evolución 12-T3 | W25: Evolución 12-T4 | X25: Evolución 13-T1 | Y25: Evolución 13-T2 | Z25: Evolución 13-T3 | AA25: Evolución 13-T4 | AB25: Evolución 14-T1 | AC25: Evolución 14-T2 | AD25: Evolución 14-T3 | AE25: Evolución 14-T4 | AF25: Evolución 15-T1 | AG25: Evolución 15-T2 | AH25: Evolución 15-T3 | AI25: Evolución 15-T4 | AJ25: Evolución 16-T1 | AK25: Evolución 16-T2 | AL25: Evolución 16-T3 | AM25: Evolución 16-T4 | AN25: Evolución 17-T1 | AO25: Evolución 17-T2 | AP25: Evolución 17-T3 | AQ25: Evolución 17-T4 | AR25: Evolución 18-T1 | AS25: Evolución 2007-2008 | AT25: Evolución 2008-2009 | AU25: Evolución 2009-2010 | AV25: Evolución 2010-2011 | AW25: Evolución 2011-2012 | AX25: Evolución 2012-2013 | AY25: Evolución 2013-2014 | AZ25: Evolución 2014-2015 | BA25: Evolución 2015-2016 | BB25: Evolución 2016-2017
C26: ANDALUCIA | D26: =+(H5-D5)/D5 -> -0.1431309904 | E26: =+(I5-E5)/E5 -> 0.06539130435 | F26: =+(J5-F5)/F5 -> 0.02161654135 | G26: =+(K5-G5)/G5 -> -0.0362080316 | H26: =+(L5-H5)/H5 -> 0.05592841163 | I26: =+(M5-I5)/I5 -> -0.1061051257 | J26: =+(N5-J5)/J5 -> 0.01241950322 | K26: =+(O5-K5)/K5 -> 0.07513661202 | L26: =+(P5-L5)/L5 -> -0.03919491525 | M26: =+(Q5-M5)/M5 -> 0.05149744339 | N26: -0.01090413448 | O26: -0.004129606099 | P26: 0.09334803381 | Q26: -0.05175408128 | R26: -0.05144694534 | S26: 0.007336523126 | T26: -0.06084033613 | U26: 0.08315018315 | V26: 0.06198547215 | W26: 0.05889803673 | X26: -0.04831782391 | Y26: -0.1170104836 | Z26: -0.02325581395 | AA26: -0.05322966507 | AB26: =+(AF5-AB5)/AB5 -> 0.08273787138 | AC26: 0.05744925316 | AD26: 0.1442577031 | AE26: 0.01516108654 | AF26: 0.0698159083 | AG26: 0.06917783412 | AH26: -0.1170950632 | AI26: -0.02706907281 | AJ26: -0.1662337662 | AK26: -0.00406504065 | AL26: -0.01756007394 | AM26: -0.05020786697 | AN26: 0.1059190031 | AO26: -0.08979591837 | AP26: -0.05268109125 | AQ26: =+(AU5-AQ5)/AQ5 -> -0.06599326599 | AR26: -0.06654929577 | AS26: =+(AX5-AW5)/AW5 -> -0.02900367022 | AT26: =+(AY5-AX5)/AX5 -> 0.006637780031 | AU26: -0.0006410843484 | AV26: 0.00146627566 | AW26: 0.03294289898 | AX26: -0.06289865344 | AY26: 0.06872754774 | AZ26: 0.001592215834 | BA26: -0.06349907268 | BB26: -0.02829121086
C27: ARAGON | D27: -0.1386861314 | E27: 0.08786610879 | F27: -0.07179487179 | G27: -0.003846153846 | H27: 0.08050847458 | I27: -0.07307692308 | J27: 0.04972375691 | K27: 0.06177606178 | L27: 0.1529411765 | M27: 0.01659751037 | N27: -0.07368421053 | O27: -0.07272727273 | P27: -0.003401360544 | Q27: -0.05306122449 | R27: -0.05113636364 | S27: -0.02352941176 | T27: -0.1092150171 | U27: 0.03017241379 | V27: 0.1497005988 | W27: 0.1887550201 | X27: -0.1302681992 | Y27: -0.02510460251 | Z27: 0.04166666667 | AA27: -0.1756756757 | AB27: 0.1321585903 | AC27: 0.2618025751 | AD27: 0.13 | AE27: 0.1721311475 | AF27: 0.03501945525 | AG27: 0.05102040816 | AH27: -0.01769911504 | AI27: -0.03146853147 | AJ27: -0.04135338346 | AK27: -0.1812297735 | AL27: -0.2252252252 | AM27: -0.06137184116 | AN27: -0.03529411765 | AO27: 0.01976284585 | AP27: 0.02325581395 | AQ27: -0.1038461538 | AR27: 0.06097560976 | AS27: -0.03305785124 | AT27: 0.02670940171 | AU27: 0.009365244537 | AV27: -0.02989690722 | AW27: 0.04994686504 | AX27: -0.08502024291 | AY27: 0.1758849558 | AZ27: 0.0103480715 | BA27: -0.1247672253 | BB27: -0.02872340426
C28: ASTURIAS | D28: -0.400530504 | E28: -0.08839779006 | F28: 0.2477876106 | G28: -0.03166226913 | H28: 0.3539823009 | I28: -0.1090909091 | J28: -0.2056737589 | K28: -0.05994550409 | L28: -0.1241830065 | M28: 0.0612244898 | N28: 0.01785714286 | O28: -0.05797101449 | P28: 0.04850746269 | Q28: -0.04166666667 | R28: 0.01754385965 | S28: -0.04615384615 | T28: -0.01067615658 | U28: -0.09698996656 | V28: -0.08620689655 | W28: 0.1870967742 | X28: 0.007194244604 | Y28: 0.07407407407 | Z28: 0.08962264151 | AA28: -0.1114130435 | AB28: 0.1285714286 | AC28: 0.01034482759 | AD28: -0.0303030303 | AE28: -0.05810397554 | AF28: -0.07594936709 | AG28: -0.03412969283 | AH28: 0.06696428571 | AI28: 0.02272727273 | AJ28: -0.1061643836 | AK28: -0.03533568905 | AL28: -0.1087866109 | AM28: -0.1174603175 | AN28: 0.0153256705 | AO28: -0.0293040293 | AP28: -0.1784037559 | AQ28: -0.1258992806 | AR28: -0.1358490566 | AS28: -0.103422619 | AT28: -0.02987551867 | AU28: -0.03079555175 | AV28: -0.009708737864 | AW28: 0.005347593583 | AX28: 0 | AY28: 0.0115248227 | AZ28: -0.01051709027 | BA28: -0.09211691763 | BB28: -0.07512195122
C29: ILLES BALEARS | D29: -0.3955696203 | E29: 0.09933774834 | F29: -0.08796296296 | G29: -0.07357859532 | H29: 0.5497382199 | I29: -0.1295180723 | J29: 0.06091370558 | K29: 0.119133574 | L29: -0.01013513514 | M29: 0.02076124567 | N29: 0.1291866029 | O29: -0.1806451613 | P29: 0.05802047782 | Q29: -0.01016949153 | R29: 0.05508474576 | S29: 0.2362204724 | T29: -0.164516129 | U29: -0.03424657534 | V29: -0.1365461847 | W29: 0.101910828 | X29: -0.007722007722 | Y29: -0.05673758865 | Z29: -0.1860465116 | AA29: =+(AE8-AA8)/AA8 -> -0.2052023121 | AB29: 0.01556420233 | AC29: 0.04135338346 | AD29: 0.4457142857 | AE29: 0.1272727273 | AF29: -0.02681992337 | AG29: 0.003610108303 | AH29: -0.01185770751 | AI29: -0.1032258065 | AJ29: 0.07086614173 | AK29: -0.07913669065 | AL29: -0.284 | AM29: 0.08992805755 | AN29: 0.07352941176 | AO29: -0.06640625 | AP29: =+(AT8-AP8)/AP8 -> 0.0782122905 | AQ29: -0.05610561056 | AR29: -0.147260274 | AS29: -0.1200353045 | AT29: 0.1073219659 | AU29: -0.02355072464 | AV29: 0.08070500928 | AW29: -0.05407725322 | AX29: -0.1170598911 | AY29: 0.1315519013 | AZ29: -0.03723887375 | BA29: -0.04716981132 | BB29: 0
C30: CANARIAS | D30: -0.1395101171 | E30: -0.0513368984 | F30: -0.001430615165 | G30: -0.07558733401 | H30: 0 | I30: -0.08342728298 | J30: -0.09312320917 | K30: -0.008839779006 | L30: 0.02103960396 | M30: 0.05535055351 | N30: 0 | O30: 0.04124860647 | P30: 0.05575757576 | Q30: -0.02447552448 | R30: 0.03317535545 | S30: -0.1241970021 | T30: -0.1010332951 | U30: 0.07407407407 | V30: 0.03211009174 | W30: 0.1870415648 | X30: -0.01660280971 | Y30: -0.04783092325 | Z30: 0.002962962963 | AA30: -0.06385169928 | AB30: -0.02337662338 | AC30: -0.08177570093 | AD30: 0.03397341211 | AE30: -0.09570957096 | AF30: 0.07712765957 | AG30: 0.04961832061 | AH30: -0.08285714286 | AI30: -0.099756691 | AJ30: -0.2086419753 | AK30: -0.02545454545 | AL30: -0.05451713396 | AM30: -0.08378378378 | AN30: 0.104524181 | AO30: -0.157960199 | AP30: -0.1416803954 | AQ30: 0.0796460177 | AR30: -0.1285310734 | AS30: -0.07150900901 | AT30: -0.04457246816 | AU30: 0.03141859727 | AV30: -0.02153846154 | AW30: 0.0465408805 | AX30: -0.03485576923 | AY30: -0.04732254047 | AZ30: -0.01405228758 | BA30: -0.09512761021 | BB30: -0.0336996337
C31: CANTABRIA | D31: -0.1751412429 | E31: -0.02762430939 | F31: -0.07586206897 | G31: 0.1418439716 | H31: -0.1712328767 | I31: -0.2215909091 | J31: -0.2462686567 | K31: 0.03726708075 | L31: 0.3884297521 | M31: 0.3211678832 | N31: 0.09900990099 | O31: 0.03592814371 | P31: -0.02380952381 | Q31: -0.2099447514 | R31: -0.2522522523 | S31: -0.2080924855 | T31: -0.1951219512 | U31: 0.06293706294 | V31: 0.6144578313 | W31: 0.4598540146 | X31: 0.08333333333 | Y31: 0 | Z31: -0.09701492537 | AA31: -0.14 | AB31: 0.06993006993 | AC31: 0 | AD31: -0.1818181818 | AE31: 0.0523255814 | AF31: -0.01960784314 | AG31: -0.1184210526 | AH31: 0.202020202 | AI31: -0.04972375691 | AJ31: -0.2266666667 | AK31: 0.3358208955 | AL31: 0.1176470588 | AM31: -0.1046511628 | AN31: 0.4568965517 | AO31: -0.1899441341 | AP31: -0.1954887218 | AQ31: -0.1558441558 | AR31: -0.3076923077 | AS31: -0.04192546584 | AT31: -0.1474878444 | AU31: 0.2034220532 | AV31: -0.1674565561 | AW31: 0.1726755218 | AX31: -0.04854368932 | AY31: -0.005102040816 | AZ31: -0.01709401709 | BA31: 0.01217391304 | BB31: -0.05326460481
C32: CASTILLA Y LEON | D32: -0.3201438849 | E32: 0.02177858439 | F32: 0.03133159269 | G32: -0.06156716418 | H32: 0.335978836 | I32: -0.190053286 | J32: -0.03037974684 | K32: 0.2226640159 | L32: -0.02772277228 | M32: 0.1820175439 | N32: 0.08877284595 | O32: -0.1593495935 | P32: 0.1140529532 | Q32: -0.2077922078 | R32: -0.1462829736 | S32: 0.00580270793 | T32: -0.1425959781 | U32: 0.08665105386 | V32: 0.1573033708 | W32: 0.08269230769 | X32: -0.008528784648 | Y32: 0.02801724138 | Z32: -0.03640776699 | AA32: -0.06927175844 | AB32: 0.09462365591 | AC32: 0.04612159329 | AD32: 0.05793450882 | AE32: 0.1145038168 | AF32: 0.04322200393 | AG32: -0.09619238477 | AH32: 0.06428571429 | AI32: -0.05650684932 | AJ32: -0.1242937853 | AK32: 0.0243902439 | AL32: -0.1946308725 | AM32: -0.0998185118 | AN32: 0.04731182796 | AO32: -0.07359307359 | AP32: 0.008333333333 | AQ32: -0.1028225806 | AR32: 0.03901437372 | AS32: -0.09230009872 | AT32: 0.06525285481 | AU32: 0.002552322614 | AV32: -0.05804480652 | AW32: 0.03135135135 | AX32: -0.02358490566 | AY32: 0.07997852925 | AZ32: -0.01590457256 | BA32: -0.09949494949 | BB32: -0.03365114975
C33: CASTILLA LA MANCHA | D33: -0.24375 | E33: 0.05806451613 | F33: 0.1009174312 | G33: -0.01744186047 | H33: 0.305785124 | I33: -0.06097560976 | J33: -0.1111111111 | K33: 0.06311637081 | L33: -0.05907172996 | M33: 0.0367965368 | N33: 0.13125 | O33: -0.04823747681 | P33: 0.08968609865 | Q33: -0.03131524008 | R33: 0.1546961326 | S33: 0.1481481481 | T33: 0.06378600823 | U33: 0.1400862069 | V33: -0.1220095694 | W33: 0.05093378608 | X33: -0.04835589942 | Y33: -0.04536862004 | Z33: -0.005449591281 | AA33: -0.09693053312 | AB33: 0.1402439024 | AC33: 0.0396039604 | AD33: 0.1589041096 | AE33: 0.1359570662 | AF33: 0.174688057 | AG33: 0.02285714286 | AH33: 0.05910165485 | AI33: -0.03307086614 | AJ33: -0.08649468892 | AK33: 0.05959031657 | AL33: -0.1272321429 | AM33: 0.01954397394 | AN33: -0.04318936877 | AO33: -0.1810193322 | AP33: -0.02301790281 | AQ33: -0.1709265176 | AR33: -0.01041666667 | AS33: -0.03691275168 | AT33: 0.04239256678 | AU33: 0.00278551532 | AV33: 0.08722222222 | AW33: 0.03832396525 | AX33: -0.05462598425 | AY33: 0.1160853722 | AZ33: 0.05317164179 | BA33: -0.03100088574 | BB33: -0.1119744059
C34: CATALUÑA | D34: -0.1199606686 | E34: 0.07190635452 | F34: 0.03498098859 | G34: 0.02424881392 | H34: -0.0156424581 | I34: -0.1029641186 | J34: 0.03600293902 | K34: -0.0236747298 | L34: 0.05732122588 | M34: 0.04173913043 | N34: 0.002127659574 | O34: 0.02530311017 | P34: -0.02844873859 | Q34: 0.0061213133 | R34: 0.0127388535 | S34: 0.04267352185 | T34: 0.1082872928 | U34: 0.006084070796 | V34: -0.02725366876 | W34: -0.016765286 | X34: -0.05383848455 | Y34: -0.00824628917 | Z34: -0.03807471264 | AA34: 0.03309929789 | AB34: 0.04741833509 | AC34: -0.02827050998 | AD34: 0.1023151606 | AE34: 0.01747572816 | AF34: 0.006539235412 | AG34: 0.03707929264 | AH34: -0.05555555556 | AI34: -0.06345419847 | AJ34: -0.1169415292 | AK34: 0.01650165017 | AL34: -0.0193687231 | AM34: -0.09067753439 | AN34: 0.08885116016 | AO34: -0.1152597403 | AP34: -0.1170446233 | AQ34: -0.1193277311 | AR34: -0.091995842 | AS34: -0.003267045455 | AT34: -0.03177996295 | AU34: 0.03297026788 | AV34: 0.008406953548 | AW34: 0.0189345768 | AX34: -0.01525447233 | AY34: 0.02985495001 | AZ34: -0.01873376179 | BA34: -0.05699554069 | BB34: -0.06339589183
C35: COMUNITAT VALENCIANA | D35: -0.06691919192 | E35: -0.05541237113 | F35: -0.003623188406 | G35: -0.0268852459 | H35: -0.1170500677 | I35: -0.05525238745 | J35: -0.05 | K35: 0.04380053908 | L35: 0.1318007663 | M35: 0.06209386282 | N35: 0.03444976077 | O35: 0.02001291156 | P35: 0.03520649966 | Q35: -0.04010876954 | R35: 0.07123034228 | S35: -0.02911392405 | T35: -0.02092871158 | U35: -0.01558073654 | V35: -0.02763385147 | W35: 0.1179921773 | X35: -0.07281229125 | Y35: 0.08705035971 | Z35: 0.05150976909 | AA35: -0.1102040816 | AB35: 0.09438040346 | AC35: 0.03838517538 | AD35: 0.04560810811 | AE35: 0.1454783748 | AF35: 0.002633311389 | AG35: -0.0235818993 | AH35: -0.06381260097 | AI35: -0.1292906178 | AJ35: -0.1142481944 | AK35: 0.01958224543 | AL35: -0.05608283003 | AM35: -0.0926412615 | AN35: 0.06375092661 | AO35: -0.1632522407 | AP35: -0.09506398537 | AQ35: 0.03330919623 | AR35: -0.07108013937 | AS35: -0.04111014744 | AT35: -0.04413892909 | AU35: 0.06150643452 | AV35: 0.004278837582 | AW35: 0.01686490325 | AX35: -0.02077513966 | AY35: 0.08290247816 | AZ35: -0.05564702009 | BA35: -0.0610181311 | BB35: -0.04214630524
C36: EXTREMADURA | D36: -0.4659498208 | E36: 0.03557312253 | F36: 0.08791208791 | G36: -0.1077441077 | H36: 0.4966442953 | I36: -0.2099236641 | J36: -0.303030303 | K36: 0.08679245283 | L36: 0.07174887892 | M36: 0.09178743961 | N36: 0.2391304348 | O36: -0.09027777778 | P36: -0.08368200837 | Q36: -0.04424778761 | R36: 0.1403508772 | S36: -0.09541984733 | T36: 0.1461187215 | U36: 0.01851851852 | V36: -0.1076923077 | W36: 0.1687763713 | X36: -0.08764940239 | Y36: 0.1090909091 | Z36: 0.08045977011 | AA36: 0.2129963899 | AB36: 0.2096069869 | AC36: -0.06147540984 | AD36: 0.1223404255 | AE36: -0.1696428571 | AF36: 0.1119133574 | AG36: 0.4978165939 | AH36: 0.009478672986 | AI36: 0.03584229391 | AJ36: -0.1461038961 | AK36: -0.2448979592 | AL36: -0.1502347418 | AM36: -0.03114186851 | AN36: -0.02661596958 | AO36: -0.09652509653 | AP36: 0.06077348066 | AQ36: -0.01428571429 | AR36: -0.15625 | AS36: -0.1355093966 | AT36: -0.02059496568 | AU36: 0.04906542056 | AV36: -0.03452115813 | AW36: 0.06343713956 | AX36: 0.08134490239 | AY36: -0.001003009027 | AZ36: 0.1576305221 | BA36: -0.1474414571 | BB36: -0.02543234995
C37: GALICIA | D37: -0.08305647841 | E37: -0.02120141343 | F37: -0.0436187399 | G37: -0.03344481605 | H37: -0.07850241546 | I37: -0.1251504212 | J37: 0.0152027027 | K37: 0.01730103806 | L37: 0.03407601573 | M37: 0.1705639615 | N37: 0.0149750416 | O37: -0.02607709751 | P37: 0.01140684411 | Q37: -0.01645123384 | R37: -0.02950819672 | S37: -0.02328288708 | T37: 0.03884711779 | U37: -0.04778972521 | V37: -0.07263513514 | W37: 0.03694874851 | X37: -0.2545235223 | Y37: 0.00878293601 | Z37: 0.1129326047 | AA37: -0.04137931034 | AB37: 0.1957928803 | AC37: 0.07587064677 | AD37: 0.232405892 | AE37: 0.03477218225 | AF37: 0.0649526387 | AG37: -0.009248554913 | AH37: -0.160690571 | AI37: -0.1274623407 | AJ37: -0.1626429479 | AK37: -0.1120186698 | AL37: -0.1329113924 | AM37: 0.1142098274 | AN37: 0.1229135053 | AO37: -0.1222076216 | AP37: -0.1167883212 | AQ37: -0.1740166865 | AR37: -0.2972972973 | AS37: -0.0458996328 | AT37: -0.04650416934 | AU37: 0.04574503868 | AV37: -0.01383081377 | AW37: -0.006849315068 | AX37: -0.05845648604 | AY37: 0.123125218 | AZ37: -0.05931677019 | BA37: -0.07329151535 | BB37: -0.0790879943
C38: MADRID | D38: -0.2032288699 | E38: 0.0005970149254 | F38: -0.03974562798 | G38: 0.05637254902 | H38: -0.1275327771 | I38: 0.06264916468 | J38: 0.2044701987 | K38: -0.01218097448 | L38: 0.1352459016 | M38: -0.03144300955 | N38: -0.09347079038 | O38: 0.03229594833 | P38: 0.007821901324 | Q38: -0.06434782609 | R38: -0.1053828658 | S38: -0.03356086462 | T38: 0.02626865672 | U38: -0.08178438662 | V38: 0.03559322034 | W38: 0.03884638022 | X38: -0.08086096568 | Y38: 0.01147098516 | Z38: -0.01309328969 | AA38: -0.03399433428 | AB38: 0.01962025316 | AC38: 0.03602401601 | AD38: 0.2603648425 | AE38: 0.07741935484 | AF38: 0.03538175047 | AG38: 0.03090792015 | AH38: -0.1625 | AI38: -0.06260206859 | AJ38: -0.1414868106 | AK38: 0.05996252342 | AL38: -0.03534956795 | AM38: -0.04703832753 | AN38: 0.1424581006 | AO38: -0.09840895698 | AP38: -0.04234527687 | AQ38: 0.009750152346 | AR38: -0.03300733496 | AS38: -0.05771248688 | AT38: 0.01861279033 | AU38: 0.00952678432 | AV38: -0.04579207921 | AW38: 0.003242542153 | AX38: -0.03199741435 | AY38: 0.08864774624 | AZ38: -0.03941113326 | BA38: -0.04246487867 | BB38: 0.0001667222407
C39: MURCIA | D39: -0.3260340633 | E39: -0.08101851852 | F39: 0.1068965517 | G39: 0.3648293963 | H39: 0.2635379061 | I39: -0.1309823678 | J39: 0.009345794393 | K39: -0.06153846154 | L39: 0.1885714286 | M39: 0.2463768116 | N39: -0.09567901235 | O39: -0.07786885246 | P39: 0.06971153846 | Q39: -0.1697674419 | R39: 0.07508532423 | S39: 0.03555555556 | T39: -0.1235955056 | U39: 0.1484593838 | V39: -0.1650793651 | W39: 0.05364806867 | X39: -0.02820512821 | Y39: -0.01463414634 | Z39: 0.2433460076 | AA39: -0.08146639511 | AB39: 0.06860158311 | AC39: 0.04702970297 | AD39: 0.07645259939 | AE39: 0 | AF39: 0.06913580247 | AG39: 0.1914893617 | AH39: -0.05397727273 | AI39: 0.1818181818 | AJ39: 0.03464203233 | AK39: -0.02777777778 | AL39: -0.02702702703 | AM39: -0.1407129456 | AN39: -0.1875 | AO39: -0.1979591837 | AP39: 0.01543209877 | AQ39: -0.01310043668 | AR39: 0.09340659341 | AS39: 0.0006605019815 | AT39: -0.005280528053 | AU39: 0.05441274054 | AV39: -0.003775959723 | AW39: -0.01831964624 | AX39: 0.004504504505 | AY39: 0.04484304933 | AZ39: 0.105456775 | BA39: -0.04603438713 | BB39: -0.1058139535
C40: NAVARRA | D40: -0.06666666667 | E40: 0 | F40: -0.1081081081 | G40: 0.1647058824 | H40: -0.09183673469 | I40: 0.07368421053 | J40: 0.1515151515 | K40: 0.3333333333 | L40: 0.2359550562 | M40: 0.02941176471 | N40: -0.02631578947 | O40: -0.2651515152 | P40: 0.3090909091 | Q40: 0.1333333333 | R40: -0.01351351351 | S40: 0.1649484536 | T40: -0.09722222222 | U40: -0.1176470588 | V40: 0.2054794521 | W40: 0.04424778761 | X40: -0.3 | Y40: 0.06666666667 | Z40: -0.02272727273 | AA40: -0.03389830508 | AB40: 0.2637362637 | AC40: 0.1607142857 | AD40: 0.1162790698 | AE40: -0.02631578947 | AF40: 0.05217391304 | AG40: -0.1384615385 | AH40: -0.1770833333 | AI40: 0.009009009009 | AJ40: -0.1983471074 | AK40: 0.375 | AL40: 0 | AM40: 0.1875 | AN40: 0.3608247423 | AO40: -0.1233766234 | AP40: 0.3037974684 | AQ40: 0.1428571429 | AR40: 0.3257575758 | AS40: -0.00278551532 | AT40: 0.1145251397 | AU40: -0.03258145363 | AV40: 0.1632124352 | AW40: -0.01781737194 | AX40: -0.08616780045 | AY40: 0.1215880893 | AZ40: -0.06194690265 | BA40: 0.09198113208 | BB40: 0.1274298056
C41: PAIS VASCO | D41: -0.272572402 | E41: -0.01379310345 | F41: 0.0198019802 | G41: 0.1102564103 | H41: -0.1030444965 | I41: -0.009324009324 | J41: -0.06796116505 | K41: 0.0623556582 | L41: 0.1436031332 | M41: 0.02823529412 | N41: 0.03819444444 | O41: -0.08913043478 | P41: -0.08675799087 | Q41: -0.04347826087 | R41: -0.07692307692 | S41: 0.08114558473 | T41: 0.0725 | U41: 0.00956937799 | V41: 0.07608695652 | W41: 0.004415011038 | X41: -0.009324009324 | Y41: 0.04028436019 | Z41: 0.1178451178 | AA41: 0.07692307692 | AB41: 0.1176470588 | AC41: 0.04783599089 | AD41: -0.04518072289 | AE41: 0.0387755102 | AF41: -0.006315789474 | AG41: -0.1391304348 | AH41: 0.09148264984 | AI41: -0.04911591356 | AJ41: -0.06991525424 | AK41: 0.1186868687 | AL41: -0.2225433526 | AM41: -0.07644628099 | AN41: 0.2596810934 | AO41: -0.1106094808 | AP41: -0.03345724907 | AQ41: -0.08724832215 | AR41: -0.3381555154 | AS41: -0.06822157434 | AT41: -0.02628285357 | AU41: 0.02377892031 | AV41: -0.02887633396 | AW41: 0.03619909502 | AX41: 0.05177791641 | AY41: 0.04448398577 | AZ41: -0.03577512777 | BA41: -0.05889281508 | BB41: 0.01063829787
C42: LA RIOJA | D42: -0.3116883117 | E42: 0.1076923077 | F42: -0.3157894737 | G42: -0.2658227848 | H42: 0.05660377358 | I42: -0.2638888889 | J42: 0.3846153846 | K42: -0.1724137931 | L42: 0.07142857143 | M42: 0 | N42: -0.4074074074 | O42: 0.4791666667 | P42: 0.1666666667 | Q42: 0.320754717 | R42: 0.53125 | S42: 0.1126760563 | T42: 0.1 | U42: -0.04285714286 | V42: -0.3265306122 | W42: -0.1265822785 | X42: -0.3896103896 | Y42: -0.1791044776 | Z42: 0.5454545455 | AA42: 0.115942029 | AB42: 0.4893617021 | AC42: 0.01818181818 | AD42: 0.03921568627 | AE42: -0.1168831169 | AF42: -0.07142857143 | AG42: 0.2857142857 | AH42: 0.2641509434 | AI42: -0.1176470588 | AJ42: 0 | AK42: -0.1527777778 | AL42: -0.1940298507 | AM42: 0.1 | AN42: -0.1384615385 | AO42: 0.1475409836 | AP42: 0.01851851852 | AQ42: 0.4242424242 | AR42: 0.01785714286 | AS42: -0.2014388489 | AT42: -0.04954954955 | AU42: 0.02369668246 | AV42: 0.2407407407 | AW42: -0.08208955224 | AX42: -0.06504065041 | AY42: 0.07391304348 | AZ42: 0.06882591093 | BA42: -0.06818181818 | BB42: 0.1178861789
C43: TOTAL | D43: -0.1762818277 | E43: 0.01485451761 | F43: 0.009872912509 | G43: -0.002325406946 | H43: 0.01558265583 | I43: -0.08103214124 | J43: 0.003848153926 | K43: 0.03330827068 | L43: 0.04736490994 | M43: 0.05771756979 | N43: -0.002072109407 | O43: -0.01426180601 | P43: 0.03638535032 | Q43: -0.04719397656 | R43: -0.01443106312 | S43: -0.0002952683251 | T43: -0.01505723285 | U43: 0.01865580448 | V43: 0.005372379648 | W43: 0.0677840951 | X43: -0.06809141253 | Y43: -0.01935380678 | Z43: 0.00922045264 | AA43: -0.04785284558 | AB43: 0.07859055909 | AC43: 0.02960365356 | AD43: 0.1225083056 | AE43: 0.03871014598 | AF43: 0.04135950958 | AG43: 0.03001980198 | AH43: -0.0726045135 | AI43: -0.05523702979 | AJ43: -0.1282414307 | AK43: 0.000538295909 | AL43: -0.07001097038 | AM43: -0.05306394316 | AN43: 0.08376784341 | AO43: -0.1145953424 | AP43: -0.06412868633 | AQ43: -0.05486518171 | AR43: -0.08557457213 | AS43: -0.04517682648 | AT43: -0.008545761511 | AU43: 0.02217924191 | AV43: -0.006046645551 | AW43: 0.0207333223 | AX43: -0.03484694912 | AY43: 0.06332570204 | AZ43: -0.01309603761 | BA43: -0.06270640274 | BB43: -0.03867179159

Sheet Divorcios consensuados TSJ
O1: Inicio
B2: Divorcios consensuados clasificados por Tribunal Superior de Justicia
D4: 07-T1 | E4: 07-T2 | F4: 07-T3 | G4: 07-T4 | H4: 08-T1 | I4: 08-T2 | J4: 08-T3 | K4: 08-T4 | L4: 09-T1 | M4: 09-T2 | N4: 09-T3 | O4: 09-T4 | P4: 10-T1 | Q4: 10-T2 | R4: 10-T3 | S4: 10-T4 | T4: 11-T1 | U4: 11-T2 | V4: 11-T3 | W4: 11-T4 | X4: 12-T1 | Y4: 12-T2 | Z4: 12-T3 | AA4: 12-T4 | AB4: 13-T1 | AC4: 13-T2 | AD4: 13-T3 | AE4: 13-T4 | AF4: 14-T1 | AG4: 14-T2 | AH4: 14-T3 | AI4: 14-T4 | AJ4: 15-T1 | AK4: 15-T2 | AL4: 15-T3 | AM4: 15-T4 | AN4: 16-T1 | AO4: 16-T2 | AP4: 16-T3 | AQ4: 16-T4 | AR4: 17-T1 | AS4: 17-T2 | AT4: 17-T3 | AU4: 17-T4 | AV4: 18-T1 | AW4: Total 2007 | AX4: Total 2008 | AY4: Total 2009 | AZ4: Total 2010 | BA4: Total 2011 | BB4: Total 2012 | BC4: Total 2013 | BD4: Total 2014 | BE4: Total 2015 | BF4: Total 2016 | BG4: Total 2017
C5: ANDALUCIA | D5: 3494 | E5: 3244 | F5: 2493 | G5: 3294 | H5: 3141 | I5: 3263 | J5: 2319 | K5: 3084 | L5: 2814 | M5: 2785 | N5: 2195 | O5: 2871 | P5: 2886 | Q5: 3071 | R5: 2331 | S5: 3032 | T5: 2943 | U5: 2818 | V5: 2349 | W5: 2985 | X5: 2911 | Y5: 2966 | Z5: 2359 | AA5: 3249 | AB5: 2653 | AC5: 2986 | AD5: 2472 | AE5: 3255 | AF5: 3280 | AG5: 3250 | AH5: 2647 | AI5: 3379 | AJ5: 3393 | AK5: 3218 | AL5: 2564 | AM5: 3005 | AN5: 2752 | AO5: 3046 | AP5: 2193 | AQ5: 3010 | AR5: 2953 | AS5: 2814 | AT5: 2101 | AU5: 2831 | AV5: 2637 | AW5: =+D5+E5+F5+G5 -> 12525 | AX5: =+H5+I5+J5+K5 -> 11807 | AY5: =+L5+M5+N5+O5 -> 10665 | AZ5: =+P5+Q5+R5+S5 -> 11320 | BA5: =+T5+U5+V5+W5 -> 11095 | BB5: =+X5+Y5+Z5+AA5 -> 11485 | BC5: =+AB5+AC5+AD5+AE5 -> 11366 | BD5: =+AF5+AG5+AH5+AI5 -> 12556 | BE5: =+AJ5+AK5+AL5+AM5 -> 12180 | BF5: =+AN5+AO5+AP5+AQ5 -> 11001 | BG5: =+AR5+AS5+AT5+AU5 -> 10699
C6: ARAGON | D6: 490 | E6: 577 | F6: 370 | G6: 507 | H6: 506 | I6: 528 | J6: 363 | K6: 484 | L6: 501 | M6: 464 | N6: 335 | O6: 505 | P6: 455 | Q6: 462 | R6: 352 | S6: 485 | T6: 430 | U6: 432 | V6: 349 | W6: 488 | X6: 432 | Y6: 433 | Z6: 315 | AA6: 505 | AB6: 411 | AC6: 473 | AD6: 368 | AE6: 510 | AF6: 480 | AG6: 474 | AH6: 446 | AI6: 543 | AJ6: 506 | AK6: 543 | AL6: 416 | AM6: 486 | AN6: 500 | AO6: 479 | AP6: 372 | AQ6: 467 | AR6: 495 | AS6: 423 | AT6: 326 | AU6: 453 | AV6: 438 | AW6: 1944 | AX6: 1881 | AY6: 1805 | AZ6: 1754 | BA6: 1699 | BB6: 1685 | BC6: 1762 | BD6: 1943 | BE6: 1951 | BF6: 1818 | BG6: 1697
C7: ASTURIAS | D7: 552 | E7: 625 | F7: 418 | G7: 596 | H7: 369 | I7: 580 | J7: 404 | K7: 505 | L7: 477 | M7: 486 | N7: 350 | O7: 473 | P7: 477 | Q7: 487 | R7: 348 | S7: 457 | T7: 423 | U7: 457 | V7: 335 | W7: 493 | X7: 448 | Y7: 413 | Z7: 336 | AA7: 527 | AB7: 423 | AC7: 476 | AD7: 339 | AE7: 496 | AF7: 503 | AG7: 496 | AH7: 371 | AI7: 522 | AJ7: 506 | AK7: 476 | AL7: 311 | AM7: 471 | AN7: 409 | AO7: 422 | AP7: 330 | AQ7: 464 | AR7: 414 | AS7: 421 | AT7: 283 | AU7: 397 | AV7: 405 | AW7: 2191 | AX7: 1858 | AY7: 1786 | AZ7: 1769 | BA7: 1708 | BB7: 1724 | BC7: 1734 | BD7: 1892 | BE7: 1764 | BF7: 1625 | BG7: 1515
C8: ILLES BALEARS | D8: 664 | E8: 611 | F8: 455 | G8: 592 | H8: 400 | I8: 746 | J8: 470 | K8: 545 | L8: 479 | M8: 561 | N8: 370 | O8: 556 | P8: 475 | Q8: 552 | R8: 442 | S8: 551 | T8: 481 | U8: 510 | V8: 405 | W8: 483 | X8: 429 | Y8: 543 | Z8: 397 | AA8: 617 | AB8: 447 | AC8: 472 | AD8: 414 | AE8: 572 | AF8: 499 | AG8: 525 | AH8: 486 | AI8: 570 | AJ8: 541 | AK8: 526 | AL8: 421 | AM8: 507 | AN8: 455 | AO8: 600 | AP8: 396 | AQ8: 484 | AR8: 480 | AS8: 484 | AT8: 388 | AU8: 527 | AV8: 465 | AW8: 2322 | AX8: 2161 | AY8: 1966 | AZ8: 2020 | BA8: 1879 | BB8: 1986 | BC8: 1905 | BD8: 2080 | BE8: 1995 | BF8: 1935 | BG8: 1879
C9: CANARIAS | D9: 1105 | E9: 1162 | F9: 863 | G9: 1062 | H9: 1065 | I9: 1094 | J9: 775 | K9: 939 | L9: 889 | M9: 959 | N9: 752 | O9: 895 | P9: 836 | Q9: 920 | R9: 650 | S9: 908 | T9: 854 | U9: 947 | V9: 748 | W9: 835 | X9: 887 | Y9: 962 | Z9: 681 | AA9: 979 | AB9: 870 | AC9: 1054 | AD9: 799 | AE9: 942 | AF9: 969 | AG9: 923 | AH9: 793 | AI9: 971 | AJ9: 996 | AK9: 961 | AL9: 726 | AM9: 916 | AN9: 746 | AO9: 832 | AP9: 691 | AQ9: 828 | AR9: 765 | AS9: 828 | AT9: 648 | AU9: 797 | AV9: 754 | AW9: 4192 | AX9: 3873 | AY9: 3495 | AZ9: 3314 | BA9: 3384 | BB9: 3509 | BC9: 3665 | BD9: 3656 | BE9: 3599 | BF9: 3097 | BG9: 3038
C10: CANTABRIA | D10: 265 | E10: 254 | F10: 185 | G10: 279 | H10: 235 | I10: 302 | J10: 208 | K10: 238 | L10: 214 | M10: 222 | N10: 185 | O10: 241 | P10: 243 | Q10: 226 | R10: 167 | S10: 234 | T10: 235 | U10: 249 | V10: 158 | W10: 216 | X10: 248 | Y10: 235 | Z10: 186 | AA10: 296 | AB10: 242 | AC10: 249 | AD10: 195 | AE10: 262 | AF10: 249 | AG10: 253 | AH10: 201 | AI10: 268 | AJ10: 229 | AK10: 259 | AL10: 214 | AM10: 258 | AN10: 186 | AO10: 218 | AP10: 151 | AQ10: 235 | AR10: 249 | AS10: 224 | AT10: 185 | AU10: 205 | AV10: 216 | AW10: 983 | AX10: 983 | AY10: 862 | AZ10: 870 | BA10: 858 | BB10: 965 | BC10: 948 | BD10: 971 | BE10: 960 | BF10: 790 | BG10: 863
C11: CASTILLA Y LEON | D11: 794 | E11: 695 | F11: 554 | G11: 788 | H11: 460 | I11: 909 | J11: 638 | K11: 711 | L11: 695 | M11: 702 | N11: 531 | O11: 779 | P11: 734 | Q11: 653 | R11: 566 | S11: 767 | T11: 703 | U11: 660 | V11: 577 | W11: 723 | X11: 717 | Y11: 729 | Z11: 523 | AA11: 859 | AB11: 669 | AC11: 781 | AD11: 561 | AE11: 807 | AF11: 837 | AG11: 778 | AH11: 643 | AI11: 873 | AJ11: 774 | AK11: 705 | AL11: 563 | AM11: 778 | AN11: 674 | AO11: 740 | AP11: 493 | AQ11: 722 | AR11: 702 | AS11: 745 | AT11: 506 | AU11: 700 | AV11: 622 | AW11: 2831 | AX11: 2718 | AY11: 2707 | AZ11: 2720 | BA11: 2663 | BB11: 2828 | BC11: 2818 | BD11: 3131 | BE11: 2820 | BF11: 2629 | BG11: 2653
C12: CASTILLA LA MANCHA | D12: 700 | E12: 608 | F12: 444 | G12: 697 | H12: 495 | I12: 691 | J12: 451 | K12: 616 | L12: 462 | M12: 521 | N12: 438 | O12: 619 | P12: 570 | Q12: 627 | R12: 465 | S12: 625 | T12: 608 | U12: 611 | V12: 490 | W12: 693 | X12: 715 | Y12: 644 | Z12: 454 | AA12: 674 | AB12: 610 | AC12: 674 | AD12: 518 | AE12: 733 | AF12: 707 | AG12: 640 | AH12: 535 | AI12: 752 | AJ12: 757 | AK12: 714 | AL12: 553 | AM12: 699 | AN12: 638 | AO12: 663 | AP12: 462 | AQ12: 686 | AR12: 704 | AS12: 631 | AT12: 459 | AU12: 662 | AV12: 649 | AW12: 2449 | AX12: 2253 | AY12: 2040 | AZ12: 2287 | BA12: 2402 | BB12: 2487 | BC12: 2535 | BD12: 2634 | BE12: 2723 | BF12: 2449 | BG12: 2456
C13: CATALUÑA | D13: 4865 | E13: 4643 | F13: 3173 | G13: 4644 | H13: 4175 | I13: 4105 | J13: 3035 | K13: 3917 | L13: 3715 | M13: 3630 | N13: 3056 | O13: 4036 | P13: 3858 | Q13: 3961 | R13: 2958 | S13: 4089 | T13: 3493 | U13: 3652 | V13: 2987 | W13: 3702 | X13: 3787 | Y13: 3556 | Z13: 2753 | AA13: 3883 | AB13: 3580 | AC13: 3565 | AD13: 2827 | AE13: 3972 | AF13: 3809 | AG13: 3818 | AH13: 3077 | AI13: 4192 | AJ13: 3897 | AK13: 3787 | AL13: 3114 | AM13: 3832 | AN13: 3528 | AO13: 3749 | AP13: 2778 | AQ13: 3420 | AR13: 3519 | AS13: 3325 | AT13: 2445 | AU13: 3145 | AV13: 3192 | AW13: 17325 | AX13: 15232 | AY13: 14437 | AZ13: 14866 | BA13: 13834 | BB13: 13979 | BC13: 13944 | BD13: 14896 | BE13: 14630 | BF13: 13475 | BG13: 12434
C14: COMUNITAT VALENCIANA | D14: 3028 | E14: 2761 | F14: 2067 | G14: 2717 | H14: 2503 | I14: 2717 | J14: 1983 | K14: 2388 | L14: 2135 | M14: 2283 | N14: 1756 | O14: 2366 | P14: 2335 | Q14: 2353 | R14: 1795 | S14: 2430 | T14: 2403 | U14: 2345 | V14: 1684 | W14: 2245 | X14: 2187 | Y14: 2199 | Z14: 1701 | AA14: 2507 | AB14: 2092 | AC14: 2309 | AD14: 1820 | AE14: 2339 | AF14: 2266 | AG14: 2444 | AH14: 1880 | AI14: 2339 | AJ14: 2199 | AK14: 2313 | AL14: 1850 | AM14: 2412 | AN14: 2120 | AO14: 2318 | AP14: 1771 | AQ14: 2103 | AR14: 2112 | AS14: 2176 | AT14: 1675 | AU14: 2054 | AV14: 2109 | AW14: 10573 | AX14: 9591 | AY14: 8540 | AZ14: 8913 | BA14: 8677 | BB14: 8594 | BC14: 8560 | BD14: 8929 | BE14: 8774 | BF14: 8312 | BG14: 8017
C15: EXTREMADURA | D15: 300 | E15: 289 | F15: 213 | G15: 310 | H15: 179 | I15: 347 | J15: 238 | K15: 292 | L15: 261 | M15: 296 | N15: 216 | O15: 287 | P15: 274 | Q15: 369 | R15: 222 | S15: 334 | T15: 285 | U15: 282 | V15: 214 | W15: 315 | X15: 318 | Y15: 302 | Z15: 224 | AA15: 383 | AB15: 281 | AC15: 312 | AD15: 265 | AE15: 383 | AF15: 370 | AG15: 324 | AH15: 298 | AI15: 381 | AJ15: 412 | AK15: 353 | AL15: 294 | AM15: 367 | AN15: 397 | AO15: 366 | AP15: 248 | AQ15: 363 | AR15: 345 | AS15: 345 | AT15: 245 | AU15: 325 | AV15: 310 | AW15: 1112 | AX15: 1056 | AY15: 1060 | AZ15: 1199 | BA15: 1096 | BB15: 1227 | BC15: 1241 | BD15: 1373 | BE15: 1426 | BF15: 1374 | BG15: 1260
C16: GALICIA | D16: 1145 | E16: 1078 | F16: 796 | G16: 1110 | H16: 1033 | I16: 1110 | J16: 806 | K16: 929 | L16: 895 | M16: 882 | N16: 730 | O16: 1009 | P16: 976 | Q16: 893 | R16: 818 | S16: 999 | T16: 1066 | U16: 1015 | V16: 812 | W16: 968 | X16: 1056 | Y16: 1007 | Z16: 721 | AA16: 1184 | AB16: 913 | AC16: 1040 | AD16: 726 | AE16: 1099 | AF16: 1045 | AG16: 1016 | AH16: 903 | AI16: 1085 | AJ16: 1006 | AK16: 1128 | AL16: 835 | AM16: 959 | AN16: 855 | AO16: 954 | AP16: 701 | AQ16: 992 | AR16: 883 | AS16: 857 | AT16: 633 | AU16: 927 | AV16: 628 | AW16: 4129 | AX16: 3878 | AY16: 3516 | AZ16: 3686 | BA16: 3861 | BB16: 3968 | BC16: 3778 | BD16: 4049 | BE16: 3928 | BF16: 3502 | BG16: 3300
C17: MADRID | D17: 3673 | E17: 2956 | F17: 2082 | G17: 2569 | H17: 2818 | I17: 2947 | J17: 1997 | K17: 2464 | L17: 2267 | M17: 2861 | N17: 2076 | O17: 2276 | P17: 2500 | Q17: 2939 | R17: 2001 | S17: 2579 | T17: 2649 | U17: 2562 | V17: 1957 | W17: 2441 | X17: 2596 | Y17: 2528 | Z17: 1976 | AA17: 2876 | AB17: 2364 | AC17: 2626 | AD17: 2129 | AE17: 2826 | AF17: 2616 | AG17: 2586 | AH17: 2823 | AI17: 2984 | AJ17: 2682 | AK17: 2885 | AL17: 2116 | AM17: 2581 | AN17: 2170 | AO17: 2628 | AP17: 1933 | AQ17: 2226 | AR17: 2254 | AS17: 2163 | AT17: 1584 | AU17: 2280 | AV17: 2224 | AW17: 11280 | AX17: 10226 | AY17: 9480 | AZ17: 10019 | BA17: 9609 | BB17: 9976 | BC17: 9945 | BD17: 11009 | BE17: 10264 | BF17: 8957 | BG17: 8281
C18: MURCIA | D18: 568 | E18: 571 | F18: 366 | G18: 474 | H18: 357 | I18: 506 | J18: 433 | K18: 600 | L18: 494 | M18: 478 | N18: 351 | O18: 609 | P18: 522 | Q18: 547 | R18: 416 | S18: 532 | T18: 527 | U18: 438 | V18: 373 | W18: 584 | X18: 529 | Y18: 485 | Z18: 388 | AA18: 622 | AB18: 499 | AC18: 563 | AD18: 423 | AE18: 560 | AF18: 563 | AG18: 551 | AH18: 492 | AI18: 586 | AJ18: 477 | AK18: 571 | AL18: 432 | AM18: 550 | AN18: 500 | AO18: 552 | AP18: 377 | AQ18: 546 | AR18: 457 | AS18: 524 | AT18: 351 | AU18: 524 | AV18: 492 | AW18: 1979 | AX18: 1896 | AY18: 1932 | AZ18: 2017 | BA18: 1922 | BB18: 2024 | BC18: 2045 | BD18: 2192 | BE18: 2030 | BF18: 1975 | BG18: 1856
C19: NAVARRA | D19: 281 | E19: 246 | F19: 177 | G19: 253 | H19: 256 | I19: 283 | J19: 184 | K19: 241 | L19: 230 | M19: 231 | N19: 168 | O19: 215 | P19: 249 | Q19: 234 | R19: 153 | S19: 260 | T19: 245 | U19: 203 | V19: 163 | W19: 227 | X19: 235 | Y19: 203 | Z19: 169 | AA19: 281 | AB19: 191 | AC19: 277 | AD19: 176 | AE19: 247 | AF19: 234 | AG19: 266 | AH19: 171 | AI19: 280 | AJ19: 240 | AK19: 222 | AL19: 173 | AM19: 219 | AN19: 240 | AO19: 271 | AP19: 136 | AQ19: 215 | AR19: 248 | AS19: 220 | AT19: 154 | AU19: 206 | AV19: 236 | AW19: 957 | AX19: 964 | AY19: 844 | AZ19: 896 | BA19: 838 | BB19: 888 | BC19: 891 | BD19: 951 | BE19: 854 | BF19: 862 | BG19: 828
C20: PAIS VASCO | D20: 1097 | E20: 895 | F20: 600 | G20: 734 | H20: 849 | I20: 814 | J20: 536 | K20: 813 | L20: 740 | M20: 766 | N20: 605 | O20: 761 | P20: 806 | Q20: 796 | R20: 524 | S20: 732 | T20: 810 | U20: 774 | V20: 541 | W20: 775 | X20: 747 | Y20: 735 | Z20: 506 | AA20: 806 | AB20: 687 | AC20: 798 | AD20: 492 | AE20: 816 | AF20: 823 | AG20: 794 | AH20: 588 | AI20: 884 | AJ20: 867 | AK20: 835 | AL20: 564 | AM20: 773 | AN20: 771 | AO20: 885 | AP20: 516 | AQ20: 768 | AR20: 786 | AS20: 819 | AT20: 489 | AU20: 749 | AV20: 736 | AW20: 3326 | AX20: 3012 | AY20: 2872 | AZ20: 2858 | BA20: 2900 | BB20: 2794 | BC20: 2793 | BD20: 3089 | BE20: 3039 | BF20: 2940 | BG20: 2843
C21: LA RIOJA | D21: 161 | E21: 131 | F21: 92 | G21: 131 | H21: 82 | I21: 137 | J21: 105 | K21: 113 | L21: 89 | M21: 113 | N21: 92 | O21: 94 | P21: 97 | Q21: 110 | R21: 99 | S21: 118 | T21: 129 | U21: 109 | V21: 74 | W21: 114 | X21: 123 | Y21: 92 | Z21: 79 | AA21: 128 | AB21: 88 | AC21: 102 | AD21: 80 | AE21: 129 | AF21: 126 | AG21: 113 | AH21: 100 | AI21: 130 | AJ21: 113 | AK21: 116 | AL21: 103 | AM21: 145 | AN21: 100 | AO21: 124 | AP21: 112 | AQ21: 112 | AR21: 117 | AS21: 96 | AT21: 73 | AU21: 119 | AV21: 113 | AW21: 515 | AX21: 437 | AY21: 388 | AZ21: 424 | BA21: 426 | BB21: 422 | BC21: 399 | BD21: 469 | BE21: 477 | BF21: 448 | BG21: 405
C22: TOTAL | D22: =SUM(D5:D21) -> 23182 | E22: =SUM(E5:E21) -> 21346 | F22: 15348 | G22: 20757 | H22: 18923 | I22: 21079 | J22: 14945 | K22: =SUM(K5:K21) -> 18879 | L22: =SUM(L5:L21) -> 17357 | M22: =SUM(M5:M21) -> 18240 | N22: =SUM(N5:N21) -> 14206 | O22: =SUM(O5:O21) -> 18592 | P22: 18293 | Q22: 19200 | R22: 14307 | S22: =SUM(S5:S21) -> 19132 | T22: 18284 | U22: 18064 | V22: 14216 | W22: 18287 | X22: =SUM(X5:X21) -> 18365 | Y22: =SUM(Y5:Y21) -> 18032 | Z22: =SUM(Z5:Z21) -> 13768 | AA22: =SUM(AA5:AA21) -> 20376 | AB22: =SUM(AB5:AB21) -> 17020 | AC22: =SUM(AC5:AC21) -> 18757 | AD22: 14604 | AE22: 19948 | AF22: 19376 | AG22: 19251 | AH22: 16454 | AI22: =SUM(AI5:AI21) -> 20739 | AJ22: 19595 | AK22: 19612 | AL22: 15249 | AM22: 18958 | AN22: =SUM(AN5:AN21) -> 17041 | AO22: 18847 | AP22: 13660 | AQ22: 17641 | AR22: 17483 | AS22: 17095 | AT22: 12545 | AU22: =SUM(AU5:AU21) -> 16901 | AV22: =SUM(AV5:AV21) -> 16226 | AW22: 80633 | AX22: 73826 | AY22: 68395 | AZ22: 70932 | BA22: 68851 | BB22: 70541 | BC22: 70329 | BD22: 75820 | BE22: 73414 | BF22: 67189 | BG22: 64024
D25: Evolución 08-T1 | E25: Evolución 08-T2 | F25: Evolución 08-T3 | G25: Evolución 08-T4 | H25: Evolución 09-T1 | I25: Evolución 09-T2 | J25: Evolución 09-T3 | K25: Evolución 09-T4 | L25: Evolución 10-T1 | M25: Evolución 10-T2 | N25: Evolución 10-T3 | O25: Evolución 10-T4 | P25: Evolución 11-T1 | Q25: Evolución 11-T2 | R25: Evolución 11-T3 | S25: Evolución 11-T4 | T25: Evolución 12-T1 | U25: Evolución 12-T2 | V25: Evolución 12-T3 | W25: Evolución 12-T4 | X25: Evolución 13-T1 | Y25: Evolución 13-T2 | Z25: Evolución 13-T3 | AA25: Evolución 13-T4 | AB25: Evolución 14-T1 | AC25: Evolución 14-T2 | AD25: Evolución 14-T3 | AE25: Evolución 14-T4 | AF25: Evolución 15-T1 | AG25: Evolución 15-T2 | AH25: Evolución 15-T3 | AI25: Evolución 15-T4 | AJ25: Evolución 16-T1 | AK25: Evolución 16-T2 | AL25: Evolución 16-T3 | AM25: Evolución 16-T4 | AN25: Evolución 17-T1 | AO25: Evolución 17-T2 | AP25: Evolución 17-T3 | AQ25: Evolución 17-T4 | AR25: Evolución 18-T1 | AS25: Evolución 2007-2008 | AT25: Evolución 2008-2009 | AU25: Evolución 2009-2010 | AV25: Evolución 2010-2011 | AW25: Evolución 2011-2012 | AX25: Evolución 2012-2013 | AY25: Evolución 2013-2014 | AZ25: Evolución 2014-2015 | BA25: Evolución 2015-2016 | BB25: Evolución 2016-2017
C26: ANDALUCIA | D26: =+(H5-D5)/D5 -> -0.1010303377 | E26: =+(I5-E5)/E5 -> 0.005856966708 | F26: =+(J5-F5)/F5 -> -0.0697954272 | G26: =+(K5-G5)/G5 -> -0.06375227687 | H26: =+(L5-H5)/H5 -> -0.1041069723 | I26: =+(M5-I5)/I5 -> -0.1464909592 | J26: =+(N5-J5)/J5 -> -0.05347132385 | K26: =+(O5-K5)/K5 -> -0.06906614786 | L26: =+(P5-L5)/L5 -> 0.02558635394 | M26: =+(Q5-M5)/M5 -> 0.1026929982 | N26: 0.06195899772 | O26: 0.0560780216 | P26: 0.01975051975 | Q26: -0.08238358841 | R26: 0.007722007722 | S26: -0.01550131926 | T26: -0.01087325858 | U26: 0.05251951739 | V26: 0.004257130694 | W26: 0.08844221106 | X26: -0.088629337 | Y26: 0.006743088334 | Z26: 0.04790165324 | AA26: 0.001846722068 | AB26: 0.2363362231 | AC26: =+(AG5-AC5)/AC5 -> 0.0884125921 | AD26: 0.07079288026 | AE26: 0.0380952381 | AF26: 0.03445121951 | AG26: -0.009846153846 | AH26: -0.03135625236 | AI26: -0.1106836342 | AJ26: -0.1889183613 | AK26: -0.05344934742 | AL26: -0.1446957878 | AM26: 0.001663893511 | AN26: 0.0730377907 | AO26: -0.0761654629 | AP26: -0.04195166439 | AQ26: -0.05946843854 | AR26: =+(AV5-AR5)/AR5 -> -0.1070098205 | AS26: =+(AX5-AW5)/AW5 -> -0.0573253493 | AT26: =+(AY5-AX5)/AX5 -> -0.09672228339 | AU26: 0.06141584623 | AV26: -0.01987632509 | AW26: 0.0351509689 | AX26: -0.01036134088 | AY26: 0.1046982228 | AZ26: -0.02994584263 | BA26: -0.09679802956 | BB26: -0.02745204981
C27: ARAGON | D27: 0.03265306122 | E27: -0.0849220104 | F27: -0.01891891892 | G27: -0.04536489152 | H27: -0.009881422925 | I27: -0.1212121212 | J27: -0.07713498623 | K27: 0.04338842975 | L27: -0.09181636727 | M27: -0.004310344828 | N27: 0.05074626866 | O27: -0.0396039604 | P27: -0.05494505495 | Q27: -0.06493506494 | R27: -0.008522727273 | S27: 0.00618556701 | T27: 0.004651162791 | U27: 0.002314814815 | V27: -0.09742120344 | W27: 0.03483606557 | X27: -0.04861111111 | Y27: 0.09237875289 | Z27: 0.1682539683 | AA27: 0.009900990099 | AB27: 0.1678832117 | AC27: 0.002114164905 | AD27: 0.2119565217 | AE27: 0.06470588235 | AF27: 0.05416666667 | AG27: 0.1455696203 | AH27: -0.06726457399 | AI27: -0.1049723757 | AJ27: -0.01185770751 | AK27: -0.1178637201 | AL27: -0.1057692308 | AM27: -0.03909465021 | AN27: -0.01 | AO27: -0.1169102296 | AP27: -0.123655914 | AQ27: -0.02997858672 | AR27: -0.1151515152 | AS27: -0.03240740741 | AT27: -0.0404040404 | AU27: -0.02825484765 | AV27: -0.03135689852 | AW27: -0.00824014126 | AX27: 0.04569732938 | AY27: 0.1027241771 | AZ27: 0.004117344313 | BA27: -0.06817016914 | BB27: -0.06655665567
C28: ASTURIAS | D28: -0.3315217391 | E28: -0.072 | F28: -0.03349282297 | G28: -0.1526845638 | H28: 0.2926829268 | I28: -0.1620689655 | J28: -0.1336633663 | K28: -0.06336633663 | L28: 0 | M28: 0.002057613169 | N28: -0.005714285714 | O28: -0.03382663848 | P28: -0.1132075472 | Q28: -0.06160164271 | R28: -0.03735632184 | S28: 0.07877461707 | T28: 0.05910165485 | U28: -0.09628008753 | V28: 0.002985074627 | W28: 0.06896551724 | X28: -0.05580357143 | Y28: 0.1525423729 | Z28: 0.008928571429 | AA28: -0.05882352941 | AB28: 0.1891252955 | AC28: 0.04201680672 | AD28: 0.09439528024 | AE28: 0.05241935484 | AF28: 0.005964214712 | AG28: -0.04032258065 | AH28: -0.1617250674 | AI28: -0.09770114943 | AJ28: -0.1916996047 | AK28: -0.1134453782 | AL28: 0.06109324759 | AM28: -0.01486199575 | AN28: 0.01222493888 | AO28: -0.002369668246 | AP28: -0.1424242424 | AQ28: -0.1443965517 | AR28: -0.02173913043 | AS28: -0.1519853948 | AT28: -0.03875134553 | AU28: -0.009518477044 | AV28: -0.03448275862 | AW28: 0.009367681499 | AX28: 0.005800464037 | AY28: 0.09111880046 | AZ28: -0.06765327696 | BA28: -0.07879818594 | BB28: -0.06769230769
C29: ILLES BALEARS | D29: -0.3975903614 | E29: 0.2209492635 | F29: 0.03296703297 | G29: -0.07939189189 | H29: 0.1975 | I29: -0.2479892761 | J29: -0.2127659574 | K29: 0.02018348624 | L29: -0.008350730689 | M29: -0.01604278075 | N29: 0.1945945946 | O29: -0.008992805755 | P29: 0.01263157895 | Q29: -0.07608695652 | R29: -0.08371040724 | S29: -0.1234119782 | T29: -0.1081081081 | U29: 0.06470588235 | V29: -0.01975308642 | W29: 0.2774327122 | X29: 0.04195804196 | Y29: -0.1307550645 | Z29: 0.04282115869 | AA29: -0.07293354943 | AB29: 0.1163310962 | AC29: 0.1122881356 | AD29: 0.1739130435 | AE29: -0.003496503497 | AF29: 0.08416833667 | AG29: 0.001904761905 | AH29: -0.133744856 | AI29: -0.1105263158 | AJ29: -0.1589648799 | AK29: 0.1406844106 | AL29: -0.0593824228 | AM29: -0.04536489152 | AN29: 0.05494505495 | AO29: -0.1933333333 | AP29: -0.0202020202 | AQ29: =+(AU8-AQ8)/AQ8 -> 0.08884297521 | AR29: -0.03125 | AS29: -0.06933677864 | AT29: -0.09023600185 | AU29: 0.02746693795 | AV29: -0.0698019802 | AW29: 0.05694518361 | AX29: -0.04078549849 | AY29: 0.09186351706 | AZ29: -0.04086538462 | BA29: -0.03007518797 | BB29: -0.02894056848
C30: CANARIAS | D30: -0.03619909502 | E30: -0.05851979346 | F30: -0.1019698725 | G30: -0.115819209 | H30: -0.165258216 | I30: -0.1234003656 | J30: -0.02967741935 | K30: -0.04685835996 | L30: -0.05961754781 | M30: -0.04066736184 | N30: -0.1356382979 | O30: 0.01452513966 | P30: 0.02153110048 | Q30: 0.02934782609 | R30: 0.1507692308 | S30: -0.08039647577 | T30: 0.03864168618 | U30: 0.01583949314 | V30: -0.08957219251 | W30: 0.1724550898 | X30: -0.01916572717 | Y30: 0.09563409563 | Z30: 0.1732745962 | AA30: -0.03779366701 | AB30: 0.1137931034 | AC30: -0.124288425 | AD30: -0.007509386733 | AE30: 0.03078556263 | AF30: 0.02786377709 | AG30: 0.04117009751 | AH30: -0.08448928121 | AI30: -0.05664263646 | AJ30: -0.2510040161 | AK30: -0.1342351717 | AL30: -0.04820936639 | AM30: -0.096069869 | AN30: 0.0254691689 | AO30: -0.004807692308 | AP30: -0.06222865412 | AQ30: -0.03743961353 | AR30: -0.01437908497 | AS30: -0.07609732824 | AT30: -0.09759876065 | AU30: -0.05178826896 | AV30: 0.02112251056 | AW30: 0.03693853428 | AX30: 0.04445711029 | AY30: -0.002455661664 | AZ30: -0.01559080963 | BA30: -0.1394831898 | BB30: -0.01905069422
C31: CANTABRIA | D31: -0.1132075472 | E31: 0.188976378 | F31: 0.1243243243 | G31: -0.146953405 | H31: -0.08936170213 | I31: -0.2649006623 | J31: -0.1105769231 | K31: 0.01260504202 | L31: 0.1355140187 | M31: 0.01801801802 | N31: -0.0972972973 | O31: -0.02904564315 | P31: -0.0329218107 | Q31: 0.1017699115 | R31: -0.05389221557 | S31: -0.07692307692 | T31: 0.05531914894 | U31: -0.0562248996 | V31: 0.1772151899 | W31: 0.3703703704 | X31: -0.02419354839 | Y31: 0.05957446809 | Z31: 0.04838709677 | AA31: -0.1148648649 | AB31: 0.02892561983 | AC31: 0.01606425703 | AD31: 0.03076923077 | AE31: 0.02290076336 | AF31: -0.08032128514 | AG31: 0.02371541502 | AH31: 0.06467661692 | AI31: -0.03731343284 | AJ31: -0.1877729258 | AK31: -0.1583011583 | AL31: -0.2943925234 | AM31: -0.08914728682 | AN31: 0.3387096774 | AO31: 0.02752293578 | AP31: 0.2251655629 | AQ31: -0.1276595745 | AR31: -0.1325301205 | AS31: 0 | AT31: -0.1230925738 | AU31: 0.009280742459 | AV31: -0.01379310345 | AW31: 0.1247086247 | AX31: -0.01761658031 | AY31: 0.02426160338 | AZ31: -0.01132852729 | BA31: -0.1770833333 | BB31: 0.09240506329
C32: CASTILLA Y LEON | D32: -0.4206549118 | E32: 0.3079136691 | F32: 0.1516245487 | G32: -0.09771573604 | H32: 0.5108695652 | I32: -0.2277227723 | J32: -0.1677115987 | K32: 0.09563994374 | L32: 0.05611510791 | M32: -0.0698005698 | N32: 0.065913371 | O32: -0.01540436457 | P32: -0.04223433243 | Q32: 0.01071975498 | R32: 0.01943462898 | S32: -0.05736636245 | T32: 0.01991465149 | U32: 0.1045454545 | V32: -0.09358752166 | W32: 0.1881051176 | X32: -0.06694560669 | Y32: 0.07133058985 | Z32: 0.07265774379 | AA32: -0.0605355064 | AB32: =+(AF11-AB11)/AB11 -> 0.2511210762 | AC32: -0.003841229193 | AD32: 0.1461675579 | AE32: 0.08178438662 | AF32: -0.0752688172 | AG32: -0.09383033419 | AH32: -0.1244167963 | AI32: -0.1088201604 | AJ32: -0.1291989664 | AK32: 0.04964539007 | AL32: -0.1243339254 | AM32: -0.07197943445 | AN32: 0.04154302671 | AO32: 0.006756756757 | AP32: 0.02636916836 | AQ32: -0.03047091413 | AR32: -0.113960114 | AS32: -0.0399152243 | AT32: -0.004047093451 | AU32: 0.004802364241 | AV32: -0.02095588235 | AW32: 0.06196019527 | AX32: -0.003536067893 | AY32: 0.111071682 | AZ32: -0.09932928777 | BA32: -0.06773049645 | BB32: 0.009128946367
C33: CASTILLA LA MANCHA | D33: -0.2928571429 | E33: 0.1365131579 | F33: 0.01576576577 | G33: -0.1162123386 | H33: -0.06666666667 | I33: -0.2460202605 | J33: -0.0288248337 | K33: 0.00487012987 | L33: 0.2337662338 | M33: 0.2034548944 | N33: 0.06164383562 | O33: 0.009693053312 | P33: 0.06666666667 | Q33: -0.02551834131 | R33: 0.05376344086 | S33: 0.1088 | T33: 0.1759868421 | U33: 0.05400981997 | V33: -0.07346938776 | W33: -0.02741702742 | X33: -0.1468531469 | Y33: 0.04658385093 | Z33: 0.140969163 | AA33: 0.08753709199 | AB33: 0.1590163934 | AC33: -0.05044510386 | AD33: 0.03281853282 | AE33: 0.02592087312 | AF33: 0.07072135785 | AG33: 0.115625 | AH33: 0.03364485981 | AI33: -0.0704787234 | AJ33: -0.1571994716 | AK33: -0.07142857143 | AL33: -0.164556962 | AM33: -0.01859799714 | AN33: 0.1034482759 | AO33: -0.04826546003 | AP33: -0.006493506494 | AQ33: -0.03498542274 | AR33: -0.078125 | AS33: -0.08003266639 | AT33: -0.09454061252 | AU33: 0.1210784314 | AV33: 0.05028421513 | AW33: 0.03538717735 | AX33: 0.01930036188 | AY33: 0.03905325444 | AZ33: 0.0337889142 | BA33: -0.1006243114 | BB33: 0.002858309514
C34: CATALUÑA | D34: -0.1418293936 | E34: -0.1158733577 | F34: -0.04349196344 | G34: -0.156546081 | H34: -0.1101796407 | I34: -0.1157125457 | J34: 0.006919275124 | K34: 0.03038039316 | L34: 0.03849259758 | M34: 0.091184573 | N34: -0.03206806283 | O34: 0.01313181368 | P34: -0.0946086055 | Q34: -0.07801060338 | R34: 0.009803921569 | S34: -0.09464416728 | T34: 0.08416833667 | U34: -0.02628696605 | V34: -0.07833947104 | W34: 0.04889249055 | X34: -0.05466068128 | Y34: 0.002530933633 | Z34: 0.02687976753 | AA34: 0.02292042235 | AB34: 0.06396648045 | AC34: 0.07096774194 | AD34: 0.08843296781 | AE34: 0.055387714 | AF34: 0.02310317669 | AG34: -0.008119434259 | AH34: 0.01202469938 | AI34: -0.0858778626 | AJ34: -0.09468822171 | AK34: -0.01003432796 | AL34: -0.1078998073 | AM34: -0.1075156576 | AN34: -0.002551020408 | AO34: -0.1130968258 | AP34: -0.1198704104 | AQ34: -0.08040935673 | AR34: -0.09292412617 | AS34: -0.1208080808 | AT34: -0.0521927521 | AU34: 0.02971531482 | AV34: -0.06942015337 | AW34: 0.01048142258 | AX34: -0.002503755633 | AY34: 0.06827309237 | AZ34: -0.01785714286 | BA34: -0.07894736842 | BB34: -0.0772541744
C35: COMUNITAT VALENCIANA | D35: -0.1733817701 | E35: -0.01593625498 | F35: -0.04063860668 | G35: -0.1210894369 | H35: -0.1470235717 | I35: -0.1597350018 | J35: -0.1144730207 | K35: -0.009212730318 | L35: 0.09367681499 | M35: 0.03066141042 | N35: 0.0222095672 | O35: 0.0270498732 | P35: 0.02912205567 | Q35: -0.003399915002 | R35: -0.06183844011 | S35: -0.07613168724 | T35: -0.08988764045 | U35: -0.06226012793 | V35: 0.01009501188 | W35: 0.1167037862 | X35: -0.04343850023 | Y35: 0.05002273761 | Z35: 0.06995884774 | AA35: -0.06701236538 | AB35: 0.08317399618 | AC35: 0.05846686877 | AD35: 0.03296703297 | AE35: 0 | AF35: -0.02956751986 | AG35: -0.05360065466 | AH35: -0.01595744681 | AI35: 0.03120991877 | AJ35: -0.03592542065 | AK35: 0.002161694769 | AL35: -0.0427027027 | AM35: -0.1281094527 | AN35: -0.003773584906 | AO35: -0.06125970664 | AP35: -0.0542066629 | AQ35: -0.02330004755 | AR35: -0.001420454545 | AS35: -0.09287808569 | AT35: -0.1095818997 | AU35: 0.04367681499 | AV35: -0.02647817794 | AW35: -0.009565518036 | AX35: -0.003956248545 | AY35: 0.04310747664 | AZ35: -0.01735916676 | BA35: -0.05265557328 | BB35: -0.03549085659
C36: EXTREMADURA | D36: -0.4033333333 | E36: 0.2006920415 | F36: 0.117370892 | G36: -0.05806451613 | H36: 0.4581005587 | I36: -0.1469740634 | J36: -0.09243697479 | K36: -0.01712328767 | L36: 0.04980842912 | M36: 0.2466216216 | N36: 0.02777777778 | O36: 0.1637630662 | P36: 0.0401459854 | Q36: -0.2357723577 | R36: -0.03603603604 | S36: -0.05688622754 | T36: 0.1157894737 | U36: 0.07092198582 | V36: 0.04672897196 | W36: 0.2158730159 | X36: -0.1163522013 | Y36: 0.03311258278 | Z36: 0.1830357143 | AA36: 0 | AB36: 0.3167259786 | AC36: 0.03846153846 | AD36: 0.1245283019 | AE36: -0.005221932115 | AF36: 0.1135135135 | AG36: 0.08950617284 | AH36: -0.01342281879 | AI36: -0.03674540682 | AJ36: -0.03640776699 | AK36: 0.03682719547 | AL36: -0.156462585 | AM36: -0.01089918256 | AN36: -0.1309823678 | AO36: -0.05737704918 | AP36: -0.01209677419 | AQ36: -0.1046831956 | AR36: -0.1014492754 | AS36: -0.05035971223 | AT36: 0.003787878788 | AU36: 0.1311320755 | AV36: -0.08590492077 | AW36: 0.1195255474 | AX36: 0.01140994295 | AY36: 0.106365834 | AZ36: 0.03860160233 | BA36: -0.03646563815 | BB36: -0.08296943231
C37: GALICIA | D37: -0.09781659389 | E37: 0.02968460111 | F37: 0.01256281407 | G37: -0.1630630631 | H37: -0.1335914811 | I37: -0.2054054054 | J37: -0.09429280397 | K37: 0.08611410118 | L37: 0.0905027933 | M37: 0.01247165533 | N37: 0.1205479452 | O37: -0.009910802775 | P37: 0.09221311475 | Q37: 0.1366181411 | R37: -0.007334963325 | S37: -0.03103103103 | T37: -0.009380863039 | U37: -0.007881773399 | V37: -0.1120689655 | W37: 0.2231404959 | X37: -0.1354166667 | Y37: 0.03277060576 | Z37: 0.00693481276 | AA37: -0.07179054054 | AB37: 0.1445783133 | AC37: -0.02307692308 | AD37: 0.2438016529 | AE37: -0.0127388535 | AF37: -0.03732057416 | AG37: 0.1102362205 | AH37: -0.07530454042 | AI37: -0.1161290323 | AJ37: -0.1500994036 | AK37: -0.1542553191 | AL37: -0.1604790419 | AM37: 0.03441084463 | AN37: 0.03274853801 | AO37: -0.1016771488 | AP37: -0.0970042796 | AQ37: -0.06552419355 | AR37: -0.288788222 | AS37: -0.06078953742 | AT37: -0.09334708613 | AU37: 0.04835039818 | AV37: 0.04747693977 | AW37: 0.02771302771 | AX37: -0.04788306452 | AY37: 0.07173107464 | AZ37: -0.02988392196 | BA37: -0.1084521385 | BB37: -0.05768132496
C38: MADRID | D38: =+(H17-D17)/D17 -> -0.2327797441 | E38: =+(I17-E17)/E17 -> -0.003044654939 | F38: -0.04082612872 | G38: -0.0408719346 | H38: -0.1955287438 | I38: -0.02918221921 | J38: 0.03955933901 | K38: -0.0762987013 | L38: 0.1027790031 | M38: 0.02726319469 | N38: -0.03612716763 | O38: 0.1331282953 | P38: 0.0596 | Q38: -0.1282749234 | R38: -0.0219890055 | S38: -0.05350911206 | T38: -0.02000755002 | U38: -0.01327088212 | V38: 0.009708737864 | W38: 0.1782056534 | X38: -0.08936825886 | Y38: 0.03876582278 | Z38: 0.0774291498 | AA38: -0.0173852573 | AB38: 0.1065989848 | AC38: -0.01523229246 | AD38: 0.325974636 | AE38: 0.0559094126 | AF38: 0.0252293578 | AG38: 0.1156225831 | AH38: -0.2504427914 | AI38: -0.1350536193 | AJ38: -0.1909023117 | AK38: -0.08908145581 | AL38: -0.08648393195 | AM38: -0.1375435878 | AN38: 0.03870967742 | AO38: -0.1769406393 | AP38: -0.1805483704 | AQ38: 0.02425876011 | AR38: -0.01330967169 | AS38: -0.09343971631 | AT38: -0.07295130061 | AU38: 0.05685654008 | AV38: -0.04092224773 | AW38: 0.03819336039 | AX38: -0.003107457899 | AY38: 0.1069884364 | AZ38: -0.06767190481 | BA38: -0.1273382697 | BB38: -0.07547169811
C39: MURCIA | D39: -0.3714788732 | E39: -0.1138353765 | F39: 0.1830601093 | G39: 0.2658227848 | H39: 0.3837535014 | I39: -0.05533596838 | J39: -0.1893764434 | K39: 0.015 | L39: 0.05668016194 | M39: 0.1443514644 | N39: 0.1851851852 | O39: -0.1264367816 | P39: 0.009578544061 | Q39: -0.1992687386 | R39: -0.1033653846 | S39: 0.0977443609 | T39: 0.003795066414 | U39: 0.1073059361 | V39: 0.04021447721 | W39: 0.06506849315 | X39: -0.05671077505 | Y39: 0.1608247423 | Z39: 0.09020618557 | AA39: -0.09967845659 | AB39: 0.128256513 | AC39: -0.02131438721 | AD39: 0.1631205674 | AE39: 0.04642857143 | AF39: -0.1527531083 | AG39: 0.03629764065 | AH39: -0.1219512195 | AI39: -0.0614334471 | AJ39: 0.04821802935 | AK39: -0.03327495622 | AL39: -0.1273148148 | AM39: -0.007272727273 | AN39: -0.086 | AO39: -0.05072463768 | AP39: -0.06896551724 | AQ39: -0.04029304029 | AR39: 0.07658643326 | AS39: -0.04194037393 | AT39: 0.01898734177 | AU39: 0.04399585921 | AV39: -0.04709965295 | AW39: 0.05306971904 | AX39: 0.01037549407 | AY39: 0.07188264059 | AZ39: -0.07390510949 | BA39: -0.02709359606 | BB39: -0.06025316456
C40: NAVARRA | D40: -0.08896797153 | E40: 0.1504065041 | F40: 0.0395480226 | G40: -0.04743083004 | H40: -0.1015625 | I40: -0.183745583 | J40: -0.08695652174 | K40: -0.1078838174 | L40: 0.08260869565 | M40: 0.01298701299 | N40: -0.08928571429 | O40: 0.2093023256 | P40: -0.01606425703 | Q40: -0.1324786325 | R40: 0.06535947712 | S40: -0.1269230769 | T40: -0.04081632653 | U40: 0 | V40: 0.03680981595 | W40: 0.2378854626 | X40: -0.1872340426 | Y40: 0.3645320197 | Z40: 0.04142011834 | AA40: -0.1209964413 | AB40: 0.2251308901 | AC40: -0.03971119134 | AD40: -0.02840909091 | AE40: 0.1336032389 | AF40: 0.02564102564 | AG40: -0.1654135338 | AH40: 0.01169590643 | AI40: -0.2178571429 | AJ40: 0 | AK40: 0.2207207207 | AL40: -0.2138728324 | AM40: -0.01826484018 | AN40: 0.03333333333 | AO40: -0.1881918819 | AP40: 0.1323529412 | AQ40: -0.04186046512 | AR40: -0.04838709677 | AS40: 0.007314524556 | AT40: -0.1244813278 | AU40: 0.06161137441 | AV40: -0.06473214286 | AW40: 0.05966587112 | AX40: 0.003378378378 | AY40: 0.06734006734 | AZ40: -0.101997897 | BA40: 0.009367681499 | BB40: -0.03944315545
C41: PAIS VASCO | D41: -0.226071103 | E41: -0.0905027933 | F41: -0.1066666667 | G41: 0.1076294278 | H41: -0.1283863369 | I41: -0.05896805897 | J41: 0.1287313433 | K41: -0.06396063961 | L41: 0.08918918919 | M41: 0.03916449086 | N41: -0.1338842975 | O41: -0.03810775296 | P41: 0.004962779156 | Q41: -0.02763819095 | R41: 0.03244274809 | S41: 0.0587431694 | T41: -0.07777777778 | U41: -0.0503875969 | V41: -0.06469500924 | W41: 0.04 | X41: -0.08032128514 | Y41: 0.08571428571 | Z41: -0.02766798419 | AA41: 0.01240694789 | AB41: 0.1979621543 | AC41: -0.005012531328 | AD41: 0.1951219512 | AE41: 0.08333333333 | AF41: 0.05346294046 | AG41: 0.0516372796 | AH41: -0.04081632653 | AI41: -0.1255656109 | AJ41: -0.1107266436 | AK41: 0.05988023952 | AL41: -0.08510638298 | AM41: -0.006468305304 | AN41: 0.01945525292 | AO41: -0.07457627119 | AP41: -0.0523255814 | AQ41: -0.02473958333 | AR41: -0.06361323155 | AS41: -0.09440769693 | AT41: -0.04648074369 | AU41: -0.004874651811 | AV41: 0.01469559132 | AW41: -0.03655172414 | AX41: -0.0003579098067 | AY41: 0.1059792338 | AZ41: -0.01618646811 | BA41: -0.03257650543 | BB41: -0.03299319728
C42: LA RIOJA | D42: -0.4906832298 | E42: =+(I21-E21)/E21 -> 0.04580152672 | F42: 0.1413043478 | G42: -0.1374045802 | H42: 0.08536585366 | I42: -0.1751824818 | J42: -0.1238095238 | K42: -0.1681415929 | L42: 0.08988764045 | M42: -0.02654867257 | N42: 0.07608695652 | O42: 0.2553191489 | P42: 0.3298969072 | Q42: -0.009090909091 | R42: -0.2525252525 | S42: -0.03389830508 | T42: -0.04651162791 | U42: -0.1559633028 | V42: 0.06756756757 | W42: 0.1228070175 | X42: -0.2845528455 | Y42: 0.1086956522 | Z42: 0.01265822785 | AA42: 0.0078125 | AB42: 0.4318181818 | AC42: 0.1078431373 | AD42: 0.25 | AE42: 0.007751937984 | AF42: -0.1031746032 | AG42: 0.02654867257 | AH42: 0.03 | AI42: 0.1153846154 | AJ42: -0.1150442478 | AK42: 0.06896551724 | AL42: 0.08737864078 | AM42: -0.2275862069 | AN42: 0.17 | AO42: -0.2258064516 | AP42: -0.3482142857 | AQ42: 0.0625 | AR42: -0.03418803419 | AS42: -0.1514563107 | AT42: -0.1121281465 | AU42: 0.09278350515 | AV42: 0.004716981132 | AW42: -0.009389671362 | AX42: -0.05450236967 | AY42: 0.1754385965 | AZ42: 0.0170575693 | BA42: -0.0607966457 | BB42: -0.09598214286
C43: TOTAL | D43: -0.1837201277 | E43: =+(I22-E22)/E22 -> -0.01250819826 | F43: -0.02625749283 | G43: -0.09047550224 | H43: -0.08275643397 | I43: -0.1346838085 | J43: -0.04944797591 | K43: -0.01520207638 | L43: 0.05392636976 | M43: 0.05263157895 | N43: 0.00710967197 | O43: 0.02904475043 | P43: -0.0004919914721 | Q43: -0.05916666667 | R43: -0.006360522821 | S43: -0.04416684089 | T43: 0.004430102822 | U43: -0.001771479185 | V43: -0.03151378728 | W43: 0.1142341554 | X43: -0.07323713586 | Y43: 0.04020629991 | Z43: 0.06072051133 | AA43: -0.02100510404 | AB43: 0.1384253819 | AC43: 0.02633683425 | AD43: 0.1266776226 | AE43: 0.03965309805 | AF43: 0.01130264244 | AG43: 0.01875227261 | AH43: -0.07323447186 | AI43: -0.08587685038 | AJ43: -0.1303393723 | AK43: -0.03900673057 | AL43: -0.1042035543 | AM43: -0.06946935331 | AN43: 0.02593744499 | AO43: -0.09295909163 | AP43: -0.08162518302 | AQ43: -0.04194773539 | AR43: -0.0718984156 | AS43: -0.08441953047 | AT43: -0.07356486875 | AU43: 0.03709335478 | AV43: -0.02933795748 | AW43: 0.02454575823 | AX43: -0.00300534441 | AY43: 0.07807590041 | AZ43: -0.03173305197 | BA43: -0.08479309124 | BB43: -0.04710592508

Sheet Nulidades TSJ
K1: Inicio
B2: Nulidades matrimoniales clasificadas por Tribunal Superior de Justicia
D4: 07-T1 | E4: 07-T2 | F4: 07-T3 | G4: 07-T4 | H4: 08-T1 | I4: 08-T2 | J4: 08-T3 | K4: 08-T4 | L4: 09-T1 | M4: 09-T2 | N4: 09-T3 | O4: 09-T4 | P4: 10-T1 | Q4: 10-T2 | R4: 10-T3 | S4: 10-T4 | T4: 11-T1 | U4: 11-T2 | V4: 11-T3 | W4: 11-T4 | X4: 12-T1 | Y4: 12-T2 | Z4: 12-T3 | AA4: 12-T4 | AB4: 13-T1 | AC4: 13-T2 | AD4: 13-T3 | AE4: 13-T4 | AF4: 14-T1 | AG4: 14-T2 | AH4: 14-T3 | AI4: 14-T4 | AJ4: 15-T1 | AK4: 15-T2 | AL4: 15-T3 | AM4: 15-T4 | AN4: 16-T1 | AO4: 16-T2 | AP4: 16-T3 | AQ4: 16-T4 | AR4: 17-T1 | AS4: 17-T2 | AT4: 17-T3 | AU4: 17-T4 | AV4: 18-T1 | AW4: Total 2007 | AX4: Total 2008 | AY4: Total 2009 | AZ4: Total 2010 | BA4: Total 2011 | BB4: Total 2012 | BC4: Total 2013 | BD4: Total 2014 | BE4: Total 2015 | BF4: Total 2016 | BG4: Total 2017
C5: ANDALUCIA | D5: 3 | E5: 9 | F5: 13 | G5: 13 | H5: 10 | I5: 8 | J5: 2 | K5: 5 | L5: 13 | M5: 15 | N5: 6 | O5: 9 | P5: 7 | Q5: 7 | R5: 8 | S5: 12 | T5: 17 | U5: 19 | V5: 8 | W5: 8 | X5: 19 | Y5: 9 | Z5: 8 | AA5: 26 | AB5: 11 | AC5: 10 | AD5: 7 | AE5: 18 | AF5: 12 | AG5: 8 | AH5: 3 | AI5: 4 | AJ5: 4 | AK5: 11 | AL5: 4 | AM5: 8 | AN5: 5 | AO5: 5 | AP5: 5 | AQ5: 7 | AR5: 9 | AS5: 3 | AT5: 9 | AU5: 7 | AV5: 11 | AW5: =+D5+E5+F5+G5 -> 38 | AX5: =+H5+I5+J5+K5 -> 25 | AY5: =+L5+M5+N5+O5 -> 43 | AZ5: =+P5+Q5+R5+S5 -> 34 | BA5: =+T5+U5+V5+W5 -> 52 | BB5: =+X5+Y5+Z5+AA5 -> 62 | BC5: =+AB5+AC5+AD5+AE5 -> 46 | BD5: =+AF5+AG5+AH5+AI5 -> 27 | BE5: =+AJ5+AK5+AL5+AM5 -> 27 | BF5: =+AN5+AO5+AP5+AQ5 -> 22 | BG5: =+AR5+AS5+AT5+AU5 -> 28
C6: ARAGON | D6: 1 | E6: 1 | F6: 0 | G6: 1 | H6: 0 | I6: 0 | J6: 0 | K6: 0 | L6: 0 | M6: 1 | N6: 0 | O6: 0 | P6: 2 | Q6: 2 | R6: 0 | S6: 2 | T6: 3 | U6: 2 | V6: 0 | W6: 0 | X6: 3 | Y6: 0 | Z6: 1 | AA6: 0 | AB6: 0 | AC6: 0 | AD6: 2 | AE6: 0 | AF6: 0 | AG6: 1 | AH6: 1 | AI6: 3 | AJ6: 1 | AK6: 1 | AL6: 0 | AM6: 1 | AN6: 2 | AO6: 0 | AP6: 0 | AQ6: 2 | AR6: 0 | AS6: 1 | AT6: 0 | AU6: 2 | AV6: 1 | AW6: 3 | AX6: 0 | AY6: 1 | AZ6: 6 | BA6: 5 | BB6: 4 | BC6: 2 | BD6: 5 | BE6: 3 | BF6: 4 | BG6: 3
C7: ASTURIAS | D7: 0 | E7: 3 | F7: 0 | G7: 3 | H7: 0 | I7: 4 | J7: 0 | K7: 0 | L7: 2 | M7: 2 | N7: 2 | O7: 1 | P7: 1 | Q7: 1 | R7: 1 | S7: 0 | T7: 0 | U7: 1 | V7: 1 | W7: 1 | X7: 1 | Y7: 0 | Z7: 0 | AA7: 2 | AB7: 0 | AC7: 3 | AD7: 0 | AE7: 1 | AF7: 0 | AG7: 2 | AH7: 0 | AI7: 0 | AJ7: 0 | AK7: 0 | AL7: 0 | AM7: 1 | AN7: 0 | AO7: 2 | AP7: 1 | AQ7: 1 | AR7: 1 | AS7: 0 | AT7: 0 | AU7: 0 | AV7: 1 | AW7: 6 | AX7: 4 | AY7: 7 | AZ7: 3 | BA7: 3 | BB7: 3 | BC7: 4 | BD7: 2 | BE7: 1 | BF7: 4 | BG7: 1
C8: ILLES BALEARS | D8: 1 | E8: 1 | F8: 2 | G8: 1 | H8: 1 | I8: 2 | J8: 0 | K8: 0 | L8: 2 | M8: 1 | N8: 0 | O8: 0 | P8: 2 | Q8: 2 | R8: 0 | S8: 0 | T8: 0 | U8: 2 | V8: 0 | W8: 1 | X8: 1 | Y8: 0 | Z8: 0 | AA8: 1 | AB8: 0 | AC8: 1 | AD8: 1 | AE8: 0 | AF8: 0 | AG8: 0 | AH8: 0 | AI8: 2 | AJ8: 1 | AK8: 1 | AL8: 0 | AM8: 1 | AN8: 0 | AO8: 1 | AP8: 0 | AQ8: 0 | AR8: 1 | AS8: 0 | AT8: 0 | AU8: 1 | AV8: 3 | AW8: 5 | AX8: 3 | AY8: 3 | AZ8: 4 | BA8: 3 | BB8: 2 | BC8: 2 | BD8: 2 | BE8: 3 | BF8: 1 | BG8: 2
C9: CANARIAS | D9: 0 | E9: 5 | F9: 4 | G9: 1 | H9: 1 | I9: 5 | J9: 3 | K9: 3 | L9: 1 | M9: 2 | N9: 2 | O9: 0 | P9: 1 | Q9: 1 | R9: 2 | S9: 6 | T9: 1 | U9: 2 | V9: 1 | W9: 2 | X9: 1 | Y9: 1 | Z9: 0 | AA9: 0 | AB9: 1 | AC9: 1 | AD9: 1 | AE9: 1 | AF9: 1 | AG9: 0 | AH9: 3 | AI9: 0 | AJ9: 1 | AK9: 1 | AL9: 0 | AM9: 0 | AN9: 0 | AO9: 0 | AP9: 1 | AQ9: 4 | AR9: 2 | AS9: 2 | AT9: 0 | AU9: 2 | AV9: 0 | AW9: 10 | AX9: 12 | AY9: 5 | AZ9: 10 | BA9: 6 | BB9: 2 | BC9: 4 | BD9: 4 | BE9: 2 | BF9: 5 | BG9: 6
C10: CANTABRIA | D10: 0 | E10: 0 | F10: 0 | G10: 0 | H10: 0 | I10: 1 | J10: 1 | K10: 1 | L10: 0 | M10: 0 | N10: 0 | O10: 1 | P10: 0 | Q10: 0 | R10: 1 | S10: 0 | T10: 0 | U10: 0 | V10: 0 | W10: 0 | X10: 0 | Y10: 0 | Z10: 1 | AA10: 0 | AB10: 1 | AC10: 0 | AD10: 0 | AE10: 0 | AF10: 0 | AG10: 0 | AH10: 0 | AI10: 0 | AJ10: 0 | AK10: 1 | AL10: 1 | AM10: 0 | AN10: 0 | AO10: 0 | AP10: 0 | AQ10: 2 | AR10: 0 | AS10: 1 | AT10: 0 | AU10: 0 | AV10: 0 | AW10: 0 | AX10: 3 | AY10: 1 | AZ10: 1 | BA10: 0 | BB10: 1 | BC10: 1 | BD10: 0 | BE10: 2 | BF10: 2 | BG10: 1
C11: CASTILLA Y LEON | D11: 2 | E11: 3 | F11: 0 | G11: 0 | H11: 3 | I11: 2 | J11: 2 | K11: 2 | L11: 2 | M11: 1 | N11: 2 | O11: 2 | P11: 0 | Q11: 2 | R11: 2 | S11: 1 | T11: 0 | U11: 1 | V11: 0 | W11: 1 | X11: 1 | Y11: 1 | Z11: 0 | AA11: 1 | AB11: 1 | AC11: 3 | AD11: 2 | AE11: 1 | AF11: 2 | AG11: 1 | AH11: 1 | AI11: 3 | AJ11: 1 | AK11: 1 | AL11: 2 | AM11: 3 | AN11: 0 | AO11: 3 | AP11: 3 | AQ11: 2 | AR11: 2 | AS11: 0 | AT11: 1 | AU11: 0 | AV11: 2 | AW11: 5 | AX11: 9 | AY11: 7 | AZ11: 5 | BA11: 2 | BB11: 3 | BC11: 7 | BD11: 7 | BE11: 7 | BF11: 8 | BG11: 3
C12: CASTILLA LA MANCHA | D12: 1 | E12: 1 | F12: 0 | G12: 0 | H12: 1 | I12: 1 | J12: 1 | K12: 1 | L12: 1 | M12: 1 | N12: 2 | O12: 3 | P12: 0 | Q12: 0 | R12: 1 | S12: 1 | T12: 0 | U12: 1 | V12: 0 | W12: 1 | X12: 1 | Y12: 1 | Z12: 0 | AA12: 2 | AB12: 2 | AC12: 2 | AD12: 2 | AE12: 3 | AF12: 2 | AG12: 1 | AH12: 0 | AI12: 1 | AJ12: 4 | AK12: 2 | AL12: 3 | AM12: 1 | AN12: 1 | AO12: 2 | AP12: 0 | AQ12: 3 | AR12: 2 | AS12: 1 | AT12: 3 | AU12: 2 | AV12: 0 | AW12: 2 | AX12: 4 | AY12: 7 | AZ12: 2 | BA12: 2 | BB12: 4 | BC12: 9 | BD12: 4 | BE12: 10 | BF12: 6 | BG12: 8
C13: CATALUÑA | D13: 11 | E13: 10 | F13: 3 | G13: 6 | H13: 4 | I13: 5 | J13: 8 | K13: 9 | L13: 4 | M13: 3 | N13: 3 | O13: 11 | P13: 3 | Q13: 10 | R13: 1 | S13: 10 | T13: 12 | U13: 9 | V13: 5 | W13: 6 | X13: 7 | Y13: 7 | Z13: 6 | AA13: 7 | AB13: 13 | AC13: 10 | AD13: 2 | AE13: 12 | AF13: 22 | AG13: 30 | AH13: 16 | AI13: 25 | AJ13: 24 | AK13: 18 | AL13: 30 | AM13: 30 | AN13: 16 | AO13: 17 | AP13: 10 | AQ13: 8 | AR13: 8 | AS13: 12 | AT13: 9 | AU13: 4 | AV13: 11 | AW13: 30 | AX13: 26 | AY13: 21 | AZ13: 24 | BA13: 32 | BB13: 27 | BC13: 37 | BD13: 93 | BE13: 102 | BF13: 51 | BG13: 33
C14: COMUNITAT VALENCIANA | D14: 6 | E14: 9 | F14: 4 | G14: 11 | H14: 5 | I14: 6 | J14: 7 | K14: 13 | L14: 7 | M14: 10 | N14: 8 | O14: 2 | P14: 12 | Q14: 11 | R14: 3 | S14: 2 | T14: 7 | U14: 3 | V14: 3 | W14: 3 | X14: 5 | Y14: 8 | Z14: 5 | AA14: 7 | AB14: 8 | AC14: 4 | AD14: 4 | AE14: 8 | AF14: 3 | AG14: 1 | AH14: 3 | AI14: 3 | AJ14: 8 | AK14: 3 | AL14: 4 | AM14: 11 | AN14: 3 | AO14: 9 | AP14: 9 | AQ14: 4 | AR14: 8 | AS14: 6 | AT14: 7 | AU14: 7 | AV14: 4 | AW14: 30 | AX14: 31 | AY14: 27 | AZ14: 28 | BA14: 16 | BB14: 25 | BC14: 24 | BD14: 10 | BE14: 26 | BF14: 25 | BG14: 28
C15: EXTREMADURA | D15: 0 | E15: 1 | F15: 0 | G15: 0 | H15: 0 | I15: 3 | J15: 0 | K15: 1 | L15: 1 | M15: 0 | N15: 0 | O15: 0 | P15: 2 | Q15: 1 | R15: 0 | S15: 2 | T15: 0 | U15: 0 | V15: 0 | W15: 0 | X15: 0 | Y15: 0 | Z15: 0 | AA15: 1 | AB15: 0 | AC15: 0 | AD15: 0 | AE15: 0 | AF15: 1 | AG15: 0 | AH15: 1 | AI15: 1 | AJ15: 2 | AK15: 1 | AL15: 0 | AM15: 0 | AN15: 2 | AO15: 0 | AP15: 0 | AQ15: 0 | AR15: 0 | AS15: 1 | AT15: 0 | AU15: 0 | AV15: 0 | AW15: 1 | AX15: 4 | AY15: 1 | AZ15: 5 | BA15: 0 | BB15: 1 | BC15: 0 | BD15: 3 | BE15: 3 | BF15: 2 | BG15: 1
C16: GALICIA | D16: 8 | E16: 1 | F16: 3 | G16: 3 | H16: 2 | I16: 4 | J16: 2 | K16: 1 | L16: 1 | M16: 1 | N16: 0 | O16: 1 | P16: 2 | Q16: 6 | R16: 0 | S16: 3 | T16: 3 | U16: 6 | V16: 3 | W16: 9 | X16: 5 | Y16: 4 | Z16: 1 | AA16: 4 | AB16: 3 | AC16: 3 | AD16: 3 | AE16: 1 | AF16: 1 | AG16: 1 | AH16: 0 | AI16: 0 | AJ16: 2 | AK16: 3 | AL16: 0 | AM16: 2 | AN16: 0 | AO16: 0 | AP16: 1 | AQ16: 3 | AR16: 0 | AS16: 2 | AT16: 1 | AU16: 0 | AV16: 0 | AW16: 15 | AX16: 9 | AY16: 3 | AZ16: 11 | BA16: 21 | BB16: 14 | BC16: 10 | BD16: 2 | BE16: 7 | BF16: 4 | BG16: 3
C17: MADRID | D17: 7 | E17: 10 | F17: 7 | G17: 7 | H17: 4 | I17: 4 | J17: 8 | K17: 5 | L17: 6 | M17: 2 | N17: 4 | O17: 7 | P17: 9 | Q17: 9 | R17: 2 | S17: 4 | T17: 3 | U17: 5 | V17: 6 | W17: 7 | X17: 1 | Y17: 1 | Z17: 3 | AA17: 4 | AB17: 4 | AC17: 5 | AD17: 7 | AE17: 1 | AF17: 8 | AG17: 2 | AH17: 7 | AI17: 13 | AJ17: 5 | AK17: 3 | AL17: 3 | AM17: 4 | AN17: 5 | AO17: 5 | AP17: 3 | AQ17: 5 | AR17: 3 | AS17: 4 | AT17: 4 | AU17: 3 | AV17: 6 | AW17: 31 | AX17: 21 | AY17: 19 | AZ17: 24 | BA17: 21 | BB17: 9 | BC17: 17 | BD17: 30 | BE17: 15 | BF17: 18 | BG17: 14
C18: MURCIA | D18: 1 | E18: 1 | F18: 1 | G18: 2 | H18: 0 | I18: 1 | J18: 0 | K18: 0 | L18: 0 | M18: 1 | N18: 0 | O18: 2 | P18: 1 | Q18: 0 | R18: 0 | S18: 0 | T18: 0 | U18: 0 | V18: 0 | W18: 0 | X18: 0 | Y18: 1 | Z18: 0 | AA18: 2 | AB18: 1 | AC18: 0 | AD18: 2 | AE18: 0 | AF18: 0 | AG18: 0 | AH18: 1 | AI18: 0 | AJ18: 0 | AK18: 0 | AL18: 0 | AM18: 0 | AN18: 1 | AO18: 1 | AP18: 0 | AQ18: 0 | AR18: 1 | AS18: 0 | AT18: 0 | AU18: 0 | AV18: 0 | AW18: 5 | AX18: 1 | AY18: 3 | AZ18: 1 | BA18: 0 | BB18: 3 | BC18: 3 | BD18: 1 | BE18: 0 | BF18: 2 | BG18: 1
C19: NAVARRA | D19: 0 | E19: 0 | F19: 0 | G19: 3 | H19: 1 | I19: 5 | J19: 7 | K19: 3 | L19: 0 | M19: 8 | N19: 0 | O19: 1 | P19: 0 | Q19: 1 | R19: 0 | S19: 2 | T19: 0 | U19: 1 | V19: 0 | W19: 0 | X19: 0 | Y19: 1 | Z19: 1 | AA19: 0 | AB19: 0 | AC19: 0 | AD19: 2 | AE19: 1 | AF19: 1 | AG19: 0 | AH19: 0 | AI19: 1 | AJ19: 2 | AK19: 1 | AL19: 0 | AM19: 0 | AN19: 0 | AO19: 1 | AP19: 0 | AQ19: 0 | AR19: 0 | AS19: 0 | AT19: 0 | AU19: 0 | AV19: 0 | AW19: 3 | AX19: 16 | AY19: 9 | AZ19: 3 | BA19: 1 | BB19: 2 | BC19: 3 | BD19: 2 | BE19: 3 | BF19: 1 | BG19: 0
C20: PAIS VASCO | D20: 3 | E20: 0 | F20: 0 | G20: 1 | H20: 0 | I20: 1 | J20: 0 | K20: 12 | L20: 1 | M20: 3 | N20: 0 | O20: 1 | P20: 2 | Q20: 0 | R20: 2 | S20: 0 | T20: 1 | U20: 7 | V20: 2 | W20: 0 | X20: 0 | Y20: 1 | Z20: 1 | AA20: 0 | AB20: 2 | AC20: 3 | AD20: 1 | AE20: 0 | AF20: 2 | AG20: 4 | AH20: 1 | AI20: 1 | AJ20: 1 | AK20: 1 | AL20: 0 | AM20: 1 | AN20: 0 | AO20: 0 | AP20: 1 | AQ20: 1 | AR20: 2 | AS20: 2 | AT20: 0 | AU20: 1 | AV20: 1 | AW20: 4 | AX20: 13 | AY20: 5 | AZ20: 4 | BA20: 10 | BB20: 2 | BC20: 6 | BD20: 8 | BE20: 3 | BF20: 2 | BG20: 5
C21: LA RIOJA | D21: 0 | E21: 0 | F21: 0 | G21: 1 | H21: 2 | I21: 4 | J21: 1 | K21: 3 | L21: 0 | M21: 1 | N21: 0 | O21: 1 | P21: 0 | Q21: 0 | R21: 0 | S21: 1 | T21: 0 | U21: 1 | V21: 0 | W21: 1 | X21: 0 | Y21: 0 | Z21: 0 | AA21: 0 | AB21: 2 | AC21: 1 | AD21: 0 | AE21: 0 | AF21: 0 | AG21: 2 | AH21: 0 | AI21: 0 | AJ21: 0 | AK21: 2 | AL21: 0 | AM21: 0 | AN21: 0 | AO21: 0 | AP21: 0 | AQ21: 2 | AR21: 2 | AS21: 1 | AT21: 1 | AU21: 1 | AV21: 1 | AW21: 1 | AX21: 10 | AY21: 2 | AZ21: 1 | BA21: 2 | BB21: 0 | BC21: 3 | BD21: 2 | BE21: 2 | BF21: 2 | BG21: 5
C22: TOTAL | D22: =SUM(D5:D21) -> 44 | E22: =SUM(E5:E21) -> 55 | F22: =SUM(F5:F21) -> 37 | G22: 53 | H22: 34 | I22: 56 | J22: 42 | K22: 59 | L22: 41 | M22: 52 | N22: 29 | O22: 42 | P22: 44 | Q22: 53 | R22: 23 | S22: 46 | T22: =SUM(T5:T21) -> 47 | U22: 60 | V22: 29 | W22: 40 | X22: =SUM(X5:X21) -> 45 | Y22: 35 | Z22: =SUM(Z5:Z21) -> 27 | AA22: 57 | AB22: 49 | AC22: 46 | AD22: 36 | AE22: 47 | AF22: =SUM(AF5:AF21) -> 55 | AG22: 53 | AH22: 37 | AI22: 57 | AJ22: 56 | AK22: =SUM(AK5:AK21) -> 50 | AL22: 47 | AM22: 63 | AN22: 35 | AO22: 46 | AP22: 34 | AQ22: =SUM(AQ5:AQ21) -> 44 | AR22: 41 | AS22: 36 | AT22: 35 | AU22: 30 | AV22: 41 | AW22: 189 | AX22: 191 | AY22: 164 | AZ22: 166 | BA22: 176 | BB22: 164 | BC22: 178 | BD22: 202 | BE22: 216 | BF22: 159 | BG22: 142
D25: Evolución 08-T1 | E25: Evolución 08-T2 | F25: Evolución 08-T3 | G25: Evolución 08-T4 | H25: Evolución 09-T1 | I25: Evolución 09-T2 | J25: Evolución 09-T3 | K25: Evolución 09-T4 | L25: Evolución 10-T1 | M25: Evolución 10-T2 | N25: Evolución 10-T3 | O25: Evolución 10-T4 | P25: Evolución 11-T1 | Q25: Evolución 11-T2 | R25: Evolución 11-T3 | S25: Evolución 11-T4 | T25: Evolución 12-T1 | U25: Evolución 12-T2 | V25: Evolución 12-T3 | W25: Evolución 12-T4 | X25: Evolución 13-T1 | Y25: Evolución 13-T2 | Z25: Evolución 13-T3 | AA25: Evolución 13-T4 | AB25: Evolución 14-T1 | AC25: Evolución 14-T2 | AD25: Evolución 14-T3 | AE25: Evolución 14-T4 | AF25: Evolución 15-T1 | AG25: Evolución 15-T2 | AH25: Evolución 15-T3 | AI25: Evolución 15-T4 | AJ25: Evolución 16-T1 | AK25: Evolución 16-T2 | AL25: Evolución 16-T3 | AM25: Evolución 16-T4 | AN25: Evolución 17-T1 | AO25: Evolución 17-T2 | AP25: Evolución 17-T3 | AQ25: Evolución 17-T4 | AR25: Evolución 18-T1 | AS25: Evolución 2007-2008 | AT25: Evolución 2008-2009 | AU25: Evolución 2009-2010 | AV25: Evolución 2010-2011 | AW25: Evolución 2011-2012 | AX25: Evolución 2012-2013 | AY25: Evolución 2013-2014 | AZ25: Evolución 2014-2015 | BA25: Evolución 2015-2016 | BB25: Evolución 2016-2017
A26: Andalucía | C26: ANDALUCIA | D26: =+IF(D5>0,(H5-D5)/D5,"-") -> 2.333333333 | E26: =+IF(E5>0,(I5-E5)/E5,"-") -> -0.1111111111 | F26: =+IF(F5>0,(J5-F5)/F5,"-") -> -0.8461538462 | G26: =+IF(G5>0,(K5-G5)/G5,"-") -> -0.6153846154 | H26: =+IF(H5>0,(L5-H5)/H5,"-") -> 0.3 | I26: =+IF(I5>0,(M5-I5)/I5,"-") -> 0.875 | J26: =+IF(J5>0,(N5-J5)/J5,"-") -> 2 | K26: =+IF(K5>0,(O5-K5)/K5,"-") -> 0.8 | L26: =+IF(L5>0,(P5-L5)/L5,"-") -> -0.4615384615 | M26: =+IF(M5>0,(Q5-M5)/M5,"-") -> -0.5333333333 | N26: 0.3333333333 | O26: 0.3333333333 | P26: 1.428571429 | Q26: 1.714285714 | R26: 0 | S26: -0.3333333333 | T26: 0.1176470588 | U26: -0.5263157895 | V26: 0 | W26: 2.25 | X26: -0.4210526316 | Y26: 0.1111111111 | Z26: -0.125 | AA26: -0.3076923077 | AB26: 0.09090909091 | AC26: =+IF(AC5>0,(AG5-AC5)/AC5,"-") -> -0.2 | AD26: -0.5714285714 | AE26: -0.7777777778 | AF26: =+IF(AF5>0,(AJ5-AF5)/AF5,"-") -> -0.6666666667 | AG26: 0.375 | AH26: 0.3333333333 | AI26: 1 | AJ26: 0.25 | AK26: -0.5454545455 | AL26: 0.25 | AM26: -0.125 | AN26: 0.8 | AO26: -0.4 | AP26: 0.8 | AQ26: 0 | AR26: 0.2222222222 | AS26: =+IF(AW5>0,(AX5-AW5)/AW5,"-") -> -0.3421052632 | AT26: 0.72 | AU26: -0.2093023256 | AV26: 0.5294117647 | AW26: 0.1923076923 | AX26: -0.2580645161 | AY26: -0.4130434783 | AZ26: 0 | BA26: -0.1851851852 | BB26: 0.2727272727
A27: Aragón | C27: ARAGON | D27: -1 | E27: -1 | F27: - | G27: -1 | H27: - | I27: - | J27: - | K27: - | L27: - | M27: 1 | N27: - | O27: - | P27: 0.5 | Q27: 0 | R27: - | S27: -1 | T27: 0 | U27: -1 | V27: - | W27: - | X27: -1 | Y27: - | Z27: 1 | AA27: - | AB27: - | AC27: - | AD27: -0.5 | AE27: - | AF27: - | AG27: =+IF(AG6>0,(AK6-AG6)/AG6,"-") -> 0 | AH27: =+IF(AH6>0,(AL6-AH6)/AH6,"-") -> -1 | AI27: =+IF(AI6>0,(AM6-AI6)/AI6,"-") -> -0.6666666667 | AJ27: =+IF(AJ6>0,(AN6-AJ6)/AJ6,"-") -> 1 | AK27: =+IF(AK6>0,(AO6-AK6)/AK6,"-") -> -1 | AL27: - | AM27: 1 | AN27: -1 | AO27: - | AP27: - | AQ27: 0 | AR27: - | AS27: =+IF(AW6>0,(AX6-AW6)/AW6,"-") -> -1 | AT27: =+IF(AX6>0,(AY6-AX6)/AX6,"-") -> - | AU27: =+IF(AY6>0,(AZ6-AY6)/AY6,"-") -> 5 | AV27: =+IF(AZ6>0,(BA6-AZ6)/AZ6,"-") -> -0.1666666667 | AW27: =+IF(BA6>0,(BB6-BA6)/BA6,"-") -> -0.2 | AX27: =+IF(BB6>0,(BC6-BB6)/BB6,"-") -> -0.5 | AY27: =+IF(BC6>0,(BD6-BC6)/BC6,"-") -> 1.5 | AZ27: =+IF(BD6>0,(BE6-BD6)/BD6,"-") -> -0.4 | BA27: 0.3333333333 | BB27: -0.25
A28: Asturias | C28: ASTURIAS | D28: - | E28: 0.3333333333 | F28: - | G28: -1 | H28: - | I28: -0.5 | J28: - | K28: - | L28: -0.5 | M28: -0.5 | N28: -0.5 | O28: -1 | P28: -1 | Q28: 0 | R28: 0 | S28: - | T28: - | U28: -1 | V28: -1 | W28: 1 | X28: -1 | Y28: - | Z28: - | AA28: -0.5 | AB28: - | AC28: -0.3333333333 | AD28: - | AE28: -1 | AF28: - | AG28: -1 | AH28: - | AI28: - | AJ28: - | AK28: - | AL28: - | AM28: 0 | AN28: - | AO28: -1 | AP28: -1 | AQ28: -1 | AR28: 0 | AS28: -0.3333333333 | AT28: 0.75 | AU28: -0.5714285714 | AV28: 0 | AW28: 0 | AX28: 0.3333333333 | AY28: -0.5 | AZ28: -0.5 | BA28: 3 | BB28: -0.75
A29: Baleares | C29: ILLES BALEARS | D29: 0 | E29: 1 | F29: -1 | G29: -1 | H29: 1 | I29: -0.5 | J29: - | K29: - | L29: 0 | M29: 1 | N29: - | O29: - | P29: -1 | Q29: 0 | R29: - | S29: - | T29: - | U29: -1 | V29: - | W29: 0 | X29: -1 | Y29: - | Z29: - | AA29: -1 | AB29: - | AC29: -1 | AD29: -1 | AE29: - | AF29: - | AG29: - | AH29: - | AI29: -0.5 | AJ29: -1 | AK29: 0 | AL29: - | AM29: -1 | AN29: - | AO29: -1 | AP29: - | AQ29: - | AR29: 2 | AS29: -0.4 | AT29: 0 | AU29: 0.3333333333 | AV29: -0.25 | AW29: -0.3333333333 | AX29: 0 | AY29: 0 | AZ29: 0.5 | BA29: -0.6666666667 | BB29: 1
A30: Canarias | C30: CANARIAS | D30: - | E30: 0 | F30: -0.25 | G30: 2 | H30: 0 | I30: -0.6 | J30: -0.3333333333 | K30: -1 | L30: 0 | M30: -0.5 | N30: 0 | O30: - | P30: 0 | Q30: 1 | R30: -0.5 | S30: -0.6666666667 | T30: 0 | U30: -0.5 | V30: -1 | W30: -1 | X30: 0 | Y30: 0 | Z30: - | AA30: - | AB30: 0 | AC30: -1 | AD30: 2 | AE30: -1 | AF30: 0 | AG30: - | AH30: -1 | AI30: - | AJ30: -1 | AK30: -1 | AL30: - | AM30: - | AN30: - | AO30: - | AP30: -1 | AQ30: -0.5 | AR30: -1 | AS30: 0.2 | AT30: -0.5833333333 | AU30: 1 | AV30: -0.4 | AW30: -0.6666666667 | AX30: 1 | AY30: 0 | AZ30: -0.5 | BA30: 1.5 | BB30: 0.2
A31: Cantabria | C31: CANTABRIA | D31: - | E31: - | F31: - | G31: - | H31: - | I31: -1 | J31: -1 | K31: 0 | L31: - | M31: - | N31: - | O31: -1 | P31: - | Q31: - | R31: -1 | S31: - | T31: - | U31: - | V31: - | W31: - | X31: - | Y31: - | Z31: -1 | AA31: - | AB31: -1 | AC31: - | AD31: - | AE31: - | AF31: - | AG31: - | AH31: - | AI31: - | AJ31: - | AK31: -1 | AL31: -1 | AM31: - | AN31: - | AO31: - | AP31: - | AQ31: -1 | AR31: - | AS31: - | AT31: -0.6666666667 | AU31: 0 | AV31: -1 | AW31: - | AX31: 0 | AY31: -1 | AZ31: - | BA31: 0 | BB31: -0.5
A32: Castilla y León | C32: CASTILLA Y LEON | D32: 0.5 | E32: -0.3333333333 | F32: - | G32: - | H32: -0.3333333333 | I32: -0.5 | J32: 0 | K32: 0 | L32: -1 | M32: 1 | N32: 0 | O32: -0.5 | P32: - | Q32: -0.5 | R32: -1 | S32: 0 | T32: - | U32: 0 | V32: - | W32: 0 | X32: 0 | Y32: 2 | Z32: - | AA32: 0 | AB32: 1 | AC32: -0.6666666667 | AD32: -0.5 | AE32: 2 | AF32: -0.5 | AG32: 0 | AH32: 1 | AI32: 0 | AJ32: -1 | AK32: 2 | AL32: 0.5 | AM32: -0.3333333333 | AN32: - | AO32: -1 | AP32: -0.6666666667 | AQ32: -1 | AR32: 0 | AS32: 0.8 | AT32: -0.2222222222 | AU32: -0.2857142857 | AV32: -0.6 | AW32: 0.5 | AX32: 1.333333333 | AY32: 0 | AZ32: 0 | BA32: 0.1428571429 | BB32: -0.625
A33: Castilla-La Mancha | C33: CASTILLA LA MANCHA | D33: 0 | E33: 0 | F33: - | G33: - | H33: 0 | I33: 0 | J33: 1 | K33: 2 | L33: -1 | M33: -1 | N33: -0.5 | O33: -0.6666666667 | P33: - | Q33: - | R33: -1 | S33: 0 | T33: - | U33: 0 | V33: - | W33: 1 | X33: 1 | Y33: 1 | Z33: - | AA33: 0.5 | AB33: 0 | AC33: -0.5 | AD33: -1 | AE33: -0.6666666667 | AF33: 1 | AG33: 1 | AH33: - | AI33: 0 | AJ33: -0.75 | AK33: 0 | AL33: -1 | AM33: 2 | AN33: 1 | AO33: -0.5 | AP33: - | AQ33: -0.3333333333 | AR33: -1 | AS33: 1 | AT33: 0.75 | AU33: -0.7142857143 | AV33: 0 | AW33: 1 | AX33: 1.25 | AY33: -0.5555555556 | AZ33: 1.5 | BA33: -0.4 | BB33: 0.3333333333
A34: Cataluña | C34: CATALUÑA | D34: -0.6363636364 | E34: -0.5 | F34: 1.666666667 | G34: 0.5 | H34: 0 | I34: -0.4 | J34: -0.625 | K34: 0.2222222222 | L34: -0.25 | M34: 2.333333333 | N34: -0.6666666667 | O34: -0.09090909091 | P34: 3 | Q34: -0.1 | R34: 4 | S34: -0.4 | T34: -0.4166666667 | U34: -0.2222222222 | V34: 0.2 | W34: 0.1666666667 | X34: 0.8571428571 | Y34: 0.4285714286 | Z34: -0.6666666667 | AA34: 0.7142857143 | AB34: 0.6923076923 | AC34: 2 | AD34: 7 | AE34: 1.083333333 | AF34: 0.09090909091 | AG34: -0.4 | AH34: 0.875 | AI34: 0.2 | AJ34: -0.3333333333 | AK34: -0.05555555556 | AL34: -0.6666666667 | AM34: -0.7333333333 | AN34: -0.5 | AO34: -0.2941176471 | AP34: -0.1 | AQ34: -0.5 | AR34: 0.375 | AS34: -0.1333333333 | AT34: -0.1923076923 | AU34: 0.1428571429 | AV34: 0.3333333333 | AW34: -0.15625 | AX34: 0.3703703704 | AY34: 1.513513514 | AZ34: 0.09677419355 | BA34: -0.5 | BB34: -0.3529411765
A35: Valencia | C35: COMUNITAT VALENCIANA | D35: -0.1666666667 | E35: -0.3333333333 | F35: 0.75 | G35: 0.1818181818 | H35: 0.4 | I35: 0.6666666667 | J35: 0.1428571429 | K35: -0.8461538462 | L35: 0.7142857143 | M35: 0.1 | N35: -0.625 | O35: 0 | P35: -0.4166666667 | Q35: -0.7272727273 | R35: 0 | S35: 0.5 | T35: -0.2857142857 | U35: 1.666666667 | V35: 0.6666666667 | W35: 1.333333333 | X35: 0.6 | Y35: -0.5 | Z35: -0.2 | AA35: 0.1428571429 | AB35: -0.625 | AC35: -0.75 | AD35: -0.25 | AE35: -0.625 | AF35: 1.666666667 | AG35: 2 | AH35: 0.3333333333 | AI35: 2.666666667 | AJ35: -0.625 | AK35: 2 | AL35: 1.25 | AM35: -0.6363636364 | AN35: 1.666666667 | AO35: -0.3333333333 | AP35: -0.2222222222 | AQ35: 0.75 | AR35: -0.5 | AS35: 0.03333333333 | AT35: -0.1290322581 | AU35: 0.03703703704 | AV35: -0.4285714286 | AW35: 0.5625 | AX35: -0.04 | AY35: -0.5833333333 | AZ35: 1.6 | BA35: -0.03846153846 | BB35: 0.12
A36: Extremadura | C36: EXTREMADURA | D36: - | E36: 2 | F36: - | G36: - | H36: - | I36: -1 | J36: - | K36: -1 | L36: 1 | M36: - | N36: - | O36: - | P36: -1 | Q36: -1 | R36: - | S36: -1 | T36: - | U36: - | V36: - | W36: - | X36: - | Y36: - | Z36: - | AA36: -1 | AB36: - | AC36: - | AD36: - | AE36: - | AF36: 1 | AG36: - | AH36: -1 | AI36: -1 | AJ36: 0 | AK36: -1 | AL36: - | AM36: - | AN36: -1 | AO36: - | AP36: - | AQ36: - | AR36: - | AS36: 3 | AT36: -0.75 | AU36: 4 | AV36: -1 | AW36: - | AX36: -1 | AY36: - | AZ36: 0 | BA36: -0.3333333333 | BB36: -0.5
A37: Galicia | C37: GALICIA | D37: -0.75 | E37: 3 | F37: -0.3333333333 | G37: -0.6666666667 | H37: -0.5 | I37: -0.75 | J37: -1 | K37: 0 | L37: 1 | M37: 5 | N37: - | O37: 2 | P37: 0.5 | Q37: 0 | R37: - | S37: 2 | T37: 0.6666666667 | U37: -0.3333333333 | V37: -0.6666666667 | W37: -0.5555555556 | X37: -0.4 | Y37: -0.25 | Z37: 2 | AA37: -0.75 | AB37: -0.6666666667 | AC37: -0.6666666667 | AD37: -1 | AE37: -1 | AF37: 1 | AG37: 2 | AH37: - | AI37: - | AJ37: -1 | AK37: -1 | AL37: - | AM37: 0.5 | AN37: - | AO37: - | AP37: 0 | AQ37: -1 | AR37: - | AS37: -0.4 | AT37: -0.6666666667 | AU37: 2.666666667 | AV37: 0.9090909091 | AW37: -0.3333333333 | AX37: -0.2857142857 | AY37: -0.8 | AZ37: 2.5 | BA37: -0.4285714286 | BB37: -0.25
A38: Madrid | C38: MADRID | D38: =+IF(D17>0,(H17-D17)/D17,"-") -> -0.4285714286 | E38: -0.6 | F38: 0.1428571429 | G38: =+IF(G17>0,(K17-G17)/G17,"-") -> -0.2857142857 | H38: 0.5 | I38: -0.5 | J38: -0.5 | K38: 0.4 | L38: 0.5 | M38: 3.5 | N38: -0.5 | O38: -0.4285714286 | P38: -0.6666666667 | Q38: -0.4444444444 | R38: 2 | S38: 0.75 | T38: -0.6666666667 | U38: -0.8 | V38: -0.5 | W38: -0.4285714286 | X38: 3 | Y38: 4 | Z38: 1.333333333 | AA38: -0.75 | AB38: =+IF(AB17>0,(AF17-AB17)/AB17,"-") -> 1 | AC38: -0.6 | AD38: 0 | AE38: 12 | AF38: -0.375 | AG38: 0.5 | AH38: -0.5714285714 | AI38: -0.6923076923 | AJ38: 0 | AK38: 0.6666666667 | AL38: 0 | AM38: 0.25 | AN38: -0.4 | AO38: -0.2 | AP38: 0.3333333333 | AQ38: -0.4 | AR38: 1 | AS38: -0.3225806452 | AT38: -0.09523809524 | AU38: 0.2631578947 | AV38: -0.125 | AW38: -0.5714285714 | AX38: 0.8888888889 | AY38: 0.7647058824 | AZ38: -0.5 | BA38: 0.2 | BB38: -0.2222222222
A39: Murcia | C39: MURCIA | D39: -1 | E39: 0 | F39: -1 | G39: -1 | H39: - | I39: 0 | J39: - | K39: - | L39: - | M39: -1 | N39: - | O39: -1 | P39: -1 | Q39: - | R39: - | S39: - | T39: - | U39: - | V39: - | W39: - | X39: - | Y39: -1 | Z39: - | AA39: -1 | AB39: -1 | AC39: - | AD39: -0.5 | AE39: - | AF39: - | AG39: - | AH39: -1 | AI39: - | AJ39: - | AK39: - | AL39: - | AM39: - | AN39: 0 | AO39: -1 | AP39: - | AQ39: - | AR39: -1 | AS39: -0.8 | AT39: 2 | AU39: -0.6666666667 | AV39: -1 | AW39: - | AX39: 0 | AY39: -0.6666666667 | AZ39: -1 | BA39: - | BB39: -0.5
A40: Navarra | C40: NAVARRA | D40: - | E40: - | F40: - | G40: 0 | H40: -1 | I40: 0.6 | J40: -1 | K40: -0.6666666667 | L40: - | M40: -0.875 | N40: - | O40: 1 | P40: - | Q40: 0 | R40: - | S40: -1 | T40: - | U40: 0 | V40: - | W40: - | X40: - | Y40: -1 | Z40: 1 | AA40: - | AB40: - | AC40: - | AD40: -1 | AE40: 0 | AF40: 1 | AG40: - | AH40: - | AI40: -1 | AJ40: -1 | AK40: 0 | AL40: - | AM40: - | AN40: - | AO40: -1 | AP40: - | AQ40: - | AR40: - | AS40: 4.333333333 | AT40: -0.4375 | AU40: -0.6666666667 | AV40: -0.6666666667 | AW40: 1 | AX40: 0.5 | AY40: -0.3333333333 | AZ40: 0.5 | BA40: -0.6666666667 | BB40: -1
A41: País Vasco | C41: PAIS VASCO | D41: -1 | E41: - | F41: - | G41: 11 | H41: - | I41: 2 | J41: - | K41: -0.9166666667 | L41: 1 | M41: -1 | N41: - | O41: -1 | P41: -0.5 | Q41: - | R41: 0 | S41: - | T41: -1 | U41: -0.8571428571 | V41: -0.5 | W41: - | X41: - | Y41: 2 | Z41: 0 | AA41: - | AB41: 0 | AC41: 0.3333333333 | AD41: 0 | AE41: - | AF41: -0.5 | AG41: -0.75 | AH41: -1 | AI41: 0 | AJ41: -1 | AK41: -1 | AL41: - | AM41: 0 | AN41: - | AO41: - | AP41: -1 | AQ41: 0 | AR41: -0.5 | AS41: 2.25 | AT41: -0.6153846154 | AU41: -0.2 | AV41: 1.5 | AW41: -0.8 | AX41: 2 | AY41: 0.3333333333 | AZ41: -0.625 | BA41: -0.3333333333 | BB41: 1.5
A42: La Rioja | C42: LA RIOJA | D42: - | E42: - | F42: - | G42: =+IF(G21>0,(K21-G21)/G21,"-") -> 2 | H42: -1 | I42: -0.75 | J42: -1 | K42: -0.6666666667 | L42: - | M42: -1 | N42: - | O42: 0 | P42: - | Q42: - | R42: - | S42: 0 | T42: - | U42: -1 | V42: - | W42: -1 | X42: - | Y42: - | Z42: - | AA42: - | AB42: -1 | AC42: 1 | AD42: - | AE42: - | AF42: - | AG42: 0 | AH42: - | AI42: - | AJ42: - | AK42: -1 | AL42: - | AM42: - | AN42: - | AO42: - | AP42: - | AQ42: -0.5 | AR42: -0.5 | AS42: 9 | AT42: -0.8 | AU42: -0.5 | AV42: 1 | AW42: -1 | AX42: - | AY42: =+IF(BC21>0,(BD21-BC21)/BC21,"-") -> -0.3333333333 | AZ42: 0 | BA42: 0 | BB42: 1.5
C43: TOTAL | D43: -0.2272727273 | E43: 0.01818181818 | F43: 0.1351351351 | G43: =+IF(G22>0,(K22-G22)/G22,"-") -> 0.1132075472 | H43: 0.2058823529 | I43: -0.07142857143 | J43: -0.3095238095 | K43: -0.2881355932 | L43: 0.07317073171 | M43: 0.01923076923 | N43: -0.2068965517 | O43: 0.09523809524 | P43: 0.06818181818 | Q43: 0.1320754717 | R43: 0.2608695652 | S43: -0.1304347826 | T43: -0.04255319149 | U43: -0.4166666667 | V43: -0.06896551724 | W43: 0.425 | X43: 0.08888888889 | Y43: 0.3142857143 | Z43: 0.3333333333 | AA43: -0.1754385965 | AB43: 0.1224489796 | AC43: 0.152173913 | AD43: 0.02777777778 | AE43: 0.2127659574 | AF43: 0.01818181818 | AG43: =+IF(AG22>0,(AK22-AG22)/AG22,"-") -> -0.05660377358 | AH43: 0.2702702703 | AI43: 0.1052631579 | AJ43: -0.375 | AK43: -0.08 | AL43: -0.2765957447 | AM43: -0.3015873016 | AN43: 0.1714285714 | AO43: -0.2173913043 | AP43: 0.02941176471 | AQ43: -0.3181818182 | AR43: 0 | AS43: 0.01058201058 | AT43: -0.1413612565 | AU43: 0.01219512195 | AV43: 0.06024096386 | AW43: -0.06818181818 | AX43: 0.08536585366 | AY43: =+IF(BC22>0,(BD22-BC22)/BC22,"-") -> 0.1348314607 | AZ43: 0.06930693069 | BA43: -0.2638888889 | BB43: -0.106918239

Sheet Graficos
K1: Inicio
B3: Series nacionales
D5: 2000 | E5: 2000 | F5: 2000 | G5: 2000 | H5: 2001 | I5: 2001 | J5: 2001 | K5: 2001 | L5: 2002 | M5: 2002 | N5: 2002 | O5: 2002 | P5: 2003 | Q5: 2003 | R5: 2003 | S5: 2003 | T5: 2004 | U5: 2004 | V5: 2004 | W5: 2004 | X5: 2005 | Y5: 2005 | Z5: 2005 | AA5: 2005 | AB5: 2006 | AC5: 2006 | AD5: 2006 | AE5: 2006 | AF5: 2007 | AG5: 2007 | AH5: 2007 | AI5: 2007 | AJ5: 2008 | AK5: 2008 | AL5: 2008 | AM5: 2008 | AN5: 2009 | AO5: 2009 | AP5: 2009 | AQ5: 2009 | AR5: 2010 | AS5: 2010 | AT5: 2010 | AU5: 2010 | AV5: 2011 | AW5: 2011 | AX5: 2011 | AY5: 2011 | AZ5: 2012 | BA5: 2012 | BB5: 2012 | BC5: 2012 | BD5: 2013 | BE5: 2013 | BF5: 2013 | BG5: 2013 | BH5: 2014 | BI5: 2014 | BJ5: 2014 | BK5: 2014 | BL5: 2015 | BM5: 2015 | BN5: 2015 | BO5: 2015 | BP5: 2016 | BQ5: 2016 | BR5: 2016 | BS5: 2016 | BT5: 2017 | BU5: 2017 | BV5: 2017 | BW5: 2017 | BX5: 2018
D6: 00-T1 | E6: 00-T2 | F6: 00-T3 | G6: 00-T4 | H6: 01-T1 | I6: 01-T2 | J6: 01-T3 | K6: 01-T4 | L6: 02-T1 | M6: 02-T2 | N6: 02-T3 | O6: 02-T4 | P6: 03-T1 | Q6: 03-T2 | R6: 03-T3 | S6: 03-T4 | T6: 04-T1 | U6: 04-T2 | V6: 04-T3 | W6: 04-T4 | X6: 05-T1 | Y6: 05-T2 | Z6: 05-T3 | AA6: 05-T4 | AB6: 06-T1 | AC6: 06-T2 | AD6: 06-T3 | AE6: 06-T4 | AF6: 07-T1 | AG6: 07-T2 | AH6: 07-T3 | AI6: 07-T4 | AJ6: 08-T1 | AK6: 08-T2 | AL6: 08-T3 | AM6: 08-T4 | AN6: 09-T1 | AO6: 09-T2 | AP6: 09-T3 | AQ6: 09-T4 | AR6: 10-T1 | AS6: 10-T2 | AT6: 10-T3 | AU6: 10-T4 | AV6: 11-T1 | AW6: 11-T2 | AX6: 11-T3 | AY6: 11-T4 | AZ6: 12-T1 | BA6: 12-T2 | BB6: 12-T3 | BC6: 12-T4 | BD6: 13-T1 | BE6: 13-T2 | BF6: 13-T3 | BG6: 13-T4 | BH6: 14-T1 | BI6: 14-T2 | BJ6: 14-T3 | BK6: 14-T4 | BL6: 15-T1 | BM6: 15-T2 | BN6: 15-T3 | BO6: 15-T4 | BP6: 16-T1 | BQ6: 16-T2 | BR6: 16-T3 | BS6: 16-T4 | BT6: 17-T1 | BU6: 17-T2 | BV6: 17-T3 | BW6: 17-T4 | BX6: 18-T1
C7: Divorcios consensuados | D7: 5366 | E7: 5690 | F7: 3662 | G7: 5767 | H7: 5679 | I7: 5822 | J7: 3970 | K7: 6181 | L7: 6059 | M7: 6861 | N7: 4663 | O7: 6932 | P7: 7208 | Q7: 7456 | R7: 5476 | S7: 8032 | T7: 8468 | U7: 8756 | V7: 5935 | W7: 8410 | X7: 7803 | Y7: 9549 | Z7: 14024 | AA7: 25047 | AB7: 24185 | AC7: 22615 | AD7: 16292 | AE7: 22550 | AF7: 23182 | AG7: 21346 | AH7: 15348 | AI7: 20757 | AJ7: 18923 | AK7: 21079 | AL7: 14945 | AM7: 18879 | AN7: 17357 | AO7: 18240 | AP7: 14206 | AQ7: 18592 | AR7: =+'Divorcios consensuados TSJ'!P22 -> 18293 | AS7: =+'Divorcios consensuados TSJ'!Q22 -> 19200 | AT7: =+'Divorcios consensuados TSJ'!R22 -> 14307 | AU7: =+'Divorcios consensuados TSJ'!S22 -> 19132 | AV7: =+'Divorcios consensuados TSJ'!T22 -> 18284 | AW7: =+'Divorcios consensuados TSJ'!U22 -> 18064 | AX7: =+'Divorcios consensuados TSJ'!V22 -> 14216 | AY7: =+'Divorcios consensuados TSJ'!W22 -> 18287 | AZ7: =+'Divorcios consensuados TSJ'!X22 -> 18365 | BA7: =+'Divorcios consensuados TSJ'!Y22 -> 18032 | BB7: =+'Divorcios consensuados TSJ'!Z22 -> 13768 | BC7: =+'Divorcios consensuados TSJ'!AA22 -> 20376 | BD7: =+'Divorcios consensuados TSJ'!AB22 -> 17020 | BE7: =+'Divorcios consensuados TSJ'!AC22 -> 18757 | BF7: =+'Divorcios consensuados TSJ'!AD22 -> 14604 | BG7: =+'Divorcios consensuados TSJ'!AE22 -> 19948 | BH7: =+'Divorcios consensuados TSJ'!AF22 -> 19376 | BI7: =+'Divorcios consensuados TSJ'!AG22 -> 19251 | BJ7: =+'Divorcios consensuados TSJ'!AH22 -> 16454 | BK7: =+'Divorcios consensuados TSJ'!AI22 -> 20739 | BL7: =+'Divorcios consensuados TSJ'!AJ22 -> 19595 | BM7: =+'Divorcios consensuados TSJ'!AK22 -> 19612 | BN7: =+'Divorcios consensuados TSJ'!AL22 -> 15249 | BO7: =+'Divorcios consensuados TSJ'!AM22 -> 18958 | BP7: =+'Divorcios consensuados TSJ'!AN22 -> 17041 | BQ7: =+'Divorcios consensuados TSJ'!AO22 -> 18847 | BR7: =+'Divorcios consensuados TSJ'!AP22 -> 13660 | BS7: =+'Divorcios consensuados TSJ'!AQ22 -> 17641 | BT7: =+'Divorcios consensuados TSJ'!AR22 -> 17483 | BU7: =+'Divorcios consensuados TSJ'!AS22 -> 17095 | BV7: =+'Divorcios consensuados TSJ'!AT22 -> 12545 | BW7: =+'Divorcios consensuados TSJ'!AU22 -> 16901 | BX7: =+'Divorcios consensuados TSJ'!AV22 -> 16226
C8: Divorcios no consensuados | D8: 4930 | E8: 4850 | F8: 3277 | G8: 5420 | H8: 4170 | I8: 4097 | J8: 2933 | K8: 4723 | L8: 4323 | M8: 4858 | N8: 3270 | O8: 5036 | P8: 4985 | Q8: 5010 | R8: 3576 | S8: 5576 | T8: 5540 | U8: 5811 | V8: 3997 | W8: 5674 | X8: 5564 | Y8: 6233 | Z8: 8791 | AA8: 16594 | AB8: 15972 | AC8: 14486 | AD8: 10332 | AE8: 14801 | AF8: 14335 | AG8: 13060 | AH8: 9521 | AI8: 13331 | AJ8: 11808 | AK8: 13254 | AL8: 9615 | AM8: 13300 | AN8: 11992 | AO8: 12180 | AP8: 9652 | AQ8: 13743 | AR8: =+'Divorcios no consensuados TSJ'!P22 -> 12560 | AS8: =+'Divorcios no consensuados TSJ'!Q22 -> 12883 | AT8: =+'Divorcios no consensuados TSJ'!R22 -> 9632 | AU8: =+'Divorcios no consensuados TSJ'!S22 -> 13547 | AV8: =+'Divorcios no consensuados TSJ'!T22 -> 13017 | AW8: =+'Divorcios no consensuados TSJ'!U22 -> 12275 | AX8: =+'Divorcios no consensuados TSJ'!V22 -> 9493 | AY8: =+'Divorcios no consensuados TSJ'!W22 -> 13543 | AZ8: =+'Divorcios no consensuados TSJ'!X22 -> 12821 | BA8: =+'Divorcios no consensuados TSJ'!Y22 -> 12504 | BB8: =+'Divorcios no consensuados TSJ'!Z22 -> 9544 | BC8: =+'Divorcios no consensuados TSJ'!AA22 -> 14461 | BD8: =+'Divorcios no consensuados TSJ'!AB22 -> 11948 | BE8: =+'Divorcios no consensuados TSJ'!AC22 -> 12262 | BF8: =+'Divorcios no consensuados TSJ'!AD22 -> 9632 | BG8: =+'Divorcios no consensuados TSJ'!AE22 -> 13769 | BH8: =+'Divorcios no consensuados TSJ'!AF22 -> 12887 | BI8: =+'Divorcios no consensuados TSJ'!AG22 -> 12625 | BJ8: =+'Divorcios no consensuados TSJ'!AH22 -> 10812 | BK8: =+'Divorcios no consensuados TSJ'!AI22 -> 14302 | BL8: =+'Divorcios no consensuados TSJ'!AJ22 -> 13420 | BM8: =+'Divorcios no consensuados TSJ'!AK22 -> 13004 | BN8: =+'Divorcios no consensuados TSJ'!AL22 -> 10027 | BO8: =+'Divorcios no consensuados TSJ'!AM22 -> 13512 | BP8: =+'Divorcios no consensuados TSJ'!AN22 -> 11699 | BQ8: =+'Divorcios no consensuados TSJ'!AO22 -> 13011 | BR8: =+'Divorcios no consensuados TSJ'!AP22 -> 9325 | BS8: =+'Divorcios no consensuados TSJ'!AQ22 -> 12795 | BT8: =+'Divorcios no consensuados TSJ'!AR22 -> 12679 | BU8: =+'Divorcios no consensuados TSJ'!AS22 -> 11520 | BV8: =+'Divorcios no consensuados TSJ'!AT22 -> 8727 | BW8: =+'Divorcios no consensuados TSJ'!AU22 -> 12093 | BX8: =+'Divorcios no consensuados TSJ'!AV22 -> 11594
C9: Separaciones consensuadas | D9: 9793 | E9: 9773 | F9: 7866 | G9: 11446 | H9: 10123 | I9: 11017 | J9: 9106 | K9: 13282 | L9: 11995 | M9: 12951 | N9: 9950 | O9: 14115 | P9: 13410 | Q9: 13351 | R9: 11142 | S9: 15797 | T9: 14628 | U9: 14594 | V9: 11411 | W9: 14734 | X9: 13006 | Y9: 14251 | Z9: 5139 | AA9: 3638 | AB9: 2795 | AC9: 2371 | AD9: 1565 | AE9: 2065 | AF9: 1989 | AG9: 1687 | AH9: 1238 | AI9: 1627 | AJ9: 1398 | AK9: 1703 | AL9: 1229 | AM9: 1580 | AN9: 1428 | AO9: 1473 | AP9: 1133 | AQ9: 1487 | AR9: =+'Separaciones consensuadas TSJ'!P22 -> 1441 | AS9: =+'Separaciones consensuadas TSJ'!Q22 -> 1392 | AT9: =+'Separaciones consensuadas TSJ'!R22 -> 1006 | AU9: =+'Separaciones consensuadas TSJ'!S22 -> 1394 | AV9: =+'Separaciones consensuadas TSJ'!T22 -> 1338 | AW9: =+'Separaciones consensuadas TSJ'!U22 -> 1277 | AX9: =+'Separaciones consensuadas TSJ'!V22 -> 1021 | AY9: =+'Separaciones consensuadas TSJ'!W22 -> 1236 | AZ9: =+'Separaciones consensuadas TSJ'!X22 -> 1284 | BA9: =+'Separaciones consensuadas TSJ'!Y22 -> 1232 | BB9: =+'Separaciones consensuadas TSJ'!Z22 -> 884 | BC9: =+'Separaciones consensuadas TSJ'!AA22 -> 1329 | BD9: =+'Separaciones consensuadas TSJ'!AB22 -> 1048 | BE9: =+'Separaciones consensuadas TSJ'!AC22 -> 1316 | BF9: =+'Separaciones consensuadas TSJ'!AD22 -> 955 | BG9: =+'Separaciones consensuadas TSJ'!AE22 -> 1313 | BH9: =+'Separaciones consensuadas TSJ'!AF22 -> 1187 | BI9: =+'Separaciones consensuadas TSJ'!AG22 -> 1226 | BJ9: =+'Separaciones consensuadas TSJ'!AH22 -> 1087 | BK9: =+'Separaciones consensuadas TSJ'!AI22 -> 1305 | BL9: =+'Separaciones consensuadas TSJ'!AJ22 -> 1266 | BM9: =+'Separaciones consensuadas TSJ'!AK22 -> 1229 | BN9: =+'Separaciones consensuadas TSJ'!AL22 -> 987 | BO9: =+'Separaciones consensuadas TSJ'!AM22 -> 1137 | BP9: =+'Separaciones consensuadas TSJ'!AN22 -> 1017 | BQ9: =+'Separaciones consensuadas TSJ'!AO22 -> 1061 | BR9: =+'Separaciones consensuadas TSJ'!AP22 -> 816 | BS9: =+'Separaciones consensuadas TSJ'!AQ22 -> 1018 | BT9: =+'Separaciones consensuadas TSJ'!AR22 -> 1041 | BU9: =+'Separaciones consensuadas TSJ'!AS22 -> 933 | BV9: =+'Separaciones consensuadas TSJ'!AT22 -> 683 | BW9: =+'Separaciones consensuadas TSJ'!AU22 -> 1030 | BX9: =+'Separaciones consensuadas TSJ'!AV22 -> 864
C10: Separaciones no consensuadas | D10: 6201 | E10: 6107 | F10: 4797 | G10: 7433 | H10: 5273 | I10: 5439 | J10: 4444 | K10: 6854 | L10: 5962 | M10: 6314 | N10: 4807 | O10: 6920 | P10: 6230 | Q10: 6414 | R10: 5353 | S10: 7726 | T10: 6938 | U10: 6878 | V10: 5480 | W10: 7677 | X10: 7018 | Y10: 7261 | Z10: 2905 | AA10: 2420 | AB10: 1651 | AC10: 1482 | AD10: 969 | AE10: 1240 | AF10: 1090 | AG10: 994 | AH10: 669 | AI10: 917 | AJ10: 802 | AK10: 849 | AL10: 599 | AM10: 910 | AN10: 764 | AO10: 783 | AP10: 564 | AQ10: 836 | AR10: =+'Separaciones no consensuada TSJ'!P22 -> 807 | AS10: =+'Separaciones no consensuada TSJ'!Q22 -> 742 | AT10: =+'Separaciones no consensuada TSJ'!R22 -> 427 | AU10: =+'Separaciones no consensuada TSJ'!S22 -> 753 | AV10: =+'Separaciones no consensuada TSJ'!T22 -> 658 | AW10: =+'Separaciones no consensuada TSJ'!U22 -> 645 | AX10: =+'Separaciones no consensuada TSJ'!V22 -> 456 | AY10: =+'Separaciones no consensuada TSJ'!W22 -> 716 | AZ10: =+'Separaciones no consensuada TSJ'!X22 -> 655 | BA10: =+'Separaciones no consensuada TSJ'!Y22 -> 609 | BB10: =+'Separaciones no consensuada TSJ'!Z22 -> 437 | BC10: =+'Separaciones no consensuada TSJ'!AA22 -> 695 | BD10: =+'Separaciones no consensuada TSJ'!AB22 -> 567 | BE10: =+'Separaciones no consensuada TSJ'!AC22 -> 562 | BF10: =+'Separaciones no consensuada TSJ'!AD22 -> 486 | BG10: =+'Separaciones no consensuada TSJ'!AE22 -> 616 | BH10: =+'Separaciones no consensuada TSJ'!AF22 -> 595 | BI10: =+'Separaciones no consensuada TSJ'!AG22 -> 567 | BJ10: =+'Separaciones no consensuada TSJ'!AH22 -> 454 | BK10: =+'Separaciones no consensuada TSJ'!AI22 -> 624 | BL10: =+'Separaciones no consensuada TSJ'!AJ22 -> 552 | BM10: =+'Separaciones no consensuada TSJ'!AK22 -> 512 | BN10: =+'Separaciones no consensuada TSJ'!AL22 -> 395 | BO10: =+'Separaciones no consensuada TSJ'!AM22 -> 521 | BP10: =+'Separaciones no consensuada TSJ'!AN22 -> 478 | BQ10: =+'Separaciones no consensuada TSJ'!AO22 -> 515 | BR10: =+'Separaciones no consensuada TSJ'!AP22 -> 400 | BS10: =+'Separaciones no consensuada TSJ'!AQ22 -> 535 | BT10: =+'Separaciones no consensuada TSJ'!AR22 -> 491 | BU10: =+'Separaciones no consensuada TSJ'!AS22 -> 440 | BV10: =+'Separaciones no consensuada TSJ'!AT22 -> 351 | BW10: =+'Separaciones no consensuada TSJ'!AU22 -> 479 | BX10: =+'Separaciones no consensuada TSJ'!AV22 -> 424
C11: Nulidades | D11: 32 | E11: 43 | F11: 30 | G11: 40 | H11: 45 | I11: 37 | J11: 20 | K11: 50 | L11: 48 | M11: 58 | N11: 46 | O11: 77 | P11: 48 | Q11: 38 | R11: 46 | S11: 59 | T11: 51 | U11: 53 | V11: 44 | W11: 42 | X11: 44 | Y11: 72 | Z11: 33 | AA11: 50 | AB11: 41 | AC11: 30 | AD11: 25 | AE11: 57 | AF11: 44 | AG11: 55 | AH11: 37 | AI11: 53 | AJ11: 34 | AK11: 56 | AL11: 42 | AM11: 59 | AN11: 41 | AO11: 52 | AP11: 29 | AQ11: 42 | AR11: =+'Nulidades TSJ '!P22 -> 44 | AS11: =+'Nulidades TSJ '!Q22 -> 53 | AT11: =+'Nulidades TSJ '!R22 -> 23 | AU11: =+'Nulidades TSJ '!S22 -> 46 | AV11: =+'Nulidades TSJ '!T22 -> 47 | AW11: =+'Nulidades TSJ '!U22 -> 60 | AX11: =+'Nulidades TSJ '!V22 -> 29 | AY11: =+'Nulidades TSJ '!W22 -> 40 | AZ11: =+'Nulidades TSJ '!X22 -> 45 | BA11: =+'Nulidades TSJ '!Y22 -> 35 | BB11: =+'Nulidades TSJ '!Z22 -> 27 | BC11: =+'Nulidades TSJ '!AA22 -> 57 | BD11: =+'Nulidades TSJ '!AB22 -> 49 | BE11: =+'Nulidades TSJ '!AC22 -> 46 | BF11: =+'Nulidades TSJ '!AD22 -> 36 | BG11: =+'Nulidades TSJ '!AE22 -> 47 | BH11: =+'Nulidades TSJ '!AF22 -> 55 | BI11: =+'Nulidades TSJ '!AG22 -> 53 | BJ11: =+'Nulidades TSJ '!AH22 -> 37 | BK11: =+'Nulidades TSJ '!AI22 -> 57 | BL11: =+'Nulidades TSJ '!AJ22 -> 56 | BM11: =+'Nulidades TSJ '!AK22 -> 50 | BN11: =+'Nulidades TSJ '!AL22 -> 47 | BO11: =+'Nulidades TSJ '!AM22 -> 63 | BP11: =+'Nulidades TSJ '!AN22 -> 35 | BQ11: =+'Nulidades TSJ '!AO22 -> 46 | BR11: =+'Nulidades TSJ '!AP22 -> 34 | BS11: =+'Nulidades TSJ '!AQ22 -> 44 | BT11: =+'Nulidades TSJ '!AR22 -> 41 | BU11: =+'Nulidades TSJ '!AS22 -> 36 | BV11: =+'Nulidades TSJ '!AT22 -> 35 | BW11: =+'Nulidades TSJ '!AU22 -> 30 | BX11: =+'Nulidades TSJ '!AV22 -> 41

Sheet Provincias
J1: Inicio
B2: Nulidades, divorcios , separaciones, modificación de medidas y guarda custodia hijos Asuntos ingresados por provincias primer trimestre de 2018
C5: PRIMER TRIMESTRE 2018
C6: Nulidades matrimoniales | D6: Divorcios consensuados | E6: Divorcios no consensuados | F6: Separación consensuada | G6: Separacion no consensuada | H6: Modificación medidas consensuadas | I6: Modificación medidas no consensuadas | J6: Guarda custodia hijos no matr. consensuada | K6: Guarda custodia hijos no matr. no consensuada
B7: ALMERIA | C7: 0 | D7: 229 | E7: 231 | F7: 6 | G7: 6 | H7: 22 | I7: 95 | J7: 71 | K7: 158
B8: CADIZ | C8: 4 | D8: 397 | E8: 473 | F8: 25 | G8: 24 | H8: 79 | I8: 341 | J8: 178 | K8: 338
B9: CORDOBA | C9: 0 | D9: 190 | E9: 204 | F9: 22 | G9: 7 | H9: 40 | I9: 184 | J9: 62 | K9: 107
B10: GRANADA | C10: 0 | D10: 303 | E10: 250 | F10: 20 | G10: 14 | H10: 74 | I10: 195 | J10: 92 | K10: 156
B11: HUELVA | C11: 1 | D11: 107 | E11: 145 | F11: 7 | G11: 3 | H11: 14 | I11: 91 | J11: 40 | K11: 98
B12: JAEN | C12: 0 | D12: 199 | E12: 186 | F12: 18 | G12: 12 | H12: 11 | I12: 137 | J12: 31 | K12: 92
B13: MALAGA | C13: 4 | D13: 606 | E13: 502 | F13: 36 | G13: 17 | H13: 103 | I13: 395 | J13: 235 | K13: 383
B14: SEVILLA | C14: 2 | D14: 606 | E14: 660 | F14: 34 | G14: 34 | H14: 113 | I14: 465 | J14: 220 | K14: 401
B15: HUESCA | C15: 1 | D15: 57 | E15: 44 | F15: 0 | G15: 0 | H15: 18 | I15: 27 | J15: 16 | K15: 29
B16: TERUEL | C16: 0 | D16: 33 | E16: 26 | F16: 2 | G16: 1 | H16: 8 | I16: 11 | J16: 9 | K16: 7
B17: ZARAGOZA | C17: 0 | D17: 348 | E17: 191 | F17: 21 | G17: 0 | H17: 81 | I17: 146 | J17: 75 | K17: 108
B18: ASTURIAS | C18: 1 | D18: 405 | E18: 229 | F18: 25 | G18: 5 | H18: 85 | I18: 252 | J18: 107 | K18: 130
B19: ILLES BALEARS | C19: 3 | D19: 465 | E19: 249 | F19: 29 | G19: 11 | H19: 111 | I19: 198 | J19: 192 | K19: 156
B20: LAS PALMAS | C20: 0 | D20: 388 | E20: 328 | F20: 19 | G20: 10 | H20: 110 | I20: 313 | J20: 228 | K20: 290
B21: SANTA CRUZ DE TENERIFE | C21: 0 | D21: 366 | E21: 289 | F21: 7 | G21: 6 | H21: 52 | I21: 191 | J21: 156 | K21: 209
B22: CANTABRIA | C22: 0 | D22: 216 | E22: 117 | F22: 17 | G22: 4 | H22: 46 | I22: 114 | J22: 66 | K22: 67
B23: AVILA | C23: 0 | D23: 40 | E23: 30 | F23: 2 | G23: 0 | H23: 8 | I23: 15 | J23: 6 | K23: 20
B24: BURGOS | C24: 1 | D24: 90 | E24: 64 | F24: 6 | G24: 2 | H24: 14 | I24: 51 | J24: 10 | K24: 49
B25: LEON | C25: 1 | D25: 106 | E25: 129 | F25: 12 | G25: 5 | H25: 27 | I25: 83 | J25: 35 | K25: 52
B26: PALENCIA | C26: 0 | D26: 40 | E26: 43 | F26: 2 | G26: 0 | H26: 9 | I26: 34 | J26: 9 | K26: 13
B27: SALAMANCA | C27: 0 | D27: 98 | E27: 61 | F27: 5 | G27: 2 | H27: 12 | I27: 65 | J27: 18 | K27: 11
B28: SEGOVIA | C28: 0 | D28: 37 | E28: 18 | F28: 3 | G28: 1 | H28: 1 | I28: 34 | J28: 7 | K28: 14
B29: SORIA | C29: 0 | D29: 13 | E29: 8 | F29: 0 | G29: 0 | H29: 1 | I29: 12 | J29: 6 | K29: 7
B30: VALLADOLID | C30: 0 | D30: 158 | E30: 111 | F30: 7 | G30: 3 | H30: 52 | I30: 92 | J30: 35 | K30: 55
B31: ZAMORA | C31: 0 | D31: 40 | E31: 42 | F31: 5 | G31: 3 | H31: 12 | I31: 29 | J31: 14 | K31: 17
B32: ALBACETE | C32: 0 | D32: 129 | E32: 97 | F32: 13 | G32: 1 | H32: 24 | I32: 65 | J32: 25 | K32: 41
B33: CIUDAD REAL | C33: 0 | D33: 121 | E33: 153 | F33: 10 | G33: 8 | H33: 22 | I33: 100 | J33: 37 | K33: 77
B34: CUENCA | C34: 0 | D34: 53 | E34: 52 | F34: 3 | G34: 1 | H34: 9 | I34: 26 | J34: 11 | K34: 31
B35: GUADALAJARA | C35: 0 | D35: 94 | E35: 73 | F35: 0 | G35: 0 | H35: 17 | I35: 52 | J35: 33 | K35: 23
B36: TOLEDO | C36: 0 | D36: 252 | E36: 195 | F36: 14 | G36: 8 | H36: 23 | I36: 102 | J36: 55 | K36: 96
B37: BARCELONA | C37: 7 | D37: 2440 | E37: 1268 | F37: 93 | G37: 46 | H37: 471 | I37: 953 | J37: 849 | K37: 699
B38: GIRONA | C38: 0 | D38: 312 | E38: 154 | F38: 16 | G38: 0 | H38: 48 | I38: 94 | J38: 98 | K38: 96
B39: LLEIDA | C39: 0 | D39: 109 | E39: 82 | F39: 7 | G39: 2 | H39: 21 | I39: 65 | J39: 35 | K39: 60
B40: TARRAGONA | C40: 4 | D40: 331 | E40: 243 | F40: 11 | G40: 10 | H40: 46 | I40: 167 | J40: 103 | K40: 129
B41: ALICANTE | C41: 0 | D41: 700 | E41: 453 | F41: 34 | G41: 17 | H41: 86 | I41: 307 | J41: 149 | K41: 277
B42: CASTELLON | C42: 0 | D42: 205 | E42: 134 | F42: 10 | G42: 12 | H42: 41 | I42: 92 | J42: 62 | K42: 82
B43: VALENCIA | C43: 4 | D43: 1204 | E43: 746 | F43: 71 | G43: 43 | H43: 184 | I43: 682 | J43: 262 | K43: 379
B44: BADAJOZ | C44: 0 | D44: 187 | E44: 130 | F44: 19 | G44: 14 | H44: 49 | I44: 110 | J44: 82 | K44: 87
B45: CACERES | C45: 0 | D45: 123 | E45: 86 | F45: 13 | G45: 2 | H45: 16 | I45: 76 | J45: 33 | K45: 61
B46: A CORUÑA | C46: 0 | D46: 256 | E46: 213 | F46: 9 | G46: 4 | H46: 49 | I46: 159 | J46: 61 | K46: 104
B47: LUGO | C47: 0 | D47: 80 | E47: 56 | F47: 5 | G47: 2 | H47: 8 | I47: 43 | J47: 18 | K47: 42
B48: OURENSE | C48: 0 | D48: 72 | E48: 67 | F48: 4 | G48: 2 | H48: 6 | I48: 48 | J48: 19 | K48: 33
B49: PONTEVEDRA | C49: 0 | D49: 220 | E49: 184 | F49: 10 | G49: 1 | H49: 45 | I49: 137 | J49: 64 | K49: 79
B50: MADRID | C50: 6 | D50: 2224 | E50: 1582 | F50: 121 | G50: 50 | H50: 266 | I50: 1142 | J50: 577 | K50: 940
B51: MURCIA | C51: 0 | D51: 492 | E51: 398 | F51: 29 | G51: 5 | H51: 82 | I51: 258 | J51: 174 | K51: 274
B52: NAVARRA | C52: 0 | D52: 236 | E52: 175 | F52: 17 | G52: 5 | H52: 73 | I52: 102 | J52: 68 | K52: 118
B53: ARABA/ALAVA | C53: 0 | D53: 98 | E53: 52 | F53: 3 | G53: 5 | H53: 17 | I53: 59 | J53: 33 | K53: 66
B54: GIPUZKOA | C54: 1 | D54: 242 | E54: 101 | F54: 6 | G54: 6 | H54: 33 | I54: 104 | J54: 62 | K54: 72
B55: BIZKAIA | C55: 0 | D55: 396 | E55: 213 | F55: 11 | G55: 8 | H55: 92 | I55: 176 | J55: 147 | K55: 189
B56: LA RIOJA | C56: 1 | D56: 113 | E56: 57 | F56: 5 | G56: 2 | H56: 15 | I56: 45 | J56: 23 | K56: 28
B57: TOTAL | C57: =SUM(C7:C56) -> 41 | D57: =SUM(D7:D56) -> 16226 | E57: 11594 | F57: 864 | G57: 424 | H57: 2846 | I57: 8734 | J57: 4998 | K57: 7050

Sheet Partidos Judiciales
I1: Inicio
B2: Nulidades, divorcios , separaciones, modificación de medidas y guarda custodia hijos Asuntos ingresados por partidos judiciales primer trimestre de 2018
C5: PRIMER TRIMESTRE 2018
C6: Nulidades matrimoniales | D6: Divorcios consensuados | E6: Divorcios no consensuados | F6: Separación consensuada | G6: Separacion no consensuada | H6: Modificación medidas consensuadas | I6: Modificación medidas no consensuadas | J6: Guarda custodia hijos no matr. consensuada | K6: Guarda custodia hijos no matr. no consensuada
B7: ALMERIA | C7: 0 | D7: 112 | E7: 108 | F7: 4 | G7: 3 | H7: 14 | I7: 50 | J7: 39 | K7: 69
B8: BERJA | C8: 0 | D8: 11 | E8: 7 | F8: 0 | G8: 0 | H8: 1 | I8: 5 | J8: 1 | K8: 17
B9: HUERCAL-OVERA | C9: 0 | D9: 12 | E9: 15 | F9: 0 | G9: 0 | H9: 1 | I9: 8 | J9: 4 | K9: 12
B10: VERA | C10: 0 | D10: 18 | E10: 15 | F10: 1 | G10: 0 | H10: 1 | I10: 7 | J10: 6 | K10: 12
B11: ROQUETAS DE MAR | C11: 0 | D11: 23 | E11: 41 | F11: 1 | G11: 1 | H11: 3 | I11: 13 | J11: 11 | K11: 24
B12: VELEZ RUBIO | C12: 0 | D12: 3 | E12: 3 | F12: 0 | G12: 0 | H12: 0 | I12: 0 | J12: 0 | K12: 0
B13: EL EJIDO | C13: 0 | D13: 35 | E13: 34 | F13: 0 | G13: 2 | H13: 1 | I13: 10 | J13: 6 | K13: 23
B14: PURCHENA | C14: 0 | D14: 15 | E14: 8 | F14: 0 | G14: 0 | H14: 1 | I14: 2 | J14: 4 | K14: 1
B15: CHICLANA DE LA FRONTERA | C15: 0 | D15: 33 | E15: 36 | F15: 6 | G15: 1 | H15: 7 | I15: 32 | J15: 17 | K15: 28
B16: ARCOS DE LA FRONTERA | C16: 0 | D16: 23 | E16: 35 | F16: 1 | G16: 0 | H16: 4 | I16: 22 | J16: 12 | K16: 16
B17: ALGECIRAS | C17: 1 | D17: 67 | E17: 54 | F17: 3 | G17: 4 | H17: 8 | I17: 46 | J17: 28 | K17: 47
B18: CADIZ | C18: 0 | D18: 34 | E18: 26 | F18: 3 | G18: 0 | H18: 15 | I18: 31 | J18: 14 | K18: 24
B19: SAN ROQUE | C19: 0 | D19: 6 | E19: 10 | F19: 0 | G19: 0 | H19: 1 | I19: 4 | J19: 5 | K19: 9
B20: SANLUCAR DE BARRAMEDA | C20: 0 | D20: 23 | E20: 39 | F20: 1 | G20: 3 | H20: 10 | I20: 23 | J20: 10 | K20: 28
B21: JEREZ DE LA FRONTERA | C21: 0 | D21: 57 | E21: 79 | F21: 4 | G21: 7 | H21: 5 | I21: 73 | J21: 23 | K21: 59
B22: LA LINEA DE LA CONCEPCION | C22: 1 | D22: 23 | E22: 28 | F22: 1 | G22: 3 | H22: 2 | I22: 15 | J22: 19 | K22: 38
B23: SAN FERNANDO | C23: 1 | D23: 33 | E23: 47 | F23: 2 | G23: 2 | H23: 7 | I23: 20 | J23: 19 | K23: 6
B24: EL PUERTO DE SANTA MARIA | C24: 0 | D24: 30 | E24: 34 | F24: 2 | G24: 1 | H24: 8 | I24: 28 | J24: 14 | K24: 29
B25: ROTA | C25: 0 | D25: 9 | E25: 15 | F25: 1 | G25: 0 | H25: 3 | I25: 8 | J25: 5 | K25: 13
B26: CEUTA | C26: 1 | D26: 29 | E26: 36 | F26: 1 | G26: 2 | H26: 5 | I26: 17 | J26: 6 | K26: 16
B27: PUERTO REAL | C27: 0 | D27: 13 | E27: 19 | F27: 0 | G27: 0 | H27: 2 | I27: 12 | J27: 2 | K27: 9
B28: BARBATE DE FRANCO | C28: 0 | D28: 7 | E28: 6 | F28: 0 | G28: 1 | H28: 1 | I28: 4 | J28: 3 | K28: 11
B29: UBRIQUE | C29: 0 | D29: 10 | E29: 9 | F29: 0 | G29: 0 | H29: 1 | I29: 6 | J29: 1 | K29: 5
B30: MONTORO | C30: 0 | D30: 7 | E30: 16 | F30: 0 | G30: 0 | H30: 2 | I30: 7 | J30: 2 | K30: 3
B31: AGUILAR | C31: 0 | D31: 8 | E31: 4 | F31: 1 | G31: 0 | H31: 2 | I31: 2 | J31: 2 | K31: 4
B32: POZOBLANCO | C32: 0 | D32: 7 | E32: 12 | F32: 0 | G32: 0 | H32: 3 | I32: 1 | J32: 2 | K32: 2
B33: BAENA | C33: 0 | D33: 7 | E33: 7 | F33: 2 | G33: 1 | H33: 2 | I33: 2 | J33: 3 | K33: 1
B34: POSADAS | C34: 0 | D34: 11 | E34: 9 | F34: 2 | G34: 1 | H34: 1 | I34: 16 | J34: 7 | K34: 5
B35: PEÑARROYA-PUEBLONUEVO | C35: 0 | D35: 2 | E35: 17 | F35: 0 | G35: 0 | H35: 0 | I35: 3 | J35: 1 | K35: 7
B36: LUCENA | C36: 0 | D36: 22 | E36: 13 | F36: 3 | G36: 0 | H36: 2 | I36: 17 | J36: 3 | K36: 12
B37: CORDOBA | C37: 0 | D37: 95 | E37: 88 | F37: 12 | G37: 2 | H37: 24 | I37: 123 | J37: 33 | K37: 48
B38: PRIEGO DE CORDOBA | C38: 0 | D38: 6 | E38: 4 | F38: 0 | G38: 0 | H38: 0 | I38: 2 | J38: 1 | K38: 2
B39: CABRA | C39: 0 | D39: 11 | E39: 8 | F39: 0 | G39: 2 | H39: 1 | I39: 5 | J39: 2 | K39: 2
B40: MONTILLA | C40: 0 | D40: 10 | E40: 21 | F40: 2 | G40: 1 | H40: 3 | I40: 4 | J40: 6 | K40: 17
B41: PUENTE-GENIL | C41: 0 | D41: 4 | E41: 5 | F41: 0 | G41: 0 | H41: 0 | I41: 2 | J41: 0 | K41: 4
B42: LOJA | C42: 0 | D42: 22 | E42: 26 | F42: 4 | G42: 1 | H42: 2 | I42: 3 | J42: 5 | K42: 13
B43: GUADIX | C43: 0 | D43: 12 | E43: 13 | F43: 0 | G43: 0 | H43: 1 | I43: 1 | J43: 6 | K43: 5
B44: GRANADA | C44: 0 | D44: 175 | E44: 126 | F44: 15 | G44: 10 | H44: 44 | I44: 138 | J44: 54 | K44: 79
B45: MOTRIL | C45: 0 | D45: 29 | E45: 34 | F45: 0 | G45: 1 | H45: 8 | I45: 18 | J45: 8 | K45: 13
B46: ORGIVA | C46: 0 | D46: 9 | E46: 4 | F46: 1 | G46: 0 | H46: 0 | I46: 2 | J46: 2 | K46: 8
B47: BAZA | C47: 0 | D47: 17 | E47: 8 | F47: 0 | G47: 0 | H47: 4 | I47: 10 | J47: 3 | K47: 3
B48: SANTA FE | C48: 0 | D48: 28 | E48: 26 | F48: 0 | G48: 1 | H48: 9 | I48: 15 | J48: 7 | K48: 23
B49: HUESCAR | C49: 0 | D49: 1 | E49: 7 | F49: 0 | G49: 1 | H49: 0 | I49: 2 | J49: 1 | K49: 0
B50: ALMUÑECAR | C50: 0 | D50: 10 | E50: 6 | F50: 0 | G50: 0 | H50: 6 | I50: 6 | J50: 6 | K50: 12
B51: ARACENA | C51: 0 | D51: 8 | E51: 8 | F51: 1 | G51: 0 | H51: 0 | I51: 6 | J51: 2 | K51: 5
B52: HUELVA | C52: 0 | D52: 39 | E52: 49 | F52: 2 | G52: 2 | H52: 6 | I52: 40 | J52: 16 | K52: 24
B53: LA PALMA DEL CONDADO | C53: 0 | D53: 13 | E53: 24 | F53: 3 | G53: 0 | H53: 2 | I53: 14 | J53: 3 | K53: 16
B54: VALVERDE DEL CAMINO | C54: 0 | D54: 8 | E54: 16 | F54: 1 | G54: 1 | H54: 4 | I54: 8 | J54: 4 | K54: 4
B55: AYAMONTE | C55: 1 | D55: 28 | E55: 35 | F55: 0 | G55: 0 | H55: 2 | I55: 14 | J55: 13 | K55: 41
B56: MOGUER | C56: 0 | D56: 11 | E56: 13 | F56: 0 | G56: 0 | H56: 0 | I56: 9 | J56: 2 | K56: 8
B57: JAEN | C57: 0 | D57: 63 | E57: 55 | F57: 5 | G57: 5 | H57: 3 | I57: 50 | J57: 12 | K57: 42
B58: ALCALA LA REAL | C58: 0 | D58: 20 | E58: 5 | F58: 3 | G58: 0 | H58: 0 | I58: 5 | J58: 1 | K58: 6
B59: LA CAROLINA | C59: 0 | D59: 7 | E59: 9 | F59: 3 | G59: 1 | H59: 0 | I59: 8 | J59: 4 | K59: 7
B60: ANDUJAR | C60: 0 | D60: 12 | E60: 14 | F60: 1 | G60: 3 | H60: 0 | I60: 8 | J60: 2 | K60: 6
B61: BAEZA | C61: 0 | D61: 5 | E61: 5 | F61: 0 | G61: 0 | H61: 0 | I61: 5 | J61: 1 | K61: 4
B62: LINARES | C62: 0 | D62: 28 | E62: 29 | F62: 2 | G62: 1 | H62: 1 | I62: 31 | J62: 5 | K62: 11
B63: VILLACARRILLO | C63: 0 | D63: 17 | E63: 19 | F63: 1 | G63: 2 | H63: 0 | I63: 4 | J63: 2 | K63: 9
B64: CAZORLA | C64: 0 | D64: 13 | E64: 13 | F64: 1 | G64: 0 | H64: 0 | I64: 4 | J64: 2 | K64: 1
B65: MARTOS | C65: 0 | D65: 12 | E65: 17 | F65: 0 | G65: 0 | H65: 0 | I65: 10 | J65: 0 | K65: 4
B66: UBEDA | C66: 0 | D66: 22 | E66: 20 | F66: 2 | G66: 0 | H66: 7 | I66: 12 | J66: 2 | K66: 2
B67: ANTEQUERA | C67: 0 | D67: 21 | E67: 27 | F67: 3 | G67: 3 | H67: 2 | I67: 21 | J67: 5 | K67: 14
B68: VELEZ MALAGA | C68: 1 | D68: 36 | E68: 28 | F68: 0 | G68: 0 | H68: 5 | I68: 23 | J68: 5 | K68: 19
B69: MALAGA | C69: 1 | D69: 264 | E69: 231 | F69: 19 | G69: 9 | H69: 72 | I69: 208 | J69: 128 | K69: 153
B70: RONDA | C70: 0 | D70: 21 | E70: 10 | F70: 2 | G70: 0 | H70: 2 | I70: 3 | J70: 7 | K70: 12
B71: FUENGIROLA | C71: 0 | D71: 58 | E71: 34 | F71: 6 | G71: 1 | H71: 4 | I71: 26 | J71: 18 | K71: 36
B72: MARBELLA | C72: 1 | D72: 66 | E72: 49 | F72: 2 | G72: 1 | H72: 6 | I72: 32 | J72: 16 | K72: 48
B73: ESTEPONA | C73: 1 | D73: 33 | E73: 27 | F73: 2 | G73: 0 | H73: 4 | I73: 12 | J73: 15 | K73: 15
B74: MELILLA | C74: 0 | D74: 21 | E74: 18 | F74: 1 | G74: 0 | H74: 3 | I74: 15 | J74: 9 | K74: 9
B75: TORROX | C75: 0 | D75: 14 | E75: 10 | F75: 0 | G75: 0 | H75: 0 | I75: 8 | J75: 6 | K75: 20
B76: COIN | C76: 0 | D76: 11 | E76: 8 | F76: 0 | G76: 0 | H76: 1 | I76: 8 | J76: 1 | K76: 11
B77: ARCHIDONA | C77: 0 | D77: 5 | E77: 4 | F77: 0 | G77: 0 | H77: 0 | I77: 2 | J77: 1 | K77: 1
B78: TORREMOLINOS | C78: 0 | D78: 56 | E78: 56 | F78: 1 | G78: 3 | H78: 4 | I78: 37 | J78: 24 | K78: 45
B79: OSUNA | C79: 0 | D79: 9 | E79: 5 | F79: 0 | G79: 2 | H79: 4 | I79: 5 | J79: 7 | K79: 9
B80: CAZALLA DE LA SIERRA | C80: 0 | D80: 5 | E80: 8 | F80: 0 | G80: 0 | H80: 1 | I80: 4 | J80: 2 | K80: 3
B81: SANLUCAR LA MAYOR | C81: 0 | D81: 39 | E81: 45 | F81: 3 | G81: 2 | H81: 5 | I81: 21 | J81: 7 | K81: 42
B82: CARMONA | C82: 0 | D82: 13 | E82: 31 | F82: 0 | G82: 2 | H82: 1 | I82: 13 | J82: 5 | K82: 17
B83: LORA DEL RIO | C83: 0 | D83: 14 | E83: 40 | F83: 1 | G83: 1 | H83: 0 | I83: 11 | J83: 4 | K83: 24
B84: SEVILLA | C84: 0 | D84: 339 | E84: 321 | F84: 19 | G84: 16 | H84: 66 | I84: 272 | J84: 132 | K84: 163
B85: MORON DE LA FRONTERA | C85: 0 | D85: 16 | E85: 9 | F85: 1 | G85: 1 | H85: 4 | I85: 12 | J85: 9 | K85: 17
B86: LEBRIJA | C86: 0 | D86: 25 | E86: 23 | F86: 0 | G86: 0 | H86: 5 | I86: 5 | J86: 1 | K86: 11
B87: UTRERA | C87: 2 | D87: 20 | E87: 41 | F87: 1 | G87: 2 | H87: 6 | I87: 23 | J87: 8 | K87: 19
B88: ECIJA | C88: 0 | D88: 11 | E88: 15 | F88: 2 | G88: 1 | H88: 0 | I88: 8 | J88: 7 | K88: 4
B89: ALCALA DE GUADAIRA | C89: 0 | D89: 27 | E89: 26 | F89: 2 | G89: 1 | H89: 9 | I89: 27 | J89: 14 | K89: 25
B90: DOS HERMANAS | C90: 0 | D90: 41 | E90: 47 | F90: 4 | G90: 5 | H90: 10 | I90: 36 | J90: 16 | K90: 38
B91: MARCHENA | C91: 0 | D91: 9 | E91: 11 | F91: 0 | G91: 1 | H91: 1 | I91: 6 | J91: 2 | K91: 10
B92: CORIA DEL RIO | C92: 0 | D92: 21 | E92: 30 | F92: 1 | G92: 0 | H92: 1 | I92: 21 | J92: 2 | K92: 13
B93: ESTEPA | C93: 0 | D93: 17 | E93: 8 | F93: 0 | G93: 0 | H93: 0 | I93: 1 | J93: 4 | K93: 6
B94: BARBASTRO | C94: 0 | D94: 10 | E94: 10 | F94: 0 | G94: 0 | H94: 0 | I94: 5 | J94: 1 | K94: 8
B95: BOLTAÑA | C95: 0 | D95: 5 | E95: 1 | F95: 0 | G95: 0 | H95: 2 | I95: 0 | J95: 1 | K95: 2
B96: FRAGA | C96: 0 | D96: 6 | E96: 6 | F96: 0 | G96: 0 | H96: 0 | I96: 4 | J96: 2 | K96: 4
B97: HUESCA | C97: 0 | D97: 21 | E97: 12 | F97: 0 | G97: 0 | H97: 7 | I97: 9 | J97: 6 | K97: 6
B98: JACA | C98: 1 | D98: 6 | E98: 8 | F98: 0 | G98: 0 | H98: 3 | I98: 4 | J98: 2 | K98: 5
B99: MONZÓN | C99: 0 | D99: 9 | E99: 7 | F99: 0 | G99: 0 | H99: 6 | I99: 5 | J99: 4 | K99: 4
B100: ALCAÑIZ | C100: 0 | D100: 14 | E100: 13 | F100: 1 | G100: 1 | H100: 4 | I100: 6 | J100: 6 | K100: 3
B101: CALAMOCHA | C101: 0 | D101: 5 | E101: 4 | F101: 0 | G101: 0 | H101: 3 | I101: 2 | J101: 1 | K101: 0
B102: TERUEL | C102: 0 | D102: 14 | E102: 9 | F102: 1 | G102: 0 | H102: 1 | I102: 3 | J102: 2 | K102: 4
B103: CALATAYUD | C103: 0 | D103: 6 | E103: 5 | F103: 1 | G103: 0 | H103: 3 | I103: 7 | J103: 1 | K103: 2
B104: TARAZONA | C104: 0 | D104: 0 | E104: 0 | F104: 0 | G104: 0 | H104: 0 | I104: 0 | J104: 0 | K104: 0
B105: ZARAGOZA | C105: 0 | D105: 321 | E105: 168 | F105: 20 | G105: 0 | H105: 72 | I105: 128 | J105: 70 | K105: 100
B106: CASPE | C106: 0 | D106: 6 | E106: 5 | F106: 0 | G106: 0 | H106: 5 | I106: 4 | J106: 0 | K106: 0
B107: EJEA DE LOS CABALLEROS | C107: 0 | D107: 7 | E107: 6 | F107: 0 | G107: 0 | H107: 0 | I107: 3 | J107: 2 | K107: 0
B108: DAROCA | C108: 0 | D108: 1 | E108: 2 | F108: 0 | G108: 0 | H108: 1 | I108: 1 | J108: 0 | K108: 2
B109: LA ALMUNIA DE DOÑA GODINA | C109: 0 | D109: 7 | E109: 5 | F109: 0 | G109: 0 | H109: 0 | I109: 3 | J109: 2 | K109: 4
B110: CANGAS DE NARCEA | C110: 0 | D110: 2 | E110: 2 | F110: 0 | G110: 0 | H110: 0 | I110: 6 | J110: 0 | K110: 0
B111: LENA | C111: 0 | D111: 1 | E111: 4 | F111: 0 | G111: 0 | H111: 1 | I111: 7 | J111: 2 | K111: 1
B112: CANGAS DE ONIS | C112: 0 | D112: 5 | E112: 1 | F112: 0 | G112: 0 | H112: 1 | I112: 2 | J112: 3 | K112: 1
B113: AVILES | C113: 0 | D113: 51 | E113: 34 | F113: 3 | G113: 1 | H113: 10 | I113: 45 | J113: 13 | K113: 18
B114: GRADO | C114: 0 | D114: 4 | E114: 3 | F114: 0 | G114: 0 | H114: 1 | I114: 4 | J114: 2 | K114: 1
B115: SIERO | C115: 0 | D115: 22 | E115: 11 | F115: 1 | G115: 1 | H115: 3 | I115: 10 | J115: 8 | K115: 5
B116: CASTROPOL | C116: 0 | D116: 5 | E116: 1 | F116: 0 | G116: 0 | H116: 0 | I116: 0 | J116: 0 | K116: 1
B117: GIJON | C117: 0 | D117: 139 | E117: 50 | F117: 6 | G117: 1 | H117: 28 | I117: 71 | J117: 33 | K117: 48
B118: LAVIANA | C118: 0 | D118: 17 | E118: 5 | F118: 0 | G118: 0 | H118: 0 | I118: 2 | J118: 2 | K118: 1
B119: OVIEDO | C119: 1 | D119: 95 | E119: 62 | F119: 7 | G119: 1 | H119: 17 | I119: 57 | J119: 16 | K119: 28
B120: LLANES | C120: 0 | D120: 3 | E120: 3 | F120: 0 | G120: 0 | H120: 0 | I120: 4 | J120: 3 | K120: 0
B121: MIERES | C121: 0 | D121: 15 | E121: 16 | F121: 1 | G121: 0 | H121: 14 | I121: 17 | J121: 9 | K121: 6
B122: LANGREO | C122: 0 | D122: 17 | E122: 15 | F122: 3 | G122: 1 | H122: 6 | I122: 11 | J122: 7 | K122: 7
B123: TINEO | C123: 0 | D123: 2 | E123: 2 | F123: 0 | G123: 0 | H123: 0 | I123: 0 | J123: 2 | K123: 0
B124: LUARCA (VALDES) | C124: 0 | D124: 10 | E124: 4 | F124: 0 | G124: 0 | H124: 2 | I124: 3 | J124: 1 | K124: 2
B125: PRAVIA | C125: 0 | D125: 4 | E125: 5 | F125: 0 | G125: 0 | H125: 0 | I125: 6 | J125: 3 | K125: 2
B126: VILLAVICIOSA | C126: 0 | D126: 10 | E126: 9 | F126: 2 | G126: 0 | H126: 1 | I126: 3 | J126: 1 | K126: 2
B127: PILOÑA-INFIESTO | C127: 0 | D127: 3 | E127: 2 | F127: 2 | G127: 0 | H127: 1 | I127: 4 | J127: 2 | K127: 7
B128: MAO | C128: 0 | D128: 29 | E128: 7 | F128: 1 | G128: 0 | H128: 4 | I128: 7 | J128: 7 | K128: 7
B129: INCA | C129: 0 | D129: 65 | E129: 36 | F129: 3 | G129: 1 | H129: 10 | I129: 15 | J129: 30 | K129: 19
B130: PALMA DE MALLORCA | C130: 2 | D130: 248 | E130: 153 | F130: 20 | G130: 6 | H130: 77 | I130: 138 | J130: 100 | K130: 89
B131: MANACOR | C131: 1 | D131: 59 | E131: 21 | F131: 3 | G131: 3 | H131: 10 | I131: 21 | J131: 31 | K131: 17
B132: EIVISSA | C132: 0 | D132: 38 | E132: 24 | F132: 1 | G132: 0 | H132: 8 | I132: 10 | J132: 20 | K132: 18
B133: CIUTADELLA DE MENORCA | C133: 0 | D133: 26 | E133: 8 | F133: 1 | G133: 1 | H133: 2 | I133: 7 | J133: 4 | K133: 6
B134: ARRECIFE | C134: 0 | D134: 44 | E134: 46 | F134: 3 | G134: 1 | H134: 3 | I134: 23 | J134: 41 | K134: 22
B135: LAS PALMAS DE GRAN CANARIA | C135: 0 | D135: 143 | E135: 111 | F135: 8 | G135: 2 | H135: 67 | I135: 151 | J135: 100 | K135: 107
B136: PUERTO DEL ROSARIO | C136: 0 | D136: 28 | E136: 28 | F136: 1 | G136: 0 | H136: 5 | I136: 19 | J136: 19 | K136: 38
B137: SANTA MARIA DE GUIA DE GRAN CANARIA | C137: 0 | D137: 14 | E137: 12 | F137: 1 | G137: 3 | H137: 6 | I137: 19 | J137: 7 | K137: 18
B138: TELDE | C138: 0 | D138: 82 | E138: 68 | F138: 3 | G138: 1 | H138: 21 | I138: 60 | J138: 27 | K138: 57
B139: SAN BARTOLOME DE TIRAJANA | C139: 0 | D139: 51 | E139: 43 | F139: 2 | G139: 2 | H139: 4 | I139: 19 | J139: 21 | K139: 38
B140: ARUCAS | C140: 0 | D140: 26 | E140: 20 | F140: 1 | G140: 1 | H140: 4 | I140: 22 | J140: 13 | K140: 10
B141: GRANADILLA DE ABONA | C141: 0 | D141: 21 | E141: 12 | F141: 0 | G141: 0 | H141: 2 | I141: 2 | J141: 9 | K141: 19
B142: SAN SEBASTIAN DE LA GOMERA | C142: 0 | D142: 4 | E142: 3 | F142: 0 | G142: 0 | H142: 0 | I142: 2 | J142: 2 | K142: 5
B143: SANTA CRUZ DE TENERIFE | C143: 0 | D143: 86 | E143: 67 | F143: 4 | G143: 0 | H143: 16 | I143: 63 | J143: 56 | K143: 41
B144: SANTA CRUZ DE LA PALMA | C144: 0 | D144: 23 | E144: 11 | F144: 0 | G144: 0 | H144: 4 | I144: 14 | J144: 8 | K144: 9
B145: ICOD DE LOS VINOS | C145: 0 | D145: 13 | E145: 12 | F145: 0 | G145: 0 | H145: 1 | I145: 3 | J145: 1 | K145: 5
B146: VALVERDE | C146: 0 | D146: 3 | E146: 1 | F146: 0 | G146: 0 | H146: 0 | I146: 1 | J146: 2 | K146: 1
B147: LA LAGUNA | C147: 0 | D147: 63 | E147: 54 | F147: 1 | G147: 3 | H147: 6 | I147: 53 | J147: 24 | K147: 40
B148: LA OROTAVA | C148: 0 | D148: 56 | E148: 58 | F148: 1 | G148: 0 | H148: 6 | I148: 20 | J148: 18 | K148: 32
B149: LOS LLANOS DE ARIDANE | C149: 0 | D149: 12 | E149: 8 | F149: 0 | G149: 1 | H149: 6 | I149: 8 | J149: 7 | K149: 7
B150: PUERTO DE LA CRUZ | C150: 0 | D150: 10 | E150: 7 | F150: 0 | G150: 0 | H150: 1 | I150: 5 | J150: 1 | K150: 7
B151: GÜIMAR | C151: 0 | D151: 30 | E151: 10 | F151: 0 | G151: 2 | H151: 8 | I151: 11 | J151: 12 | K151: 13
B152: ARONA | C152: 0 | D152: 45 | E152: 46 | F152: 1 | G152: 0 | H152: 2 | I152: 9 | J152: 16 | K152: 30
B153: TORRELAVEGA | C153: 0 | D153: 49 | E153: 24 | F153: 4 | G153: 2 | H153: 9 | I153: 31 | J153: 12 | K153: 11
B154: LAREDO | C154: 0 | D154: 16 | E154: 5 | F154: 0 | G154: 0 | H154: 1 | I154: 9 | J154: 5 | K154: 6
B155: SANTANDER | C155: 0 | D155: 91 | E155: 61 | F155: 9 | G155: 1 | H155: 22 | I155: 51 | J155: 39 | K155: 35
B156: SAN VICENTE DE LA BARQUERA | C156: 0 | D156: 7 | E156: 7 | F156: 0 | G156: 0 | H156: 1 | I156: 1 | J156: 0 | K156: 0
B157: REINOSA | C157: 0 | D157: 4 | E157: 1 | F157: 0 | G157: 0 | H157: 1 | I157: 1 | J157: 0 | K157: 3
B158: SANTOÑA | C158: 0 | D158: 17 | E158: 7 | F158: 1 | G158: 0 | H158: 0 | I158: 6 | J158: 3 | K158: 3
B159: MEDIO CUDEYO | C159: 0 | D159: 13 | E159: 7 | F159: 2 | G159: 1 | H159: 3 | I159: 5 | J159: 6 | K159: 5
B160: CASTRO URDIALES | C160: 0 | D160: 19 | E160: 5 | F160: 1 | G160: 0 | H160: 9 | I160: 10 | J160: 1 | K160: 4
B161: AREVALO | C161: 0 | D161: 1 | E161: 2 | F161: 1 | G161: 0 | H161: 2 | I161: 1 | J161: 0 | K161: 5
B162: ARENAS DE SAN PEDRO | C162: 0 | D162: 10 | E162: 6 | F162: 0 | G162: 0 | H162: 1 | I162: 2 | J162: 2 | K162: 1
B163: AVILA | C163: 0 | D163: 26 | E163: 21 | F163: 1 | G163: 0 | H163: 4 | I163: 11 | J163: 4 | K163: 13
B164: PIEDRAHITA | C164: 0 | D164: 3 | E164: 1 | F164: 0 | G164: 0 | H164: 1 | I164: 1 | J164: 0 | K164: 1
B165: BURGOS | C165: 0 | D165: 66 | E165: 36 | F165: 4 | G165: 1 | H165: 8 | I165: 30 | J165: 8 | K165: 33
B166: ARANDA DE DUERO | C166: 1 | D166: 11 | E166: 9 | F166: 0 | G166: 1 | H166: 3 | I166: 11 | J166: 0 | K166: 7
B167: VILLARCAYO | C167: 0 | D167: 5 | E167: 5 | F167: 2 | G167: 0 | H167: 1 | I167: 5 | J167: 1 | K167: 0
B168: MIRANDA DE EBRO | C168: 0 | D168: 7 | E168: 7 | F168: 0 | G168: 0 | H168: 1 | I168: 4 | J168: 1 | K168: 5
B169: LERMA | C169: 0 | D169: 1 | E169: 3 | F169: 0 | G169: 0 | H169: 0 | I169: 1 | J169: 0 | K169: 3
B170: BRIVIESCA | C170: 0 | D170: 0 | E170: 4 | F170: 0 | G170: 0 | H170: 0 | I170: 0 | J170: 0 | K170: 1
B171: SALAS DE LOS INFANTES | C171: 0 | D171: 0 | E171: 0 | F171: 0 | G171: 0 | H171: 1 | I171: 0 | J171: 0 | K171: 0
B172: SAHAGUN | C172: 0 | D172: 1 | E172: 0 | F172: 0 | G172: 0 | H172: 0 | I172: 0 | J172: 0 | K172: 1
B173: LEON | C173: 1 | D173: 57 | E173: 90 | F173: 4 | G173: 4 | H173: 13 | I173: 45 | J173: 19 | K173: 30
B174: LA BAÑEZA | C174: 0 | D174: 5 | E174: 1 | F174: 0 | G174: 0 | H174: 3 | I174: 2 | J174: 1 | K174: 2
B175: PONFERRADA | C175: 0 | D175: 31 | E175: 27 | F175: 5 | G175: 0 | H175: 8 | I175: 32 | J175: 10 | K175: 15
B176: ASTORGA | C176: 0 | D176: 8 | E176: 8 | F176: 1 | G176: 0 | H176: 1 | I176: 4 | J176: 5 | K176: 2
B177: CISTIERNA | C177: 0 | D177: 2 | E177: 2 | F177: 0 | G177: 0 | H177: 1 | I177: 0 | J177: 0 | K177: 0
B178: VILLABLINO | C178: 0 | D178: 2 | E178: 1 | F178: 2 | G178: 1 | H178: 1 | I178: 0 | J178: 0 | K178: 2
B179: PALENCIA | C179: 0 | D179: 33 | E179: 30 | F179: 2 | G179: 0 | H179: 8 | I179: 34 | J179: 8 | K179: 13
B180: CARRION DE LOS CONDES | C180: 0 | D180: 3 | E180: 6 | F180: 0 | G180: 0 | H180: 1 | I180: 0 | J180: 0 | K180: 0
B181: CERVERA DE PISUERGA | C181: 0 | D181: 4 | E181: 7 | F181: 0 | G181: 0 | H181: 0 | I181: 0 | J181: 1 | K181: 0
B182: SALAMANCA | C182: 0 | D182: 78 | E182: 46 | F182: 3 | G182: 1 | H182: 10 | I182: 52 | J182: 12 | K182: 5
B183: CIUDAD RODRIGO | C183: 0 | D183: 7 | E183: 9 | F183: 1 | G183: 0 | H183: 0 | I183: 3 | J183: 2 | K183: 2
B184: VITIGUDINO | C184: 0 | D184: 1 | E184: 3 | F184: 1 | G184: 0 | H184: 0 | I184: 1 | J184: 1 | K184: 1
B185: BEJAR | C185: 0 | D185: 11 | E185: 3 | F185: 0 | G185: 1 | H185: 2 | I185: 8 | J185: 1 | K185: 3
B186: PEÑARANDA DE BRACAMONTE | C186: 0 | D186: 1 | E186: 0 | F186: 0 | G186: 0 | H186: 0 | I186: 1 | J186: 2 | K186: 0
B187: SEGOVIA | C187: 0 | D187: 30 | E187: 14 | F187: 2 | G187: 1 | H187: 1 | I187: 27 | J187: 3 | K187: 13
B188: CUELLAR | C188: 0 | D188: 3 | E188: 2 | F188: 1 | G188: 0 | H188: 0 | I188: 1 | J188: 4 | K188: 0
B189: SEPULVEDA | C189: 0 | D189: 1 | E189: 0 | F189: 0 | G189: 0 | H189: 0 | I189: 3 | J189: 0 | K189: 1
B190: SANTA MARIA LA REAL DE NIEVA | C190: 0 | D190: 3 | E190: 2 | F190: 0 | G190: 0 | H190: 0 | I190: 3 | J190: 0 | K190: 0
B191: ALMAZAN | C191: 0 | D191: 2 | E191: 1 | F191: 0 | G191: 0 | H191: 0 | I191: 0 | J191: 0 | K191: 0
B192: BURGO DE OSMA | C192: 0 | D192: 1 | E192: 0 | F192: 0 | G192: 0 | H192: 0 | I192: 2 | J192: 0 | K192: 2
B193: SORIA | C193: 0 | D193: 10 | E193: 7 | F193: 0 | G193: 0 | H193: 1 | I193: 10 | J193: 6 | K193: 5
B194: VALLADOLID | C194: 0 | D194: 147 | E194: 104 | F194: 7 | G194: 3 | H194: 49 | I194: 83 | J194: 32 | K194: 51
B195: MEDINA DEL CAMPO | C195: 0 | D195: 11 | E195: 7 | F195: 0 | G195: 0 | H195: 3 | I195: 9 | J195: 2 | K195: 4
B196: MEDINA DE RIOSECO | C196: 0 | D196: 0 | E196: 0 | F196: 0 | G196: 0 | H196: 0 | I196: 0 | J196: 1 | K196: 0
B197: TORO | C197: 0 | D197: 2 | E197: 3 | F197: 0 | G197: 0 | H197: 1 | I197: 2 | J197: 0 | K197: 1
B198: ZAMORA | C198: 0 | D198: 28 | E198: 24 | F198: 5 | G198: 2 | H198: 8 | I198: 22 | J198: 12 | K198: 11
B199: BENAVENTE | C199: 0 | D199: 5 | E199: 10 | F199: 0 | G199: 1 | H199: 2 | I199: 4 | J199: 1 | K199: 2
B200: PUEBLA DE SANABRIA | C200: 0 | D200: 2 | E200: 3 | F200: 0 | G200: 0 | H200: 1 | I200: 1 | J200: 1 | K200: 1
B201: VILLALPANDO | C201: 0 | D201: 3 | E201: 2 | F201: 0 | G201: 0 | H201: 0 | I201: 0 | J201: 0 | K201: 2
B202: ALBACETE | C202: 0 | D202: 75 | E202: 46 | F202: 11 | G202: 1 | H202: 12 | I202: 45 | J202: 15 | K202: 16
... 236 more rows

Sheet Modif. medidas consens. TSJ
N1: Inicio
A2: Modificación de medidas consensuadas clasificadas por Tribunal Superior de Justicia
C4: 07-T1 | D4: 07-T2 | E4: 07-T3 | F4: 07-T4 | G4: 08-T1 | H4: 08-T2 | I4: 08-T3 | J4: 08-T4 | K4: 09-T1 | L4: 09-T2 | M4: 09-T3 | N4: 09-T4 | O4: 10-T1 | P4: 10-T2 | Q4: 10-T3 | R4: 10-T4 | S4: 11-T1 | T4: 11-T2 | U4: 11-T3 | V4: 11-T4 | W4: 12-T1 | X4: 12-T2 | Y4: 12-T3 | Z4: 12-T4 | AA4: 13-T1 | AB4: 13-T2 | AC4: 13-T3 | AD4: 13-T4 | AE4: 14-T1 | AF4: 14-T2 | AG4: 14-T3 | AH4: 14-T4 | AI4: 15-T1 | AJ4: 15-T2 | AK4: 15-T3 | AL4: 15-T4 | AM4: 16-T1 | AN4: 16-T2 | AO4: 16-T3 | AP4: 16-T4 | AQ4: 17-T1 | AR4: 17-T2 | AS4: 17-T3 | AT4: 17-T4 | AU4: 18-T1 | AV4: Total 2007 | AW4: Total 2008 | AX4: Total 2009 | AY4: Total 2010 | AZ4: Total 2011 | BA4: Total 2012 | BB4: Total 2013 | BC4: Total 2014 | BD4: Total 2015 | BE4: Total 2016 | BF4: Total 2017
B5: ANDALUCIA | C5: 146 | D5: 126 | E5: 97 | F5: 140 | G5: 150 | H5: 164 | I5: 97 | J5: 166 | K5: 170 | L5: 213 | M5: 146 | N5: 185 | O5: 177 | P5: 217 | Q5: 151 | R5: 231 | S5: 214 | T5: 206 | U5: 209 | V5: 304 | W5: 250 | X5: 312 | Y5: 198 | Z5: 300 | AA5: 315 | AB5: 360 | AC5: 278 | AD5: 382 | AE5: 436 | AF5: 412 | AG5: 336 | AH5: 433 | AI5: 416 | AJ5: 429 | AK5: 327 | AL5: 395 | AM5: 355 | AN5: 433 | AO5: 298 | AP5: 414 | AQ5: 452 | AR5: 428 | AS5: 347 | AT5: 481 | AU5: 456 | AV5: =+C5+D5+E5+F5 -> 509 | AW5: =+G5+H5+I5+J5 -> 577 | AX5: =+K5+L5+M5+N5 -> 714 | AY5: =+O5+P5+Q5+R5 -> 776 | AZ5: =+S5+T5+U5+V5 -> 933 | BA5: =+W5+X5+Y5+Z5 -> 1060 | BB5: =+AA5+AB5+AC5+AD5 -> 1335 | BC5: =+AE5+AF5+AG5+AH5 -> 1617 | BD5: =+AI5+AJ5+AK5+AL5 -> 1567 | BE5: =+AM5+AN5+AO5+AP5 -> 1500 | BF5: =+AQ5+AR5+AS5+AT5 -> 1708
B6: ARAGON | C6: 29 | D6: 32 | E6: 23 | F6: 34 | G6: 26 | H6: 29 | I6: 28 | J6: 30 | K6: 42 | L6: 40 | M6: 32 | N6: 30 | O6: 27 | P6: 37 | Q6: 30 | R6: 46 | S6: 69 | T6: 61 | U6: 49 | V6: 71 | W6: 63 | X6: 71 | Y6: 68 | Z6: 42 | AA6: 45 | AB6: 61 | AC6: 46 | AD6: 57 | AE6: 65 | AF6: 68 | AG6: 48 | AH6: 59 | AI6: 58 | AJ6: 58 | AK6: 56 | AL6: 68 | AM6: 76 | AN6: 75 | AO6: 49 | AP6: 63 | AQ6: 83 | AR6: 86 | AS6: 52 | AT6: 76 | AU6: 107 | AV6: 118 | AW6: 113 | AX6: 144 | AY6: 140 | AZ6: 250 | BA6: 244 | BB6: 209 | BC6: 240 | BD6: 240 | BE6: 263 | BF6: 297
B7: ASTURIAS | C7: 32 | D7: 21 | E7: 21 | F7: 30 | G7: 25 | H7: 36 | I7: 22 | J7: 31 | K7: 38 | L7: 28 | M7: 19 | N7: 39 | O7: 34 | P7: 37 | Q7: 30 | R7: 44 | S7: 35 | T7: 54 | U7: 31 | V7: 49 | W7: 50 | X7: 51 | Y7: 26 | Z7: 69 | AA7: 60 | AB7: 54 | AC7: 31 | AD7: 66 | AE7: 60 | AF7: 63 | AG7: 66 | AH7: 85 | AI7: 79 | AJ7: 88 | AK7: 68 | AL7: 82 | AM7: 71 | AN7: 85 | AO7: 72 | AP7: 71 | AQ7: 81 | AR7: 88 | AS7: 53 | AT7: 90 | AU7: 85 | AV7: 104 | AW7: 114 | AX7: 124 | AY7: 145 | AZ7: 169 | BA7: 196 | BB7: 211 | BC7: 274 | BD7: 317 | BE7: 299 | BF7: 312
B8: ILLES BALEARS | C8: 50 | D8: 35 | E8: 35 | F8: 38 | G8: 22 | H8: 47 | I8: 22 | J8: 49 | K8: 44 | L8: 60 | M8: 42 | N8: 51 | O8: 51 | P8: 54 | Q8: 39 | R8: 51 | S8: 62 | T8: 51 | U8: 43 | V8: 56 | W8: 54 | X8: 85 | Y8: 69 | Z8: 67 | AA8: 66 | AB8: 68 | AC8: 74 | AD8: 91 | AE8: 80 | AF8: 107 | AG8: 75 | AH8: 112 | AI8: 86 | AJ8: 127 | AK8: 84 | AL8: 109 | AM8: 85 | AN8: 111 | AO8: 71 | AP8: 93 | AQ8: 112 | AR8: 112 | AS8: 73 | AT8: 125 | AU8: 111 | AV8: 158 | AW8: 140 | AX8: 197 | AY8: 195 | AZ8: 212 | BA8: 275 | BB8: 299 | BC8: 374 | BD8: 406 | BE8: 360 | BF8: 422
B9: CANARIAS | C9: 31 | D9: 51 | E9: 28 | F9: 38 | G9: 37 | H9: 55 | I9: 45 | J9: 49 | K9: 42 | L9: 44 | M9: 53 | N9: 41 | O9: 52 | P9: 65 | Q9: 58 | R9: 68 | S9: 81 | T9: 100 | U9: 82 | V9: 89 | W9: 115 | X9: 128 | Y9: 65 | Z9: 105 | AA9: 87 | AB9: 130 | AC9: 89 | AD9: 135 | AE9: 109 | AF9: 142 | AG9: 96 | AH9: 139 | AI9: 150 | AJ9: 182 | AK9: 121 | AL9: 140 | AM9: 140 | AN9: 185 | AO9: 91 | AP9: 128 | AQ9: 149 | AR9: 146 | AS9: 111 | AT9: 159 | AU9: 162 | AV9: 148 | AW9: 186 | AX9: 180 | AY9: 243 | AZ9: 352 | BA9: 413 | BB9: 441 | BC9: 486 | BD9: 593 | BE9: 544 | BF9: 565
B10: CANTABRIA | C10: 10 | D10: 10 | E10: 12 | F10: 13 | G10: 6 | H10: 14 | I10: 11 | J10: 8 | K10: 7 | L10: 9 | M10: 6 | N10: 9 | O10: 8 | P10: 13 | Q10: 9 | R10: 11 | S10: 16 | T10: 14 | U10: 15 | V10: 23 | W10: 11 | X10: 12 | Y10: 16 | Z10: 17 | AA10: 25 | AB10: 21 | AC10: 21 | AD10: 26 | AE10: 26 | AF10: 25 | AG10: 32 | AH10: 35 | AI10: 21 | AJ10: 29 | AK10: 32 | AL10: 23 | AM10: 24 | AN10: 42 | AO10: 21 | AP10: 39 | AQ10: 45 | AR10: 42 | AS10: 23 | AT10: 44 | AU10: 46 | AV10: 45 | AW10: 39 | AX10: 31 | AY10: 41 | AZ10: 68 | BA10: 56 | BB10: 93 | BC10: 118 | BD10: 105 | BE10: 126 | BF10: 154
B11: CASTILLA Y LEON | C11: 23 | D11: 28 | E11: 13 | F11: 30 | G11: 18 | H11: 31 | I11: 28 | J11: 35 | K11: 33 | L11: 40 | M11: 25 | N11: 53 | O11: 52 | P11: 49 | Q11: 30 | R11: 51 | S11: 55 | T11: 60 | U11: 32 | V11: 51 | W11: 63 | X11: 63 | Y11: 41 | Z11: 79 | AA11: 64 | AB11: 89 | AC11: 51 | AD11: 99 | AE11: 79 | AF11: 92 | AG11: 87 | AH11: 104 | AI11: 101 | AJ11: 93 | AK11: 92 | AL11: 94 | AM11: 93 | AN11: 124 | AO11: 57 | AP11: 123 | AQ11: 109 | AR11: 116 | AS11: 88 | AT11: 129 | AU11: 136 | AV11: 94 | AW11: 112 | AX11: 151 | AY11: 182 | AZ11: 198 | BA11: 246 | BB11: 303 | BC11: 362 | BD11: 380 | BE11: 397 | BF11: 442
B12: CASTILLA LA MANCHA | C12: 18 | D12: 27 | E12: 11 | F12: 25 | G12: 15 | H12: 26 | I12: 16 | J12: 30 | K12: 28 | L12: 27 | M12: 24 | N12: 25 | O12: 21 | P12: 38 | Q12: 25 | R12: 31 | S12: 39 | T12: 44 | U12: 31 | V12: 46 | W12: 68 | X12: 34 | Y12: 66 | Z12: 53 | AA12: 64 | AB12: 86 | AC12: 54 | AD12: 73 | AE12: 69 | AF12: 63 | AG12: 50 | AH12: 60 | AI12: 62 | AJ12: 61 | AK12: 60 | AL12: 70 | AM12: 87 | AN12: 81 | AO12: 50 | AP12: 76 | AQ12: 105 | AR12: 83 | AS12: 64 | AT12: 96 | AU12: 95 | AV12: 81 | AW12: 87 | AX12: 104 | AY12: 115 | AZ12: 160 | BA12: 221 | BB12: 277 | BC12: 242 | BD12: 253 | BE12: 294 | BF12: 348
B13: CATALUÑA | C13: 177 | D13: 221 | E13: 155 | F13: 201 | G13: 206 | H13: 262 | I13: 197 | J13: 225 | K13: 275 | L13: 285 | M13: 252 | N13: 276 | O13: 283 | P13: 314 | Q13: 242 | R13: 358 | S13: 348 | T13: 365 | U13: 318 | V13: 388 | W13: 402 | X13: 439 | Y13: 328 | Z13: 450 | AA13: 505 | AB13: 469 | AC13: 344 | AD13: 520 | AE13: 488 | AF13: 530 | AG13: 429 | AH13: 534 | AI13: 590 | AJ13: 576 | AK13: 455 | AL13: 613 | AM13: 569 | AN13: 708 | AO13: 431 | AP13: 618 | AQ13: 661 | AR13: 602 | AS13: 477 | AT13: 592 | AU13: 586 | AV13: 754 | AW13: 890 | AX13: 1088 | AY13: 1197 | AZ13: 1419 | BA13: 1619 | BB13: 1838 | BC13: 1981 | BD13: 2234 | BE13: 2326 | BF13: 2332
B14: COMUNITAT VALENCIANA | C14: 99 | D14: 98 | E14: 90 | F14: 111 | G14: 122 | H14: 110 | I14: 89 | J14: 116 | K14: 111 | L14: 123 | M14: 108 | N14: 133 | O14: 143 | P14: 170 | Q14: 156 | R14: 189 | S14: 181 | T14: 238 | U14: 143 | V14: 197 | W14: 207 | X14: 222 | Y14: 209 | Z14: 248 | AA14: 269 | AB14: 274 | AC14: 213 | AD14: 265 | AE14: 282 | AF14: 310 | AG14: 244 | AH14: 308 | AI14: 299 | AJ14: 322 | AK14: 261 | AL14: 346 | AM14: 323 | AN14: 386 | AO14: 284 | AP14: 371 | AQ14: 363 | AR14: 330 | AS14: 221 | AT14: 306 | AU14: 311 | AV14: 398 | AW14: 437 | AX14: 475 | AY14: 658 | AZ14: 759 | BA14: 886 | BB14: 1021 | BC14: 1144 | BD14: 1228 | BE14: 1364 | BF14: 1220
B15: EXTREMADURA | C15: 8 | D15: 16 | E15: 6 | F15: 15 | G15: 12 | H15: 13 | I15: 26 | J15: 23 | K15: 21 | L15: 28 | M15: 9 | N15: 20 | O15: 18 | P15: 29 | Q15: 17 | R15: 30 | S15: 25 | T15: 16 | U15: 21 | V15: 24 | W15: 23 | X15: 29 | Y15: 25 | Z15: 31 | AA15: 34 | AB15: 46 | AC15: 39 | AD15: 50 | AE15: 28 | AF15: 35 | AG15: 28 | AH15: 31 | AI15: 38 | AJ15: 49 | AK15: 38 | AL15: 43 | AM15: 54 | AN15: 60 | AO15: 33 | AP15: 47 | AQ15: 40 | AR15: 46 | AS15: 47 | AT15: 35 | AU15: 65 | AV15: 45 | AW15: 74 | AX15: 78 | AY15: 94 | AZ15: 86 | BA15: 108 | BB15: 169 | BC15: 122 | BD15: 168 | BE15: 194 | BF15: 168
B16: GALICIA | C16: 45 | D16: 36 | E16: 36 | F16: 41 | G16: 46 | H16: 54 | I16: 32 | J16: 38 | K16: 34 | L16: 55 | M16: 28 | N16: 59 | O16: 46 | P16: 55 | Q16: 48 | R16: 58 | S16: 72 | T16: 82 | U16: 66 | V16: 76 | W16: 82 | X16: 99 | Y16: 71 | Z16: 103 | AA16: 102 | AB16: 97 | AC16: 81 | AD16: 123 | AE16: 89 | AF16: 153 | AG16: 98 | AH16: 155 | AI16: 130 | AJ16: 136 | AK16: 110 | AL16: 137 | AM16: 112 | AN16: 155 | AO16: 100 | AP16: 175 | AQ16: 129 | AR16: 141 | AS16: 112 | AT16: 162 | AU16: 108 | AV16: 158 | AW16: 170 | AX16: 176 | AY16: 207 | AZ16: 296 | BA16: 355 | BB16: 403 | BC16: 495 | BD16: 513 | BE16: 542 | BF16: 544
B17: MADRID | C17: 106 | D17: 99 | E17: 64 | F17: 112 | G17: 105 | H17: 118 | I17: 72 | J17: 106 | K17: 88 | L17: 119 | M17: 81 | N17: 104 | O17: 122 | P17: 170 | Q17: 125 | R17: 142 | S17: 196 | T17: 164 | U17: 104 | V17: 162 | W17: 212 | X17: 155 | Y17: 151 | Z17: 181 | AA17: 157 | AB17: 193 | AC17: 159 | AD17: 224 | AE17: 222 | AF17: 230 | AG17: 205 | AH17: 267 | AI17: 228 | AJ17: 253 | AK17: 218 | AL17: 234 | AM17: 242 | AN17: 313 | AO17: 255 | AP17: 255 | AQ17: 267 | AR17: 287 | AS17: 193 | AT17: 292 | AU17: 266 | AV17: 381 | AW17: 401 | AX17: 392 | AY17: 559 | AZ17: 626 | BA17: 699 | BB17: 733 | BC17: 924 | BD17: 933 | BE17: 1065 | BF17: 1039
B18: MURCIA | C18: 17 | D18: 26 | E18: 18 | F18: 24 | G18: 12 | H18: 29 | I18: 19 | J18: 34 | K18: 28 | L18: 19 | M18: 10 | N18: 20 | O18: 24 | P18: 42 | Q18: 35 | R18: 35 | S18: 37 | T18: 36 | U18: 31 | V18: 48 | W18: 44 | X18: 56 | Y18: 33 | Z18: 67 | AA18: 46 | AB18: 60 | AC18: 39 | AD18: 56 | AE18: 58 | AF18: 59 | AG18: 49 | AH18: 67 | AI18: 57 | AJ18: 68 | AK18: 56 | AL18: 75 | AM18: 64 | AN18: 92 | AO18: 57 | AP18: 79 | AQ18: 59 | AR18: 74 | AS18: 72 | AT18: 76 | AU18: 82 | AV18: 85 | AW18: 94 | AX18: 77 | AY18: 136 | AZ18: 152 | BA18: 200 | BB18: 201 | BC18: 233 | BD18: 256 | BE18: 292 | BF18: 281
B19: NAVARRA | C19: 6 | D19: 21 | E19: 5 | F19: 11 | G19: 22 | H19: 18 | I19: 19 | J19: 14 | K19: 23 | L19: 24 | M19: 14 | N19: 22 | O19: 20 | P19: 24 | Q19: 14 | R19: 20 | S19: 21 | T19: 21 | U19: 21 | V19: 14 | W19: 20 | X19: 25 | Y19: 19 | Z19: 31 | AA19: 25 | AB19: 24 | AC19: 16 | AD19: 33 | AE19: 30 | AF19: 36 | AG19: 23 | AH19: 34 | AI19: 26 | AJ19: 32 | AK19: 26 | AL19: 28 | AM19: 25 | AN19: 26 | AO19: 13 | AP19: 32 | AQ19: 38 | AR19: 29 | AS19: 22 | AT19: 35 | AU19: 73 | AV19: 43 | AW19: 73 | AX19: 83 | AY19: 78 | AZ19: 77 | BA19: 95 | BB19: 98 | BC19: 123 | BD19: 112 | BE19: 96 | BF19: 124
B20: PAIS VASCO | C20: 43 | D20: 55 | E20: 28 | F20: 36 | G20: 36 | H20: 53 | I20: 39 | J20: 48 | K20: 36 | L20: 45 | M20: 37 | N20: 44 | O20: 55 | P20: 59 | Q20: 46 | R20: 67 | S20: 47 | T20: 79 | U20: 51 | V20: 67 | W20: 70 | X20: 65 | Y20: 40 | Z20: 58 | AA20: 56 | AB20: 82 | AC20: 63 | AD20: 92 | AE20: 76 | AF20: 78 | AG20: 59 | AH20: 141 | AI20: 131 | AJ20: 123 | AK20: 76 | AL20: 120 | AM20: 123 | AN20: 142 | AO20: 87 | AP20: 148 | AQ20: 158 | AR20: 181 | AS20: 118 | AT20: 157 | AU20: 142 | AV20: 162 | AW20: 176 | AX20: 162 | AY20: 227 | AZ20: 244 | BA20: 233 | BB20: 293 | BC20: 354 | BD20: 450 | BE20: 500 | BF20: 614
B21: LA RIOJA | C21: 4 | D21: 6 | E21: 4 | F21: 6 | G21: 2 | H21: 1 | I21: 3 | J21: 2 | K21: 2 | L21: 0 | M21: 5 | N21: 0 | O21: 1 | P21: 0 | Q21: 1 | R21: 1 | S21: 1 | T21: 2 | U21: 2 | V21: 7 | W21: 2 | X21: 1 | Y21: 4 | Z21: 2 | AA21: 5 | AB21: 4 | AC21: 4 | AD21: 6 | AE21: 6 | AF21: 8 | AG21: 4 | AH21: 3 | AI21: 11 | AJ21: 18 | AK21: 12 | AL21: 9 | AM21: 12 | AN21: 14 | AO21: 14 | AP21: 12 | AQ21: 8 | AR21: 13 | AS21: 9 | AT21: 17 | AU21: 15 | AV21: 20 | AW21: 8 | AX21: 7 | AY21: 3 | AZ21: 12 | BA21: 9 | BB21: 19 | BC21: 21 | BD21: 50 | BE21: 52 | BF21: 47
B22: TOTAL | C22: =SUM(C5:C21) -> 844 | D22: 908 | E22: 646 | F22: 905 | G22: 862 | H22: 1060 | I22: 765 | J22: =SUM(J5:J21) -> 1004 | K22: 1022 | L22: 1159 | M22: 891 | N22: 1111 | O22: 1134 | P22: 1373 | Q22: 1056 | R22: 1433 | S22: 1499 | T22: 1593 | U22: 1249 | V22: 1672 | W22: 1736 | X22: 1847 | Y22: 1429 | Z22: 1903 | AA22: =SUM(AA5:AA21) -> 1925 | AB22: 2118 | AC22: 1602 | AD22: 2298 | AE22: 2203 | AF22: 2411 | AG22: =SUM(AG5:AG21) -> 1929 | AH22: 2567 | AI22: 2483 | AJ22: 2644 | AK22: 2092 | AL22: 2586 | AM22: =SUM(AM5:AM21) -> 2455 | AN22: 3032 | AO22: 1983 | AP22: 2744 | AQ22: 2859 | AR22: 2804 | AS22: 2082 | AT22: =SUM(AT5:AT21) -> 2872 | AU22: =SUM(AU5:AU21) -> 2846 | AV22: 3303 | AW22: 3691 | AX22: 4183 | AY22: 4996 | AZ22: 6013 | BA22: 6915 | BB22: 7943 | BC22: 9110 | BD22: 9805 | BE22: 10214 | BF22: 10617
C25: Evolución 08-T1 | D25: Evolución 08-T2 | E25: Evolución 08-T3 | F25: Evolución 08-T4 | G25: Evolución 09-T1 | H25: Evolución 09-T2 | I25: Evolución 09-T3 | J25: Evolución 09-T4 | K25: Evolución 10-T1 | L25: Evolución 10-T2 | M25: Evolución 10-T3 | N25: Evolución 10-T4 | O25: Evolución 11-T1 | P25: Evolución 11-T2 | Q25: Evolución 11-T3 | R25: Evolución 11-T4 | S25: Evolución 12-T1 | T25: Evolución 12-T2 | U25: Evolución 12-T3 | V25: Evolución 12-T4 | W25: Evolución 13-T1 | X25: Evolución 13-T2 | Y25: Evolución 13-T3 | Z25: Evolución 13-T4 | AA25: Evolución 14-T1 | AB25: Evolución 14-T2 | AC25: Evolución 14-T3 | AD25: Evolución 14-T4 | AE25: Evolución 15-T1 | AF25: Evolución 15-T2 | AG25: Evolución 15-T3 | AH25: Evolución 15-T4 | AI25: Evolución 16-T1 | AJ25: Evolución 16-T2 | AK25: Evolución 16-T3 | AL25: Evolución 16-T4 | AM25: Evolución 17-T1 | AN25: Evolución 17-T2 | AO25: Evolución 17-T3 | AP25: Evolución 17-T4 | AQ25: Evolución 18-T1 | AR25: Evolución 2007-2008 | AS25: Evolución 2008-2009 | AT25: Evolución 2009-2010 | AU25: Evolución 2010-2011 | AV25: Evolución 2011-2012 | AW25: Evolución 2012-2013 | AX25: Evolución 2013-2014 | AY25: Evolución 2014-2015 | AZ25: Evolución 2015-2016 | BA25: Evolución 2016-2017
B26: ANDALUCIA | C26: =+(G5-C5)/C5 -> 0.02739726027 | D26: 0.3015873016 | E26: 0 | F26: 0.1857142857 | G26: 0.1333333333 | H26: 0.2987804878 | I26: 0.5051546392 | J26: 0.1144578313 | K26: 0.04117647059 | L26: 0.01877934272 | M26: 0.03424657534 | N26: 0.2486486486 | O26: 0.209039548 | P26: -0.05069124424 | Q26: 0.3841059603 | R26: 0.316017316 | S26: 0.1682242991 | T26: 0.5145631068 | U26: -0.05263157895 | V26: -0.01315789474 | W26: 0.26 | X26: =+(AB5-X5)/X5 -> 0.1538461538 | Y26: 0.404040404 | Z26: 0.2733333333 | AA26: 0.3841269841 | AB26: 0.1444444444 | AC26: 0.2086330935 | AD26: 0.1335078534 | AE26: -0.04587155963 | AF26: 0.04126213592 | AG26: -0.02678571429 | AH26: -0.08775981524 | AI26: =+(AM5-AI5)/AI5 -> -0.1466346154 | AJ26: 0.009324009324 | AK26: -0.08868501529 | AL26: 0.04810126582 | AM26: 0.2732394366 | AN26: -0.01154734411 | AO26: 0.1644295302 | AP26: 0.1618357488 | AQ26: 0.008849557522 | AR26: =+(AW5-AV5)/AV5 -> 0.1335952849 | AS26: 0.2374350087 | AT26: 0.08683473389 | AU26: 0.2023195876 | AV26: 0.1361200429 | AW26: 0.2594339623 | AX26: 0.2112359551 | AY26: -0.03092145949 | AZ26: -0.04275686024 | BA26: 0.1386666667
B27: ARAGON | C27: =+(G6-C6)/C6 -> -0.1034482759 | D27: =+(H6-D6)/D6 -> -0.09375 | E27: =+(I6-E6)/E6 -> 0.2173913043 | F27: =+(J6-F6)/F6 -> -0.1176470588 | G27: =+(K6-G6)/G6 -> 0.6153846154 | H27: =+(L6-H6)/H6 -> 0.3793103448 | I27: =+(M6-I6)/I6 -> 0.1428571429 | J27: =+(N6-J6)/J6 -> 0 | K27: =+(O6-K6)/K6 -> -0.3571428571 | L27: =+(P6-L6)/L6 -> -0.075 | M27: =+(Q6-M6)/M6 -> -0.0625 | N27: =+(R6-N6)/N6 -> 0.5333333333 | O27: =+(S6-O6)/O6 -> 1.555555556 | P27: =+(T6-P6)/P6 -> 0.6486486486 | Q27: =+(U6-Q6)/Q6 -> 0.6333333333 | R27: =+(V6-R6)/R6 -> 0.5434782609 | S27: =+(W6-S6)/S6 -> -0.08695652174 | T27: =+(X6-T6)/T6 -> 0.1639344262 | U27: =+(Y6-U6)/U6 -> 0.387755102 | V27: =+(Z6-V6)/V6 -> -0.4084507042 | W27: =+(AA6-W6)/W6 -> -0.2857142857 | X27: =+(AB6-X6)/X6 -> -0.1408450704 | Y27: =+(AC6-Y6)/Y6 -> -0.3235294118 | Z27: =+(AD6-Z6)/Z6 -> 0.3571428571 | AA27: =+(AE6-AA6)/AA6 -> 0.4444444444 | AB27: =+(AF6-AB6)/AB6 -> 0.1147540984 | AC27: =+(AG6-AC6)/AC6 -> 0.04347826087 | AD27: =+(AH6-AD6)/AD6 -> 0.0350877193 | AE27: =+(AI6-AE6)/AE6 -> -0.1076923077 | AF27: =+(AJ6-AF6)/AF6 -> -0.1470588235 | AG27: =+(AK6-AG6)/AG6 -> 0.1666666667 | AH27: =+(AL6-AH6)/AH6 -> 0.1525423729 | AI27: 0.3103448276 | AJ27: 0.2931034483 | AK27: -0.125 | AL27: -0.07352941176 | AM27: 0.09210526316 | AN27: 0.1466666667 | AO27: 0.0612244898 | AP27: 0.2063492063 | AQ27: 0.2891566265 | AR27: =+(AW6-AV6)/AV6 -> -0.04237288136 | AS27: =+(AX6-AW6)/AW6 -> 0.2743362832 | AT27: =+(AY6-AX6)/AX6 -> -0.02777777778 | AU27: =+(AZ6-AY6)/AY6 -> 0.7857142857 | AV27: =+(BA6-AZ6)/AZ6 -> -0.024 | AW27: =+(BB6-BA6)/BA6 -> -0.143442623 | AX27: =+(BC6-BB6)/BB6 -> 0.1483253589 | AY27: =+(BD6-BC6)/BC6 -> 0 | AZ27: 0.09583333333 | BA27: 0.1292775665
B28: ASTURIAS | C28: -0.21875 | D28: 0.7142857143 | E28: 0.04761904762 | F28: 0.03333333333 | G28: 0.52 | H28: -0.2222222222 | I28: -0.1363636364 | J28: 0.2580645161 | K28: -0.1052631579 | L28: 0.3214285714 | M28: 0.5789473684 | N28: 0.1282051282 | O28: 0.02941176471 | P28: 0.4594594595 | Q28: 0.03333333333 | R28: 0.1136363636 | S28: 0.4285714286 | T28: -0.05555555556 | U28: -0.1612903226 | V28: 0.4081632653 | W28: 0.2 | X28: 0.05882352941 | Y28: 0.1923076923 | Z28: -0.04347826087 | AA28: 0 | AB28: 0.1666666667 | AC28: 1.129032258 | AD28: 0.2878787879 | AE28: 0.3166666667 | AF28: 0.3968253968 | AG28: 0.0303030303 | AH28: -0.03529411765 | AI28: -0.1012658228 | AJ28: -0.03409090909 | AK28: 0.05882352941 | AL28: -0.1341463415 | AM28: 0.1408450704 | AN28: 0.03529411765 | AO28: -0.2638888889 | AP28: 0.2676056338 | AQ28: 0.04938271605 | AR28: 0.09615384615 | AS28: 0.08771929825 | AT28: 0.1693548387 | AU28: 0.1655172414 | AV28: 0.1597633136 | AW28: 0.07653061224 | AX28: 0.2985781991 | AY28: 0.1569343066 | AZ28: -0.05678233438 | BA28: 0.04347826087
B29: ILLES BALEARS | C29: -0.56 | D29: 0.3428571429 | E29: -0.3714285714 | F29: 0.2894736842 | G29: 1 | H29: 0.2765957447 | I29: 0.9090909091 | J29: 0.04081632653 | K29: 0.1590909091 | L29: -0.1 | M29: -0.07142857143 | N29: 0 | O29: 0.2156862745 | P29: -0.05555555556 | Q29: 0.1025641026 | R29: 0.09803921569 | S29: -0.1290322581 | T29: 0.6666666667 | U29: 0.6046511628 | V29: 0.1964285714 | W29: 0.2222222222 | X29: -0.2 | Y29: 0.07246376812 | Z29: 0.3582089552 | AA29: 0.2121212121 | AB29: 0.5735294118 | AC29: 0.01351351351 | AD29: 0.2307692308 | AE29: 0.075 | AF29: 0.1869158879 | AG29: 0.12 | AH29: -0.02678571429 | AI29: -0.01162790698 | AJ29: -0.125984252 | AK29: -0.1547619048 | AL29: -0.1467889908 | AM29: 0.3176470588 | AN29: 0.009009009009 | AO29: 0.02816901408 | AP29: 0.3440860215 | AQ29: -0.008928571429 | AR29: -0.1139240506 | AS29: 0.4071428571 | AT29: -0.01015228426 | AU29: 0.08717948718 | AV29: 0.2971698113 | AW29: 0.08727272727 | AX29: 0.2508361204 | AY29: 0.08556149733 | AZ29: -0.1133004926 | BA29: 0.1722222222
B30: CANARIAS | C30: 0.1935483871 | D30: 0.07843137255 | E30: 0.6071428571 | F30: 0.2894736842 | G30: 0.1351351351 | H30: -0.2 | I30: 0.1777777778 | J30: -0.1632653061 | K30: 0.2380952381 | L30: 0.4772727273 | M30: 0.09433962264 | N30: 0.6585365854 | O30: 0.5576923077 | P30: 0.5384615385 | Q30: 0.4137931034 | R30: 0.3088235294 | S30: 0.4197530864 | T30: 0.28 | U30: -0.2073170732 | V30: 0.1797752809 | W30: -0.2434782609 | X30: 0.015625 | Y30: 0.3692307692 | Z30: 0.2857142857 | AA30: 0.2528735632 | AB30: 0.09230769231 | AC30: 0.07865168539 | AD30: 0.02962962963 | AE30: 0.376146789 | AF30: 0.2816901408 | AG30: 0.2604166667 | AH30: 0.007194244604 | AI30: -0.06666666667 | AJ30: 0.01648351648 | AK30: -0.2479338843 | AL30: -0.08571428571 | AM30: 0.06428571429 | AN30: -0.2108108108 | AO30: 0.2197802198 | AP30: 0.2421875 | AQ30: 0.08724832215 | AR30: 0.2567567568 | AS30: -0.03225806452 | AT30: 0.35 | AU30: 0.4485596708 | AV30: 0.1732954545 | AW30: 0.06779661017 | AX30: 0.1020408163 | AY30: 0.2201646091 | AZ30: -0.0826306914 | BA30: 0.03860294118
B31: CANTABRIA | C31: -0.4 | D31: 0.4 | E31: -0.08333333333 | F31: -0.3846153846 | G31: 0.1666666667 | H31: -0.3571428571 | I31: -0.4545454545 | J31: 0.125 | K31: 0.1428571429 | L31: 0.4444444444 | M31: 0.5 | N31: 0.2222222222 | O31: 1 | P31: 0.07692307692 | Q31: 0.6666666667 | R31: 1.090909091 | S31: -0.3125 | T31: -0.1428571429 | U31: 0.06666666667 | V31: -0.2608695652 | W31: 1.272727273 | X31: 0.75 | Y31: 0.3125 | Z31: 0.5294117647 | AA31: 0.04 | AB31: 0.1904761905 | AC31: 0.5238095238 | AD31: 0.3461538462 | AE31: -0.1923076923 | AF31: 0.16 | AG31: 0 | AH31: -0.3428571429 | AI31: 0.1428571429 | AJ31: 0.4482758621 | AK31: -0.34375 | AL31: 0.6956521739 | AM31: 0.875 | AN31: 0 | AO31: 0.09523809524 | AP31: 0.1282051282 | AQ31: 0.02222222222 | AR31: -0.1333333333 | AS31: -0.2051282051 | AT31: 0.3225806452 | AU31: 0.6585365854 | AV31: -0.1764705882 | AW31: 0.6607142857 | AX31: 0.2688172043 | AY31: -0.1101694915 | AZ31: 0.2 | BA31: 0.2222222222
B32: CASTILLA Y LEON | C32: -0.2173913043 | D32: 0.1071428571 | E32: 1.153846154 | F32: 0.1666666667 | G32: 0.8333333333 | H32: 0.2903225806 | I32: -0.1071428571 | J32: 0.5142857143 | K32: 0.5757575758 | L32: 0.225 | M32: 0.2 | N32: -0.03773584906 | O32: 0.05769230769 | P32: 0.2244897959 | Q32: 0.06666666667 | R32: 0 | S32: 0.1454545455 | T32: 0.05 | U32: 0.28125 | V32: 0.5490196078 | W32: 0.01587301587 | X32: 0.4126984127 | Y32: 0.243902439 | Z32: 0.253164557 | AA32: 0.234375 | AB32: 0.03370786517 | AC32: 0.7058823529 | AD32: 0.05050505051 | AE32: 0.2784810127 | AF32: 0.01086956522 | AG32: 0.05747126437 | AH32: -0.09615384615 | AI32: -0.07920792079 | AJ32: 0.3333333333 | AK32: -0.3804347826 | AL32: 0.3085106383 | AM32: 0.1720430108 | AN32: -0.06451612903 | AO32: 0.5438596491 | AP32: 0.0487804878 | AQ32: 0.247706422 | AR32: 0.1914893617 | AS32: 0.3482142857 | AT32: 0.2052980132 | AU32: 0.08791208791 | AV32: 0.2424242424 | AW32: 0.2317073171 | AX32: 0.1947194719 | AY32: 0.04972375691 | AZ32: 0.04473684211 | BA32: 0.1133501259
B33: CASTILLA LA MANCHA | C33: -0.1666666667 | D33: -0.03703703704 | E33: 0.4545454545 | F33: 0.2 | G33: 0.8666666667 | H33: 0.03846153846 | I33: 0.5 | J33: -0.1666666667 | K33: -0.25 | L33: 0.4074074074 | M33: 0.04166666667 | N33: 0.24 | O33: 0.8571428571 | P33: 0.1578947368 | Q33: 0.24 | R33: 0.4838709677 | S33: 0.7435897436 | T33: -0.2272727273 | U33: 1.129032258 | V33: 0.152173913 | W33: -0.05882352941 | X33: 1.529411765 | Y33: -0.1818181818 | Z33: 0.3773584906 | AA33: 0.078125 | AB33: -0.2674418605 | AC33: -0.07407407407 | AD33: -0.1780821918 | AE33: -0.1014492754 | AF33: -0.03174603175 | AG33: 0.2 | AH33: 0.1666666667 | AI33: 0.4032258065 | AJ33: 0.3278688525 | AK33: -0.1666666667 | AL33: 0.08571428571 | AM33: 0.2068965517 | AN33: 0.02469135802 | AO33: 0.28 | AP33: 0.2631578947 | AQ33: -0.09523809524 | AR33: 0.07407407407 | AS33: 0.1954022989 | AT33: 0.1057692308 | AU33: 0.3913043478 | AV33: 0.38125 | AW33: 0.2533936652 | AX33: -0.1263537906 | AY33: 0.04545454545 | AZ33: 0.162055336 | BA33: 0.1836734694
B34: CATALUÑA | C34: 0.1638418079 | D34: 0.185520362 | E34: 0.2709677419 | F34: 0.1194029851 | G34: 0.3349514563 | H34: 0.08778625954 | I34: 0.2791878173 | J34: 0.2266666667 | K34: 0.02909090909 | L34: 0.101754386 | M34: -0.03968253968 | N34: 0.2971014493 | O34: 0.2296819788 | P34: 0.1624203822 | Q34: 0.3140495868 | R34: 0.08379888268 | S34: 0.1551724138 | T34: 0.202739726 | U34: 0.03144654088 | V34: 0.1597938144 | W34: 0.2562189055 | X34: 0.06833712984 | Y34: 0.0487804878 | Z34: 0.1555555556 | AA34: -0.03366336634 | AB34: 0.1300639659 | AC34: 0.2470930233 | AD34: 0.02692307692 | AE34: 0.2090163934 | AF34: 0.08679245283 | AG34: 0.06060606061 | AH34: 0.1479400749 | AI34: -0.03559322034 | AJ34: 0.2291666667 | AK34: -0.05274725275 | AL34: 0.008156606852 | AM34: 0.1616871705 | AN34: -0.1497175141 | AO34: 0.1067285383 | AP34: -0.04207119741 | AQ34: -0.1134644478 | AR34: 0.1803713528 | AS34: 0.2224719101 | AT34: 0.1001838235 | AU34: 0.1854636591 | AV34: 0.140944327 | AW34: 0.1352686844 | AX34: 0.07780195865 | AY34: 0.1277132761 | AZ34: 0.04118173679 | BA34: 0.002579535684
B35: COMUNITAT VALENCIANA | C35: 0.2323232323 | D35: 0.1224489796 | E35: -0.01111111111 | F35: 0.04504504505 | G35: -0.09016393443 | H35: 0.1181818182 | I35: 0.2134831461 | J35: 0.1465517241 | K35: 0.2882882883 | L35: 0.3821138211 | M35: 0.4444444444 | N35: 0.4210526316 | O35: 0.2657342657 | P35: 0.4 | Q35: -0.08333333333 | R35: 0.04232804233 | S35: 0.1436464088 | T35: -0.06722689076 | U35: 0.4615384615 | V35: 0.2588832487 | W35: 0.2995169082 | X35: 0.2342342342 | Y35: 0.01913875598 | Z35: 0.0685483871 | AA35: 0.04832713755 | AB35: 0.1313868613 | AC35: 0.1455399061 | AD35: 0.1622641509 | AE35: 0.06028368794 | AF35: 0.03870967742 | AG35: 0.06967213115 | AH35: 0.1233766234 | AI35: 0.08026755853 | AJ35: 0.198757764 | AK35: 0.08812260536 | AL35: 0.07225433526 | AM35: 0.1238390093 | AN35: -0.1450777202 | AO35: -0.2218309859 | AP35: -0.1752021563 | AQ35: -0.1432506887 | AR35: 0.09798994975 | AS35: 0.08695652174 | AT35: 0.3852631579 | AU35: 0.1534954407 | AV35: 0.1673254282 | AW35: 0.1523702032 | AX35: 0.1204701273 | AY35: 0.07342657343 | AZ35: 0.1107491857 | BA35: -0.1055718475
B36: EXTREMADURA | C36: 0.5 | D36: -0.1875 | E36: 3.333333333 | F36: 0.5333333333 | G36: 0.75 | H36: 1.153846154 | I36: -0.6538461538 | J36: -0.1304347826 | K36: -0.1428571429 | L36: 0.03571428571 | M36: 0.8888888889 | N36: 0.5 | O36: 0.3888888889 | P36: -0.4482758621 | Q36: 0.2352941176 | R36: -0.2 | S36: -0.08 | T36: 0.8125 | U36: 0.1904761905 | V36: 0.2916666667 | W36: 0.4782608696 | X36: 0.5862068966 | Y36: 0.56 | Z36: 0.6129032258 | AA36: -0.1764705882 | AB36: -0.2391304348 | AC36: -0.2820512821 | AD36: -0.38 | AE36: 0.3571428571 | AF36: 0.4 | AG36: 0.3571428571 | AH36: 0.3870967742 | AI36: 0.4210526316 | AJ36: 0.2244897959 | AK36: -0.1315789474 | AL36: 0.09302325581 | AM36: -0.2592592593 | AN36: -0.2333333333 | AO36: 0.4242424242 | AP36: -0.2553191489 | AQ36: 0.625 | AR36: 0.6444444444 | AS36: 0.05405405405 | AT36: 0.2051282051 | AU36: -0.08510638298 | AV36: 0.2558139535 | AW36: 0.5648148148 | AX36: -0.2781065089 | AY36: 0.3770491803 | AZ36: 0.1547619048 | BA36: -0.1340206186
B37: GALICIA | C37: 0.02222222222 | D37: 0.5 | E37: -0.1111111111 | F37: -0.07317073171 | G37: -0.2608695652 | H37: 0.01851851852 | I37: -0.125 | J37: 0.5526315789 | K37: 0.3529411765 | L37: 0 | M37: 0.7142857143 | N37: -0.01694915254 | O37: 0.5652173913 | P37: 0.4909090909 | Q37: 0.375 | R37: 0.3103448276 | S37: 0.1388888889 | T37: 0.2073170732 | U37: 0.07575757576 | V37: 0.3552631579 | W37: 0.243902439 | X37: -0.0202020202 | Y37: 0.1408450704 | Z37: 0.1941747573 | AA37: -0.1274509804 | AB37: 0.5773195876 | AC37: 0.2098765432 | AD37: 0.2601626016 | AE37: 0.4606741573 | AF37: -0.1111111111 | AG37: 0.1224489796 | AH37: -0.1161290323 | AI37: -0.1384615385 | AJ37: 0.1397058824 | AK37: -0.09090909091 | AL37: 0.2773722628 | AM37: 0.1517857143 | AN37: -0.09032258065 | AO37: 0.12 | AP37: -0.07428571429 | AQ37: -0.1627906977 | AR37: 0.07594936709 | AS37: 0.03529411765 | AT37: 0.1761363636 | AU37: 0.4299516908 | AV37: 0.1993243243 | AW37: 0.1352112676 | AX37: 0.2282878412 | AY37: 0.03636363636 | AZ37: 0.05653021442 | BA37: 0.0036900369
B38: MADRID | C38: -0.009433962264 | D38: 0.1919191919 | E38: 0.125 | F38: -0.05357142857 | G38: -0.1619047619 | H38: 0.008474576271 | I38: 0.125 | J38: -0.01886792453 | K38: 0.3863636364 | L38: 0.4285714286 | M38: 0.5432098765 | N38: 0.3653846154 | O38: 0.606557377 | P38: -0.03529411765 | Q38: -0.168 | R38: 0.1408450704 | S38: 0.08163265306 | T38: -0.05487804878 | U38: 0.4519230769 | V38: 0.1172839506 | W38: -0.2594339623 | X38: 0.2451612903 | Y38: 0.05298013245 | Z38: 0.2375690608 | AA38: 0.4140127389 | AB38: 0.1917098446 | AC38: 0.2893081761 | AD38: 0.1919642857 | AE38: 0.02702702703 | AF38: 0.1 | AG38: 0.06341463415 | AH38: -0.1235955056 | AI38: 0.06140350877 | AJ38: 0.2371541502 | AK38: 0.1697247706 | AL38: 0.08974358974 | AM38: 0.1033057851 | AN38: -0.08306709265 | AO38: -0.2431372549 | AP38: 0.1450980392 | AQ38: -0.003745318352 | AR38: 0.05249343832 | AS38: -0.02244389027 | AT38: 0.4260204082 | AU38: 0.1198568873 | AV38: 0.1166134185 | AW38: 0.04864091559 | AX38: 0.2605729877 | AY38: 0.00974025974 | AZ38: 0.1414790997 | BA38: -0.02441314554
B39: MURCIA | C39: -0.2941176471 | D39: 0.1153846154 | E39: 0.05555555556 | F39: 0.4166666667 | G39: 1.333333333 | H39: -0.3448275862 | I39: -0.4736842105 | J39: -0.4117647059 | K39: -0.1428571429 | L39: 1.210526316 | M39: 2.5 | N39: 0.75 | O39: 0.5416666667 | P39: -0.1428571429 | Q39: -0.1142857143 | R39: 0.3714285714 | S39: 0.1891891892 | T39: 0.5555555556 | U39: 0.06451612903 | V39: 0.3958333333 | W39: 0.04545454545 | X39: 0.07142857143 | Y39: 0.1818181818 | Z39: -0.1641791045 | AA39: 0.2608695652 | AB39: -0.01666666667 | AC39: 0.2564102564 | AD39: 0.1964285714 | AE39: -0.01724137931 | AF39: 0.1525423729 | AG39: 0.1428571429 | AH39: 0.1194029851 | AI39: 0.1228070175 | AJ39: 0.3529411765 | AK39: 0.01785714286 | AL39: 0.05333333333 | AM39: -0.078125 | AN39: -0.1956521739 | AO39: 0.2631578947 | AP39: -0.03797468354 | AQ39: 0.3898305085 | AR39: 0.1058823529 | AS39: -0.1808510638 | AT39: 0.7662337662 | AU39: 0.1176470588 | AV39: 0.3157894737 | AW39: 0.005 | AX39: 0.1592039801 | AY39: 0.09871244635 | AZ39: 0.140625 | BA39: -0.03767123288
B40: NAVARRA | C40: 2.666666667 | D40: -0.1428571429 | E40: 2.8 | F40: 0.2727272727 | G40: 0.04545454545 | H40: 0.3333333333 | I40: -0.2631578947 | J40: 0.5714285714 | K40: -0.1304347826 | L40: 0 | M40: 0 | N40: -0.09090909091 | O40: 0.05 | P40: -0.125 | Q40: 0.5 | R40: -0.3 | S40: -0.04761904762 | T40: 0.1904761905 | U40: -0.09523809524 | V40: 1.214285714 | W40: 0.25 | X40: -0.04 | Y40: -0.1578947368 | Z40: 0.06451612903 | AA40: 0.2 | AB40: 0.5 | AC40: 0.4375 | AD40: 0.0303030303 | AE40: -0.1333333333 | AF40: -0.1111111111 | AG40: 0.1304347826 | AH40: -0.1764705882 | AI40: -0.03846153846 | AJ40: -0.1875 | AK40: -0.5 | AL40: 0.1428571429 | AM40: 0.52 | AN40: 0.1153846154 | AO40: 0.6923076923 | AP40: 0.09375 | AQ40: 0.9210526316 | AR40: 0.6976744186 | AS40: 0.1369863014 | AT40: -0.06024096386 | AU40: -0.01282051282 | AV40: 0.2337662338 | AW40: 0.03157894737 | AX40: 0.2551020408 | AY40: -0.08943089431 | AZ40: -0.1428571429 | BA40: 0.2916666667
B41: PAIS VASCO | C41: -0.1627906977 | D41: -0.03636363636 | E41: 0.3928571429 | F41: 0.3333333333 | G41: 0 | H41: -0.1509433962 | I41: -0.05128205128 | J41: -0.08333333333 | K41: 0.5277777778 | L41: 0.3111111111 | M41: 0.2432432432 | N41: 0.5227272727 | O41: -0.1454545455 | P41: 0.3389830508 | Q41: 0.1086956522 | R41: 0 | S41: 0.4893617021 | T41: -0.1772151899 | U41: -0.2156862745 | V41: -0.1343283582 | W41: -0.2 | X41: 0.2615384615 | Y41: 0.575 | Z41: 0.5862068966 | AA41: 0.3571428571 | AB41: -0.0487804878 | AC41: -0.06349206349 | AD41: 0.5326086957 | AE41: 0.7236842105 | AF41: 0.5769230769 | AG41: 0.2881355932 | AH41: -0.1489361702 | AI41: -0.06106870229 | AJ41: 0.1544715447 | AK41: 0.1447368421 | AL41: 0.2333333333 | AM41: 0.2845528455 | AN41: 0.2746478873 | AO41: 0.3563218391 | AP41: 0.06081081081 | AQ41: -0.1012658228 | AR41: 0.08641975309 | AS41: -0.07954545455 | AT41: 0.4012345679 | AU41: 0.07488986784 | AV41: -0.04508196721 | AW41: 0.2575107296 | AX41: 0.2081911263 | AY41: 0.2711864407 | AZ41: 0.1111111111 | BA41: 0.228
B42: LA RIOJA | C42: -0.5 | D42: -0.8333333333 | E42: -0.25 | F42: -0.6666666667 | G42: 0 | H42: -1 | I42: 0.6666666667 | J42: -1 | K42: -0.5 | M42: -0.8 | O42: 0 | Q42: 1 | R42: 6 | S42: 1 | T42: -0.5 | U42: 1 | V42: -0.7142857143 | W42: 1.5 | X42: =+(AB21-X21)/X21 -> 3 | Y42: 0 | Z42: =+(AD21-Z21)/Z21 -> 2 | AA42: 0.2 | AB42: 1 | AC42: 0 | AD42: =+(AH21-AD21)/AD21 -> -0.5 | AE42: 0.8333333333 | AF42: =+(AJ21-AF21)/AF21 -> 1.25 | AG42: 2 | AH42: =+(AL21-AH21)/AH21 -> 2 | AI42: 0.09090909091 | AJ42: -0.2222222222 | AK42: 0.1666666667 | AL42: 0.3333333333 | AM42: -0.3333333333 | AN42: -0.07142857143 | AO42: -0.3571428571 | AP42: 0.4166666667 | AQ42: 0.875 | AR42: -0.6 | AS42: -0.125 | AT42: -0.5714285714 | AU42: 3 | AV42: -0.25 | AW42: 1.111111111 | AX42: =+(BC21-BB21)/BB21 -> 0.1052631579 | AY42: 1.380952381 | AZ42: 0.04 | BA42: -0.09615384615
B43: TOTAL | C43: 0.02132701422 | D43: 0.1674008811 | E43: 0.1842105263 | F43: 0.1093922652 | G43: 0.1856148492 | H43: 0.09339622642 | I43: 0.1647058824 | J43: 0.1065737052 | K43: 0.1095890411 | L43: 0.1846419327 | M43: 0.1851851852 | N43: 0.2898289829 | O43: 0.3218694885 | P43: 0.1602330663 | Q43: 0.1827651515 | R43: 0.1667829728 | S43: 0.1581054036 | T43: 0.1594475832 | U43: 0.1441152922 | V43: 0.1381578947 | W43: 0.1088709677 | X43: =+(AB22-X22)/X22 -> 0.146724418 | Y43: 0.1210636809 | Z43: =+(AD22-Z22)/Z22 -> 0.2075669995 | AA43: 0.1444155844 | AB43: 0.1383380548 | AC43: 0.2041198502 | AD43: =+(AH22-AD22)/AD22 -> 0.1170583116 | AE43: 0.1270994099 | AF43: =+(AJ22-AF22)/AF22 -> 0.09664039818 | AG43: 0.0844997408 | AH43: =+(AL22-AH22)/AH22 -> 0.007401636151 | AI43: -0.01127668143 | AJ43: 0.1467473525 | AK43: -0.05210325048 | AL43: 0.06109822119 | AM43: 0.1645621181 | AN43: -0.07519788918 | AO43: 0.04992435703 | AP43: 0.04664723032 | AQ43: -0.004547044421 | AR43: 0.1174689676 | AS43: 0.1332972094 | AT43: 0.1943581162 | AU43: 0.2035628503 | AV43: 0.1500083153 | AW43: 0.1486623283 | AX43: =+(BC22-BB22)/BB22 -> 0.146921818 | AY43: 0.07628979144 | AZ43: 0.04171341152 | BA43: 0.03945564911

Sheet Modif. medidas no consens TSJ
N1: Inicio
A2: Modificación de medidas no consensuadas clasificadas por Tribunal Superior de Justicia
C4: 07-T1 | D4: 07-T2 | E4: 07-T3 | F4: 07-T4 | G4: 08-T1 | H4: 08-T2 | I4: 08-T3 | J4: 08-T4 | K4: 09-T1 | L4: 09-T2 | M4: 09-T3 | N4: 09-T4 | O4: 10-T1 | P4: 10-T2 | Q4: 10-T3 | R4: 10-T4 | S4: 11-T1 | T4: 11-T2 | U4: 11-T3 | V4: 11-T4 | W4: 12-T1 | X4: 12-T2 | Y4: 12-T3 | Z4: 12-T4 | AA4: 13-T1 | AB4: 13-T2 | AC4: 13-T3 | AD4: 13-T4 | AE4: 14-T1 | AF4: 14-T2 | AG4: 14-T3 | AH4: 14-T4 | AI4: 15-T1 | AJ4: 15-T2 | AK4: 15-T3 | AL4: 15-T4 | AM4: 16-T1 | AN4: 16-T2 | AO4: 16-T3 | AP4: 16-T4 | AQ4: 17-T1 | AR4: 17-T2 | AS4: 17-T3 | AT4: 17-T4 | AU4: 18-T1 | AV4: Total 2007 | AW4: Total 2008 | AX4: Total 2009 | AY4: Total 2010 | AZ4: Total 2011 | BA4: Total 2012 | BB4: Total 2013 | BC4: Total 2014 | BD4: Total 2015 | BE4: Total 2016 | BF4: Total 2017
B5: ANDALUCIA | C5: 554 | D5: 568 | E5: 434 | F5: 739 | G5: 730 | H5: 775 | I5: 531 | J5: 867 | K5: 896 | L5: 872 | M5: 618 | N5: 973 | O5: 997 | P5: 1070 | Q5: 753 | R5: 1172 | S5: 1119 | T5: 1199 | U5: 868 | V5: 1216 | W5: 1344 | X5: 1559 | Y5: 1106 | Z5: 1732 | AA5: 1429 | AB5: 1549 | AC5: 1244 | AD5: 1698 | AE5: 1684 | AF5: 1783 | AG5: 1359 | AH5: 1762 | AI5: 1891 | AJ5: 1822 | AK5: 1372 | AL5: 1849 | AM5: 1679 | AN5: 2109 | AO5: 1399 | AP5: 1924 | AQ5: 1877 | AR5: 2002 | AS5: 1338 | AT5: 1997 | AU5: 1903 | AV5: =+C5+D5+E5+F5 -> 2295 | AW5: =+G5+H5+I5+J5 -> 2903 | AX5: =+K5+L5+M5+N5 -> 3359 | AY5: =+O5+P5+Q5+R5 -> 3992 | AZ5: =+S5+T5+U5+V5 -> 4402 | BA5: =+W5+X5+Y5+Z5 -> 5741 | BB5: =+AA5+AB5+AC5+AD5 -> 5920 | BC5: =+AE5+AF5+AG5+AH5 -> 6588 | BD5: =+AI5+AJ5+AK5+AL5 -> 6934 | BE5: =+AM5+AN5+AO5+AP5 -> 7111 | BF5: =+AQ5+AR5+AS5+AT5 -> 7214
B6: ARAGON | C6: 86 | D6: 113 | E6: 48 | F6: 90 | G6: 100 | H6: 107 | I6: 66 | J6: 137 | K6: 131 | L6: 115 | M6: 95 | N6: 154 | O6: 138 | P6: 127 | Q6: 115 | R6: 211 | S6: 226 | T6: 210 | U6: 228 | V6: 157 | W6: 197 | X6: 187 | Y6: 148 | Z6: 244 | AA6: 181 | AB6: 231 | AC6: 137 | AD6: 173 | AE6: 191 | AF6: 200 | AG6: 160 | AH6: 234 | AI6: 245 | AJ6: 214 | AK6: 145 | AL6: 220 | AM6: 228 | AN6: 192 | AO6: 158 | AP6: 223 | AQ6: 212 | AR6: 217 | AS6: 158 | AT6: 219 | AU6: 184 | AV6: 337 | AW6: 410 | AX6: 495 | AY6: 591 | AZ6: 821 | BA6: 776 | BB6: 722 | BC6: 785 | BD6: 824 | BE6: 801 | BF6: 806
B7: ASTURIAS | C7: 149 | D7: 118 | E7: 119 | F7: 141 | G7: 100 | H7: 145 | I7: 104 | J7: 152 | K7: 179 | L7: 177 | M7: 116 | N7: 183 | O7: 150 | P7: 163 | Q7: 97 | R7: 192 | S7: 171 | T7: 192 | U7: 130 | V7: 222 | W7: 220 | X7: 220 | Y7: 168 | Z7: 247 | AA7: 211 | AB7: 229 | AC7: 212 | AD7: 272 | AE7: 266 | AF7: 273 | AG7: 183 | AH7: 263 | AI7: 239 | AJ7: 283 | AK7: 190 | AL7: 260 | AM7: 208 | AN7: 269 | AO7: 160 | AP7: 220 | AQ7: 259 | AR7: 283 | AS7: 183 | AT7: 245 | AU7: 252 | AV7: 527 | AW7: 501 | AX7: 655 | AY7: 602 | AZ7: 715 | BA7: 855 | BB7: 924 | BC7: 985 | BD7: 972 | BE7: 857 | BF7: 970
B8: ILLES BALEARS | C8: 82 | D8: 81 | E8: 49 | F8: 93 | G8: 68 | H8: 123 | I8: 72 | J8: 90 | K8: 86 | L8: 132 | M8: 96 | N8: 127 | O8: 139 | P8: 145 | Q8: 97 | R8: 142 | S8: 140 | T8: 175 | U8: 113 | V8: 187 | W8: 153 | X8: 198 | Y8: 125 | Z8: 220 | AA8: 180 | AB8: 246 | AC8: 152 | AD8: 219 | AE8: 209 | AF8: 216 | AG8: 210 | AH8: 222 | AI8: 215 | AJ8: 243 | AK8: 208 | AL8: 256 | AM8: 201 | AN8: 244 | AO8: 173 | AP8: 207 | AQ8: 211 | AR8: 271 | AS8: 162 | AT8: 223 | AU8: 198 | AV8: 305 | AW8: 353 | AX8: 441 | AY8: 523 | AZ8: 615 | BA8: 696 | BB8: 797 | BC8: 857 | BD8: 922 | BE8: 825 | BF8: 867
B9: CANARIAS | C9: 176 | D9: 199 | E9: 145 | F9: 186 | G9: 178 | H9: 214 | I9: 181 | J9: 248 | K9: 270 | L9: 312 | M9: 260 | N9: 294 | O9: 279 | P9: 326 | Q9: 257 | R9: 372 | S9: 376 | T9: 395 | U9: 306 | V9: 399 | W9: 412 | X9: 507 | Y9: 372 | Z9: 542 | AA9: 490 | AB9: 641 | AC9: 441 | AD9: 552 | AE9: 536 | AF9: 579 | AG9: 430 | AH9: 539 | AI9: 520 | AJ9: 595 | AK9: 460 | AL9: 495 | AM9: 441 | AN9: 558 | AO9: 373 | AP9: 559 | AQ9: 511 | AR9: 578 | AS9: 363 | AT9: 544 | AU9: 504 | AV9: 706 | AW9: 821 | AX9: 1136 | AY9: 1234 | AZ9: 1476 | BA9: 1833 | BB9: 2124 | BC9: 2084 | BD9: 2070 | BE9: 1931 | BF9: 1996
B10: CANTABRIA | C10: 50 | D10: 30 | E10: 21 | F10: 40 | G10: 39 | H10: 50 | I10: 40 | J10: 59 | K10: 58 | L10: 58 | M10: 36 | N10: 65 | O10: 65 | P10: 70 | Q10: 59 | R10: 84 | S10: 69 | T10: 72 | U10: 52 | V10: 80 | W10: 93 | X10: 95 | Y10: 68 | Z10: 96 | AA10: 99 | AB10: 114 | AC10: 75 | AD10: 115 | AE10: 87 | AF10: 109 | AG10: 80 | AH10: 122 | AI10: 95 | AJ10: 125 | AK10: 69 | AL10: 115 | AM10: 112 | AN10: 132 | AO10: 73 | AP10: 110 | AQ10: 120 | AR10: 126 | AS10: 99 | AT10: 105 | AU10: 114 | AV10: 141 | AW10: 188 | AX10: 217 | AY10: 278 | AZ10: 273 | BA10: 352 | BB10: 403 | BC10: 398 | BD10: 404 | BE10: 427 | BF10: 450
B11: CASTILLA Y LEON | C11: 157 | D11: 157 | E11: 105 | F11: 179 | G11: 116 | H11: 224 | I11: 133 | J11: 213 | K11: 193 | L11: 198 | M11: 170 | N11: 245 | O11: 210 | P11: 208 | Q11: 158 | R11: 263 | S11: 294 | T11: 296 | U11: 239 | V11: 317 | W11: 311 | X11: 306 | Y11: 239 | Z11: 347 | AA11: 307 | AB11: 336 | AC11: 263 | AD11: 380 | AE11: 415 | AF11: 368 | AG11: 292 | AH11: 388 | AI11: 377 | AJ11: 414 | AK11: 353 | AL11: 422 | AM11: 392 | AN11: 412 | AO11: 267 | AP11: 430 | AQ11: 416 | AR11: 419 | AS11: 285 | AT11: 406 | AU11: 415 | AV11: 598 | AW11: 686 | AX11: 806 | AY11: 839 | AZ11: 1146 | BA11: 1203 | BB11: 1286 | BC11: 1463 | BD11: 1566 | BE11: 1501 | BF11: 1526
B12: CASTILLA LA MANCHA | C12: 97 | D12: 102 | E12: 69 | F12: 129 | G12: 87 | H12: 116 | I12: 79 | J12: 126 | K12: 119 | L12: 126 | M12: 105 | N12: 184 | O12: 152 | P12: 151 | Q12: 102 | R12: 153 | S12: 167 | T12: 177 | U12: 130 | V12: 191 | W12: 202 | X12: 238 | Y12: 190 | Z12: 266 | AA12: 255 | AB12: 267 | AC12: 193 | AD12: 288 | AE12: 316 | AF12: 311 | AG12: 252 | AH12: 318 | AI12: 345 | AJ12: 375 | AK12: 281 | AL12: 357 | AM12: 354 | AN12: 343 | AO12: 245 | AP12: 348 | AQ12: 380 | AR12: 347 | AS12: 244 | AT12: 390 | AU12: 345 | AV12: 397 | AW12: 408 | AX12: 534 | AY12: 558 | AZ12: 665 | BA12: 896 | BB12: 1003 | BC12: 1197 | BD12: 1358 | BE12: 1290 | BF12: 1361
B13: CATALUÑA | C13: 442 | D13: 413 | E13: 349 | F13: 508 | G13: 560 | H13: 509 | I13: 359 | J13: 532 | K13: 604 | L13: 592 | M13: 486 | N13: 776 | O13: 728 | P13: 755 | Q13: 565 | R13: 778 | S13: 847 | T13: 971 | U13: 736 | V13: 978 | W13: 1113 | X13: 1040 | Y13: 871 | Z13: 1190 | AA13: 1286 | AB13: 1227 | AC13: 946 | AD13: 1238 | AE13: 1280 | AF13: 1303 | AG13: 981 | AH13: 1390 | AI13: 1378 | AJ13: 1279 | AK13: 976 | AL13: 1307 | AM13: 1297 | AN13: 1423 | AO13: 953 | AP13: 1223 | AQ13: 1370 | AR13: 1284 | AS13: 941 | AT13: 1234 | AU13: 1279 | AV13: 1712 | AW13: 1960 | AX13: 2458 | AY13: 2826 | AZ13: 3532 | BA13: 4214 | BB13: 4697 | BC13: 4954 | BD13: 4940 | BE13: 4896 | BF13: 4829
B14: COMUNITAT VALENCIANA | C14: 339 | D14: 314 | E14: 273 | F14: 371 | G14: 403 | H14: 459 | I14: 362 | J14: 462 | K14: 464 | L14: 546 | M14: 377 | N14: 588 | O14: 584 | P14: 647 | Q14: 482 | R14: 681 | S14: 734 | T14: 844 | U14: 656 | V14: 786 | W14: 983 | X14: 1014 | Y14: 752 | Z14: 1163 | AA14: 963 | AB14: 1120 | AC14: 884 | AD14: 1093 | AE14: 1154 | AF14: 1203 | AG14: 844 | AH14: 1219 | AI14: 1105 | AJ14: 1292 | AK14: 869 | AL14: 1198 | AM14: 1174 | AN14: 1262 | AO14: 956 | AP14: 1172 | AQ14: 1189 | AR14: 1142 | AS14: 836 | AT14: 1144 | AU14: 1081 | AV14: 1297 | AW14: 1686 | AX14: 1975 | AY14: 2394 | AZ14: 3020 | BA14: 3912 | BB14: 4060 | BC14: 4420 | BD14: 4464 | BE14: 4564 | BF14: 4311
B15: EXTREMADURA | C15: 93 | D15: 79 | E15: 45 | F15: 84 | G15: 41 | H15: 95 | I15: 69 | J15: 110 | K15: 92 | L15: 101 | M15: 70 | N15: 94 | O15: 86 | P15: 99 | Q15: 63 | R15: 114 | S15: 87 | T15: 102 | U15: 77 | V15: 119 | W15: 126 | X15: 157 | Y15: 91 | Z15: 142 | AA15: 148 | AB15: 177 | AC15: 140 | AD15: 202 | AE15: 185 | AF15: 175 | AG15: 120 | AH15: 195 | AI15: 220 | AJ15: 205 | AK15: 164 | AL15: 188 | AM15: 191 | AN15: 200 | AO15: 122 | AP15: 187 | AQ15: 190 | AR15: 172 | AS15: 132 | AT15: 210 | AU15: 186 | AV15: 301 | AW15: 315 | AX15: 357 | AY15: 362 | AZ15: 385 | BA15: 516 | BB15: 667 | BC15: 675 | BD15: 777 | BE15: 700 | BF15: 704
B16: GALICIA | C16: 200 | D16: 230 | E16: 136 | F16: 214 | G16: 192 | H16: 227 | I16: 154 | J16: 240 | K16: 241 | L16: 270 | M16: 184 | N16: 304 | O16: 262 | P16: 261 | Q16: 227 | R16: 297 | S16: 318 | T16: 338 | U16: 242 | V16: 364 | W16: 414 | X16: 420 | Y16: 298 | Z16: 477 | AA16: 369 | AB16: 509 | AC16: 346 | AD16: 459 | AE16: 470 | AF16: 478 | AG16: 438 | AH16: 517 | AI16: 482 | AJ16: 547 | AK16: 427 | AL16: 483 | AM16: 482 | AN16: 515 | AO16: 352 | AP16: 515 | AQ16: 488 | AR16: 512 | AS16: 327 | AT16: 521 | AU16: 387 | AV16: 780 | AW16: 813 | AX16: 999 | AY16: 1047 | AZ16: 1262 | BA16: 1609 | BB16: 1683 | BC16: 1903 | BD16: 1939 | BE16: 1864 | BF16: 1848
B17: MADRID | C17: 475 | D17: 440 | E17: 348 | F17: 433 | G17: 496 | H17: 498 | I17: 375 | J17: 523 | K17: 505 | L17: 658 | M17: 507 | N17: 585 | O17: 648 | P17: 693 | Q17: 519 | R17: 695 | S17: 647 | T17: 788 | U17: 584 | V17: 778 | W17: 862 | X17: 928 | Y17: 718 | Z17: 1059 | AA17: 930 | AB17: 1031 | AC17: 731 | AD17: 1092 | AE17: 1039 | AF17: 1042 | AG17: 984 | AH17: 1192 | AI17: 1136 | AJ17: 1196 | AK17: 827 | AL17: 1141 | AM17: 981 | AN17: 1241 | AO17: 884 | AP17: 1082 | AQ17: 1197 | AR17: 1229 | AS17: 787 | AT17: 1086 | AU17: 1142 | AV17: 1696 | AW17: 1892 | AX17: 2255 | AY17: 2555 | AZ17: 2797 | BA17: 3567 | BB17: 3784 | BC17: 4257 | BD17: 4300 | BE17: 4188 | BF17: 4299
B18: MURCIA | C18: 98 | D18: 96 | E18: 76 | F18: 106 | G18: 69 | H18: 131 | I18: 66 | J18: 137 | K18: 129 | L18: 122 | M18: 107 | N18: 140 | O18: 160 | P18: 181 | Q18: 107 | R18: 146 | S18: 181 | T18: 181 | U18: 132 | V18: 181 | W18: 187 | X18: 177 | Y18: 122 | Z18: 231 | AA18: 205 | AB18: 283 | AC18: 162 | AD18: 266 | AE18: 245 | AF18: 252 | AG18: 196 | AH18: 255 | AI18: 222 | AJ18: 302 | AK18: 202 | AL18: 290 | AM18: 250 | AN18: 284 | AO18: 183 | AP18: 257 | AQ18: 235 | AR18: 272 | AS18: 193 | AT18: 267 | AU18: 258 | AV18: 376 | AW18: 403 | AX18: 498 | AY18: 594 | AZ18: 675 | BA18: 717 | BB18: 916 | BC18: 948 | BD18: 1016 | BE18: 974 | BF18: 967
B19: NAVARRA | C19: 30 | D19: 15 | E19: 21 | F19: 31 | G19: 20 | H19: 40 | I19: 36 | J19: 41 | K19: 37 | L19: 57 | M19: 25 | N19: 48 | O19: 47 | P19: 51 | Q19: 44 | R19: 47 | S19: 66 | T19: 66 | U19: 69 | V19: 64 | W19: 89 | X19: 94 | Y19: 64 | Z19: 82 | AA19: 54 | AB19: 90 | AC19: 46 | AD19: 135 | AE19: 103 | AF19: 106 | AG19: 54 | AH19: 82 | AI19: 71 | AJ19: 88 | AK19: 92 | AL19: 89 | AM19: 108 | AN19: 123 | AO19: 69 | AP19: 109 | AQ19: 96 | AR19: 111 | AS19: 74 | AT19: 97 | AU19: 102 | AV19: 97 | AW19: 137 | AX19: 167 | AY19: 189 | AZ19: 265 | BA19: 329 | BB19: 325 | BC19: 345 | BD19: 340 | BE19: 409 | BF19: 378
B20: PAIS VASCO | C20: 118 | D20: 146 | E20: 77 | F20: 135 | G20: 131 | H20: 145 | I20: 82 | J20: 162 | K20: 136 | L20: 153 | M20: 118 | N20: 174 | O20: 185 | P20: 201 | Q20: 137 | R20: 170 | S20: 208 | T20: 216 | U20: 142 | V20: 195 | W20: 268 | X20: 277 | Y20: 171 | Z20: 278 | AA20: 263 | AB20: 295 | AC20: 198 | AD20: 291 | AE20: 303 | AF20: 292 | AG20: 228 | AH20: 336 | AI20: 294 | AJ20: 356 | AK20: 239 | AL20: 357 | AM20: 408 | AN20: 443 | AO20: 240 | AP20: 411 | AQ20: 379 | AR20: 366 | AS20: 238 | AT20: 387 | AU20: 339 | AV20: 476 | AW20: 520 | AX20: 581 | AY20: 693 | AZ20: 761 | BA20: 994 | BB20: 1047 | BC20: 1159 | BD20: 1246 | BE20: 1502 | BF20: 1370
B21: LA RIOJA | C21: 14 | D21: 24 | E21: 12 | F21: 16 | G21: 17 | H21: 22 | I21: 18 | J21: 16 | K21: 26 | L21: 30 | M21: 23 | N21: 31 | O21: 45 | P21: 32 | Q21: 18 | R21: 21 | S21: 24 | T21: 29 | U21: 31 | V21: 38 | W21: 34 | X21: 48 | Y21: 30 | Z21: 45 | AA21: 37 | AB21: 34 | AC21: 41 | AD21: 41 | AE21: 44 | AF21: 43 | AG21: 23 | AH21: 60 | AI21: 44 | AJ21: 46 | AK21: 37 | AL21: 49 | AM21: 48 | AN21: 52 | AO21: 37 | AP21: 40 | AQ21: 56 | AR21: 60 | AS21: 25 | AT21: 62 | AU21: 45 | AV21: 66 | AW21: 73 | AX21: 110 | AY21: 116 | AZ21: 122 | BA21: 157 | BB21: 153 | BC21: 170 | BD21: 176 | BE21: 177 | BF21: 203
B22: TOTAL | C22: =SUM(C5:C21) -> 3160 | D22: =SUM(D5:D21) -> 3125 | E22: 2327 | F22: 3495 | G22: 3347 | H22: 3880 | I22: 2727 | J22: 4115 | K22: 4166 | L22: 4519 | M22: 3393 | N22: 4965 | O22: 4875 | P22: 5180 | Q22: 3800 | R22: 5538 | S22: 5674 | T22: 6251 | U22: 4735 | V22: 6272 | W22: 7008 | X22: 7465 | Y22: 5533 | Z22: 8361 | AA22: 7407 | AB22: =SUM(AB5:AB21) -> 8379 | AC22: 6211 | AD22: 8514 | AE22: 8527 | AF22: 8733 | AG22: 6834 | AH22: =SUM(AH5:AH21) -> 9094 | AI22: =SUM(AI5:AI21) -> 8879 | AJ22: 9382 | AK22: 6911 | AL22: 9076 | AM22: 8554 | AN22: =SUM(AN5:AN21) -> 9802 | AO22: 6644 | AP22: 9017 | AQ22: 9186 | AR22: 9391 | AS22: 6385 | AT22: =SUM(AT5:AT21) -> 9137 | AU22: =SUM(AU5:AU21) -> 8734 | AV22: 12107 | AW22: 14069 | AX22: 17043 | AY22: 19393 | AZ22: 22932 | BA22: 28367 | BB22: 30511 | BC22: 33188 | BD22: 34248 | BE22: 34017 | BF22: 34099
C25: Evolución 08-T1 | D25: Evolución 08-T2 | E25: Evolución 08-T3 | F25: Evolución 08-T4 | G25: Evolución 09-T1 | H25: Evolución 09-T2 | I25: Evolución 09-T3 | J25: Evolución 09-T4 | K25: Evolución 10-T1 | L25: Evolución 10-T2 | M25: Evolución 10-T3 | N25: Evolución 10-T4 | O25: Evolución 11-T1 | P25: Evolución 11-T2 | Q25: Evolución 11-T3 | R25: Evolución 11-T4 | S25: Evolución 12-T1 | T25: Evolución 12-T2 | U25: Evolución 12-T3 | V25: Evolución 12-T4 | W25: Evolución 13-T1 | X25: Evolución 13-T2 | Y25: Evolución 13-T3 | Z25: Evolución 13-T4 | AA25: Evolución 14-T1 | AB25: Evolución 14-T2 | AC25: Evolución 14-T3 | AD25: Evolución 14-T4 | AE25: Evolución 15-T1 | AF25: Evolución 15-T2 | AG25: Evolución 15-T3 | AH25: Evolución 15-T4 | AI25: Evolución 16-T1 | AJ25: Evolución 16-T2 | AK25: Evolución 16-T3 | AL25: Evolución 16-T4 | AM25: Evolución 17-T1 | AN25: Evolución 17-T2 | AO25: Evolución 17-T3 | AP25: Evolución 17-T4 | AQ25: Evolución 18-T1 | AR25: Evolución 2007-2008 | AS25: Evolución 2008-2009 | AT25: Evolución 2009-2010 | AU25: Evolución 2010-2011 | AV25: Evolución 2011-2012 | AW25: Evolución 2012-2013 | AX25: Evolución 2013-2014 | AY25: Evolución 2014-2015 | AZ25: Evolución 2015-2016 | BA25: Evolución 2016-2017
B26: ANDALUCIA | C26: =+(G5-C5)/C5 -> 0.3176895307 | D26: 0.3644366197 | E26: 0.2235023041 | F26: 0.1732070365 | G26: 0.2273972603 | H26: 0.1251612903 | I26: 0.1638418079 | J26: 0.122260669 | K26: 0.1127232143 | L26: 0.2270642202 | M26: 0.2184466019 | N26: 0.2045220966 | O26: 0.1223671013 | P26: 0.1205607477 | Q26: 0.1527224436 | R26: 0.03754266212 | S26: 0.2010723861 | T26: 0.3002502085 | U26: 0.2741935484 | V26: 0.4243421053 | W26: 0.06324404762 | X26: =+(AB5-X5)/X5 -> -0.006414368185 | Y26: 0.1247739602 | Z26: -0.01963048499 | AA26: 0.1784464661 | AB26: 0.1510652034 | AC26: 0.0924437299 | AD26: 0.03769140165 | AE26: 0.1229216152 | AF26: 0.02187324734 | AG26: 0.009565857248 | AH26: 0.04937570942 | AI26: -0.1121099947 | AJ26: 0.1575192097 | AK26: 0.01967930029 | AL26: 0.0405624662 | AM26: 0.1179273377 | AN26: -0.05073494547 | AO26: -0.04360257327 | AP26: 0.03794178794 | AQ26: 0.01385189132 | AR26: =+(AW5-AV5)/AV5 -> 0.2649237473 | AS26: =+(AX5-AW5)/AW5 -> 0.1570788839 | AT26: =+(AY5-AX5)/AX5 -> 0.1884489431 | AU26: =+(AZ5-AY5)/AY5 -> 0.1027054108 | AV26: =+(BA5-AZ5)/AZ5 -> 0.3041799182 | AW26: =+(BB5-BA5)/BA5 -> 0.03117923707 | AX26: =+(BC5-BB5)/BB5 -> 0.1128378378 | AY26: =+(BD5-BC5)/BC5 -> 0.05251973285 | AZ26: 0.02552639169 | BA26: 0.01448460132
B27: ARAGON | C27: =+(G6-C6)/C6 -> 0.1627906977 | D27: =+(H6-D6)/D6 -> -0.05309734513 | E27: =+(I6-E6)/E6 -> 0.375 | F27: =+(J6-F6)/F6 -> 0.5222222222 | G27: =+(K6-G6)/G6 -> 0.31 | H27: =+(L6-H6)/H6 -> 0.07476635514 | I27: =+(M6-I6)/I6 -> 0.4393939394 | J27: =+(N6-J6)/J6 -> 0.1240875912 | K27: =+(O6-K6)/K6 -> 0.0534351145 | L27: =+(P6-L6)/L6 -> 0.1043478261 | M27: =+(Q6-M6)/M6 -> 0.2105263158 | N27: =+(R6-N6)/N6 -> 0.3701298701 | O27: =+(S6-O6)/O6 -> 0.6376811594 | P27: =+(T6-P6)/P6 -> 0.6535433071 | Q27: =+(U6-Q6)/Q6 -> 0.9826086957 | R27: =+(V6-R6)/R6 -> -0.2559241706 | S27: =+(W6-S6)/S6 -> -0.1283185841 | T27: =+(X6-T6)/T6 -> -0.1095238095 | U27: =+(Y6-U6)/U6 -> -0.350877193 | V27: =+(Z6-V6)/V6 -> 0.5541401274 | W27: =+(AA6-W6)/W6 -> -0.08121827411 | X27: =+(AB6-X6)/X6 -> 0.2352941176 | Y27: =+(AC6-Y6)/Y6 -> -0.07432432432 | Z27: =+(AD6-Z6)/Z6 -> -0.2909836066 | AA27: =+(AE6-AA6)/AA6 -> 0.05524861878 | AB27: =+(AF6-AB6)/AB6 -> -0.1341991342 | AC27: =+(AG6-AC6)/AC6 -> 0.1678832117 | AD27: =+(AH6-AD6)/AD6 -> 0.3526011561 | AE27: =+(AI6-AE6)/AE6 -> 0.2827225131 | AF27: =+(AJ6-AF6)/AF6 -> 0.07 | AG27: =+(AK6-AG6)/AG6 -> -0.09375 | AH27: =+(AL6-AH6)/AH6 -> -0.05982905983 | AI27: =+(AM6-AI6)/AI6 -> -0.0693877551 | AJ27: =+(AN6-AJ6)/AJ6 -> -0.1028037383 | AK27: 0.08965517241 | AL27: 0.01363636364 | AM27: -0.0701754386 | AN27: 0.1302083333 | AO27: 0 | AP27: -0.01793721973 | AQ27: -0.1320754717 | AR27: 0.2166172107 | AS27: 0.2073170732 | AT27: 0.1939393939 | AU27: 0.3891708968 | AV27: -0.05481120585 | AW27: -0.06958762887 | AX27: 0.08725761773 | AY27: 0.04968152866 | AZ27: -0.02791262136 | BA27: 0.006242197253
B28: ASTURIAS | C28: -0.3288590604 | D28: 0.2288135593 | E28: -0.1260504202 | F28: 0.0780141844 | G28: 0.79 | H28: 0.2206896552 | I28: 0.1153846154 | J28: 0.2039473684 | K28: -0.1620111732 | L28: -0.0790960452 | M28: -0.1637931034 | N28: 0.04918032787 | O28: 0.14 | P28: 0.1779141104 | Q28: 0.3402061856 | R28: 0.15625 | S28: 0.2865497076 | T28: 0.1458333333 | U28: 0.2923076923 | V28: 0.1126126126 | W28: -0.04090909091 | X28: 0.04090909091 | Y28: 0.2619047619 | Z28: 0.1012145749 | AA28: 0.2606635071 | AB28: 0.192139738 | AC28: -0.1367924528 | AD28: -0.03308823529 | AE28: -0.1015037594 | AF28: 0.03663003663 | AG28: 0.03825136612 | AH28: -0.01140684411 | AI28: -0.129707113 | AJ28: -0.04946996466 | AK28: -0.1578947368 | AL28: -0.1538461538 | AM28: 0.2451923077 | AN28: 0.05204460967 | AO28: 0.14375 | AP28: 0.1136363636 | AQ28: -0.02702702703 | AR28: -0.04933586338 | AS28: 0.3073852295 | AT28: -0.08091603053 | AU28: 0.1877076412 | AV28: 0.1958041958 | AW28: 0.08070175439 | AX28: 0.06601731602 | AY28: -0.01319796954 | AZ28: -0.1183127572 | BA28: 0.1318553092
B29: ILLES BALEARS | C29: -0.1707317073 | D29: 0.5185185185 | E29: 0.4693877551 | F29: -0.03225806452 | G29: 0.2647058824 | H29: 0.07317073171 | I29: 0.3333333333 | J29: 0.4111111111 | K29: 0.6162790698 | L29: 0.09848484848 | M29: 0.01041666667 | N29: 0.1181102362 | O29: 0.007194244604 | P29: 0.2068965517 | Q29: 0.1649484536 | R29: 0.3169014085 | S29: 0.09285714286 | T29: 0.1314285714 | U29: 0.1061946903 | V29: 0.1764705882 | W29: 0.1764705882 | X29: 0.2424242424 | Y29: 0.216 | Z29: -0.004545454545 | AA29: 0.1611111111 | AB29: -0.1219512195 | AC29: 0.3815789474 | AD29: 0.01369863014 | AE29: 0.02870813397 | AF29: 0.125 | AG29: -0.009523809524 | AH29: 0.1531531532 | AI29: -0.06511627907 | AJ29: 0.004115226337 | AK29: -0.1682692308 | AL29: -0.19140625 | AM29: 0.04975124378 | AN29: 0.1106557377 | AO29: -0.06358381503 | AP29: 0.07729468599 | AQ29: -0.06161137441 | AR29: 0.1573770492 | AS29: 0.2492917847 | AT29: 0.1859410431 | AU29: 0.1759082218 | AV29: 0.1317073171 | AW29: 0.1451149425 | AX29: 0.07528230866 | AY29: 0.07584597433 | AZ29: -0.1052060738 | BA29: 0.05090909091
B30: CANARIAS | C30: 0.01136363636 | D30: 0.07537688442 | E30: 0.2482758621 | F30: 0.3333333333 | G30: 0.5168539326 | H30: 0.4579439252 | I30: 0.4364640884 | J30: 0.185483871 | K30: 0.03333333333 | L30: 0.04487179487 | M30: -0.01153846154 | N30: 0.2653061224 | O30: 0.3476702509 | P30: 0.2116564417 | Q30: 0.1906614786 | R30: 0.07258064516 | S30: 0.09574468085 | T30: 0.2835443038 | U30: 0.2156862745 | V30: 0.35839599 | W30: 0.1893203883 | X30: 0.2642998028 | Y30: 0.185483871 | Z30: 0.0184501845 | AA30: 0.09387755102 | AB30: -0.09672386895 | AC30: -0.02494331066 | AD30: -0.02355072464 | AE30: -0.02985074627 | AF30: 0.02763385147 | AG30: 0.06976744186 | AH30: -0.08163265306 | AI30: -0.1519230769 | AJ30: -0.06218487395 | AK30: -0.1891304348 | AL30: 0.1292929293 | AM30: 0.1587301587 | AN30: 0.03584229391 | AO30: -0.02680965147 | AP30: -0.02683363148 | AQ30: -0.01369863014 | AR30: 0.1628895184 | AS30: 0.3836784409 | AT30: 0.08626760563 | AU30: 0.1961102107 | AV30: 0.2418699187 | AW30: 0.1587561375 | AX30: -0.01883239171 | AY30: -0.006717850288 | AZ30: -0.06714975845 | BA30: 0.03366131538
B31: CANTABRIA | C31: -0.22 | D31: 0.6666666667 | E31: 0.9047619048 | F31: 0.475 | G31: 0.4871794872 | H31: 0.16 | I31: -0.1 | J31: 0.1016949153 | K31: 0.1206896552 | L31: 0.2068965517 | M31: 0.6388888889 | N31: 0.2923076923 | O31: 0.06153846154 | P31: 0.02857142857 | Q31: -0.1186440678 | R31: -0.04761904762 | S31: 0.347826087 | T31: 0.3194444444 | U31: 0.3076923077 | V31: 0.2 | W31: 0.06451612903 | X31: 0.2 | Y31: 0.1029411765 | Z31: 0.1979166667 | AA31: -0.1212121212 | AB31: -0.04385964912 | AC31: 0.06666666667 | AD31: 0.06086956522 | AE31: 0.09195402299 | AF31: 0.1467889908 | AG31: -0.1375 | AH31: -0.05737704918 | AI31: 0.1789473684 | AJ31: 0.056 | AK31: 0.05797101449 | AL31: -0.04347826087 | AM31: 0.07142857143 | AN31: -0.04545454545 | AO31: 0.3561643836 | AP31: -0.04545454545 | AQ31: -0.05 | AR31: 0.3333333333 | AS31: 0.1542553191 | AT31: 0.2811059908 | AU31: -0.01798561151 | AV31: 0.2893772894 | AW31: 0.1448863636 | AX31: -0.01240694789 | AY31: 0.01507537688 | AZ31: 0.05693069307 | BA31: 0.05386416862
B32: CASTILLA Y LEON | C32: -0.2611464968 | D32: 0.4267515924 | E32: 0.2666666667 | F32: 0.1899441341 | G32: 0.6637931034 | H32: -0.1160714286 | I32: 0.2781954887 | J32: 0.1502347418 | K32: 0.08808290155 | L32: 0.05050505051 | M32: -0.07058823529 | N32: 0.07346938776 | O32: 0.4 | P32: 0.4230769231 | Q32: 0.5126582278 | R32: 0.2053231939 | S32: 0.05782312925 | T32: 0.03378378378 | U32: 0 | V32: 0.09463722397 | W32: -0.01286173633 | X32: 0.09803921569 | Y32: 0.10041841 | Z32: 0.09510086455 | AA32: 0.3517915309 | AB32: 0.09523809524 | AC32: 0.1102661597 | AD32: 0.02105263158 | AE32: -0.09156626506 | AF32: 0.125 | AG32: 0.2089041096 | AH32: 0.08762886598 | AI32: 0.03978779841 | AJ32: -0.004830917874 | AK32: -0.2436260623 | AL32: 0.01895734597 | AM32: 0.0612244898 | AN32: 0.01699029126 | AO32: 0.06741573034 | AP32: -0.05581395349 | AQ32: -0.002403846154 | AR32: 0.1471571906 | AS32: 0.1749271137 | AT32: 0.04094292804 | AU32: 0.3659117998 | AV32: 0.0497382199 | AW32: 0.06899418121 | AX32: 0.1376360809 | AY32: 0.07040328093 | AZ32: -0.04150702427 | BA32: 0.01665556296
B33: CASTILLA LA MANCHA | C33: -0.1030927835 | D33: 0.137254902 | E33: 0.1449275362 | F33: -0.02325581395 | G33: 0.367816092 | H33: 0.08620689655 | I33: 0.3291139241 | J33: 0.4603174603 | K33: 0.2773109244 | L33: 0.1984126984 | M33: -0.02857142857 | N33: -0.1684782609 | O33: 0.09868421053 | P33: 0.1721854305 | Q33: 0.2745098039 | R33: 0.2483660131 | S33: 0.2095808383 | T33: 0.3446327684 | U33: 0.4615384615 | V33: 0.3926701571 | W33: 0.2623762376 | X33: 0.1218487395 | Y33: 0.01578947368 | Z33: 0.08270676692 | AA33: 0.2392156863 | AB33: 0.1647940075 | AC33: 0.3056994819 | AD33: 0.1041666667 | AE33: 0.0917721519 | AF33: 0.2057877814 | AG33: 0.1150793651 | AH33: 0.1226415094 | AI33: 0.02608695652 | AJ33: -0.08533333333 | AK33: -0.128113879 | AL33: -0.02521008403 | AM33: 0.07344632768 | AN33: 0.01166180758 | AO33: -0.004081632653 | AP33: 0.1206896552 | AQ33: -0.09210526316 | AR33: 0.02770780856 | AS33: 0.3088235294 | AT33: 0.04494382022 | AU33: 0.1917562724 | AV33: 0.3473684211 | AW33: 0.1194196429 | AX33: 0.1934197408 | AY33: 0.134502924 | AZ33: -0.0500736377 | BA33: 0.05503875969
B34: CATALUÑA | C34: 0.2669683258 | D34: 0.2324455206 | E34: 0.02865329513 | F34: 0.04724409449 | G34: 0.07857142857 | H34: 0.163064833 | I34: 0.3537604457 | J34: 0.4586466165 | K34: 0.2052980132 | L34: 0.2753378378 | M34: 0.1625514403 | N34: 0.002577319588 | O34: 0.1634615385 | P34: 0.2860927152 | Q34: 0.3026548673 | R34: 0.2570694087 | S34: 0.3140495868 | T34: 0.0710607621 | U34: 0.183423913 | V34: 0.2167689162 | W34: 0.1554357592 | X34: 0.1798076923 | Y34: 0.08610792193 | Z34: 0.04033613445 | AA34: -0.00466562986 | AB34: 0.0619396903 | AC34: 0.03699788584 | AD34: 0.1227786753 | AE34: 0.0765625 | AF34: -0.018419033 | AG34: -0.005096839959 | AH34: -0.05971223022 | AI34: -0.0587808418 | AJ34: 0.1125879593 | AK34: -0.02356557377 | AL34: -0.06426931905 | AM34: 0.05628373169 | AN34: -0.09768095573 | AO34: -0.01259181532 | AP34: 0.00899427637 | AQ34: -0.06642335766 | AR34: 0.1448598131 | AS34: 0.2540816327 | AT34: 0.1497152156 | AU34: 0.2498230715 | AV34: 0.1930917327 | AW34: 0.1146179402 | AX34: 0.05471577603 | AY34: -0.002825999193 | AZ34: -0.008906882591 | BA34: -0.01368464052
B35: COMUNITAT VALENCIANA | C35: 0.1887905605 | D35: 0.4617834395 | E35: 0.326007326 | F35: 0.2452830189 | G35: 0.1513647643 | H35: 0.1895424837 | I35: 0.04143646409 | J35: 0.2727272727 | K35: 0.2586206897 | L35: 0.184981685 | M35: 0.2785145889 | N35: 0.1581632653 | O35: 0.2568493151 | P35: 0.3044822257 | Q35: 0.3609958506 | R35: 0.154185022 | S35: 0.3392370572 | T35: 0.2014218009 | U35: 0.1463414634 | V35: 0.4796437659 | W35: -0.02034587996 | X35: 0.1045364892 | Y35: 0.1755319149 | Z35: -0.06018916595 | AA35: 0.1983385254 | AB35: 0.07410714286 | AC35: -0.04524886878 | AD35: 0.1152790485 | AE35: -0.0424610052 | AF35: 0.07398171239 | AG35: 0.02962085308 | AH35: -0.01722723544 | AI35: 0.06244343891 | AJ35: -0.02321981424 | AK35: 0.1001150748 | AL35: -0.02170283806 | AM35: 0.01277683135 | AN35: -0.09508716323 | AO35: -0.1255230126 | AP35: -0.02389078498 | AQ35: -0.09083263246 | AR35: 0.299922899 | AS35: 0.1714116251 | AT35: 0.2121518987 | AU35: 0.261487051 | AV35: 0.2953642384 | AW35: 0.03783231084 | AX35: 0.08866995074 | AY35: 0.009954751131 | AZ35: 0.02240143369 | BA35: -0.05543382997
B36: EXTREMADURA | C36: -0.5591397849 | D36: 0.2025316456 | E36: 0.5333333333 | F36: 0.3095238095 | G36: 1.243902439 | H36: 0.06315789474 | I36: 0.01449275362 | J36: -0.1454545455 | K36: -0.0652173913 | L36: -0.0198019802 | M36: -0.1 | N36: 0.2127659574 | O36: 0.01162790698 | P36: 0.0303030303 | Q36: 0.2222222222 | R36: 0.04385964912 | S36: 0.4482758621 | T36: 0.5392156863 | U36: 0.1818181818 | V36: 0.1932773109 | W36: 0.1746031746 | X36: 0.127388535 | Y36: 0.5384615385 | Z36: 0.4225352113 | AA36: 0.25 | AB36: -0.01129943503 | AC36: -0.1428571429 | AD36: -0.03465346535 | AE36: 0.1891891892 | AF36: 0.1714285714 | AG36: 0.3666666667 | AH36: -0.0358974359 | AI36: -0.1318181818 | AJ36: -0.0243902439 | AK36: -0.256097561 | AL36: -0.005319148936 | AM36: -0.005235602094 | AN36: -0.14 | AO36: 0.08196721311 | AP36: 0.1229946524 | AQ36: -0.02105263158 | AR36: 0.04651162791 | AS36: 0.1333333333 | AT36: 0.01400560224 | AU36: 0.0635359116 | AV36: 0.3402597403 | AW36: 0.2926356589 | AX36: 0.011994003 | AY36: 0.1511111111 | AZ36: -0.0990990991 | BA36: 0.005714285714
B37: GALICIA | C37: -0.04 | D37: -0.01304347826 | E37: 0.1323529412 | F37: 0.1214953271 | G37: 0.2552083333 | H37: 0.1894273128 | I37: 0.1948051948 | J37: 0.2666666667 | K37: 0.08713692946 | L37: -0.03333333333 | M37: 0.2336956522 | N37: -0.02302631579 | O37: 0.213740458 | P37: 0.2950191571 | Q37: 0.06607929515 | R37: 0.2255892256 | S37: 0.3018867925 | T37: 0.2426035503 | U37: 0.2314049587 | V37: 0.3104395604 | W37: -0.1086956522 | X37: 0.2119047619 | Y37: 0.1610738255 | Z37: -0.03773584906 | AA37: 0.2737127371 | AB37: -0.06090373281 | AC37: 0.2658959538 | AD37: 0.1263616558 | AE37: 0.02553191489 | AF37: 0.1443514644 | AG37: -0.02511415525 | AH37: -0.06576402321 | AI37: 0 | AJ37: -0.05850091408 | AK37: -0.1756440281 | AL37: 0.06625258799 | AM37: 0.01244813278 | AN37: -0.005825242718 | AO37: -0.07102272727 | AP37: 0.01165048544 | AQ37: -0.2069672131 | AR37: 0.04230769231 | AS37: 0.2287822878 | AT37: 0.04804804805 | AU37: 0.2053486151 | AV37: 0.2749603803 | AW37: 0.04599129894 | AX37: 0.1307189542 | AY37: 0.01891749869 | AZ37: -0.03867973182 | BA37: -0.008583690987
B38: MADRID | C38: 0.04421052632 | D38: 0.1318181818 | E38: 0.0775862069 | F38: 0.207852194 | G38: 0.01814516129 | H38: 0.3212851406 | I38: 0.352 | J38: 0.1185468451 | K38: 0.2831683168 | L38: 0.05319148936 | M38: 0.02366863905 | N38: 0.188034188 | O38: -0.001543209877 | P38: 0.1370851371 | Q38: 0.1252408478 | R38: 0.1194244604 | S38: 0.3323029366 | T38: 0.1776649746 | U38: 0.2294520548 | V38: 0.3611825193 | W38: 0.0788863109 | X38: 0.1109913793 | Y38: 0.01810584958 | Z38: 0.03116147309 | AA38: 0.1172043011 | AB38: 0.01066925315 | AC38: 0.3461012312 | AD38: 0.09157509158 | AE38: 0.09335899904 | AF38: 0.1477927063 | AG38: -0.1595528455 | AH38: -0.0427852349 | AI38: -0.136443662 | AJ38: 0.03762541806 | AK38: 0.06892382104 | AL38: -0.05170902717 | AM38: 0.2201834862 | AN38: -0.009669621273 | AO38: -0.1097285068 | AP38: 0.003696857671 | AQ38: -0.04594820384 | AR38: 0.1155660377 | AS38: 0.1918604651 | AT38: 0.133037694 | AU38: 0.09471624266 | AV38: 0.2752949589 | AW38: 0.06083543594 | AX38: 0.125 | AY38: 0.0101010101 | AZ38: -0.02604651163 | BA38: 0.02650429799
B39: MURCIA | C39: -0.2959183673 | D39: 0.3645833333 | E39: -0.1315789474 | F39: 0.2924528302 | G39: 0.8695652174 | H39: -0.06870229008 | I39: 0.6212121212 | J39: 0.02189781022 | K39: 0.2403100775 | L39: 0.4836065574 | M39: 0 | N39: 0.04285714286 | O39: 0.13125 | P39: 0 | Q39: 0.2336448598 | R39: 0.2397260274 | S39: 0.03314917127 | T39: -0.02209944751 | U39: -0.07575757576 | V39: 0.2762430939 | W39: 0.09625668449 | X39: 0.5988700565 | Y39: 0.3278688525 | Z39: 0.1515151515 | AA39: 0.1951219512 | AB39: -0.109540636 | AC39: 0.2098765432 | AD39: -0.04135338346 | AE39: -0.09387755102 | AF39: 0.1984126984 | AG39: 0.0306122449 | AH39: 0.137254902 | AI39: 0.1261261261 | AJ39: -0.05960264901 | AK39: -0.09405940594 | AL39: -0.1137931034 | AM39: -0.06 | AN39: -0.04225352113 | AO39: 0.05464480874 | AP39: 0.03891050584 | AQ39: 0.09787234043 | AR39: 0.07180851064 | AS39: 0.2357320099 | AT39: 0.1927710843 | AU39: 0.1363636364 | AV39: 0.06222222222 | AW39: 0.2775453278 | AX39: 0.03493449782 | AY39: 0.07172995781 | AZ39: -0.04133858268 | BA39: -0.007186858316
B40: NAVARRA | C40: -0.3333333333 | D40: 1.666666667 | E40: 0.7142857143 | F40: 0.3225806452 | G40: 0.85 | H40: 0.425 | I40: -0.3055555556 | J40: 0.1707317073 | K40: 0.2702702703 | L40: -0.1052631579 | M40: 0.76 | N40: -0.02083333333 | O40: 0.4042553191 | P40: 0.2941176471 | Q40: 0.5681818182 | R40: 0.3617021277 | S40: 0.3484848485 | T40: 0.4242424242 | U40: -0.07246376812 | V40: 0.28125 | W40: -0.393258427 | X40: -0.04255319149 | Y40: -0.28125 | Z40: 0.6463414634 | AA40: 0.9074074074 | AB40: 0.1777777778 | AC40: 0.1739130435 | AD40: -0.3925925926 | AE40: -0.3106796117 | AF40: -0.1698113208 | AG40: 0.7037037037 | AH40: 0.08536585366 | AI40: 0.5211267606 | AJ40: 0.3977272727 | AK40: -0.25 | AL40: 0.2247191011 | AM40: -0.1111111111 | AN40: -0.09756097561 | AO40: 0.07246376812 | AP40: -0.1100917431 | AQ40: 0.0625 | AR40: 0.412371134 | AS40: 0.2189781022 | AT40: 0.1317365269 | AU40: 0.4021164021 | AV40: 0.241509434 | AW40: -0.01215805471 | AX40: 0.06153846154 | AY40: -0.01449275362 | AZ40: 0.2029411765 | BA40: -0.07579462103
B41: PAIS VASCO | C41: 0.1101694915 | D41: -0.006849315068 | E41: 0.06493506494 | F41: 0.2 | G41: 0.03816793893 | H41: 0.05517241379 | I41: 0.4390243902 | J41: 0.07407407407 | K41: 0.3602941176 | L41: 0.3137254902 | M41: 0.1610169492 | N41: -0.02298850575 | O41: 0.1243243243 | P41: 0.07462686567 | Q41: 0.03649635036 | R41: 0.1470588235 | S41: 0.2884615385 | T41: 0.2824074074 | U41: 0.2042253521 | V41: 0.4256410256 | W41: -0.01865671642 | X41: 0.06498194946 | Y41: 0.1578947368 | Z41: 0.04676258993 | AA41: 0.1520912548 | AB41: -0.01016949153 | AC41: 0.1515151515 | AD41: 0.1546391753 | AE41: -0.0297029703 | AF41: 0.2191780822 | AG41: 0.04824561404 | AH41: 0.0625 | AI41: 0.387755102 | AJ41: 0.2443820225 | AK41: 0.004184100418 | AL41: 0.1512605042 | AM41: -0.07107843137 | AN41: -0.1738148984 | AO41: -0.008333333333 | AP41: -0.05839416058 | AQ41: -0.1055408971 | AR41: 0.09243697479 | AS41: 0.1173076923 | AT41: 0.1927710843 | AU41: 0.09812409812 | AV41: 0.3061760841 | AW41: 0.05331991952 | AX41: 0.1069723018 | AY41: 0.07506471096 | AZ41: 0.2054574639 | BA41: -0.0878828229
B42: LA RIOJA | C42: 0.2142857143 | D42: -0.08333333333 | E42: 0.5 | F42: 0 | G42: 0.5294117647 | H42: 0.3636363636 | I42: 0.2777777778 | J42: 0.9375 | K42: 0.7307692308 | L42: 0.06666666667 | M42: -0.2173913043 | N42: -0.3225806452 | O42: -0.4666666667 | P42: -0.09375 | Q42: 0.7222222222 | R42: 0.8095238095 | S42: 0.4166666667 | T42: 0.6551724138 | U42: -0.03225806452 | V42: 0.1842105263 | W42: 0.08823529412 | X42: =+(AB21-X21)/X21 -> -0.2916666667 | Y42: 0.3666666667 | Z42: =+(AD21-Z21)/Z21 -> -0.08888888889 | AA42: 0.1891891892 | AB42: 0.2647058824 | AC42: -0.4390243902 | AD42: =+(AH21-AD21)/AD21 -> 0.4634146341 | AE42: 0 | AF42: =+(AJ21-AF21)/AF21 -> 0.06976744186 | AG42: 0.6086956522 | AH42: =+(AL21-AH21)/AH21 -> -0.1833333333 | AI42: 0.09090909091 | AJ42: 0.1304347826 | AK42: 0 | AL42: -0.1836734694 | AM42: 0.1666666667 | AN42: 0.1538461538 | AO42: -0.3243243243 | AP42: 0.55 | AQ42: -0.1964285714 | AR42: 0.1060606061 | AS42: 0.5068493151 | AT42: 0.05454545455 | AU42: 0.05172413793 | AV42: 0.2868852459 | AW42: -0.02547770701 | AX42: 0.1111111111 | AY42: 0.03529411765 | AZ42: 0.005681818182 | BA42: 0.1468926554
B43: TOTAL | C43: =+(G22-C22)/C22 -> 0.05917721519 | D43: 0.2416 | E43: 0.171895144 | F43: 0.1773962804 | G43: 0.2446967434 | H43: 0.1646907216 | I43: 0.2442244224 | J43: 0.2065613609 | K43: 0.17018723 | L43: 0.146271299 | M43: 0.1199528441 | N43: 0.115407855 | O43: 0.1638974359 | P43: 0.2067567568 | Q43: 0.2460526316 | R43: 0.1325388227 | S43: 0.2351075079 | T43: 0.1942089266 | U43: 0.168532207 | V43: 0.333067602 | W43: 0.05693493151 | X43: 0.1224380442 | Y43: 0.1225375023 | Z43: 0.0182992465 | AA43: 0.1512083165 | AB43: 0.04224847834 | AC43: 0.1003059089 | AD43: =+(AH22-AD22)/AD22 -> 0.06812309138 | AE43: 0.04128063797 | AF43: =+(AJ22-AF22)/AF22 -> 0.07431581358 | AG43: 0.01126719344 | AH43: =+(AL22-AH22)/AH22 -> -0.001979327029 | AI43: -0.03660322108 | AJ43: 0.04476657429 | AK43: -0.03863406164 | AL43: -0.006500661084 | AM43: 0.07388356325 | AN43: -0.04193021832 | AO43: -0.03898254064 | AP43: 0.01330819563 | AQ43: -0.04920531243 | AR43: 0.1620550095 | AS43: 0.2113867368 | AT43: 0.1378865223 | AU43: 0.1824885268 | AV43: 0.2370050584 | AW43: 0.07558078048 | AX43: 0.08773884828 | AY43: 0.03193925515 | AZ43: -0.006744919411 | BA43: 0.002410559426

Sheet Guarda custod hij no matr. cons
N1: Inicio
A2: Guardia, custodia y alimentos de hijos menores no matrimoniales consensuadas clasificados por Tribunal Superior de Justicia
C4: 07-T1 | D4: 07-T2 | E4: 07-T3 | F4: 07-T4 | G4: 08-T1 | H4: 08-T2 | I4: 08-T3 | J4: 08-T4 | K4: 09-T1 | L4: 09-T2 | M4: 09-T3 | N4: 09-T4 | O4: 10-T1 | P4: 10-T2 | Q4: 10-T3 | R4: 10-T4 | S4: 11-T1 | T4: 11-T2 | U4: 11-T3 | V4: 11-T4 | W4: 12-T1 | X4: 12-T2 | Y4: 12-T3 | Z4: 12-T4 | AA4: 13-T1 | AB4: 13-T2 | AC4: 13-T3 | AD4: 13-T4 | AE4: 14-T1 | AF4: 14-T2 | AG4: 14-T3 | AH4: 14-T4 | AI4: 15-T1 | AJ4: 15-T2 | AK4: 15-T3 | AL4: 15-T4 | AM4: 16-T1 | AN4: 16-T2 | AO4: 16-T3 | AP4: 16-T4 | AQ4: 17-T1 | AR4: 17-T2 | AS4: 17-T3 | AT4: 17-T4 | AU4: 18-T1 | AV4: Total 2007 | AW4: Total 2008 | AX4: Total 2009 | AY4: Total 2010 | AZ4: Total 2011 | BA4: Total 2012 | BB4: Total 2013 | BC4: Total 2014 | BD4: Total 2015 | BE4: Total 2016 | BF4: Total 2017
B5: ANDALUCIA | C5: 208 | D5: 210 | E5: 157 | F5: 190 | G5: 232 | H5: 228 | I5: 191 | J5: 233 | K5: 268 | L5: 259 | M5: 210 | N5: 284 | O5: 301 | P5: 400 | Q5: 238 | R5: 414 | S5: 386 | T5: 399 | U5: 299 | V5: 443 | W5: 446 | X5: 528 | Y5: 371 | Z5: 553 | AA5: 563 | AB5: 653 | AC5: 492 | AD5: 717 | AE5: 776 | AF5: 729 | AG5: 623 | AH5: 905 | AI5: 968 | AJ5: 959 | AK5: 719 | AL5: 825 | AM5: 820 | AN5: 975 | AO5: 625 | AP5: 831 | AQ5: 916 | AR5: 902 | AS5: 578 | AT5: 900 | AU5: 929 | AV5: =+C5+D5+E5+F5 -> 765 | AW5: =+G5+H5+I5+J5 -> 884 | AX5: =+K5+L5+M5+N5 -> 1021 | AY5: =+O5+P5+Q5+R5 -> 1353 | AZ5: =+S5+T5+U5+V5 -> 1527 | BA5: =+W5+X5+Y5+Z5 -> 1898 | BB5: =+AA5+AB5+AC5+AD5 -> 2425 | BC5: =+AE5+AF5+AG5+AH5 -> 3033 | BD5: =+AI5+AJ5+AK5+AL5 -> 3471 | BE5: =+AM5+AN5+AO5+AP5 -> 3251 | BF5: =+AQ5+AR5+AS5+AT5 -> 3296
B6: ARAGON | C6: 41 | D6: 41 | E6: 21 | F6: 18 | G6: 36 | H6: 30 | I6: 17 | J6: 26 | K6: 33 | L6: 23 | M6: 15 | N6: 30 | O6: 40 | P6: 34 | Q6: 23 | R6: 36 | S6: 52 | T6: 64 | U6: 46 | V6: 63 | W6: 55 | X6: 66 | Y6: 39 | Z6: 59 | AA6: 54 | AB6: 75 | AC6: 78 | AD6: 64 | AE6: 66 | AF6: 73 | AG6: 66 | AH6: 90 | AI6: 82 | AJ6: 104 | AK6: 69 | AL6: 80 | AM6: 87 | AN6: 108 | AO6: 85 | AP6: 106 | AQ6: 116 | AR6: 103 | AS6: 75 | AT6: 108 | AU6: 100 | AV6: 121 | AW6: 109 | AX6: 101 | AY6: 133 | AZ6: 225 | BA6: 219 | BB6: 271 | BC6: 295 | BD6: 335 | BE6: 386 | BF6: 402
B7: ASTURIAS | C7: 29 | D7: 17 | E7: 19 | F7: 27 | G7: 12 | H7: 25 | I7: 14 | J7: 29 | K7: 20 | L7: 19 | M7: 26 | N7: 24 | O7: 47 | P7: 37 | Q7: 21 | R7: 45 | S7: 57 | T7: 45 | U7: 38 | V7: 49 | W7: 55 | X7: 67 | Y7: 55 | Z7: 66 | AA7: 73 | AB7: 71 | AC7: 59 | AD7: 85 | AE7: 81 | AF7: 86 | AG7: 55 | AH7: 117 | AI7: 112 | AJ7: 111 | AK7: 80 | AL7: 100 | AM7: 105 | AN7: 128 | AO7: 65 | AP7: 124 | AQ7: 113 | AR7: 119 | AS7: 58 | AT7: 123 | AU7: 107 | AV7: 92 | AW7: 80 | AX7: 89 | AY7: 150 | AZ7: 189 | BA7: 243 | BB7: 288 | BC7: 339 | BD7: 403 | BE7: 422 | BF7: 413
B8: ILLES BALEARS | C8: 96 | D8: 93 | E8: 52 | F8: 87 | G8: 62 | H8: 92 | I8: 67 | J8: 93 | K8: 90 | L8: 92 | M8: 74 | N8: 112 | O8: 86 | P8: 102 | Q8: 94 | R8: 100 | S8: 119 | T8: 102 | U8: 80 | V8: 103 | W8: 114 | X8: 115 | Y8: 91 | Z8: 148 | AA8: 126 | AB8: 153 | AC8: 101 | AD8: 158 | AE8: 159 | AF8: 152 | AG8: 129 | AH8: 176 | AI8: 167 | AJ8: 175 | AK8: 127 | AL8: 173 | AM8: 142 | AN8: 174 | AO8: 130 | AP8: 162 | AQ8: 169 | AR8: 170 | AS8: 126 | AT8: 205 | AU8: 192 | AV8: 328 | AW8: 314 | AX8: 368 | AY8: 382 | AZ8: 404 | BA8: 468 | BB8: 538 | BC8: 616 | BD8: 642 | BE8: 608 | BF8: 670
B9: CANARIAS | C9: 97 | D9: 124 | E9: 115 | F9: 153 | G9: 129 | H9: 165 | I9: 128 | J9: 132 | K9: 135 | L9: 162 | M9: 125 | N9: 186 | O9: 216 | P9: 260 | Q9: 162 | R9: 228 | S9: 219 | T9: 301 | U9: 203 | V9: 252 | W9: 268 | X9: 334 | Y9: 253 | Z9: 335 | AA9: 364 | AB9: 409 | AC9: 307 | AD9: 421 | AE9: 492 | AF9: 507 | AG9: 418 | AH9: 507 | AI9: 529 | AJ9: 479 | AK9: 352 | AL9: 435 | AM9: 364 | AN9: 476 | AO9: 336 | AP9: 424 | AQ9: 367 | AR9: 383 | AS9: 296 | AT9: 378 | AU9: 384 | AV9: 489 | AW9: 554 | AX9: 608 | AY9: 866 | AZ9: 975 | BA9: 1190 | BB9: 1501 | BC9: 1924 | BD9: 1795 | BE9: 1600 | BF9: 1424
B10: CANTABRIA | C10: 19 | D10: 12 | E10: 8 | F10: 11 | G10: 13 | H10: 12 | I10: 15 | J10: 12 | K10: 11 | L10: 20 | M10: 11 | N10: 17 | O10: 7 | P10: 14 | Q10: 13 | R10: 21 | S10: 20 | T10: 22 | U10: 22 | V10: 24 | W10: 26 | X10: 32 | Y10: 27 | Z10: 36 | AA10: 43 | AB10: 45 | AC10: 26 | AD10: 41 | AE10: 45 | AF10: 39 | AG10: 41 | AH10: 49 | AI10: 55 | AJ10: 46 | AK10: 41 | AL10: 69 | AM10: 46 | AN10: 53 | AO10: 30 | AP10: 65 | AQ10: 66 | AR10: 53 | AS10: 41 | AT10: 42 | AU10: 66 | AV10: 50 | AW10: 52 | AX10: 59 | AY10: 55 | AZ10: 88 | BA10: 121 | BB10: 155 | BC10: 174 | BD10: 211 | BE10: 194 | BF10: 202
B11: CASTILLA Y LEON | C11: 32 | D11: 30 | E11: 23 | F11: 40 | G11: 21 | H11: 46 | I11: 50 | J11: 37 | K11: 48 | L11: 47 | M11: 29 | N11: 65 | O11: 73 | P11: 62 | Q11: 37 | R11: 63 | S11: 77 | T11: 78 | U11: 46 | V11: 92 | W11: 110 | X11: 101 | Y11: 80 | Z11: 140 | AA11: 117 | AB11: 138 | AC11: 112 | AD11: 151 | AE11: 143 | AF11: 172 | AG11: 97 | AH11: 167 | AI11: 162 | AJ11: 144 | AK11: 120 | AL11: 150 | AM11: 151 | AN11: 199 | AO11: 103 | AP11: 144 | AQ11: 138 | AR11: 156 | AS11: 131 | AT11: 148 | AU11: 140 | AV11: 125 | AW11: 154 | AX11: 189 | AY11: 235 | AZ11: 293 | BA11: 431 | BB11: 518 | BC11: 579 | BD11: 576 | BE11: 597 | BF11: 573
B12: CASTILLA LA MANCHA | C12: 32 | D12: 31 | E12: 16 | F12: 42 | G12: 16 | H12: 42 | I12: 32 | J12: 37 | K12: 30 | L12: 36 | M12: 35 | N12: 39 | O12: 49 | P12: 51 | Q12: 39 | R12: 51 | S12: 74 | T12: 65 | U12: 47 | V12: 70 | W12: 70 | X12: 72 | Y12: 67 | Z12: 90 | AA12: 97 | AB12: 107 | AC12: 86 | AD12: 96 | AE12: 123 | AF12: 129 | AG12: 97 | AH12: 107 | AI12: 125 | AJ12: 141 | AK12: 103 | AL12: 153 | AM12: 164 | AN12: 171 | AO12: 116 | AP12: 142 | AQ12: 162 | AR12: 174 | AS12: 104 | AT12: 153 | AU12: 161 | AV12: 121 | AW12: 127 | AX12: 140 | AY12: 190 | AZ12: 256 | BA12: 299 | BB12: 386 | BC12: 456 | BD12: 522 | BE12: 593 | BF12: 593
B13: CATALUÑA | C13: 311 | D13: 363 | E13: 259 | F13: 346 | G13: 386 | H13: 388 | I13: 281 | J13: 369 | K13: 414 | L13: 415 | M13: 350 | N13: 525 | O13: 570 | P13: 590 | Q13: 486 | R13: 692 | S13: 623 | T13: 705 | U13: 494 | V13: 655 | W13: 761 | X13: 720 | Y13: 506 | Z13: 786 | AA13: 782 | AB13: 729 | AC13: 624 | AD13: 830 | AE13: 881 | AF13: 859 | AG13: 653 | AH13: 945 | AI13: 925 | AJ13: 961 | AK13: 789 | AL13: 980 | AM13: 978 | AN13: 1123 | AO13: 733 | AP13: 984 | AQ13: 1079 | AR13: 1032 | AS13: 722 | AT13: 991 | AU13: 1085 | AV13: 1279 | AW13: 1424 | AX13: 1704 | AY13: 2338 | AZ13: 2477 | BA13: 2773 | BB13: 2965 | BC13: 3338 | BD13: 3655 | BE13: 3818 | BF13: 3824
B14: COMUNITAT VALENCIANA | C14: 197 | D14: 186 | E14: 156 | F14: 203 | G14: 217 | H14: 214 | I14: 144 | J14: 211 | K14: 190 | L14: 222 | M14: 197 | N14: 227 | O14: 286 | P14: 249 | Q14: 197 | R14: 310 | S14: 305 | T14: 294 | U14: 214 | V14: 268 | W14: 333 | X14: 390 | Y14: 319 | Z14: 339 | AA14: 333 | AB14: 386 | AC14: 303 | AD14: 422 | AE14: 433 | AF14: 422 | AG14: 360 | AH14: 429 | AI14: 445 | AJ14: 501 | AK14: 370 | AL14: 462 | AM14: 446 | AN14: 561 | AO14: 410 | AP14: 517 | AQ14: 461 | AR14: 525 | AS14: 356 | AT14: 463 | AU14: 473 | AV14: 742 | AW14: 786 | AX14: 836 | AY14: 1042 | AZ14: 1081 | BA14: 1381 | BB14: 1444 | BC14: 1644 | BD14: 1778 | BE14: 1934 | BF14: 1805
B15: EXTREMADURA | C15: 17 | D15: 5 | E15: 14 | F15: 17 | G15: 6 | H15: 19 | I15: 10 | J15: 16 | K15: 14 | L15: 17 | M15: 11 | N15: 22 | O15: 26 | P15: 25 | Q15: 25 | R15: 31 | S15: 39 | T15: 16 | U15: 13 | V15: 33 | W15: 44 | X15: 36 | Y15: 22 | Z15: 37 | AA15: 40 | AB15: 59 | AC15: 43 | AD15: 58 | AE15: 50 | AF15: 75 | AG15: 49 | AH15: 61 | AI15: 62 | AJ15: 93 | AK15: 53 | AL15: 84 | AM15: 68 | AN15: 89 | AO15: 62 | AP15: 89 | AQ15: 105 | AR15: 111 | AS15: 81 | AT15: 114 | AU15: 115 | AV15: 53 | AW15: 51 | AX15: 64 | AY15: 107 | AZ15: 101 | BA15: 139 | BB15: 200 | BC15: 235 | BD15: 292 | BE15: 308 | BF15: 411
B16: GALICIA | C16: 51 | D16: 34 | E16: 20 | F16: 34 | G16: 25 | H16: 40 | I16: 34 | J16: 56 | K16: 53 | L16: 63 | M16: 42 | N16: 65 | O16: 79 | P16: 67 | Q16: 63 | R16: 90 | S16: 89 | T16: 113 | U16: 75 | V16: 134 | W16: 132 | X16: 147 | Y16: 99 | Z16: 159 | AA16: 121 | AB16: 184 | AC16: 143 | AD16: 186 | AE16: 179 | AF16: 200 | AG16: 163 | AH16: 229 | AI16: 233 | AJ16: 242 | AK16: 183 | AL16: 213 | AM16: 199 | AN16: 239 | AO16: 158 | AP16: 240 | AQ16: 275 | AR16: 265 | AS16: 142 | AT16: 282 | AU16: 162 | AV16: 139 | AW16: 155 | AX16: 223 | AY16: 299 | AZ16: 411 | BA16: 537 | BB16: 634 | BC16: 771 | BD16: 871 | BE16: 836 | BF16: 964
B17: MADRID | C17: 179 | D17: 210 | E17: 146 | F17: 156 | G17: 172 | H17: 215 | I17: 150 | J17: 169 | K17: 159 | L17: 243 | M17: 150 | N17: 193 | O17: 222 | P17: 308 | Q17: 201 | R17: 259 | S17: 305 | T17: 271 | U17: 255 | V17: 252 | W17: 323 | X17: 303 | Y17: 253 | Z17: 342 | AA17: 284 | AB17: 365 | AC17: 263 | AD17: 397 | AE17: 371 | AF17: 360 | AG17: 433 | AH17: 417 | AI17: 441 | AJ17: 453 | AK17: 320 | AL17: 474 | AM17: 421 | AN17: 545 | AO17: 433 | AP17: 454 | AQ17: 583 | AR17: 538 | AS17: 394 | AT17: 528 | AU17: 577 | AV17: 691 | AW17: 706 | AX17: 745 | AY17: 990 | AZ17: 1083 | BA17: 1221 | BB17: 1309 | BC17: 1581 | BD17: 1688 | BE17: 1853 | BF17: 2043
B18: MURCIA | C18: 42 | D18: 39 | E18: 31 | F18: 36 | G18: 25 | H18: 44 | I18: 28 | J18: 57 | K18: 41 | L18: 52 | M18: 44 | N18: 56 | O18: 41 | P18: 77 | Q18: 41 | R18: 74 | S18: 80 | T18: 79 | U18: 52 | V18: 91 | W18: 95 | X18: 101 | Y18: 78 | Z18: 123 | AA18: 91 | AB18: 99 | AC18: 58 | AD18: 118 | AE18: 143 | AF18: 113 | AG18: 106 | AH18: 165 | AI18: 150 | AJ18: 149 | AK18: 130 | AL18: 170 | AM18: 143 | AN18: 154 | AO18: 121 | AP18: 153 | AQ18: 137 | AR18: 180 | AS18: 108 | AT18: 184 | AU18: 174 | AV18: 148 | AW18: 154 | AX18: 193 | AY18: 233 | AZ18: 302 | BA18: 397 | BB18: 366 | BC18: 527 | BD18: 599 | BE18: 571 | BF18: 609
B19: NAVARRA | C19: 19 | D19: 10 | E19: 10 | F19: 14 | G19: 23 | H19: 30 | I19: 12 | J19: 60 | K19: 32 | L19: 52 | M19: 25 | N19: 50 | O19: 31 | P19: 37 | Q19: 31 | R19: 56 | S19: 64 | T19: 56 | U19: 29 | V19: 48 | W19: 64 | X19: 54 | Y19: 36 | Z19: 42 | AA19: 42 | AB19: 52 | AC19: 38 | AD19: 54 | AE19: 50 | AF19: 59 | AG19: 31 | AH19: 54 | AI19: 57 | AJ19: 67 | AK19: 61 | AL19: 65 | AM19: 70 | AN19: 77 | AO19: 34 | AP19: 68 | AQ19: 60 | AR19: 64 | AS19: 40 | AT19: 82 | AU19: 68 | AV19: 53 | AW19: 125 | AX19: 159 | AY19: 155 | AZ19: 197 | BA19: 196 | BB19: 186 | BC19: 194 | BD19: 250 | BE19: 249 | BF19: 246
B20: PAIS VASCO | C20: 82 | D20: 95 | E20: 57 | F20: 80 | G20: 95 | H20: 106 | I20: 93 | J20: 112 | K20: 120 | L20: 147 | M20: 84 | N20: 137 | O20: 124 | P20: 134 | Q20: 83 | R20: 136 | S20: 149 | T20: 145 | U20: 101 | V20: 190 | W20: 157 | X20: 125 | Y20: 85 | Z20: 125 | AA20: 152 | AB20: 172 | AC20: 125 | AD20: 201 | AE20: 179 | AF20: 219 | AG20: 146 | AH20: 230 | AI20: 194 | AJ20: 206 | AK20: 156 | AL20: 226 | AM20: 249 | AN20: 286 | AO20: 161 | AP20: 230 | AQ20: 253 | AR20: 291 | AS20: 154 | AT20: 230 | AU20: 242 | AV20: 314 | AW20: 406 | AX20: 488 | AY20: 477 | AZ20: 585 | BA20: 492 | BB20: 650 | BC20: 774 | BD20: 782 | BE20: 926 | BF20: 928
B21: LA RIOJA | C21: 8 | D21: 5 | E21: 7 | F21: 4 | G21: 3 | H21: 8 | I21: 4 | J21: 8 | K21: 1 | L21: 0 | M21: 0 | N21: 4 | O21: 5 | P21: 3 | Q21: 2 | R21: 2 | S21: 8 | T21: 3 | U21: 7 | V21: 2 | W21: 4 | X21: 4 | Y21: 2 | Z21: 3 | AA21: 3 | AB21: 4 | AC21: 1 | AD21: 5 | AE21: 2 | AF21: 9 | AG21: 4 | AH21: 7 | AI21: 17 | AJ21: 21 | AK21: 11 | AL21: 13 | AM21: 15 | AN21: 24 | AO21: 20 | AP21: 20 | AQ21: 30 | AR21: 28 | AS21: 11 | AT21: 20 | AU21: 23 | AV21: 24 | AW21: 23 | AX21: 5 | AY21: 12 | AZ21: 20 | BA21: 13 | BB21: 13 | BC21: 22 | BD21: 62 | BE21: 79 | BF21: 89
B22: TOTAL | C22: =SUM(C5:C21) -> 1460 | D22: =SUM(D5:D21) -> 1505 | E22: 1111 | F22: 1458 | G22: 1473 | H22: 1704 | I22: 1270 | J22: 1657 | K22: 1659 | L22: 1869 | M22: 1428 | N22: 2036 | O22: 2203 | P22: 2450 | Q22: 1756 | R22: 2608 | S22: 2666 | T22: 2758 | U22: 2021 | V22: 2769 | W22: 3057 | X22: 3195 | Y22: 2383 | Z22: 3383 | AA22: 3285 | AB22: =SUM(AB5:AB21) -> 3701 | AC22: 2859 | AD22: 4004 | AE22: 4173 | AF22: 4203 | AG22: 3471 | AH22: =SUM(AH5:AH21) -> 4655 | AI22: 4724 | AJ22: 4852 | AK22: 3684 | AL22: 4672 | AM22: 4468 | AN22: =SUM(AN5:AN21) -> 5382 | AO22: 3622 | AP22: 4753 | AQ22: 5030 | AR22: 5094 | AS22: 3417 | AT22: =SUM(AT5:AT21) -> 4951 | AU22: =SUM(AU5:AU21) -> 4998 | AV22: 5534 | AW22: 6104 | AX22: 6992 | AY22: 9017 | AZ22: 10214 | BA22: 12018 | BB22: 13849 | BC22: 16502 | BD22: 17932 | BE22: 18225 | BF22: 18492
C25: Evolución 08-T1 | D25: Evolución 08-T2 | E25: Evolución 08-T3 | F25: Evolución 08-T4 | G25: Evolución 09-T1 | H25: Evolución 09-T2 | I25: Evolución 09-T3 | J25: Evolución 09-T4 | K25: Evolución 10-T1 | L25: Evolución 10-T2 | M25: Evolución 10-T3 | N25: Evolución 10-T4 | O25: Evolución 11-T1 | P25: Evolución 11-T2 | Q25: Evolución 11-T3 | R25: Evolución 11-T4 | S25: Evolución 12-T1 | T25: Evolución 12-T2 | U25: Evolución 12-T3 | V25: Evolución 12-T4 | W25: Evolución 13-T1 | X25: Evolución 13-T2 | Y25: Evolución 13-T3 | Z25: Evolución 13-T4 | AA25: Evolución 14-T1 | AB25: Evolución 14-T2 | AC25: Evolución 14-T3 | AD25: Evolución 14-T4 | AE25: Evolución 15-T1 | AF25: Evolución 15-T2 | AG25: Evolución 15-T3 | AH25: Evolución 15-T4 | AI25: Evolución 16-T1 | AJ25: Evolución 16-T2 | AK25: Evolución 16-T3 | AL25: Evolución 16-T4 | AM25: Evolución 17-T1 | AN25: Evolución 17-T2 | AO25: Evolución 17-T3 | AP25: Evolución 17-T4 | AQ25: Evolución 18-T1 | AR25: Evolución 2007-2008 | AS25: Evolución 2008-2009 | AT25: Evolución 2009-2010 | AU25: Evolución 2010-2011 | AV25: Evolución 2011-2012 | AW25: Evolución 2012-2013 | AX25: Evolución 2013-2014 | AY25: Evolución 2014-2015 | AZ25: Evolución 2015-2016 | BA25: Evolución 2016-2017
